Workbook

Sheet Sample Report (hidden)
A2: Date
A3: Hen
A4: Program
A5: Start at 999999
A6: Sequence component 1 | B6: Time 1 | C6: Seqeunce Component 2 | D6: Time 2 | E6: Seqeunce Component 3 | F6: Time 3 | G6: Correct 0 = No 1=Yes | J6: Seqeunce | K6: Time
A7: 12 | B7: 7 | C7: 12 | D7: 42 | E7: 13 | F7: 18 | G7: if 77 new line, if 31 or 41 = yes new line on 77, | J7: =string of Seqeunce compponent 1, 2 & 3 | K7: =time 3
A8: This continues until ther is a 1 on its own to indicate start of summary data
J9: 10-19 =1
A10: Summary Data | J10: 20-29 =2
A11: Correct | B11: Incorrect | C11: Rft | D11: total | E11: Av Correct | F11: Av Incorrect | G11: Percent correct | H11: Time | J11: in this example the seqeunce would be 111
A12: 40 | B12: 33 | C12: 40 | D12: 73 | E12: 23.95 | F12: 15 | G12: 54 | H12: 806

Sheet Summary
A2: Day | B2: Date | C2: Average Response Rate | D2: Target % | E2: RF for non correct sequence | F2: U Value | K2: Block 1 | L2: Block 2 | M2: Block 3 | N2: Block 4 | O2: Block 5 | P2: Block 6
A3: 1 | B3: ='!MC30D20.095'!B2:C2 -> <date> | C3: =('!MC30D20.095'!H175/60)/'!MC30D20.095'!Q3 -> 2.362228797 | D3: ='!MC30D20.095'!N28/'!MC30D20.095'!Q3 -> 0 | E3: =SUM('!MC30D20.095'!L28:Q28)/'!MC30D20.095'!Q3 -> 6.964497041 | F3: ='!MC30D20.095'!Q24 -> 0.2019788544 | J3: Average Response Rate | K3: =AVERAGE(C3:C7) -> 2.487292355 | L3: =AVERAGE(C8:C12) -> 2.712107548 | M3: =AVERAGE(C13:C17) -> 2.566107228 | N3: =AVERAGE(C18:C22) -> 2.480742415 | O3: =AVERAGE(C23:C27) -> 3.638342726 | P3: =AVERAGE(C28:C32) -> 15.15881
A4: 2 | B4: ='!N102B20.095'!B2:C2 -> <date> | C4: =('!N102B20.095'!H167/60)/'!N102B20.095'!Q3 -> 2.484575569 | D4: ='!N102B20.095'!N28/'!N102B20.095'!Q3 -> 0 | E4: =SUM('!N102B20.095'!L28:Q28)/'!N102B20.095'!Q3 -> 7.236024845 | F4: ='!N102B20.095'!Q24 -> 0.1627882551 | J4: Target % | K4: =AVERAGE(D3:D7) -> 0.02386541471 | L4: =AVERAGE(D8:D12) -> 0.1137703115 | M4: =AVERAGE(D13:D17) -> 0.1479545615 | N4: =AVERAGE(D18:D22) -> 0.1643028004 | O4: =AVERAGE(D23:D27) -> 0.2299355699 | P4: =AVERAGE(D28:D32) -> 0.2441097883
A5: 3 | B5: ='!N103950.095'!B2:C2 -> <date> | C5: =('!N103950.095'!H81/60)/'!N103950.095'!Q3 -> 4.814888889 | D5: ='!N103950.095'!N28/'!N103950.095'!Q3 -> 0 | E5: =SUM('!N103950.095'!L28:Q28)/'!N103950.095'!Q3 -> 29.81333333 | F5: ='!N103950.095'!Q24 -> 0.4487976257 | J5: CCRF | K5: =AVERAGE(E3:E7) -> 13.61096744 | L5: =AVERAGE(E8:E12) -> 12.55223611 | M5: =AVERAGE(E13:E17) -> 10.99029498 | N5: =AVERAGE(E18:E22) -> 14.30369809 | O5: =AVERAGE(E23:E27) -> 18.41063713 | P5: =AVERAGE(E28:E32) -> 13.52232935
A6: 4 | B6: ='!N104C40.095'!B2:C2 -> <date> | C6: =('!N104C40.095'!H150/60)/'!N104C40.095'!Q3 -> 2.774768519 | D6: ='!N104C40.095'!N28/'!N104C40.095'!Q3 -> 0.02777777778 | E6: =SUM('!N104C40.095'!L28:Q28)/'!N104C40.095'!Q3 -> 15.09027778 | F6: ='!N104C40.095'!Q24 -> 0.3383933471 | J6: U Value | K6: =AVERAGE(F3:F7) -> 0.3329168218 | L6: =AVERAGE(F8:F12) -> 0.512751131 | M6: =AVERAGE(F13:F17) -> 0.4184768524 | N6: =AVERAGE(F18:F22) -> 0.415243805 | O6: =AVERAGE(F23:F27) -> 0.4131548427 | P6: =AVERAGE(F28:F32) -> 0.5960638898
A7: 5 | B7: ='!N105A10.095'!B2:C2 -> <date> | C7: =('!N105A10.095'!H148/60)/'!N105A10.095'!Q3 -> 0 | D7: ='!N105A10.095'!N28/'!N105A10.095'!Q3 -> 0.09154929577 | E7: =SUM('!N105A10.095'!L28:Q28)/'!N105A10.095'!Q3 -> 8.950704225 | F7: ='!N105A10.095'!Q24 -> 0.5126260268
A8: 6 | B8: ='!N106840.095'!B2:C2 -> <date> | C8: =('!N106840.095'!H160/60)/'!N106840.095'!Q3 -> 2.587121212 | D8: ='!N106840.095'!N28/'!N106840.095'!Q3 -> 0.1103896104 | E8: =SUM('!N106840.095'!L28:Q28)/'!N106840.095'!Q3 -> 7.662337662 | F8: ='!N106840.095'!Q24 -> 0.5269172103
A9: 7 | B9: ='!N107930.095'!B2:C2 -> <date> | C9: =('!N107930.095'!H155/60)/'!N107930.095'!Q3 -> 2.677852349 | D9: ='!N107930.095'!N28/'!N107930.095'!Q3 -> 0.1208053691 | E9: =SUM('!N107930.095'!L28:Q28)/'!N107930.095'!Q3 -> 15.30201342 | F9: ='!N107930.095'!Q24 -> 0.5132545053 | G9: =K3 -> 2.487292355 | H9: =L3 -> 2.712107548 | I9: =M3 -> 2.566107228 | J9: =N3 -> 2.480742415 | K9: =O3 -> 3.638342726 | L9: =P3 -> 15.15881 | M9: =K4 -> 0.02386541471 | N9: =L4 -> 0.1137703115 | O9: =M4 -> 0.1479545615 | P9: =N4 -> 0.1643028004 | Q9: =O4 -> 0.2299355699 | R9: =P4 -> 0.2441097883 | S9: =K6 -> 0.3329168218 | T9: =L6 -> 0.512751131 | U9: =M6 -> 0.4184768524 | V9: =N6 -> 0.415243805 | W9: =O6 -> 0.4131548427 | X9: =P6 -> 0.5960638898
A10: 8 | B10: ='!N108A40.095'!B2:C2 -> <date> | C10: =('!N108A40.095'!H147/60)/'!N108A40.095'!Q3 -> 2.835224586 | D10: ='!N108A40.095'!N28/'!N108A40.095'!Q3 -> 0.1205673759 | E10: =SUM('!N108A40.095'!L28:Q28)/'!N108A40.095'!Q3 -> 15.4964539 | F10: ='!N108A40.095'!Q24 -> 0.5215903847
A11: 9 | B11: ='!N109930.095'!B2:C2 -> <date> | C11: =('!N109930.095'!H155/60)/'!N109930.095'!Q3 -> 2.651888889 | D11: ='!N109930.095'!N28/'!N109930.095'!Q3 -> 0.1466666667 | E11: =SUM('!N109930.095'!L28:Q28)/'!N109930.095'!Q3 -> 15.29333333 | F11: ='!N109930.095'!Q24 -> 0.492156121
A12: 10 | B12: ='!N110B00.095'!B2:C2 -> <date> | C12: =('!N110B00.095'!H148/60)/'!N110B00.095'!Q3 -> 2.808450704 | D12: ='!N110B00.095'!N28/'!N110B00.095'!Q3 -> 0.07042253521 | E12: =SUM('!N110B00.095'!L28:Q28)/'!N110B00.095'!Q3 -> 9.007042254 | F12: ='!N110B00.095'!Q24 -> 0.509837434
A13: 11 | B13: ='!N111C00.095'!B2:C2 -> <date> | C13: =('!N111C00.095'!H152/60)/'!N111C00.095'!Q3 -> 2.707482993 | D13: ='!N111C00.095'!N28/'!N111C00.095'!Q3 -> 0.08163265306 | E13: =SUM('!N111C00.095'!L28:Q28)/'!N111C00.095'!Q3 -> 14.85034014 | F13: ='!N111C00.095'!Q24 -> 0.4896896365
A14: 12 | B14: ='!N112920.095'!B2:C2 -> <date> | C14: =('!N112920.095'!H159/60)/'!N112920.095'!Q3 -> 2.605991285 | D14: ='!N112920.095'!N28/'!N112920.095'!Q3 -> 0.0522875817 | E14: =SUM('!N112920.095'!L28:Q28)/'!N112920.095'!Q3 -> 14.25490196 | F14: ='!N112920.095'!Q24 -> 0.401894445
A15: 13 | B15: ='!N113A30.095'!B2:C2 -> <date> | C15: =('!N113A30.095'!H159/60)/'!N113A30.095'!Q3 -> 2.604901961 | D15: ='!N113A30.095'!N28/'!N113A30.095'!Q3 -> 0.1699346405 | E15: =SUM('!N113A30.095'!L28:Q28)/'!N113A30.095'!Q3 -> 8.424836601 | F15: ='!N113A30.095'!Q24 -> 0.4566258558
A16: 14 | B16: ='!N114940.095'!B2:C2 -> <date> | C16: =('!N114940.095'!H168/60)/'!N114940.095'!Q3 -> 2.464917695 | D16: ='!N114940.095'!N28/'!N114940.095'!Q3 -> 0.1481481481 | E16: =SUM('!N114940.095'!L28:Q28)/'!N114940.095'!Q3 -> 8.018518519 | F16: ='!N114940.095'!Q24 -> 0.3469996081
A17: 15 | B17: ='!N115950.095'!B2:C2 -> <date> | C17: =('!N115950.095'!H145/60)/'!N115950.095'!Q3 -> 2.447242206 | D17: ='!N115950.095'!N28/'!N115950.095'!Q3 -> 0.2877697842 | E17: =SUM('!N115950.095'!L28:Q28)/'!N115950.095'!Q3 -> 9.402877698 | F17: ='!N115950.095'!Q24 -> 0.3971747163
A18: 16 | B18: ='!N116930.095'!B2:C2 -> <date> | C18: =('!N116930.095'!H132/60)/'!N116930.095'!Q3 -> 3.162962963 | D18: ='!N116930.095'!N28/'!N116930.095'!Q3 -> 0.1587301587 | E18: =SUM('!N116930.095'!L28:Q28)/'!N116930.095'!Q3 -> 17.33333333 | F18: ='!N116930.095'!Q24 -> 0.3695442976
A19: 17 | B19: ='!N117B20.095'!B2:C2 -> <date> | C19: =('!N117B20.095'!H142/60)/'!N117B20.095'!Q3 -> 2.706985294 | D19: ='!N117B20.095'!N28/'!N117B20.095'!Q3 -> 0.2941176471 | E19: =SUM('!N117B20.095'!L28:Q28)/'!N117B20.095'!Q3 -> 16.22794118 | F19: ='!N117B20.095'!Q24 -> 0.349577903
A20: 18 | B20: ='!N118C50.095'!B2:C2 -> <date> | C20: =('!N118C50.095'!H135/60)/'!N118C50.095'!Q3 -> 2.878717949 | D20: ='!N118C50.095'!N28/'!N118C50.095'!Q3 -> 0.2769230769 | E20: =SUM('!N118C50.095'!L28:Q28)/'!N118C50.095'!Q3 -> 17.69230769 | F20: ='!N118C50.095'!Q24 -> 0.4212587014
A21: 19 | B21: ='!N119900.095'!B2:C2 -> <date> | C21: =('!N119900.095'!H14/60)/'!N119900.095'!Q3 -> 0 | D21: ='!N119900.095'!N28/'!N119900.095'!Q3 -> 0 | E21: =SUM('!N119900.095'!L28:Q28)/'!N119900.095'!Q3 -> 0.375 | F21: ='!N119900.095'!Q24 -> 0.4911325898
A22: 20 | B22: ='!N120B20.095'!B2:C2 -> <date> | C22: =('!N120B20.095'!H115/60)/'!N120B20.095'!Q3 -> 3.655045872 | D22: ='!N120B20.095'!N28/'!N120B20.095'!Q3 -> 0.09174311927 | E22: =SUM('!N120B20.095'!L28:Q28)/'!N120B20.095'!Q3 -> 19.88990826 | F22: ='!N120B20.095'!Q24 -> 0.4447055333
A23: 21 | B23: ='!N121B40.095'!B2:C2 -> <date> | C23: =('!N121B40.095'!H120/60)/'!N121B40.095'!Q3 -> 2.877046784 | D23: ='!N121B40.095'!N28/'!N121B40.095'!Q3 -> 0.350877193 | E23: =SUM('!N121B40.095'!L28:Q28)/'!N121B40.095'!Q3 -> 19.29824561 | F23: ='!N121B40.095'!Q24 -> 0.3881009156
A24: 22 | B24: ='!N122A10.095'!B2:C2 -> <date> | C24: =('!N122A10.095'!H142/60)/'!N122A10.095'!Q3 -> 2.905474453 | D24: ='!N122A10.095'!N28/'!N122A10.095'!Q3 -> 0.197080292 | E24: =SUM('!N122A10.095'!L28:Q28)/'!N122A10.095'!Q3 -> 9.452554745 | F24: ='!N122A10.095'!Q24 -> 0.3781176532
A25: 23 | B25: ='!N123C20.095'!B2:C2 -> <date> | C25: =('!N123C20.095'!H132/60)/'!N123C20.095'!Q3 -> 3.16494709 | D25: ='!N123C20.095'!N28/'!N123C20.095'!Q3 -> 0.1111111111 | E25: =SUM('!N123C20.095'!L28:Q28)/'!N123C20.095'!Q3 -> 10.14285714 | F25: ='!N123C20.095'!Q24 -> 0.4292655603
A26: 24 | B26: ='!N124B00.095'!B2:C2 -> <date> | C26: =('!N124B00.095'!H65/60)/'!N124B00.095'!Q3 -> 6.779943503 | D26: ='!N124B00.095'!N28/'!N124B00.095'!Q3 -> 0.2203389831 | E26: =SUM('!N124B00.095'!L28:Q28)/'!N124B00.095'!Q3 -> 38.22033898 | F26: ='!N124B00.095'!Q24 -> 0.522492486
A27: 25 | B27: ='!N125B30.095'!B2:C2 -> <date> | C27: =('!N125B30.095'!H154/60)/'!N125B30.095'!Q3 -> 2.464301802 | D27: ='!N125B30.095'!N28/'!N125B30.095'!Q3 -> 0.2702702703 | E27: =SUM('!N125B30.095'!L28:Q28)/'!N125B30.095'!Q3 -> 14.93918919 | F27: ='!N125B30.095'!Q24 -> 0.3477975984
A28: 26 | B28: ='!N127B50.095'!B2:C2 -> <date> | C28: =('!N127B50.095'!H103/60)/'!N127B50.095'!Q3 -> 0 | D28: ='!N127B50.095'!N28/'!N127B50.095'!Q3 -> 0.2989690722 | E28: =SUM('!N127B50.095'!L28:Q28)/'!N127B50.095'!Q3 -> 23.5257732 | F28: ='!N127B50.095'!Q24 -> 0.3914328256
A29: 27 | B29: ='!N128A10.095'!B2:C2 -> <date> | C29: =('!N128A10.095'!H121/60)/'!N128A10.095'!Q3 -> 3.044782609 | D29: ='!N128A10.095'!N28/'!N128A10.095'!Q3 -> 0.2695652174 | E29: =SUM('!N128A10.095'!L28:Q28)/'!N128A10.095'!Q3 -> 19.05217391 | F29: ='!N128A10.095'!Q24 -> 0.4193834789
A30: 28 | B30: ='!N129C00.095'!B2:C2 -> <date> | C30: =('!N129C00.095'!H10/60)/'!N129C00.095'!Q3 -> 68.36666667 | D30: ='!N129C00.095'!N28/'!N129C00.095'!Q3 -> 0 | E30: =SUM('!N129C00.095'!L28:Q28)/'!N129C00.095'!Q3 -> 0.4 | F30: ='!N129C00.095'!Q24 -> 1
A31: 29 | B31: ='!N130A50.095'!B2:C2 -> <date> | C31: =('!N130A50.095'!H15/60)/'!N130A50.095'!Q3 -> 0 | D31: ='!N130A50.095'!N28/'!N130A50.095'!Q3 -> 0.3333333333 | E31: =SUM('!N130A50.095'!L28:Q28)/'!N130A50.095'!Q3 -> 0.6666666667 | F31: ='!N130A50.095'!Q24 -> 0.7185463541
A32: 30 | B32: ='!N202B50.095'!B2:C2 -> <date> | C32: =('!N202B50.095'!H97/60)/'!N202B50.095'!Q3 -> 4.382600733 | D32: ='!N202B50.095'!N28/'!N202B50.095'!Q3 -> 0.3186813187 | E32: =SUM('!N202B50.095'!L28:Q28)/'!N202B50.095'!Q3 -> 23.96703297 | F32: ='!N202B50.095'!Q24 -> 0.4509567905

Sheet Start
F1: Use Folder 51 | H1: Auto Clean Up | J1: Correct sequence
F2: FALSE | H2: TRUE | J2: 2212
A4: Working with Folder | G4: Process All/Or Pick A number: ALL or an integer
A5: E:\Hen Data\Raw Data\95_175\PHASE 3 CON\ | G5: ALL
A6: Filenames:
A7: !MC30D20.095 | G7: Paint Cells
A8: !N102B20.095 | G8: FALSE
A9: !N103950.095
A10: !N104C40.095
A11: !N105A10.095
A12: !N106840.095
A13: !N107930.095
A14: !N108A40.095
A15: !N109930.095
A16: !N110B00.095
A17: !N111C00.095
A18: !N112920.095
A19: !N113A30.095
A20: !N114940.095
A21: !N115950.095
A22: !N116930.095
A23: !N117B20.095
A24: !N118C50.095
A25: !N119900.095
A26: !N120B20.095
A27: !N121B40.095
A28: !N122A10.095
A29: !N123C20.095
A30: !N124B00.095
A31: !N125B30.095
A32: !N127B50.095
A33: !N128A10.095
A34: !N129C00.095
A35: !N130A50.095
A36: !N202B50.095

Sheet !MC30D20.095
A1: Report for:!MC30D20.095
A2: Date: | B2: <date>
A3: Hen: | B3: <hen> | F3: Correct Sequence | G3: =Start!J2 -> 2212 | P3: Total Sequences in Data | Q3: =4994-COUNTBLANK(L7:L5000) -> 169 | V3: Total Sequences in Block Data | W3: =COUNTA(L7:L34) -> 28 | AA3: Total Sequences in Block Data | AB3: =COUNTA(L35:L62) -> 28 | AF3: Total Sequences in Block Data | AG3: =COUNTA(L63:L91) -> 29 | AK3: Total Sequences in Block Data | AL3: =COUNTA(L92:L119) -> 28 | AP3: Total Sequences in Block Data | AQ3: =COUNTA(L120:L147) -> 28 | AU3: Total Sequences in Block Data | AV3: =COUNTA(L148:L175) -> 28
P4: Total Sequences in Summary | Q4: =SUM(O7:O22) -> 169 | V4: Total Sequences in Block Summary | W4: =SUM(U7:U22) -> 28 | AA4: Total Sequences in Block Summary | AB4: =SUM(Z7:Z22) -> 28 | AF4: Total Sequences in Block Summary | AG4: =SUM(AE7:AE22) -> 29 | AK4: Total Sequences in Block Summary | AL4: =SUM(AJ7:AJ22) -> 28 | AP4: Total Sequences in Block Summary | AQ4: =SUM(AO7:AO22) -> 28 | AU4: Total Sequences in Block Summary | AV4: =SUM(AT7:AT22) -> 28
T5: Block 1 | Y5: Block 2 | AD5: Block 3 | AI5: Block 4 | AN5: Block 5 | AS5: Block 6
A6: Sequence Component 1 | B6: Time 1 | C6: Sequence Component 2 | D6: Time 2 | E6: Sequence Component 3 | F6: Time 3 | G6: Sequence Component 4 | H6: Time 4 | I6: Sequence Component 5 | J6: Time 5 | K6: Correct? 0=No 1=Yes | L6: Sequence | N6: Frequency | P6: Relative Frequency | Q6: Variability | T6: Frequency | V6: Relative Frequency | W6: Variability | Y6: Frequency | AA6: Relative Frequency | AB6: Variability | AD6: Frequency | AF6: Relative Frequency | AG6: Variability | AI6: Frequency | AK6: Relative Frequency | AL6: Variability | AN6: Frequency | AP6: Relative Frequency | AQ6: Variability | AS6: Frequency | AU6: Relative Frequency | AV6: Variability
A7: 12 | B7: 54 | C7: 14 | D7: 87 | E7: 24 | F7: 96 | G7: 14 | H7: 117 | K7: 0 | L7: 1121 | N7: 1111 | O7: =COUNTIF($L$7:$L$500,N7) -> 123 | P7: =O7/$Q$4 -> 0.7278106509 | Q7: =IF(P7=0,0,(P7*((LOG(P7))/LOG(2)))) -> -0.3336028787 | T7: =N7 -> 1111 | U7: =COUNTIF(L7:L34,T7) -> 6 | V7: =U7/(W4-U20) -> 0.2142857143 | W7: =IF(V7=0,0,(V7*((LOG(V7))/LOG(2)))) -> -0.4762269474 | Y7: =N7 -> 1111 | Z7: =COUNTIF(L35:L62,Y7) -> 22 | AA7: =Z7/(AB4-Z20) -> 0.7857142857 | AB7: =IF(AA7=0,0,(AA7*((LOG(AA7))/LOG(2)))) -> -0.2733683098 | AD7: =N7 -> 1111 | AE7: =COUNTIF(L63:L91,AD7) -> 28 | AF7: =AE7/(AG4-AE20) -> 0.9655172414 | AG7: =IF(AF7=0,0,(AF7*((LOG(AF7))/LOG(2)))) -> -0.04888034641 | AI7: =N7 -> 1111 | AJ7: =COUNTIF(L92:L119,AI7) -> 23 | AK7: =AJ7/(AL4-AJ20) -> 0.8214285714 | AL7: =IF(AK7=0,0,(AK7*((LOG(AK7))/LOG(2)))) -> -0.2331156506 | AN7: =N7 -> 1111 | AO7: =COUNTIF(L120:L147,AN7) -> 20 | AP7: =AO7/(AQ4-AO20) -> 0.7142857143 | AQ7: =IF(AP7=0,0,(AP7*((LOG(AP7))/LOG(2)))) -> -0.346733448 | AS7: =N7 -> 1111 | AT7: =COUNTIF(L148:L175,AS7) -> 24 | AU7: =AT7/(AV4-AT20) -> 0.8571428571 | AV7: =IF(AU7=0,0,(AU7*((LOG(AU7))/LOG(2)))) -> -0.1906220754
A8: 12 | B8: 220 | C8: 23 | D8: 230 | E8: 13 | F8: 254 | G8: 14 | H8: 262 | K8: 0 | L8: 1211 | N8: 1112 | O8: =COUNTIF($L$7:$L$500,N8) -> 19 | P8: =O8/$Q$4 -> 0.1124260355 | Q8: =IF(P8=0,0,(P8*((LOG(P8))/LOG(2)))) -> -0.3544738848 | T8: =N8 -> 1112 | U8: =COUNTIF(L7:L34,T8) -> 6 | V8: =U8/(W4-U20) -> 0.2142857143 | W8: =IF(V8=0,0,(V8*((LOG(V8))/LOG(2)))) -> -0.4762269474 | Y8: =N8 -> 1112 | Z8: =COUNTIF(L35:L62,Y8) -> 3 | AA8: =Z8/(AB4-Z20) -> 0.1071428571 | AB8: =IF(AA8=0,0,(AA8*((LOG(AA8))/LOG(2)))) -> -0.3452563309 | AD8: =N8 -> 1112 | AE8: =COUNTIF(L63:L91,AD8) -> 0 | AF8: =AE8/(AG4-AE20) -> 0 | AG8: =IF(AF8=0,0,(AF8*((LOG(AF8))/LOG(2)))) -> 0 | AI8: =N8 -> 1112 | AJ8: =COUNTIF(L92:L119,AI8) -> 3 | AK8: =AJ8/(AL4-AJ20) -> 0.1071428571 | AL8: =IF(AK8=0,0,(AK8*((LOG(AK8))/LOG(2)))) -> -0.3452563309 | AN8: =N8 -> 1112 | AO8: =COUNTIF(L120:L147,AN8) -> 4 | AP8: =AO8/(AQ4-AO20) -> 0.1428571429 | AQ8: =IF(AP8=0,0,(AP8*((LOG(AP8))/LOG(2)))) -> -0.4010507032 | AS8: =N8 -> 1112 | AT8: =COUNTIF(L148:L175,AS8) -> 3 | AU8: =AT8/(AV4-AT20) -> 0.1071428571 | AV8: =IF(AU8=0,0,(AU8*((LOG(AU8))/LOG(2)))) -> -0.3452563309
A9: 12 | B9: 363 | C9: 23 | D9: 371 | E9: 13 | F9: 380 | G9: 14 | H9: 389 | K9: 0 | L9: 1211 | N9: 1121 | O9: =COUNTIF($L$7:$L$500,N9) -> 10 | P9: =O9/$Q$4 -> 0.05917159763 | Q9: =IF(P9=0,0,(P9*((LOG(P9))/LOG(2)))) -> -0.2413580675 | T9: =N9 -> 1121 | U9: =COUNTIF(L7:L34,T9) -> 6 | V9: =U9/(W4-U20) -> 0.2142857143 | W9: =IF(V9=0,0,(V9*((LOG(V9))/LOG(2)))) -> -0.4762269474 | Y9: =N9 -> 1121 | Z9: =COUNTIF(L35:L62,Y9) -> 3 | AA9: =Z9/(AB4-Z20) -> 0.1071428571 | AB9: =IF(AA9=0,0,(AA9*((LOG(AA9))/LOG(2)))) -> -0.3452563309 | AD9: =N9 -> 1121 | AE9: =COUNTIF(L63:L91,AD9) -> 0 | AF9: =AE9/(AG4-AE20) -> 0 | AG9: =IF(AF9=0,0,(AF9*((LOG(AF9))/LOG(2)))) -> 0 | AI9: =N9 -> 1121 | AJ9: =COUNTIF(L92:L119,AI9) -> 0 | AK9: =AJ9/(AL4-AJ20) -> 0 | AL9: =IF(AK9=0,0,(AK9*((LOG(AK9))/LOG(2)))) -> 0 | AN9: =N9 -> 1121 | AO9: =COUNTIF(L120:L147,AN9) -> 1 | AP9: =AO9/(AQ4-AO20) -> 0.03571428571 | AQ9: =IF(AP9=0,0,(AP9*((LOG(AP9))/LOG(2)))) -> -0.1716912472 | AS9: =N9 -> 1121 | AT9: =COUNTIF(L148:L175,AS9) -> 0 | AU9: =AT9/(AV4-AT20) -> 0 | AV9: =IF(AU9=0,0,(AU9*((LOG(AU9))/LOG(2)))) -> 0
A10: 12 | B10: 496 | C10: 23 | D10: 509 | E10: 13 | F10: 518 | G10: 23 | H10: 532 | K10: 0 | L10: 1212 | N10: 1122 | O10: =COUNTIF($L$7:$L$500,N10) -> 4 | P10: =O10/$Q$4 -> 0.02366863905 | Q10: =IF(P10=0,0,(P10*((LOG(P10))/LOG(2)))) -> -0.1278314659 | T10: =N10 -> 1122 | U10: =COUNTIF(L7:L34,T10) -> 3 | V10: =U10/(W4-U20) -> 0.1071428571 | W10: =IF(V10=0,0,(V10*((LOG(V10))/LOG(2)))) -> -0.3452563309 | Y10: =N10 -> 1122 | Z10: =COUNTIF(L35:L62,Y10) -> 0 | AA10: =Z10/(AB4-Z20) -> 0 | AB10: =IF(AA10=0,0,(AA10*((LOG(AA10))/LOG(2)))) -> 0 | AD10: =N10 -> 1122 | AE10: =COUNTIF(L63:L91,AD10) -> 0 | AF10: =AE10/(AG4-AE20) -> 0 | AG10: =IF(AF10=0,0,(AF10*((LOG(AF10))/LOG(2)))) -> 0 | AI10: =N10 -> 1122 | AJ10: =COUNTIF(L92:L119,AI10) -> 1 | AK10: =AJ10/(AL4-AJ20) -> 0.03571428571 | AL10: =IF(AK10=0,0,(AK10*((LOG(AK10))/LOG(2)))) -> -0.1716912472 | AN10: =N10 -> 1122 | AO10: =COUNTIF(L120:L147,AN10) -> 0 | AP10: =AO10/(AQ4-AO20) -> 0 | AQ10: =IF(AP10=0,0,(AP10*((LOG(AP10))/LOG(2)))) -> 0 | AS10: =N10 -> 1122 | AT10: =COUNTIF(L148:L175,AS10) -> 0 | AU10: =AT10/(AV4-AT20) -> 0 | AV10: =IF(AU10=0,0,(AU10*((LOG(AU10))/LOG(2)))) -> 0
A11: 12 | B11: 641 | C11: 23 | D11: 650 | E11: 24 | F11: 660 | G11: 14 | H11: 669 | K11: 0 | L11: 1221 | N11: 1211 | O11: =COUNTIF($L$7:$L$500,N11) -> 3 | P11: =O11/$Q$4 -> 0.01775147929 | Q11: =IF(P11=0,0,(P11*((LOG(P11))/LOG(2)))) -> -0.103241129 | T11: =N11 -> 1211 | U11: =COUNTIF(L7:L34,T11) -> 3 | V11: =U11/(W4-U20) -> 0.1071428571 | W11: =IF(V11=0,0,(V11*((LOG(V11))/LOG(2)))) -> -0.3452563309 | Y11: =N11 -> 1211 | Z11: =COUNTIF(L35:L62,Y11) -> 0 | AA11: =Z11/(AB4-Z20) -> 0 | AB11: =IF(AA11=0,0,(AA11*((LOG(AA11))/LOG(2)))) -> 0 | AD11: =N11 -> 1211 | AE11: =COUNTIF(L63:L91,AD11) -> 0 | AF11: =AE11/(AG4-AE20) -> 0 | AG11: =IF(AF11=0,0,(AF11*((LOG(AF11))/LOG(2)))) -> 0 | AI11: =N11 -> 1211 | AJ11: =COUNTIF(L92:L119,AI11) -> 0 | AK11: =AJ11/(AL4-AJ20) -> 0 | AL11: =IF(AK11=0,0,(AK11*((LOG(AK11))/LOG(2)))) -> 0 | AN11: =N11 -> 1211 | AO11: =COUNTIF(L120:L147,AN11) -> 0 | AP11: =AO11/(AQ4-AO20) -> 0 | AQ11: =IF(AP11=0,0,(AP11*((LOG(AP11))/LOG(2)))) -> 0 | AS11: =N11 -> 1211 | AT11: =COUNTIF(L148:L175,AS11) -> 0 | AU11: =AT11/(AV4-AT20) -> 0 | AV11: =IF(AU11=0,0,(AU11*((LOG(AU11))/LOG(2)))) -> 0
A12: 12 | B12: 774 | C12: 14 | D12: 792 | E12: 24 | F12: 826 | G12: 14 | H12: 837 | K12: 0 | L12: 1121 | N12: 1212 | O12: =COUNTIF($L$7:$L$500,N12) -> 1 | P12: =O12/$Q$4 -> 0.005917159763 | Q12: =IF(P12=0,0,(P12*((LOG(P12))/LOG(2)))) -> -0.04379218601 | T12: =N12 -> 1212 | U12: =COUNTIF(L7:L34,T12) -> 1 | V12: =U12/(W4-U20) -> 0.03571428571 | W12: =IF(V12=0,0,(V12*((LOG(V12))/LOG(2)))) -> -0.1716912472 | Y12: =N12 -> 1212 | Z12: =COUNTIF(L35:L62,Y12) -> 0 | AA12: =Z12/(AB4-Z20) -> 0 | AB12: =IF(AA12=0,0,(AA12*((LOG(AA12))/LOG(2)))) -> 0 | AD12: =N12 -> 1212 | AE12: =COUNTIF(L63:L91,AD12) -> 0 | AF12: =AE12/(AG4-AE20) -> 0 | AG12: =IF(AF12=0,0,(AF12*((LOG(AF12))/LOG(2)))) -> 0 | AI12: =N12 -> 1212 | AJ12: =COUNTIF(L92:L119,AI12) -> 0 | AK12: =AJ12/(AL4-AJ20) -> 0 | AL12: =IF(AK12=0,0,(AK12*((LOG(AK12))/LOG(2)))) -> 0 | AN12: =N12 -> 1212 | AO12: =COUNTIF(L120:L147,AN12) -> 0 | AP12: =AO12/(AQ4-AO20) -> 0 | AQ12: =IF(AP12=0,0,(AP12*((LOG(AP12))/LOG(2)))) -> 0 | AS12: =N12 -> 1212 | AT12: =COUNTIF(L148:L175,AS12) -> 0 | AU12: =AT12/(AV4-AT20) -> 0 | AV12: =IF(AU12=0,0,(AU12*((LOG(AU12))/LOG(2)))) -> 0
A13: 12 | B13: 941 | C13: 23 | D13: 951 | E13: 13 | F13: 960 | G13: 14 | H13: 990 | K13: 0 | L13: 1211 | N13: 1221 | O13: =COUNTIF($L$7:$L$500,N13) -> 1 | P13: =O13/$Q$4 -> 0.005917159763 | Q13: =IF(P13=0,0,(P13*((LOG(P13))/LOG(2)))) -> -0.04379218601 | T13: =N13 -> 1221 | U13: =COUNTIF(L7:L34,T13) -> 1 | V13: =U13/(W4-U20) -> 0.03571428571 | W13: =IF(V13=0,0,(V13*((LOG(V13))/LOG(2)))) -> -0.1716912472 | Y13: =N13 -> 1221 | Z13: =COUNTIF(L35:L62,Y13) -> 0 | AA13: =Z13/(AB4-Z20) -> 0 | AB13: =IF(AA13=0,0,(AA13*((LOG(AA13))/LOG(2)))) -> 0 | AD13: =N13 -> 1221 | AE13: =COUNTIF(L63:L91,AD13) -> 0 | AF13: =AE13/(AG4-AE20) -> 0 | AG13: =IF(AF13=0,0,(AF13*((LOG(AF13))/LOG(2)))) -> 0 | AI13: =N13 -> 1221 | AJ13: =COUNTIF(L92:L119,AI13) -> 0 | AK13: =AJ13/(AL4-AJ20) -> 0 | AL13: =IF(AK13=0,0,(AK13*((LOG(AK13))/LOG(2)))) -> 0 | AN13: =N13 -> 1221 | AO13: =COUNTIF(L120:L147,AN13) -> 0 | AP13: =AO13/(AQ4-AO20) -> 0 | AQ13: =IF(AP13=0,0,(AP13*((LOG(AP13))/LOG(2)))) -> 0 | AS13: =N13 -> 1221 | AT13: =COUNTIF(L148:L175,AS13) -> 0 | AU13: =AT13/(AV4-AT20) -> 0 | AV13: =IF(AU13=0,0,(AU13*((LOG(AU13))/LOG(2)))) -> 0
A14: 21 | B14: 1100 | C14: 12 | D14: 1108 | E14: 13 | F14: 1115 | G14: 23 | H14: 1151 | K14: 0 | L14: 2112 | N14: 1222 | O14: =COUNTIF($L$7:$L$500,N14) -> 0 | P14: =O14/$Q$4 -> 0 | Q14: =IF(P14=0,0,(P14*((LOG(P14))/LOG(2)))) -> 0 | T14: =N14 -> 1222 | U14: =COUNTIF(L7:L34,T14) -> 0 | V14: =U14/(W4-U20) -> 0 | W14: =IF(V14=0,0,(V14*((LOG(V14))/LOG(2)))) -> 0 | Y14: =N14 -> 1222 | Z14: =COUNTIF(L35:L62,Y14) -> 0 | AA14: =Z14/(AB4-Z20) -> 0 | AB14: =IF(AA14=0,0,(AA14*((LOG(AA14))/LOG(2)))) -> 0 | AD14: =N14 -> 1222 | AE14: =COUNTIF(L63:L91,AD14) -> 0 | AF14: =AE14/(AG4-AE20) -> 0 | AG14: =IF(AF14=0,0,(AF14*((LOG(AF14))/LOG(2)))) -> 0 | AI14: =N14 -> 1222 | AJ14: =COUNTIF(L92:L119,AI14) -> 0 | AK14: =AJ14/(AL4-AJ20) -> 0 | AL14: =IF(AK14=0,0,(AK14*((LOG(AK14))/LOG(2)))) -> 0 | AN14: =N14 -> 1222 | AO14: =COUNTIF(L120:L147,AN14) -> 0 | AP14: =AO14/(AQ4-AO20) -> 0 | AQ14: =IF(AP14=0,0,(AP14*((LOG(AP14))/LOG(2)))) -> 0 | AS14: =N14 -> 1222 | AT14: =COUNTIF(L148:L175,AS14) -> 0 | AU14: =AT14/(AV4-AT20) -> 0 | AV14: =IF(AU14=0,0,(AU14*((LOG(AU14))/LOG(2)))) -> 0
A15: 12 | B15: 1258 | C15: 14 | D15: 1263 | E15: 13 | F15: 1282 | G15: 14 | H15: 1315 | K15: 0 | L15: 1111 | N15: 2111 | O15: =COUNTIF($L$7:$L$500,N15) -> 6 | P15: =O15/$Q$4 -> 0.03550295858 | Q15: =IF(P15=0,0,(P15*((LOG(P15))/LOG(2)))) -> -0.1709792995 | T15: =N15 -> 2111 | U15: =COUNTIF(L7:L34,T15) -> 1 | V15: =U15/(W4-U20) -> 0.03571428571 | W15: =IF(V15=0,0,(V15*((LOG(V15))/LOG(2)))) -> -0.1716912472 | Y15: =N15 -> 2111 | Z15: =COUNTIF(L35:L62,Y15) -> 0 | AA15: =Z15/(AB4-Z20) -> 0 | AB15: =IF(AA15=0,0,(AA15*((LOG(AA15))/LOG(2)))) -> 0 | AD15: =N15 -> 2111 | AE15: =COUNTIF(L63:L91,AD15) -> 1 | AF15: =AE15/(AG4-AE20) -> 0.03448275862 | AG15: =IF(AF15=0,0,(AF15*((LOG(AF15))/LOG(2)))) -> -0.167516586 | AI15: =N15 -> 2111 | AJ15: =COUNTIF(L92:L119,AI15) -> 1 | AK15: =AJ15/(AL4-AJ20) -> 0.03571428571 | AL15: =IF(AK15=0,0,(AK15*((LOG(AK15))/LOG(2)))) -> -0.1716912472 | AN15: =N15 -> 2111 | AO15: =COUNTIF(L120:L147,AN15) -> 2 | AP15: =AO15/(AQ4-AO20) -> 0.07142857143 | AQ15: =IF(AP15=0,0,(AP15*((LOG(AP15))/LOG(2)))) -> -0.271953923 | AS15: =N15 -> 2111 | AT15: =COUNTIF(L148:L175,AS15) -> 1 | AU15: =AT15/(AV4-AT20) -> 0.03571428571 | AV15: =IF(AU15=0,0,(AU15*((LOG(AU15))/LOG(2)))) -> -0.1716912472
A16: 12 | B16: 1426 | C16: 14 | D16: 1453 | E16: 13 | F16: 1465 | G16: 23 | H16: 1476 | K16: 0 | L16: 1112 | N16: 2112 | O16: =COUNTIF($L$7:$L$500,N16) -> 2 | P16: =O16/$Q$4 -> 0.01183431953 | Q16: =IF(P16=0,0,(P16*((LOG(P16))/LOG(2)))) -> -0.0757500525 | T16: =N16 -> 2112 | U16: =COUNTIF(L7:L34,T16) -> 1 | V16: =U16/(W4-U20) -> 0.03571428571 | W16: =IF(V16=0,0,(V16*((LOG(V16))/LOG(2)))) -> -0.1716912472 | Y16: =N16 -> 2112 | Z16: =COUNTIF(L35:L62,Y16) -> 0 | AA16: =Z16/(AB4-Z20) -> 0 | AB16: =IF(AA16=0,0,(AA16*((LOG(AA16))/LOG(2)))) -> 0 | AD16: =N16 -> 2112 | AE16: =COUNTIF(L63:L91,AD16) -> 0 | AF16: =AE16/(AG4-AE20) -> 0 | AG16: =IF(AF16=0,0,(AF16*((LOG(AF16))/LOG(2)))) -> 0 | AI16: =N16 -> 2112 | AJ16: =COUNTIF(L92:L119,AI16) -> 0 | AK16: =AJ16/(AL4-AJ20) -> 0 | AL16: =IF(AK16=0,0,(AK16*((LOG(AK16))/LOG(2)))) -> 0 | AN16: =N16 -> 2112 | AO16: =COUNTIF(L120:L147,AN16) -> 1 | AP16: =AO16/(AQ4-AO20) -> 0.03571428571 | AQ16: =IF(AP16=0,0,(AP16*((LOG(AP16))/LOG(2)))) -> -0.1716912472 | AS16: =N16 -> 2112 | AT16: =COUNTIF(L148:L175,AS16) -> 0 | AU16: =AT16/(AV4-AT20) -> 0 | AV16: =IF(AU16=0,0,(AU16*((LOG(AU16))/LOG(2)))) -> 0
A17: 12 | B17: 1579 | C17: 14 | D17: 1590 | E17: 13 | F17: 1598 | G17: 23 | H17: 1607 | K17: 0 | L17: 1112 | N17: 2121 | O17: =COUNTIF($L$7:$L$500,N17) -> 0 | P17: =O17/$Q$4 -> 0 | Q17: =IF(P17=0,0,(P17*((LOG(P17))/LOG(2)))) -> 0 | T17: =N17 -> 2121 | U17: =COUNTIF(L7:L34,T17) -> 0 | V17: =U17/(W4-U20) -> 0 | W17: =IF(V17=0,0,(V17*((LOG(V17))/LOG(2)))) -> 0 | Y17: =N17 -> 2121 | Z17: =COUNTIF(L35:L62,Y17) -> 0 | AA17: =Z17/(AB4-Z20) -> 0 | AB17: =IF(AA17=0,0,(AA17*((LOG(AA17))/LOG(2)))) -> 0 | AD17: =N17 -> 2121 | AE17: =COUNTIF(L63:L91,AD17) -> 0 | AF17: =AE17/(AG4-AE20) -> 0 | AG17: =IF(AF17=0,0,(AF17*((LOG(AF17))/LOG(2)))) -> 0 | AI17: =N17 -> 2121 | AJ17: =COUNTIF(L92:L119,AI17) -> 0 | AK17: =AJ17/(AL4-AJ20) -> 0 | AL17: =IF(AK17=0,0,(AK17*((LOG(AK17))/LOG(2)))) -> 0 | AN17: =N17 -> 2121 | AO17: =COUNTIF(L120:L147,AN17) -> 0 | AP17: =AO17/(AQ4-AO20) -> 0 | AQ17: =IF(AP17=0,0,(AP17*((LOG(AP17))/LOG(2)))) -> 0 | AS17: =N17 -> 2121 | AT17: =COUNTIF(L148:L175,AS17) -> 0 | AU17: =AT17/(AV4-AT20) -> 0 | AV17: =IF(AU17=0,0,(AU17*((LOG(AU17))/LOG(2)))) -> 0
A18: 12 | B18: 1711 | C18: 14 | D18: 1716 | E18: 24 | F18: 1725 | G18: 23 | H18: 1748 | K18: 0 | L18: 1122 | N18: 2122 | O18: =COUNTIF($L$7:$L$500,N18) -> 0 | P18: =O18/$Q$4 -> 0 | Q18: =IF(P18=0,0,(P18*((LOG(P18))/LOG(2)))) -> 0 | T18: =N18 -> 2122 | U18: =COUNTIF(L7:L34,T18) -> 0 | V18: =U18/(W4-U20) -> 0 | W18: =IF(V18=0,0,(V18*((LOG(V18))/LOG(2)))) -> 0 | Y18: =N18 -> 2122 | Z18: =COUNTIF(L35:L62,Y18) -> 0 | AA18: =Z18/(AB4-Z20) -> 0 | AB18: =IF(AA18=0,0,(AA18*((LOG(AA18))/LOG(2)))) -> 0 | AD18: =N18 -> 2122 | AE18: =COUNTIF(L63:L91,AD18) -> 0 | AF18: =AE18/(AG4-AE20) -> 0 | AG18: =IF(AF18=0,0,(AF18*((LOG(AF18))/LOG(2)))) -> 0 | AI18: =N18 -> 2122 | AJ18: =COUNTIF(L92:L119,AI18) -> 0 | AK18: =AJ18/(AL4-AJ20) -> 0 | AL18: =IF(AK18=0,0,(AK18*((LOG(AK18))/LOG(2)))) -> 0 | AN18: =N18 -> 2122 | AO18: =COUNTIF(L120:L147,AN18) -> 0 | AP18: =AO18/(AQ4-AO20) -> 0 | AQ18: =IF(AP18=0,0,(AP18*((LOG(AP18))/LOG(2)))) -> 0 | AS18: =N18 -> 2122 | AT18: =COUNTIF(L148:L175,AS18) -> 0 | AU18: =AT18/(AV4-AT20) -> 0 | AV18: =IF(AU18=0,0,(AU18*((LOG(AU18))/LOG(2)))) -> 0
A19: 21 | B19: 1845 | C19: 12 | D19: 1854 | E19: 13 | F19: 1862 | G19: 14 | H19: 1887 | K19: 0 | L19: 2111 | N19: 2211 | O19: =COUNTIF($L$7:$L$500,N19) -> 0 | P19: =O19/$Q$4 -> 0 | Q19: =IF(P19=0,0,(P19*((LOG(P19))/LOG(2)))) -> 0 | T19: =N19 -> 2211 | U19: =COUNTIF(L7:L34,T19) -> 0 | V19: =U19/(W4-U20) -> 0 | W19: =IF(V19=0,0,(V19*((LOG(V19))/LOG(2)))) -> 0 | Y19: =N19 -> 2211 | Z19: =COUNTIF(L35:L62,Y19) -> 0 | AA19: =Z19/(AB4-Z20) -> 0 | AB19: =IF(AA19=0,0,(AA19*((LOG(AA19))/LOG(2)))) -> 0 | AD19: =N19 -> 2211 | AE19: =COUNTIF(L63:L91,AD19) -> 0 | AF19: =AE19/(AG4-AE20) -> 0 | AG19: =IF(AF19=0,0,(AF19*((LOG(AF19))/LOG(2)))) -> 0 | AI19: =N19 -> 2211 | AJ19: =COUNTIF(L92:L119,AI19) -> 0 | AK19: =AJ19/(AL4-AJ20) -> 0 | AL19: =IF(AK19=0,0,(AK19*((LOG(AK19))/LOG(2)))) -> 0 | AN19: =N19 -> 2211 | AO19: =COUNTIF(L120:L147,AN19) -> 0 | AP19: =AO19/(AQ4-AO20) -> 0 | AQ19: =IF(AP19=0,0,(AP19*((LOG(AP19))/LOG(2)))) -> 0 | AS19: =N19 -> 2211 | AT19: =COUNTIF(L148:L175,AS19) -> 0 | AU19: =AT19/(AV4-AT20) -> 0 | AV19: =IF(AU19=0,0,(AU19*((LOG(AU19))/LOG(2)))) -> 0
A20: 12 | B20: 1992 | C20: 14 | D20: 2012 | E20: 24 | F20: 2027 | G20: 23 | H20: 2035 | K20: 0 | L20: 1122 | N20: 2212 | O20: =COUNTIF($L$7:$L$500,N20) -> 0 | P20: =O20/$Q$4 -> 0 | Q20: =IF(P20=0,0,(P20*((LOG(P20))/LOG(2)))) -> 0 | T20: =N20 -> 2212 | U20: =COUNTIF(L7:L34,T20) -> 0 | Y20: =N20 -> 2212 | Z20: =COUNTIF(L35:L62,Y20) -> 0 | AD20: =N20 -> 2212 | AE20: =COUNTIF(L63:L91,AD20) -> 0 | AI20: =N20 -> 2212 | AJ20: =COUNTIF(L92:L119,AI20) -> 0 | AN20: =N20 -> 2212 | AO20: =COUNTIF(L120:L147,AN20) -> 0 | AS20: =N20 -> 2212 | AT20: =COUNTIF(L148:L175,AS20) -> 0
A21: 12 | B21: 2141 | C21: 14 | D21: 2159 | E21: 24 | F21: 2183 | G21: 14 | H21: 2194 | K21: 0 | L21: 1121 | N21: 2221 | O21: =COUNTIF($L$7:$L$500,N21) -> 0 | P21: =O21/$Q$4 -> 0 | Q21: =IF(P21=0,0,(P21*((LOG(P21))/LOG(2)))) -> 0 | T21: =N21 -> 2221 | U21: =COUNTIF(L7:L34,T21) -> 0 | V21: =U21/(W4-U20) -> 0 | W21: =IF(V21=0,0,(V21*((LOG(V21))/LOG(2)))) -> 0 | Y21: =N21 -> 2221 | Z21: =COUNTIF(L35:L62,Y21) -> 0 | AA21: =Z21/(AB4-Z20) -> 0 | AB21: =IF(AA21=0,0,(AA21*((LOG(AA21))/LOG(2)))) -> 0 | AD21: =N21 -> 2221 | AE21: =COUNTIF(L63:L91,AD21) -> 0 | AF21: =AE21/(AG4-AE20) -> 0 | AG21: =IF(AF21=0,0,(AF21*((LOG(AF21))/LOG(2)))) -> 0 | AI21: =N21 -> 2221 | AJ21: =COUNTIF(L92:L119,AI21) -> 0 | AK21: =AJ21/(AL4-AJ20) -> 0 | AL21: =IF(AK21=0,0,(AK21*((LOG(AK21))/LOG(2)))) -> 0 | AN21: =N21 -> 2221 | AO21: =COUNTIF(L120:L147,AN21) -> 0 | AP21: =AO21/(AQ4-AO20) -> 0 | AQ21: =IF(AP21=0,0,(AP21*((LOG(AP21))/LOG(2)))) -> 0 | AS21: =N21 -> 2221 | AT21: =COUNTIF(L148:L175,AS21) -> 0 | AU21: =AT21/(AV4-AT20) -> 0 | AV21: =IF(AU21=0,0,(AU21*((LOG(AU21))/LOG(2)))) -> 0
A22: 12 | B22: 2297 | C22: 14 | D22: 2303 | E22: 13 | F22: 2324 | G22: 14 | H22: 2332 | K22: 0 | L22: 1111 | N22: 2222 | O22: =COUNTIF($L$7:$L$500,N22) -> 0 | P22: =O22/$Q$4 -> 0 | Q22: =IF(P22=0,0,(P22*((LOG(P22))/LOG(2)))) -> 0 | T22: =N22 -> 2222 | U22: =COUNTIF(L7:L34,T22) -> 0 | V22: =U22/(W4-U20) -> 0 | W22: =IF(V22=0,0,(V22*((LOG(V22))/LOG(2)))) -> 0 | Y22: =N22 -> 2222 | Z22: =COUNTIF(L35:L62,Y22) -> 0 | AA22: =Z22/(AB4-Z20) -> 0 | AB22: =IF(AA22=0,0,(AA22*((LOG(AA22))/LOG(2)))) -> 0 | AD22: =N22 -> 2222 | AE22: =COUNTIF(L63:L91,AD22) -> 0 | AF22: =AE22/(AG4-AE20) -> 0 | AG22: =IF(AF22=0,0,(AF22*((LOG(AF22))/LOG(2)))) -> 0 | AI22: =N22 -> 2222 | AJ22: =COUNTIF(L92:L119,AI22) -> 0 | AK22: =AJ22/(AL4-AJ20) -> 0 | AL22: =IF(AK22=0,0,(AK22*((LOG(AK22))/LOG(2)))) -> 0 | AN22: =N22 -> 2222 | AO22: =COUNTIF(L120:L147,AN22) -> 0 | AP22: =AO22/(AQ4-AO20) -> 0 | AQ22: =IF(AP22=0,0,(AP22*((LOG(AP22))/LOG(2)))) -> 0 | AS22: =N22 -> 2222 | AT22: =COUNTIF(L148:L175,AS22) -> 0 | AU22: =AT22/(AV4-AT20) -> 0 | AV22: =IF(AU22=0,0,(AU22*((LOG(AU22))/LOG(2)))) -> 0
A23: 12 | B23: 2436 | C23: 14 | D23: 2457 | E23: 13 | F23: 2496 | G23: 23 | H23: 2514 | K23: 0 | L23: 1112 | P23: =SUM(P7:P22) -> 1 | Q23: =-SUM(Q7:Q22) -> 1.49482115 | V23: =SUM(V7:V22) -> 1 | W23: =-SUM(W7:W22) -> 2.805958493 | AA23: =SUM(AA7:AA22) -> 1 | AB23: =-SUM(AB7:AB22) -> 0.9638809715 | AF23: =SUM(AF7:AF22) -> 1 | AG23: =-SUM(AG7:AG22) -> 0.2163969325 | AK23: =SUM(AK7:AK22) -> 1 | AL23: =-SUM(AL7:AL22) -> 0.9217544759 | AP23: =SUM(AP7:AP22) -> 1 | AQ23: =-SUM(AQ7:AQ22) -> 1.363120569 | AU23: =SUM(AU7:AU22) -> 1 | AV23: =-SUM(AV7:AV22) -> 0.7075696535
A24: 12 | B24: 2634 | C24: 14 | D24: 2651 | E24: 13 | F24: 2682 | G24: 14 | H24: 2717 | K24: 0 | L24: 1111 | P24: U= | Q24: =Q23/(LOG(Q4)/LOG(2)) -> 0.2019788544 | V24: U1= | W24: =W23/(LOG(W4)/LOG(2)) -> 0.583680327 | AA24: U2= | AB24: =AB23/(LOG(AB4)/LOG(2)) -> 0.2005013125 | AF24: U3= | AG24: =AG23/(LOG(AG4)/LOG(2)) -> 0.0445446231 | AK24: U4= | AL24: =AL23/(LOG(AL4)/LOG(2)) -> 0.1917383865 | AP24: U5= | AQ24: =AQ23/(LOG(AQ4)/LOG(2)) -> 0.2835489767 | AU24: U6= | AV24: =AV23/(LOG(AV4)/LOG(2)) -> 0.1471848168
A25: 12 | B25: 2819 | C25: 14 | D25: 2834 | E25: 13 | F25: 2839 | G25: 14 | H25: 2860 | K25: 0 | L25: 1111
A26: 12 | B26: 2965 | C26: 14 | D26: 2977 | E26: 13 | F26: 2985 | G26: 14 | H26: 2989 | K26: 0 | L26: 1111
A27: 12 | B27: 3098 | C27: 14 | D27: 3106 | E27: 13 | F27: 3126 | G27: 14 | H27: 3150 | K27: 0 | L27: 1111 | N27: Total Target Seq
A28: 12 | B28: 3256 | C28: 14 | D28: 3260 | E28: 24 | F28: 3271 | G28: 14 | H28: 3279 | K28: 0 | L28: 1121 | N28: =COUNTIF(L7:L175,G3) -> 0 | P28: 28 | Q28: 28 | R28: 29 | S28: 28 | T28: 28 | U28: 28
A29: 12 | B29: 3395 | C29: 14 | D29: 3409 | E29: 24 | F29: 3421 | G29: 14 | H29: 3431 | K29: 0 | L29: 1121 | P29: % of reinforcement given in 6 equal intervals based on number of trials
A30: 12 | B30: 3550 | C30: 14 | D30: 3567 | E30: 13 | F30: 3591 | G30: 23 | H30: 3610 | K30: 0 | L30: 1112 | P30: %_1 | Q30: %_2 | R30: %_3 | S30: %_4 | T30: %_5 | U30: %_6
A31: 12 | B31: 3729 | C31: 14 | D31: 3752 | E31: 13 | F31: 3784 | G31: 23 | H31: 3804 | K31: 0 | L31: 1112 | O31: target sequence | P31: =$G$3 -> 2212 | Q31: =$G$3 -> 2212 | R31: =$G$3 -> 2212 | S31: =$G$3 -> 2212 | T31: =$G$3 -> 2212 | U31: =$G$3 -> 2212
A32: 12 | B32: 3916 | C32: 14 | D32: 3923 | E32: 13 | F32: 3941 | G32: 23 | H32: 3953 | K32: 0 | L32: 1112 | O32: total reinforcement | P32: =U20 -> 0 | Q32: =Z20 -> 0 | R32: =AE20 -> 0 | S32: =AJ20 -> 0 | T32: =AO20 -> 0 | U32: =AT20 -> 0
A33: 12 | B33: 4064 | C33: 14 | D33: 4076 | E33: 24 | F33: 4088 | G33: 23 | H33: 4095 | K33: 0 | L33: 1122 | O33: % target
A34: 12 | B34: 4198 | C34: 14 | D34: 4205 | E34: 24 | F34: 4214 | G34: 14 | H34: 4222 | K34: 0 | L34: 1121 | O34: CCRF
A35: 12 | B35: 4327 | C35: 14 | D35: 4331 | E35: 13 | F35: 4344 | G35: 14 | H35: 4364 | K35: 0 | L35: 1111 | O35: % CCRf
A36: 12 | B36: 4472 | C36: 14 | D36: 4480 | E36: 13 | F36: 4502 | G36: 14 | H36: 4537 | K36: 0 | L36: 1111 | O36: average response rate | P36: =H34/P28 -> 150.7857143 | Q36: =(H62-H34)/Q28 -> 137.8928571 | R36: =(H91-H62)/R28 -> 135.2758621 | S36: =(H119-H91)/S28 -> 137 | T36: =(H147-H119)/T28 -> 146.8571429 | U36: =(H175-H147)/U28 -> 142.8214286
A37: 12 | B37: 4648 | C37: 14 | D37: 4655 | E37: 24 | F37: 4668 | G37: 14 | H37: 4675 | K37: 0 | L37: 1121
A38: 12 | B38: 4777 | C38: 14 | D38: 4782 | E38: 13 | F38: 4792 | G38: 14 | H38: 4809 | K38: 0 | L38: 1111
A39: 12 | B39: 4918 | C39: 14 | D39: 4930 | E39: 13 | F39: 4953 | G39: 23 | H39: 4970 | K39: 0 | L39: 1112
A40: 12 | B40: 5074 | C40: 14 | D40: 5079 | E40: 13 | F40: 5085 | G40: 14 | H40: 5103 | K40: 0 | L40: 1111
A41: 12 | B41: 5205 | C41: 14 | D41: 5211 | E41: 13 | F41: 5232 | G41: 14 | H41: 5263 | K41: 0 | L41: 1111
A42: 12 | B42: 5365 | C42: 14 | D42: 5371 | E42: 13 | F42: 5383 | G42: 14 | H42: 5405 | K42: 0 | L42: 1111
A43: 12 | B43: 5510 | C43: 14 | D43: 5514 | E43: 13 | F43: 5523 | G43: 14 | H43: 5535 | K43: 0 | L43: 1111
A44: 12 | B44: 5640 | C44: 14 | D44: 5645 | E44: 13 | F44: 5652 | G44: 14 | H44: 5661 | K44: 0 | L44: 1111
A45: 12 | B45: 5767 | C45: 14 | D45: 5777 | E45: 24 | F45: 5788 | G45: 14 | H45: 5804 | K45: 0 | L45: 1121
A46: 12 | B46: 5906 | C46: 14 | D46: 5911 | E46: 13 | F46: 5918 | G46: 14 | H46: 5925 | K46: 0 | L46: 1111
A47: 12 | B47: 6031 | C47: 14 | D47: 6037 | E47: 13 | F47: 6045 | G47: 14 | H47: 6069 | K47: 0 | L47: 1111
A48: 12 | B48: 6174 | C48: 14 | D48: 6179 | E48: 13 | F48: 6187 | G48: 23 | H48: 6200 | K48: 0 | L48: 1112
A49: 12 | B49: 6309 | C49: 14 | D49: 6313 | E49: 13 | F49: 6320 | G49: 14 | H49: 6332 | K49: 0 | L49: 1111
A50: 12 | B50: 6440 | C50: 14 | D50: 6448 | E50: 13 | F50: 6468 | G50: 14 | H50: 6499 | K50: 0 | L50: 1111
A51: 12 | B51: 6603 | C51: 14 | D51: 6609 | E51: 13 | F51: 6616 | G51: 14 | H51: 6622 | K51: 0 | L51: 1111
A52: 12 | B52: 6735 | C52: 14 | D52: 6740 | E52: 13 | F52: 6749 | G52: 14 | H52: 6760 | K52: 0 | L52: 1111
A53: 12 | B53: 6869 | C53: 14 | D53: 6873 | E53: 13 | F53: 6882 | G53: 14 | H53: 6903 | K53: 0 | L53: 1111
A54: 12 | B54: 7005 | C54: 14 | D54: 7009 | E54: 13 | F54: 7016 | G54: 14 | H54: 7034 | K54: 0 | L54: 1111
A55: 12 | B55: 7136 | C55: 14 | D55: 7143 | E55: 13 | F55: 7147 | G55: 14 | H55: 7154 | K55: 0 | L55: 1111
A56: 12 | B56: 7259 | C56: 14 | D56: 7263 | E56: 13 | F56: 7268 | G56: 14 | H56: 7275 | K56: 0 | L56: 1111
A57: 12 | B57: 7379 | C57: 14 | D57: 7386 | E57: 13 | F57: 7398 | G57: 23 | H57: 7411 | K57: 0 | L57: 1112
A58: 12 | B58: 7519 | C58: 14 | D58: 7527 | E58: 13 | F58: 7533 | G58: 14 | H58: 7554 | K58: 0 | L58: 1111
A59: 12 | B59: 7658 | C59: 14 | D59: 7664 | E59: 13 | F59: 7673 | G59: 14 | H59: 7691 | K59: 0 | L59: 1111
A60: 12 | B60: 7796 | C60: 14 | D60: 7802 | E60: 13 | F60: 7807 | G60: 14 | H60: 7817 | K60: 0 | L60: 1111
A61: 12 | B61: 7918 | C61: 14 | D61: 7922 | E61: 13 | F61: 7942 | G61: 14 | H61: 7953 | K61: 0 | L61: 1111
A62: 12 | B62: 8056 | C62: 14 | D62: 8063 | E62: 24 | F62: 8075 | G62: 14 | H62: 8083 | K62: 0 | L62: 1121
A63: 12 | B63: 8184 | C63: 14 | D63: 8188 | E63: 13 | F63: 8201 | G63: 14 | H63: 8222 | K63: 0 | L63: 1111
A64: 12 | B64: 8332 | C64: 14 | D64: 8337 | E64: 13 | F64: 8344 | G64: 14 | H64: 8368 | K64: 0 | L64: 1111
A65: 12 | B65: 8470 | C65: 14 | D65: 8474 | E65: 13 | F65: 8497 | G65: 14 | H65: 8525 | K65: 0 | L65: 1111
A66: 12 | B66: 8627 | C66: 14 | D66: 8631 | E66: 13 | F66: 8640 | G66: 14 | H66: 8659 | K66: 0 | L66: 1111
A67: 12 | B67: 8759 | C67: 14 | D67: 8763 | E67: 13 | F67: 8771 | G67: 14 | H67: 8799 | K67: 0 | L67: 1111
A68: 12 | B68: 8907 | C68: 14 | D68: 8913 | E68: 13 | F68: 8921 | G68: 14 | H68: 8933 | K68: 0 | L68: 1111
A69: 12 | B69: 9037 | C69: 14 | D69: 9042 | E69: 13 | F69: 9049 | G69: 14 | H69: 9069 | K69: 0 | L69: 1111
A70: 12 | B70: 9173 | C70: 14 | D70: 9177 | E70: 13 | F70: 9198 | G70: 14 | H70: 9208 | K70: 0 | L70: 1111
A71: 12 | B71: 9329 | C71: 14 | D71: 9333 | E71: 13 | F71: 9339 | G71: 14 | H71: 9350 | K71: 0 | L71: 1111
A72: 12 | B72: 9454 | C72: 14 | D72: 9458 | E72: 13 | F72: 9465 | G72: 14 | H72: 9472 | K72: 0 | L72: 1111
A73: 12 | B73: 9573 | C73: 14 | D73: 9578 | E73: 13 | F73: 9585 | G73: 14 | H73: 9595 | K73: 0 | L73: 1111
A74: 12 | B74: 9712 | C74: 14 | D74: 9719 | E74: 13 | F74: 9729 | G74: 14 | H74: 9740 | K74: 0 | L74: 1111
A75: 12 | B75: 9846 | C75: 14 | D75: 9850 | E75: 13 | F75: 9857 | G75: 14 | H75: 9877 | K75: 0 | L75: 1111
A76: 12 | B76: 9991 | C76: 14 | D76: 9995 | E76: 13 | F76: 10002 | G76: 14 | H76: 10012 | K76: 0 | L76: 1111
A77: 12 | B77: 10129 | C77: 14 | D77: 10133 | E77: 13 | F77: 10141 | G77: 14 | H77: 10166 | K77: 0 | L77: 1111
A78: 12 | B78: 10267 | C78: 14 | D78: 10274 | E78: 13 | F78: 10282 | G78: 14 | H78: 10305 | K78: 0 | L78: 1111
A79: 12 | B79: 10408 | C79: 14 | D79: 10413 | E79: 13 | F79: 10420 | G79: 14 | H79: 10431 | K79: 0 | L79: 1111
A80: 12 | B80: 10531 | C80: 14 | D80: 10535 | E80: 13 | F80: 10543 | G80: 14 | H80: 10549 | K80: 0 | L80: 1111
A81: 12 | B81: 10654 | C81: 14 | D81: 10658 | E81: 13 | F81: 10663 | G81: 14 | H81: 10670 | K81: 0 | L81: 1111
A82: 12 | B82: 10779 | C82: 14 | D82: 10784 | E82: 13 | F82: 10793 | G82: 14 | H82: 10813 | K82: 0 | L82: 1111
A83: 21 | B83: 10915 | C83: 12 | D83: 10922 | E83: 13 | F83: 10929 | G83: 14 | H83: 10937 | K83: 0 | L83: 2111
A84: 12 | B84: 11040 | C84: 14 | D84: 11045 | E84: 13 | F84: 11052 | G84: 14 | H84: 11072 | K84: 0 | L84: 1111
A85: 12 | B85: 11177 | C85: 14 | D85: 11183 | E85: 13 | F85: 11191 | G85: 14 | H85: 11211 | K85: 0 | L85: 1111
A86: 12 | B86: 11312 | C86: 14 | D86: 11317 | E86: 13 | F86: 11321 | G86: 14 | H86: 11333 | K86: 0 | L86: 1111
A87: 12 | B87: 11440 | C87: 14 | D87: 11445 | E87: 13 | F87: 11449 | G87: 14 | H87: 11475 | K87: 0 | L87: 1111
A88: 12 | B88: 11578 | C88: 14 | D88: 11583 | E88: 13 | F88: 11591 | G88: 14 | H88: 11612 | K88: 0 | L88: 1111
A89: 12 | B89: 11718 | C89: 14 | D89: 11722 | E89: 13 | F89: 11726 | G89: 14 | H89: 11733 | K89: 0 | L89: 1111
A90: 12 | B90: 11837 | C90: 14 | D90: 11841 | E90: 13 | F90: 11849 | G90: 14 | H90: 11868 | K90: 0 | L90: 1111
A91: 12 | B91: 11976 | C91: 14 | D91: 11980 | E91: 13 | F91: 11987 | G91: 14 | H91: 12006 | K91: 0 | L91: 1111
A92: 12 | B92: 12116 | C92: 14 | D92: 12120 | E92: 13 | F92: 12128 | G92: 14 | H92: 12147 | K92: 0 | L92: 1111
A93: 12 | B93: 12253 | C93: 14 | D93: 12257 | E93: 13 | F93: 12265 | G93: 14 | H93: 12286 | K93: 0 | L93: 1111
A94: 12 | B94: 12413 | C94: 14 | D94: 12418 | E94: 13 | F94: 12428 | G94: 14 | H94: 12439 | K94: 0 | L94: 1111
A95: 12 | B95: 12542 | C95: 14 | D95: 12548 | E95: 13 | F95: 12556 | G95: 14 | H95: 12576 | K95: 0 | L95: 1111
A96: 12 | B96: 12705 | C96: 14 | D96: 12710 | E96: 24 | F96: 12722 | G96: 23 | H96: 12734 | K96: 0 | L96: 1122
A97: 12 | B97: 12839 | C97: 14 | D97: 12843 | E97: 13 | F97: 12850 | G97: 14 | H97: 12857 | K97: 0 | L97: 1111
A98: 12 | B98: 12955 | C98: 14 | D98: 12959 | E98: 13 | F98: 12966 | G98: 14 | H98: 12975 | K98: 0 | L98: 1111
A99: 12 | B99: 13092 | C99: 14 | D99: 13097 | E99: 13 | F99: 13104 | G99: 14 | H99: 13123 | K99: 0 | L99: 1111
A100: 12 | B100: 13228 | C100: 14 | D100: 13233 | E100: 13 | F100: 13240 | G100: 14 | H100: 13252 | K100: 0 | L100: 1111
A101: 12 | B101: 13364 | C101: 14 | D101: 13368 | E101: 13 | F101: 13375 | G101: 23 | H101: 13386 | K101: 0 | L101: 1112
A102: 12 | B102: 13493 | C102: 14 | D102: 13498 | E102: 13 | F102: 13505 | G102: 14 | H102: 13512 | K102: 0 | L102: 1111
A103: 12 | B103: 13615 | C103: 14 | D103: 13620 | E103: 13 | F103: 13627 | G103: 14 | H103: 13638 | K103: 0 | L103: 1111
A104: 12 | B104: 13740 | C104: 14 | D104: 13744 | E104: 13 | F104: 13749 | G104: 14 | H104: 13756 | K104: 0 | L104: 1111
A105: 12 | B105: 13859 | C105: 14 | D105: 13864 | E105: 13 | F105: 13868 | G105: 14 | H105: 13875 | K105: 0 | L105: 1111
A106: 12 | B106: 13989 | C106: 14 | D106: 13994 | E106: 13 | F106: 14001 | G106: 14 | H106: 14015 | K106: 0 | L106: 1111
A107: 12 | B107: 14114 | C107: 14 | D107: 14118 | E107: 13 | F107: 14125 | G107: 14 | H107: 14147 | K107: 0 | L107: 1111
A108: 12 | B108: 14247 | C108: 14 | D108: 14251 | E108: 13 | F108: 14255 | G108: 14 | H108: 14269 | K108: 0 | L108: 1111
A109: 12 | B109: 14384 | C109: 14 | D109: 14391 | E109: 13 | F109: 14419 | G109: 23 | H109: 14433 | K109: 0 | L109: 1112
A110: 12 | B110: 14537 | C110: 14 | D110: 14541 | E110: 13 | F110: 14546 | G110: 23 | H110: 14558 | K110: 0 | L110: 1112
A111: 12 | B111: 14682 | C111: 14 | D111: 14690 | E111: 13 | F111: 14711 | G111: 14 | H111: 14721 | K111: 0 | L111: 1111
A112: 21 | B112: 14833 | C112: 12 | D112: 14840 | E112: 13 | F112: 14848 | G112: 14 | H112: 14856 | K112: 0 | L112: 2111
A113: 12 | B113: 14960 | C113: 14 | D113: 14965 | E113: 13 | F113: 14971 | G113: 14 | H113: 14992 | K113: 0 | L113: 1111
A114: 12 | B114: 15092 | C114: 14 | D114: 15096 | E114: 13 | F114: 15102 | G114: 14 | H114: 15109 | K114: 0 | L114: 1111
A115: 12 | B115: 15214 | C115: 14 | D115: 15219 | E115: 13 | F115: 15238 | G115: 14 | H115: 15265 | K115: 0 | L115: 1111
A116: 12 | B116: 15371 | C116: 14 | D116: 15376 | E116: 13 | F116: 15380 | G116: 14 | H116: 15388 | K116: 0 | L116: 1111
A117: 12 | B117: 15531 | C117: 14 | D117: 15538 | E117: 13 | F117: 15548 | G117: 14 | H117: 15559 | K117: 0 | L117: 1111
A118: 12 | B118: 15669 | C118: 14 | D118: 15673 | E118: 13 | F118: 15681 | G118: 14 | H118: 15700 | K118: 0 | L118: 1111
A119: 12 | B119: 15815 | C119: 14 | D119: 15821 | E119: 13 | F119: 15830 | G119: 14 | H119: 15842 | K119: 0 | L119: 1111
A120: 12 | B120: 15970 | C120: 14 | D120: 15977 | E120: 13 | F120: 15988 | G120: 14 | H120: 16011 | K120: 0 | L120: 1111
A121: 12 | B121: 16123 | C121: 14 | D121: 16129 | E121: 13 | F121: 16134 | G121: 14 | H121: 16154 | K121: 0 | L121: 1111
A122: 12 | B122: 16255 | C122: 14 | D122: 16260 | E122: 13 | F122: 16264 | G122: 14 | H122: 16272 | K122: 0 | L122: 1111
A123: 12 | B123: 16380 | C123: 14 | D123: 16387 | E123: 13 | F123: 16394 | G123: 14 | H123: 16405 | K123: 0 | L123: 1111
A124: 12 | B124: 16519 | C124: 14 | D124: 16524 | E124: 13 | F124: 16531 | G124: 14 | H124: 16539 | K124: 0 | L124: 1111
A125: 21 | B125: 16655 | C125: 12 | D125: 16662 | E125: 13 | F125: 16669 | G125: 14 | H125: 16680 | K125: 0 | L125: 2111
A126: 12 | B126: 16786 | C126: 14 | D126: 16790 | E126: 13 | F126: 16796 | G126: 14 | H126: 16803 | K126: 0 | L126: 1111
A127: 12 | B127: 16919 | C127: 14 | D127: 16926 | E127: 13 | F127: 16945 | G127: 14 | H127: 16953 | K127: 0 | L127: 1111
A128: 12 | B128: 17067 | C128: 14 | D128: 17072 | E128: 13 | F128: 17079 | G128: 14 | H128: 17102 | K128: 0 | L128: 1111
A129: 12 | B129: 17227 | C129: 14 | D129: 17234 | E129: 13 | F129: 17254 | G129: 23 | H129: 17267 | K129: 0 | L129: 1112
A130: 12 | B130: 17376 | C130: 14 | D130: 17383 | E130: 13 | F130: 17390 | G130: 14 | H130: 17411 | K130: 0 | L130: 1111
A131: 12 | B131: 17527 | C131: 14 | D131: 17531 | E131: 13 | F131: 17536 | G131: 14 | H131: 17544 | K131: 0 | L131: 1111
A132: 12 | B132: 17684 | C132: 14 | D132: 17689 | E132: 13 | F132: 17696 | G132: 14 | H132: 17707 | K132: 0 | L132: 1111
A133: 12 | B133: 17878 | C133: 14 | D133: 17885 | E133: 13 | F133: 17896 | G133: 23 | H133: 17909 | K133: 0 | L133: 1112
A134: 12 | B134: 18013 | C134: 14 | D134: 18017 | E134: 13 | F134: 18022 | G134: 14 | H134: 18049 | K134: 0 | L134: 1111
A135: 12 | B135: 18197 | C135: 14 | D135: 18204 | E135: 13 | F135: 18227 | G135: 23 | H135: 18240 | K135: 0 | L135: 1112
A136: 12 | B136: 18355 | C136: 14 | D136: 18360 | E136: 24 | F136: 18372 | G136: 14 | H136: 18380 | K136: 0 | L136: 1121
A137: 21 | B137: 18484 | C137: 12 | D137: 18493 | E137: 13 | F137: 18497 | G137: 14 | H137: 18504 | K137: 0 | L137: 2111
A138: 12 | B138: 18618 | C138: 14 | D138: 18622 | E138: 13 | F138: 18629 | G138: 14 | H138: 18650 | K138: 0 | L138: 1111
A139: 12 | B139: 18754 | C139: 14 | D139: 18759 | E139: 13 | F139: 18763 | G139: 23 | H139: 18775 | K139: 0 | L139: 1112
A140: 21 | B140: 18909 | C140: 12 | D140: 18917 | E140: 13 | F140: 18924 | G140: 23 | H140: 18937 | K140: 0 | L140: 2112
A141: 12 | B141: 19052 | C141: 14 | D141: 19057 | E141: 13 | F141: 19065 | G141: 14 | H141: 19090 | K141: 0 | L141: 1111
A142: 12 | B142: 19198 | C142: 14 | D142: 19202 | E142: 13 | F142: 19207 | G142: 14 | H142: 19225 | K142: 0 | L142: 1111
A143: 12 | B143: 19366 | C143: 14 | D143: 19373 | E143: 13 | F143: 19395 | G143: 14 | H143: 19415 | K143: 0 | L143: 1111
A144: 12 | B144: 19515 | C144: 14 | D144: 19519 | E144: 13 | F144: 19523 | G144: 14 | H144: 19532 | K144: 0 | L144: 1111
A145: 12 | B145: 19641 | C145: 14 | D145: 19646 | E145: 13 | F145: 19653 | G145: 14 | H145: 19672 | K145: 0 | L145: 1111
A146: 12 | B146: 19788 | C146: 14 | D146: 19793 | E146: 13 | F146: 19797 | G146: 14 | H146: 19820 | K146: 0 | L146: 1111
A147: 12 | B147: 19924 | C147: 14 | D147: 19929 | E147: 13 | F147: 19935 | G147: 14 | H147: 19954 | K147: 0 | L147: 1111
A148: 12 | B148: 20076 | C148: 14 | D148: 20080 | E148: 13 | F148: 20087 | G148: 14 | H148: 20107 | K148: 0 | L148: 1111
A149: 12 | B149: 20212 | C149: 14 | D149: 20217 | E149: 13 | F149: 20223 | G149: 14 | H149: 20243 | K149: 0 | L149: 1111
A150: 12 | B150: 20348 | C150: 14 | D150: 20352 | E150: 13 | F150: 20357 | G150: 14 | H150: 20364 | K150: 0 | L150: 1111
A151: 12 | B151: 20482 | C151: 14 | D151: 20486 | E151: 13 | F151: 20490 | G151: 14 | H151: 20509 | K151: 0 | L151: 1111
A152: 12 | B152: 20633 | C152: 14 | D152: 20638 | E152: 13 | F152: 20645 | G152: 23 | H152: 20658 | K152: 0 | L152: 1112
A153: 12 | B153: 20764 | C153: 14 | D153: 20768 | E153: 13 | F153: 20776 | G153: 14 | H153: 20793 | K153: 0 | L153: 1111
A154: 12 | B154: 20910 | C154: 14 | D154: 20914 | E154: 13 | F154: 20930 | G154: 23 | H154: 20942 | K154: 0 | L154: 1112
A155: 12 | B155: 21054 | C155: 14 | D155: 21059 | E155: 13 | F155: 21066 | G155: 14 | H155: 21080 | K155: 0 | L155: 1111
A156: 12 | B156: 21188 | C156: 14 | D156: 21192 | E156: 13 | F156: 21200 | G156: 14 | H156: 21219 | K156: 0 | L156: 1111
A157: 12 | B157: 21330 | C157: 14 | D157: 21334 | E157: 13 | F157: 21340 | G157: 14 | H157: 21360 | K157: 0 | L157: 1111
A158: 12 | B158: 21488 | C158: 14 | D158: 21492 | E158: 13 | F158: 21499 | G158: 14 | H158: 21510 | K158: 0 | L158: 1111
A159: 12 | B159: 21619 | C159: 14 | D159: 21624 | E159: 13 | F159: 21628 | G159: 14 | H159: 21635 | K159: 0 | L159: 1111
A160: 12 | B160: 21741 | C160: 14 | D160: 21745 | E160: 13 | F160: 21752 | G160: 14 | H160: 21771 | K160: 0 | L160: 1111
A161: 12 | B161: 21902 | C161: 14 | D161: 21907 | E161: 13 | F161: 21913 | G161: 14 | H161: 21932 | K161: 0 | L161: 1111
A162: 12 | B162: 22057 | C162: 14 | D162: 22061 | E162: 13 | F162: 22065 | G162: 14 | H162: 22084 | K162: 0 | L162: 1111
A163: 12 | B163: 22195 | C163: 14 | D163: 22200 | E163: 13 | F163: 22204 | G163: 14 | H163: 22213 | K163: 0 | L163: 1111
A164: 12 | B164: 22347 | C164: 14 | D164: 22352 | E164: 13 | F164: 22359 | G164: 14 | H164: 22381 | K164: 0 | L164: 1111
A165: 12 | B165: 22488 | C165: 14 | D165: 22492 | E165: 13 | F165: 22499 | G165: 14 | H165: 22520 | K165: 0 | L165: 1111
A166: 12 | B166: 22625 | C166: 14 | D166: 22629 | E166: 13 | F166: 22637 | G166: 14 | H166: 22658 | K166: 0 | L166: 1111
A167: 12 | B167: 22786 | C167: 14 | D167: 22790 | E167: 13 | F167: 22799 | G167: 14 | H167: 22809 | K167: 0 | L167: 1111
A168: 12 | B168: 22919 | C168: 14 | D168: 22923 | E168: 13 | F168: 22930 | G168: 14 | H168: 22951 | K168: 0 | L168: 1111
A169: 12 | B169: 23067 | C169: 14 | D169: 23071 | E169: 13 | F169: 23078 | G169: 14 | H169: 23096 | K169: 0 | L169: 1111
A170: 12 | B170: 23225 | C170: 14 | D170: 23229 | E170: 13 | F170: 23233 | G170: 14 | H170: 23239 | K170: 0 | L170: 1111
A171: 12 | B171: 23368 | C171: 14 | D171: 23372 | E171: 13 | F171: 23390 | G171: 14 | H171: 23410 | K171: 0 | L171: 1111
A172: 12 | B172: 23511 | C172: 14 | D172: 23515 | E172: 13 | F172: 23519 | G172: 14 | H172: 23527 | K172: 0 | L172: 1111
A173: 12 | B173: 23649 | C173: 14 | D173: 23654 | E173: 13 | F173: 23658 | G173: 23 | H173: 23669 | K173: 0 | L173: 1112
A174: 12 | B174: 23790 | C174: 14 | D174: 23794 | E174: 13 | F174: 23798 | G174: 14 | H174: 23806 | K174: 0 | L174: 1111
A175: 21 | B175: 23933 | C175: 12 | D175: 23941 | E175: 13 | F175: 23946 | G175: 14 | H175: 23953 | L175: 2111

Sheet !N102B20.095
A1: Report for:!N102B20.095
A2: Date: | B2: <date>
A3: Hen: | B3: <hen> | F3: Correct Sequence | G3: =Start!J2 -> 2212 | P3: Total Sequences in Data | Q3: =4994-COUNTBLANK(L7:L5000) -> 161 | V3: Total Sequences in Block Data | W3: =COUNTA(L7:L33) -> 27 | AA3: Total Sequences in Block Data | AB3: =COUNTA(L34:L60) -> 27 | AF3: Total Sequences in Block Data | AG3: =COUNTA(L61:L86) -> 26 | AK3: Total Sequences in Block Data | AL3: =COUNTA(L87:L113) -> 27 | AP3: Total Sequences in Block Data | AQ3: =COUNTA(L114:L140) -> 27 | AU3: Total Sequences in Block Data | AV3: =COUNTA(L141:L167) -> 27
P4: Total Sequences in Summary | Q4: =SUM(O7:O22) -> 161 | V4: Total Sequences in Block Summary | W4: =SUM(U7:U22) -> 27 | AA4: Total Sequences in Block Summary | AB4: =SUM(Z7:Z22) -> 27 | AF4: Total Sequences in Block Summary | AG4: =SUM(AE7:AE22) -> 26 | AK4: Total Sequences in Block Summary | AL4: =SUM(AJ7:AJ22) -> 27 | AP4: Total Sequences in Block Summary | AQ4: =SUM(AO7:AO22) -> 27 | AU4: Total Sequences in Block Summary | AV4: =SUM(AT7:AT22) -> 27
T5: Block 1 | Y5: Block 2 | AD5: Block 3 | AI5: Block 4 | AN5: Block 5 | AS5: Block 6
A6: Sequence Component 1 | B6: Time 1 | C6: Sequence Component 2 | D6: Time 2 | E6: Sequence Component 3 | F6: Time 3 | G6: Sequence Component 4 | H6: Time 4 | I6: Sequence Component 5 | J6: Time 5 | K6: Correct? 0=No 1=Yes | L6: Sequence | N6: Frequency | P6: Relative Frequency | Q6: Variability | T6: Frequency | V6: Relative Frequency | W6: Variability | Y6: Frequency | AA6: Relative Frequency | AB6: Variability | AD6: Frequency | AF6: Relative Frequency | AG6: Variability | AI6: Frequency | AK6: Relative Frequency | AL6: Variability | AN6: Frequency | AP6: Relative Frequency | AQ6: Variability | AS6: Frequency | AU6: Relative Frequency | AV6: Variability
A7: 12 | B7: 18 | C7: 14 | D7: 22 | E7: 13 | F7: 32 | G7: 23 | H7: 40 | K7: 0 | L7: 1112 | N7: 1111 | O7: =COUNTIF($L$7:$L$500,N7) -> 123 | P7: =O7/$Q$4 -> 0.7639751553 | Q7: =IF(P7=0,0,(P7*((LOG(P7))/LOG(2)))) -> -0.2967297631 | T7: =N7 -> 1111 | U7: =COUNTIF(L7:L33,T7) -> 22 | V7: =U7/(W4-U20) -> 0.8148148148 | W7: =IF(V7=0,0,(V7*((LOG(V7))/LOG(2)))) -> -0.240741831 | Y7: =N7 -> 1111 | Z7: =COUNTIF(L34:L60,Y7) -> 19 | AA7: =Z7/(AB4-Z20) -> 0.7037037037 | AB7: =IF(AA7=0,0,(AA7*((LOG(AA7))/LOG(2)))) -> -0.3567496217 | AD7: =N7 -> 1111 | AE7: =COUNTIF(L61:L86,AD7) -> 16 | AF7: =AE7/(AG4-AE20) -> 0.6153846154 | AG7: =IF(AF7=0,0,(AF7*((LOG(AF7))/LOG(2)))) -> -0.4310398265 | AI7: =N7 -> 1111 | AJ7: =COUNTIF(L87:L113,AI7) -> 24 | AK7: =AJ7/(AL4-AJ20) -> 0.8888888889 | AL7: =IF(AK7=0,0,(AK7*((LOG(AK7))/LOG(2)))) -> -0.1510444457 | AN7: =N7 -> 1111 | AO7: =COUNTIF(L114:L140,AN7) -> 23 | AP7: =AO7/(AQ4-AO20) -> 0.8518518519 | AQ7: =IF(AP7=0,0,(AP7*((LOG(AP7))/LOG(2)))) -> -0.1970550948 | AS7: =N7 -> 1111 | AT7: =COUNTIF(L141:L167,AS7) -> 19 | AU7: =AT7/(AV4-AT20) -> 0.7037037037 | AV7: =IF(AU7=0,0,(AU7*((LOG(AU7))/LOG(2)))) -> -0.3567496217
A8: 12 | B8: 146 | C8: 23 | D8: 156 | E8: 13 | F8: 176 | G8: 14 | H8: 202 | K8: 0 | L8: 1211 | N8: 1112 | O8: =COUNTIF($L$7:$L$500,N8) -> 15 | P8: =O8/$Q$4 -> 0.09316770186 | Q8: =IF(P8=0,0,(P8*((LOG(P8))/LOG(2)))) -> -0.3190086599 | T8: =N8 -> 1112 | U8: =COUNTIF(L7:L33,T8) -> 3 | V8: =U8/(W4-U20) -> 0.1111111111 | W8: =IF(V8=0,0,(V8*((LOG(V8))/LOG(2)))) -> -0.352213889 | Y8: =N8 -> 1112 | Z8: =COUNTIF(L34:L60,Y8) -> 1 | AA8: =Z8/(AB4-Z20) -> 0.03703703704 | AB8: =IF(AA8=0,0,(AA8*((LOG(AA8))/LOG(2)))) -> -0.1761069445 | AD8: =N8 -> 1112 | AE8: =COUNTIF(L61:L86,AD8) -> 4 | AF8: =AE8/(AG4-AE20) -> 0.1538461538 | AG8: =IF(AF8=0,0,(AF8*((LOG(AF8))/LOG(2)))) -> -0.4154522643 | AI8: =N8 -> 1112 | AJ8: =COUNTIF(L87:L113,AI8) -> 2 | AK8: =AJ8/(AL4-AJ20) -> 0.07407407407 | AL8: =IF(AK8=0,0,(AK8*((LOG(AK8))/LOG(2)))) -> -0.278139815 | AN8: =N8 -> 1112 | AO8: =COUNTIF(L114:L140,AN8) -> 2 | AP8: =AO8/(AQ4-AO20) -> 0.07407407407 | AQ8: =IF(AP8=0,0,(AP8*((LOG(AP8))/LOG(2)))) -> -0.278139815 | AS8: =N8 -> 1112 | AT8: =COUNTIF(L141:L167,AS8) -> 3 | AU8: =AT8/(AV4-AT20) -> 0.1111111111 | AV8: =IF(AU8=0,0,(AU8*((LOG(AU8))/LOG(2)))) -> -0.352213889
A9: 12 | B9: 320 | C9: 14 | D9: 336 | E9: 13 | F9: 361 | G9: 14 | H9: 381 | K9: 0 | L9: 1111 | N9: 1121 | O9: =COUNTIF($L$7:$L$500,N9) -> 5 | P9: =O9/$Q$4 -> 0.03105590062 | Q9: =IF(P9=0,0,(P9*((LOG(P9))/LOG(2)))) -> -0.1555586579 | T9: =N9 -> 1121 | U9: =COUNTIF(L7:L33,T9) -> 0 | V9: =U9/(W4-U20) -> 0 | W9: =IF(V9=0,0,(V9*((LOG(V9))/LOG(2)))) -> 0 | Y9: =N9 -> 1121 | Z9: =COUNTIF(L34:L60,Y9) -> 1 | AA9: =Z9/(AB4-Z20) -> 0.03703703704 | AB9: =IF(AA9=0,0,(AA9*((LOG(AA9))/LOG(2)))) -> -0.1761069445 | AD9: =N9 -> 1121 | AE9: =COUNTIF(L61:L86,AD9) -> 3 | AF9: =AE9/(AG4-AE20) -> 0.1153846154 | AG9: =IF(AF9=0,0,(AF9*((LOG(AF9))/LOG(2)))) -> -0.3594781405 | AI9: =N9 -> 1121 | AJ9: =COUNTIF(L87:L113,AI9) -> 0 | AK9: =AJ9/(AL4-AJ20) -> 0 | AL9: =IF(AK9=0,0,(AK9*((LOG(AK9))/LOG(2)))) -> 0 | AN9: =N9 -> 1121 | AO9: =COUNTIF(L114:L140,AN9) -> 1 | AP9: =AO9/(AQ4-AO20) -> 0.03703703704 | AQ9: =IF(AP9=0,0,(AP9*((LOG(AP9))/LOG(2)))) -> -0.1761069445 | AS9: =N9 -> 1121 | AT9: =COUNTIF(L141:L167,AS9) -> 0 | AU9: =AT9/(AV4-AT20) -> 0 | AV9: =IF(AU9=0,0,(AU9*((LOG(AU9))/LOG(2)))) -> 0
A10: 12 | B10: 487 | C10: 14 | D10: 492 | E10: 13 | F10: 499 | G10: 23 | H10: 508 | K10: 0 | L10: 1112 | N10: 1122 | O10: =COUNTIF($L$7:$L$500,N10) -> 0 | P10: =O10/$Q$4 -> 0 | Q10: =IF(P10=0,0,(P10*((LOG(P10))/LOG(2)))) -> 0 | T10: =N10 -> 1122 | U10: =COUNTIF(L7:L33,T10) -> 0 | V10: =U10/(W4-U20) -> 0 | W10: =IF(V10=0,0,(V10*((LOG(V10))/LOG(2)))) -> 0 | Y10: =N10 -> 1122 | Z10: =COUNTIF(L34:L60,Y10) -> 0 | AA10: =Z10/(AB4-Z20) -> 0 | AB10: =IF(AA10=0,0,(AA10*((LOG(AA10))/LOG(2)))) -> 0 | AD10: =N10 -> 1122 | AE10: =COUNTIF(L61:L86,AD10) -> 0 | AF10: =AE10/(AG4-AE20) -> 0 | AG10: =IF(AF10=0,0,(AF10*((LOG(AF10))/LOG(2)))) -> 0 | AI10: =N10 -> 1122 | AJ10: =COUNTIF(L87:L113,AI10) -> 0 | AK10: =AJ10/(AL4-AJ20) -> 0 | AL10: =IF(AK10=0,0,(AK10*((LOG(AK10))/LOG(2)))) -> 0 | AN10: =N10 -> 1122 | AO10: =COUNTIF(L114:L140,AN10) -> 0 | AP10: =AO10/(AQ4-AO20) -> 0 | AQ10: =IF(AP10=0,0,(AP10*((LOG(AP10))/LOG(2)))) -> 0 | AS10: =N10 -> 1122 | AT10: =COUNTIF(L141:L167,AS10) -> 0 | AU10: =AT10/(AV4-AT20) -> 0 | AV10: =IF(AU10=0,0,(AU10*((LOG(AU10))/LOG(2)))) -> 0
A11: 12 | B11: 622 | C11: 14 | D11: 634 | E11: 13 | F11: 642 | G11: 14 | H11: 654 | K11: 0 | L11: 1111 | N11: 1211 | O11: =COUNTIF($L$7:$L$500,N11) -> 1 | P11: =O11/$Q$4 -> 0.006211180124 | Q11: =IF(P11=0,0,(P11*((LOG(P11))/LOG(2)))) -> -0.04553364521 | T11: =N11 -> 1211 | U11: =COUNTIF(L7:L33,T11) -> 1 | V11: =U11/(W4-U20) -> 0.03703703704 | W11: =IF(V11=0,0,(V11*((LOG(V11))/LOG(2)))) -> -0.1761069445 | Y11: =N11 -> 1211 | Z11: =COUNTIF(L34:L60,Y11) -> 0 | AA11: =Z11/(AB4-Z20) -> 0 | AB11: =IF(AA11=0,0,(AA11*((LOG(AA11))/LOG(2)))) -> 0 | AD11: =N11 -> 1211 | AE11: =COUNTIF(L61:L86,AD11) -> 0 | AF11: =AE11/(AG4-AE20) -> 0 | AG11: =IF(AF11=0,0,(AF11*((LOG(AF11))/LOG(2)))) -> 0 | AI11: =N11 -> 1211 | AJ11: =COUNTIF(L87:L113,AI11) -> 0 | AK11: =AJ11/(AL4-AJ20) -> 0 | AL11: =IF(AK11=0,0,(AK11*((LOG(AK11))/LOG(2)))) -> 0 | AN11: =N11 -> 1211 | AO11: =COUNTIF(L114:L140,AN11) -> 0 | AP11: =AO11/(AQ4-AO20) -> 0 | AQ11: =IF(AP11=0,0,(AP11*((LOG(AP11))/LOG(2)))) -> 0 | AS11: =N11 -> 1211 | AT11: =COUNTIF(L141:L167,AS11) -> 0 | AU11: =AT11/(AV4-AT20) -> 0 | AV11: =IF(AU11=0,0,(AU11*((LOG(AU11))/LOG(2)))) -> 0
A12: 21 | B12: 759 | C12: 12 | D12: 767 | E12: 13 | F12: 771 | G12: 14 | H12: 780 | K12: 0 | L12: 2111 | N12: 1212 | O12: =COUNTIF($L$7:$L$500,N12) -> 0 | P12: =O12/$Q$4 -> 0 | Q12: =IF(P12=0,0,(P12*((LOG(P12))/LOG(2)))) -> 0 | T12: =N12 -> 1212 | U12: =COUNTIF(L7:L33,T12) -> 0 | V12: =U12/(W4-U20) -> 0 | W12: =IF(V12=0,0,(V12*((LOG(V12))/LOG(2)))) -> 0 | Y12: =N12 -> 1212 | Z12: =COUNTIF(L34:L60,Y12) -> 0 | AA12: =Z12/(AB4-Z20) -> 0 | AB12: =IF(AA12=0,0,(AA12*((LOG(AA12))/LOG(2)))) -> 0 | AD12: =N12 -> 1212 | AE12: =COUNTIF(L61:L86,AD12) -> 0 | AF12: =AE12/(AG4-AE20) -> 0 | AG12: =IF(AF12=0,0,(AF12*((LOG(AF12))/LOG(2)))) -> 0 | AI12: =N12 -> 1212 | AJ12: =COUNTIF(L87:L113,AI12) -> 0 | AK12: =AJ12/(AL4-AJ20) -> 0 | AL12: =IF(AK12=0,0,(AK12*((LOG(AK12))/LOG(2)))) -> 0 | AN12: =N12 -> 1212 | AO12: =COUNTIF(L114:L140,AN12) -> 0 | AP12: =AO12/(AQ4-AO20) -> 0 | AQ12: =IF(AP12=0,0,(AP12*((LOG(AP12))/LOG(2)))) -> 0 | AS12: =N12 -> 1212 | AT12: =COUNTIF(L141:L167,AS12) -> 0 | AU12: =AT12/(AV4-AT20) -> 0 | AV12: =IF(AU12=0,0,(AU12*((LOG(AU12))/LOG(2)))) -> 0
A13: 12 | B13: 886 | C13: 14 | D13: 891 | E13: 13 | F13: 896 | G13: 14 | H13: 904 | K13: 0 | L13: 1111 | N13: 1221 | O13: =COUNTIF($L$7:$L$500,N13) -> 0 | P13: =O13/$Q$4 -> 0 | Q13: =IF(P13=0,0,(P13*((LOG(P13))/LOG(2)))) -> 0 | T13: =N13 -> 1221 | U13: =COUNTIF(L7:L33,T13) -> 0 | V13: =U13/(W4-U20) -> 0 | W13: =IF(V13=0,0,(V13*((LOG(V13))/LOG(2)))) -> 0 | Y13: =N13 -> 1221 | Z13: =COUNTIF(L34:L60,Y13) -> 0 | AA13: =Z13/(AB4-Z20) -> 0 | AB13: =IF(AA13=0,0,(AA13*((LOG(AA13))/LOG(2)))) -> 0 | AD13: =N13 -> 1221 | AE13: =COUNTIF(L61:L86,AD13) -> 0 | AF13: =AE13/(AG4-AE20) -> 0 | AG13: =IF(AF13=0,0,(AF13*((LOG(AF13))/LOG(2)))) -> 0 | AI13: =N13 -> 1221 | AJ13: =COUNTIF(L87:L113,AI13) -> 0 | AK13: =AJ13/(AL4-AJ20) -> 0 | AL13: =IF(AK13=0,0,(AK13*((LOG(AK13))/LOG(2)))) -> 0 | AN13: =N13 -> 1221 | AO13: =COUNTIF(L114:L140,AN13) -> 0 | AP13: =AO13/(AQ4-AO20) -> 0 | AQ13: =IF(AP13=0,0,(AP13*((LOG(AP13))/LOG(2)))) -> 0 | AS13: =N13 -> 1221 | AT13: =COUNTIF(L141:L167,AS13) -> 0 | AU13: =AT13/(AV4-AT20) -> 0 | AV13: =IF(AU13=0,0,(AU13*((LOG(AU13))/LOG(2)))) -> 0
A14: 12 | B14: 1016 | C14: 14 | D14: 1021 | E14: 13 | F14: 1025 | G14: 14 | H14: 1032 | K14: 0 | L14: 1111 | N14: 1222 | O14: =COUNTIF($L$7:$L$500,N14) -> 0 | P14: =O14/$Q$4 -> 0 | Q14: =IF(P14=0,0,(P14*((LOG(P14))/LOG(2)))) -> 0 | T14: =N14 -> 1222 | U14: =COUNTIF(L7:L33,T14) -> 0 | V14: =U14/(W4-U20) -> 0 | W14: =IF(V14=0,0,(V14*((LOG(V14))/LOG(2)))) -> 0 | Y14: =N14 -> 1222 | Z14: =COUNTIF(L34:L60,Y14) -> 0 | AA14: =Z14/(AB4-Z20) -> 0 | AB14: =IF(AA14=0,0,(AA14*((LOG(AA14))/LOG(2)))) -> 0 | AD14: =N14 -> 1222 | AE14: =COUNTIF(L61:L86,AD14) -> 0 | AF14: =AE14/(AG4-AE20) -> 0 | AG14: =IF(AF14=0,0,(AF14*((LOG(AF14))/LOG(2)))) -> 0 | AI14: =N14 -> 1222 | AJ14: =COUNTIF(L87:L113,AI14) -> 0 | AK14: =AJ14/(AL4-AJ20) -> 0 | AL14: =IF(AK14=0,0,(AK14*((LOG(AK14))/LOG(2)))) -> 0 | AN14: =N14 -> 1222 | AO14: =COUNTIF(L114:L140,AN14) -> 0 | AP14: =AO14/(AQ4-AO20) -> 0 | AQ14: =IF(AP14=0,0,(AP14*((LOG(AP14))/LOG(2)))) -> 0 | AS14: =N14 -> 1222 | AT14: =COUNTIF(L141:L167,AS14) -> 0 | AU14: =AT14/(AV4-AT20) -> 0 | AV14: =IF(AU14=0,0,(AU14*((LOG(AU14))/LOG(2)))) -> 0
A15: 12 | B15: 1138 | C15: 14 | D15: 1144 | E15: 13 | F15: 1151 | G15: 14 | H15: 1159 | K15: 0 | L15: 1111 | N15: 2111 | O15: =COUNTIF($L$7:$L$500,N15) -> 16 | P15: =O15/$Q$4 -> 0.09937888199 | Q15: =IF(P15=0,0,(P15*((LOG(P15))/LOG(2)))) -> -0.3310227953 | T15: =N15 -> 2111 | U15: =COUNTIF(L7:L33,T15) -> 1 | V15: =U15/(W4-U20) -> 0.03703703704 | W15: =IF(V15=0,0,(V15*((LOG(V15))/LOG(2)))) -> -0.1761069445 | Y15: =N15 -> 2111 | Z15: =COUNTIF(L34:L60,Y15) -> 5 | AA15: =Z15/(AB4-Z20) -> 0.1851851852 | AB15: =IF(AA15=0,0,(AA15*((LOG(AA15))/LOG(2)))) -> -0.4505480384 | AD15: =N15 -> 2111 | AE15: =COUNTIF(L61:L86,AD15) -> 3 | AF15: =AE15/(AG4-AE20) -> 0.1153846154 | AG15: =IF(AF15=0,0,(AF15*((LOG(AF15))/LOG(2)))) -> -0.3594781405 | AI15: =N15 -> 2111 | AJ15: =COUNTIF(L87:L113,AI15) -> 1 | AK15: =AJ15/(AL4-AJ20) -> 0.03703703704 | AL15: =IF(AK15=0,0,(AK15*((LOG(AK15))/LOG(2)))) -> -0.1761069445 | AN15: =N15 -> 2111 | AO15: =COUNTIF(L114:L140,AN15) -> 1 | AP15: =AO15/(AQ4-AO20) -> 0.03703703704 | AQ15: =IF(AP15=0,0,(AP15*((LOG(AP15))/LOG(2)))) -> -0.1761069445 | AS15: =N15 -> 2111 | AT15: =COUNTIF(L141:L167,AS15) -> 5 | AU15: =AT15/(AV4-AT20) -> 0.1851851852 | AV15: =IF(AU15=0,0,(AU15*((LOG(AU15))/LOG(2)))) -> -0.4505480384
A16: 12 | B16: 1269 | C16: 14 | D16: 1273 | E16: 13 | F16: 1278 | G16: 14 | H16: 1285 | K16: 0 | L16: 1111 | N16: 2112 | O16: =COUNTIF($L$7:$L$500,N16) -> 0 | P16: =O16/$Q$4 -> 0 | Q16: =IF(P16=0,0,(P16*((LOG(P16))/LOG(2)))) -> 0 | T16: =N16 -> 2112 | U16: =COUNTIF(L7:L33,T16) -> 0 | V16: =U16/(W4-U20) -> 0 | W16: =IF(V16=0,0,(V16*((LOG(V16))/LOG(2)))) -> 0 | Y16: =N16 -> 2112 | Z16: =COUNTIF(L34:L60,Y16) -> 0 | AA16: =Z16/(AB4-Z20) -> 0 | AB16: =IF(AA16=0,0,(AA16*((LOG(AA16))/LOG(2)))) -> 0 | AD16: =N16 -> 2112 | AE16: =COUNTIF(L61:L86,AD16) -> 0 | AF16: =AE16/(AG4-AE20) -> 0 | AG16: =IF(AF16=0,0,(AF16*((LOG(AF16))/LOG(2)))) -> 0 | AI16: =N16 -> 2112 | AJ16: =COUNTIF(L87:L113,AI16) -> 0 | AK16: =AJ16/(AL4-AJ20) -> 0 | AL16: =IF(AK16=0,0,(AK16*((LOG(AK16))/LOG(2)))) -> 0 | AN16: =N16 -> 2112 | AO16: =COUNTIF(L114:L140,AN16) -> 0 | AP16: =AO16/(AQ4-AO20) -> 0 | AQ16: =IF(AP16=0,0,(AP16*((LOG(AP16))/LOG(2)))) -> 0 | AS16: =N16 -> 2112 | AT16: =COUNTIF(L141:L167,AS16) -> 0 | AU16: =AT16/(AV4-AT20) -> 0 | AV16: =IF(AU16=0,0,(AU16*((LOG(AU16))/LOG(2)))) -> 0
A17: 12 | B17: 1395 | C17: 14 | D17: 1404 | E17: 13 | F17: 1425 | G17: 14 | H17: 1438 | K17: 0 | L17: 1111 | N17: 2121 | O17: =COUNTIF($L$7:$L$500,N17) -> 0 | P17: =O17/$Q$4 -> 0 | Q17: =IF(P17=0,0,(P17*((LOG(P17))/LOG(2)))) -> 0 | T17: =N17 -> 2121 | U17: =COUNTIF(L7:L33,T17) -> 0 | V17: =U17/(W4-U20) -> 0 | W17: =IF(V17=0,0,(V17*((LOG(V17))/LOG(2)))) -> 0 | Y17: =N17 -> 2121 | Z17: =COUNTIF(L34:L60,Y17) -> 0 | AA17: =Z17/(AB4-Z20) -> 0 | AB17: =IF(AA17=0,0,(AA17*((LOG(AA17))/LOG(2)))) -> 0 | AD17: =N17 -> 2121 | AE17: =COUNTIF(L61:L86,AD17) -> 0 | AF17: =AE17/(AG4-AE20) -> 0 | AG17: =IF(AF17=0,0,(AF17*((LOG(AF17))/LOG(2)))) -> 0 | AI17: =N17 -> 2121 | AJ17: =COUNTIF(L87:L113,AI17) -> 0 | AK17: =AJ17/(AL4-AJ20) -> 0 | AL17: =IF(AK17=0,0,(AK17*((LOG(AK17))/LOG(2)))) -> 0 | AN17: =N17 -> 2121 | AO17: =COUNTIF(L114:L140,AN17) -> 0 | AP17: =AO17/(AQ4-AO20) -> 0 | AQ17: =IF(AP17=0,0,(AP17*((LOG(AP17))/LOG(2)))) -> 0 | AS17: =N17 -> 2121 | AT17: =COUNTIF(L141:L167,AS17) -> 0 | AU17: =AT17/(AV4-AT20) -> 0 | AV17: =IF(AU17=0,0,(AU17*((LOG(AU17))/LOG(2)))) -> 0
A18: 12 | B18: 1550 | C18: 14 | D18: 1554 | E18: 13 | F18: 1560 | G18: 14 | H18: 1576 | K18: 0 | L18: 1111 | N18: 2122 | O18: =COUNTIF($L$7:$L$500,N18) -> 0 | P18: =O18/$Q$4 -> 0 | Q18: =IF(P18=0,0,(P18*((LOG(P18))/LOG(2)))) -> 0 | T18: =N18 -> 2122 | U18: =COUNTIF(L7:L33,T18) -> 0 | V18: =U18/(W4-U20) -> 0 | W18: =IF(V18=0,0,(V18*((LOG(V18))/LOG(2)))) -> 0 | Y18: =N18 -> 2122 | Z18: =COUNTIF(L34:L60,Y18) -> 0 | AA18: =Z18/(AB4-Z20) -> 0 | AB18: =IF(AA18=0,0,(AA18*((LOG(AA18))/LOG(2)))) -> 0 | AD18: =N18 -> 2122 | AE18: =COUNTIF(L61:L86,AD18) -> 0 | AF18: =AE18/(AG4-AE20) -> 0 | AG18: =IF(AF18=0,0,(AF18*((LOG(AF18))/LOG(2)))) -> 0 | AI18: =N18 -> 2122 | AJ18: =COUNTIF(L87:L113,AI18) -> 0 | AK18: =AJ18/(AL4-AJ20) -> 0 | AL18: =IF(AK18=0,0,(AK18*((LOG(AK18))/LOG(2)))) -> 0 | AN18: =N18 -> 2122 | AO18: =COUNTIF(L114:L140,AN18) -> 0 | AP18: =AO18/(AQ4-AO20) -> 0 | AQ18: =IF(AP18=0,0,(AP18*((LOG(AP18))/LOG(2)))) -> 0 | AS18: =N18 -> 2122 | AT18: =COUNTIF(L141:L167,AS18) -> 0 | AU18: =AT18/(AV4-AT20) -> 0 | AV18: =IF(AU18=0,0,(AU18*((LOG(AU18))/LOG(2)))) -> 0
A19: 12 | B19: 1714 | C19: 14 | D19: 1722 | E19: 13 | F19: 1734 | G19: 14 | H19: 1749 | K19: 0 | L19: 1111 | N19: 2211 | O19: =COUNTIF($L$7:$L$500,N19) -> 1 | P19: =O19/$Q$4 -> 0.006211180124 | Q19: =IF(P19=0,0,(P19*((LOG(P19))/LOG(2)))) -> -0.04553364521 | T19: =N19 -> 2211 | U19: =COUNTIF(L7:L33,T19) -> 0 | V19: =U19/(W4-U20) -> 0 | W19: =IF(V19=0,0,(V19*((LOG(V19))/LOG(2)))) -> 0 | Y19: =N19 -> 2211 | Z19: =COUNTIF(L34:L60,Y19) -> 1 | AA19: =Z19/(AB4-Z20) -> 0.03703703704 | AB19: =IF(AA19=0,0,(AA19*((LOG(AA19))/LOG(2)))) -> -0.1761069445 | AD19: =N19 -> 2211 | AE19: =COUNTIF(L61:L86,AD19) -> 0 | AF19: =AE19/(AG4-AE20) -> 0 | AG19: =IF(AF19=0,0,(AF19*((LOG(AF19))/LOG(2)))) -> 0 | AI19: =N19 -> 2211 | AJ19: =COUNTIF(L87:L113,AI19) -> 0 | AK19: =AJ19/(AL4-AJ20) -> 0 | AL19: =IF(AK19=0,0,(AK19*((LOG(AK19))/LOG(2)))) -> 0 | AN19: =N19 -> 2211 | AO19: =COUNTIF(L114:L140,AN19) -> 0 | AP19: =AO19/(AQ4-AO20) -> 0 | AQ19: =IF(AP19=0,0,(AP19*((LOG(AP19))/LOG(2)))) -> 0 | AS19: =N19 -> 2211 | AT19: =COUNTIF(L141:L167,AS19) -> 0 | AU19: =AT19/(AV4-AT20) -> 0 | AV19: =IF(AU19=0,0,(AU19*((LOG(AU19))/LOG(2)))) -> 0
A20: 12 | B20: 1865 | C20: 14 | D20: 1869 | E20: 13 | F20: 1876 | G20: 14 | H20: 1884 | K20: 0 | L20: 1111 | N20: 2212 | O20: =COUNTIF($L$7:$L$500,N20) -> 0 | P20: =O20/$Q$4 -> 0 | Q20: =IF(P20=0,0,(P20*((LOG(P20))/LOG(2)))) -> 0 | T20: =N20 -> 2212 | U20: =COUNTIF(L7:L33,T20) -> 0 | Y20: =N20 -> 2212 | Z20: =COUNTIF(L34:L60,Y20) -> 0 | AD20: =N20 -> 2212 | AE20: =COUNTIF(L61:L86,AD20) -> 0 | AI20: =N20 -> 2212 | AJ20: =COUNTIF(L87:L113,AI20) -> 0 | AN20: =N20 -> 2212 | AO20: =COUNTIF(L114:L140,AN20) -> 0 | AS20: =N20 -> 2212 | AT20: =COUNTIF(L141:L167,AS20) -> 0
A21: 12 | B21: 2014 | C21: 14 | D21: 2020 | E21: 13 | F21: 2027 | G21: 14 | H21: 2040 | K21: 0 | L21: 1111 | N21: 2221 | O21: =COUNTIF($L$7:$L$500,N21) -> 0 | P21: =O21/$Q$4 -> 0 | Q21: =IF(P21=0,0,(P21*((LOG(P21))/LOG(2)))) -> 0 | T21: =N21 -> 2221 | U21: =COUNTIF(L7:L33,T21) -> 0 | V21: =U21/(W4-U20) -> 0 | W21: =IF(V21=0,0,(V21*((LOG(V21))/LOG(2)))) -> 0 | Y21: =N21 -> 2221 | Z21: =COUNTIF(L34:L60,Y21) -> 0 | AA21: =Z21/(AB4-Z20) -> 0 | AB21: =IF(AA21=0,0,(AA21*((LOG(AA21))/LOG(2)))) -> 0 | AD21: =N21 -> 2221 | AE21: =COUNTIF(L61:L86,AD21) -> 0 | AF21: =AE21/(AG4-AE20) -> 0 | AG21: =IF(AF21=0,0,(AF21*((LOG(AF21))/LOG(2)))) -> 0 | AI21: =N21 -> 2221 | AJ21: =COUNTIF(L87:L113,AI21) -> 0 | AK21: =AJ21/(AL4-AJ20) -> 0 | AL21: =IF(AK21=0,0,(AK21*((LOG(AK21))/LOG(2)))) -> 0 | AN21: =N21 -> 2221 | AO21: =COUNTIF(L114:L140,AN21) -> 0 | AP21: =AO21/(AQ4-AO20) -> 0 | AQ21: =IF(AP21=0,0,(AP21*((LOG(AP21))/LOG(2)))) -> 0 | AS21: =N21 -> 2221 | AT21: =COUNTIF(L141:L167,AS21) -> 0 | AU21: =AT21/(AV4-AT20) -> 0 | AV21: =IF(AU21=0,0,(AU21*((LOG(AU21))/LOG(2)))) -> 0
A22: 12 | B22: 2151 | C22: 14 | D22: 2155 | E22: 13 | F22: 2162 | G22: 14 | H22: 2169 | K22: 0 | L22: 1111 | N22: 2222 | O22: =COUNTIF($L$7:$L$500,N22) -> 0 | P22: =O22/$Q$4 -> 0 | Q22: =IF(P22=0,0,(P22*((LOG(P22))/LOG(2)))) -> 0 | T22: =N22 -> 2222 | U22: =COUNTIF(L7:L33,T22) -> 0 | V22: =U22/(W4-U20) -> 0 | W22: =IF(V22=0,0,(V22*((LOG(V22))/LOG(2)))) -> 0 | Y22: =N22 -> 2222 | Z22: =COUNTIF(L34:L60,Y22) -> 0 | AA22: =Z22/(AB4-Z20) -> 0 | AB22: =IF(AA22=0,0,(AA22*((LOG(AA22))/LOG(2)))) -> 0 | AD22: =N22 -> 2222 | AE22: =COUNTIF(L61:L86,AD22) -> 0 | AF22: =AE22/(AG4-AE20) -> 0 | AG22: =IF(AF22=0,0,(AF22*((LOG(AF22))/LOG(2)))) -> 0 | AI22: =N22 -> 2222 | AJ22: =COUNTIF(L87:L113,AI22) -> 0 | AK22: =AJ22/(AL4-AJ20) -> 0 | AL22: =IF(AK22=0,0,(AK22*((LOG(AK22))/LOG(2)))) -> 0 | AN22: =N22 -> 2222 | AO22: =COUNTIF(L114:L140,AN22) -> 0 | AP22: =AO22/(AQ4-AO20) -> 0 | AQ22: =IF(AP22=0,0,(AP22*((LOG(AP22))/LOG(2)))) -> 0 | AS22: =N22 -> 2222 | AT22: =COUNTIF(L141:L167,AS22) -> 0 | AU22: =AT22/(AV4-AT20) -> 0 | AV22: =IF(AU22=0,0,(AU22*((LOG(AU22))/LOG(2)))) -> 0
A23: 12 | B23: 2283 | C23: 14 | D23: 2287 | E23: 13 | F23: 2294 | G23: 14 | H23: 2305 | K23: 0 | L23: 1111 | P23: =SUM(P7:P22) -> 1 | Q23: =-SUM(Q7:Q22) -> 1.193387167 | V23: =SUM(V7:V22) -> 1 | W23: =-SUM(W7:W22) -> 0.9451696091 | AA23: =SUM(AA7:AA22) -> 1 | AB23: =-SUM(AB7:AB22) -> 1.335618494 | AF23: =SUM(AF7:AF22) -> 1 | AG23: =-SUM(AG7:AG22) -> 1.565448372 | AK23: =SUM(AK7:AK22) -> 1 | AL23: =-SUM(AL7:AL22) -> 0.6052912052 | AP23: =SUM(AP7:AP22) -> 1 | AQ23: =-SUM(AQ7:AQ22) -> 0.8274087989 | AU23: =SUM(AU7:AU22) -> 1 | AV23: =-SUM(AV7:AV22) -> 1.159511549
A24: 12 | B24: 2446 | C24: 14 | D24: 2466 | E24: 13 | F24: 2490 | G24: 14 | H24: 2505 | K24: 0 | L24: 1111 | P24: U= | Q24: =Q23/(LOG(Q4)/LOG(2)) -> 0.1627882551 | V24: U1= | W24: =W23/(LOG(W4)/LOG(2)) -> 0.1987785429 | AA24: U2= | AB24: =AB23/(LOG(AB4)/LOG(2)) -> 0.2808938157 | AF24: U3= | AG24: =AG23/(LOG(AG4)/LOG(2)) -> 0.3330429631 | AK24: U4= | AL24: =AL23/(LOG(AL4)/LOG(2)) -> 0.1272987437 | AP24: U5= | AQ24: =AQ23/(LOG(AQ4)/LOG(2)) -> 0.1740122765 | AU24: U6= | AV24: =AV23/(LOG(AV4)/LOG(2)) -> 0.2438567787
A25: 12 | B25: 2618 | C25: 14 | D25: 2623 | E25: 13 | F25: 2630 | G25: 14 | H25: 2641 | K25: 0 | L25: 1111
A26: 12 | B26: 2764 | C26: 14 | D26: 2771 | E26: 13 | F26: 2778 | G26: 14 | H26: 2785 | K26: 0 | L26: 1111
A27: 12 | B27: 2901 | C27: 14 | D27: 2908 | E27: 13 | F27: 2926 | G27: 23 | H27: 2941 | K27: 0 | L27: 1112 | N27: Total Target Seq
A28: 12 | B28: 3057 | C28: 14 | D28: 3062 | E28: 13 | F28: 3070 | G28: 14 | H28: 3093 | K28: 0 | L28: 1111 | N28: =COUNTIF(L7:L167,G3) -> 0 | P28: 27 | Q28: 27 | R28: 26 | S28: 27 | T28: 27 | U28: 27
A29: 12 | B29: 3210 | C29: 14 | D29: 3214 | E29: 13 | F29: 3221 | G29: 14 | H29: 3228 | K29: 0 | L29: 1111 | P29: % of reinforcement given in 6 equal intervals based on number of trials
A30: 12 | B30: 3345 | C30: 14 | D30: 3351 | E30: 13 | F30: 3359 | G30: 14 | H30: 3366 | K30: 0 | L30: 1111 | P30: %_1 | Q30: %_2 | R30: %_3 | S30: %_4 | T30: %_5 | U30: %_6
A31: 12 | B31: 3471 | C31: 14 | D31: 3475 | E31: 13 | F31: 3480 | G31: 14 | H31: 3486 | K31: 0 | L31: 1111 | O31: target sequence | P31: =$G$3 -> 2212 | Q31: =$G$3 -> 2212 | R31: =$G$3 -> 2212 | S31: =$G$3 -> 2212 | T31: =$G$3 -> 2212 | U31: =$G$3 -> 2212
A32: 12 | B32: 3610 | C32: 14 | D32: 3616 | E32: 13 | F32: 3635 | G32: 14 | H32: 3657 | K32: 0 | L32: 1111 | O32: total reinforcement | P32: =U20 -> 0 | Q32: =Z20 -> 0 | R32: =AE20 -> 0 | S32: =AJ20 -> 0 | T32: =AO20 -> 0 | U32: =AT20 -> 0
A33: 12 | B33: 3764 | C33: 14 | D33: 3768 | E33: 13 | F33: 3775 | G33: 14 | H33: 3790 | K33: 0 | L33: 1111 | O33: % target
A34: 12 | B34: 3897 | C34: 14 | D34: 3902 | E34: 13 | F34: 3909 | G34: 14 | H34: 3926 | K34: 0 | L34: 1111 | O34: CCRF
A35: 12 | B35: 4045 | C35: 14 | D35: 4050 | E35: 13 | F35: 4057 | G35: 14 | H35: 4081 | K35: 0 | L35: 1111 | O35: % CCRf
A36: 12 | B36: 4202 | C36: 14 | D36: 4207 | E36: 13 | F36: 4214 | G36: 14 | H36: 4222 | K36: 0 | L36: 1111 | O36: average response rate | P36: =H33/P28 -> 140.3703704 | Q36: =(H60-H33)/Q28 -> 152.2592593 | R36: =(H86-H60)/R28 -> 153.1538462 | S36: =(H113-H86)/S28 -> 130.8888889 | T36: =(H140-H113)/T28 -> 139.7037037 | U36: =(H167-H140)/U28 -> 178.2222222
A37: 12 | B37: 4345 | C37: 14 | D37: 4350 | E37: 13 | F37: 4355 | G37: 14 | H37: 4362 | K37: 0 | L37: 1111
A38: 12 | B38: 4476 | C38: 14 | D38: 4481 | E38: 13 | F38: 4488 | G38: 14 | H38: 4497 | K38: 0 | L38: 1111
A39: 12 | B39: 4614 | C39: 14 | D39: 4619 | E39: 13 | F39: 4626 | G39: 14 | H39: 4638 | K39: 0 | L39: 1111
A40: 12 | B40: 4798 | C40: 14 | D40: 4802 | E40: 13 | F40: 4810 | G40: 14 | H40: 4830 | K40: 0 | L40: 1111
A41: 12 | B41: 4939 | C41: 14 | D41: 4948 | E41: 13 | F41: 4953 | G41: 14 | H41: 4960 | K41: 0 | L41: 1111
A42: 12 | B42: 5086 | C42: 14 | D42: 5094 | E42: 24 | F42: 5103 | G42: 14 | H42: 5111 | K42: 0 | L42: 1121
A43: 12 | B43: 5223 | C43: 14 | D43: 5227 | E43: 13 | F43: 5233 | G43: 14 | H43: 5242 | K43: 0 | L43: 1111
A44: 12 | B44: 5473 | C44: 14 | D44: 5480 | E44: 13 | F44: 5487 | G44: 14 | H44: 5505 | K44: 0 | L44: 1111
A45: 12 | B45: 5626 | C45: 14 | D45: 5631 | E45: 13 | F45: 5638 | G45: 14 | H45: 5658 | K45: 0 | L45: 1111
A46: 21 | B46: 5789 | C46: 12 | D46: 5798 | E46: 13 | F46: 5822 | G46: 14 | H46: 5832 | K46: 0 | L46: 2111
A47: 21 | B47: 5942 | C47: 21 | D47: 5959 | E47: 11 | F47: 5969 | G47: 12 | H47: 5986 | K47: 0 | L47: 2211
A48: 12 | B48: 6100 | C48: 14 | D48: 6105 | E48: 13 | F48: 6112 | G48: 14 | H48: 6129 | K48: 0 | L48: 1111
A49: 21 | B49: 6234 | C49: 12 | D49: 6244 | E49: 13 | F49: 6249 | G49: 14 | H49: 6255 | K49: 0 | L49: 2111
A50: 12 | B50: 6377 | C50: 14 | D50: 6384 | E50: 13 | F50: 6405 | G50: 14 | H50: 6416 | K50: 0 | L50: 1111
A51: 12 | B51: 6538 | C51: 14 | D51: 6543 | E51: 13 | F51: 6550 | G51: 14 | H51: 6568 | K51: 0 | L51: 1111
A52: 12 | B52: 6686 | C52: 14 | D52: 6691 | E52: 13 | F52: 6696 | G52: 14 | H52: 6704 | K52: 0 | L52: 1111
A53: 12 | B53: 6860 | C53: 14 | D53: 6882 | E53: 13 | F53: 6903 | G53: 23 | H53: 6915 | K53: 0 | L53: 1112
A54: 21 | B54: 7016 | C54: 12 | D54: 7034 | E54: 13 | F54: 7039 | G54: 14 | H54: 7046 | K54: 0 | L54: 2111
A55: 21 | B55: 7150 | C55: 12 | D55: 7158 | E55: 13 | F55: 7161 | G55: 14 | H55: 7168 | K55: 0 | L55: 2111
A56: 12 | B56: 7302 | C56: 14 | D56: 7307 | E56: 13 | F56: 7314 | G56: 14 | H56: 7336 | K56: 0 | L56: 1111
A57: 12 | B57: 7452 | C57: 14 | D57: 7457 | E57: 13 | F57: 7463 | G57: 14 | H57: 7482 | K57: 0 | L57: 1111
A58: 21 | B58: 7604 | C58: 12 | D58: 7611 | E58: 13 | F58: 7619 | G58: 14 | H58: 7631 | K58: 0 | L58: 2111
A59: 12 | B59: 7739 | C59: 14 | D59: 7743 | E59: 13 | F59: 7747 | G59: 14 | H59: 7764 | K59: 0 | L59: 1111
A60: 12 | B60: 7872 | C60: 14 | D60: 7876 | E60: 13 | F60: 7883 | G60: 14 | H60: 7901 | K60: 0 | L60: 1111
A61: 12 | B61: 8013 | C61: 14 | D61: 8018 | E61: 13 | F61: 8026 | G61: 14 | H61: 8048 | K61: 0 | L61: 1111
A62: 12 | B62: 8165 | C62: 14 | D62: 8169 | E62: 13 | F62: 8175 | G62: 14 | H62: 8182 | K62: 0 | L62: 1111
A63: 12 | B63: 8340 | C63: 14 | D63: 8346 | E63: 13 | F63: 8354 | G63: 14 | H63: 8376 | K63: 0 | L63: 1111
A64: 12 | B64: 8497 | C64: 14 | D64: 8502 | E64: 13 | F64: 8510 | G64: 23 | H64: 8523 | K64: 0 | L64: 1112
A65: 21 | B65: 8651 | C65: 12 | D65: 8659 | E65: 13 | F65: 8666 | G65: 14 | H65: 8685 | K65: 0 | L65: 2111
A66: 12 | B66: 8829 | C66: 14 | D66: 8833 | E66: 13 | F66: 8840 | G66: 23 | H66: 8850 | K66: 0 | L66: 1112
A67: 12 | B67: 9013 | C67: 14 | D67: 9018 | E67: 13 | F67: 9038 | G67: 23 | H67: 9047 | K67: 0 | L67: 1112
A68: 12 | B68: 9158 | C68: 14 | D68: 9163 | E68: 13 | F68: 9170 | G68: 14 | H68: 9193 | K68: 0 | L68: 1111
A69: 12 | B69: 9302 | C69: 14 | D69: 9308 | E69: 24 | F69: 9318 | G69: 14 | H69: 9327 | K69: 0 | L69: 1121
A70: 12 | B70: 9435 | C70: 14 | D70: 9439 | E70: 13 | F70: 9444 | G70: 14 | H70: 9450 | K70: 0 | L70: 1111
A71: 21 | B71: 9574 | C71: 12 | D71: 9582 | E71: 13 | F71: 9588 | G71: 14 | H71: 9593 | K71: 0 | L71: 2111
A72: 12 | B72: 9708 | C72: 14 | D72: 9713 | E72: 13 | F72: 9726 | G72: 14 | H72: 9735 | K72: 0 | L72: 1111
A73: 21 | B73: 9849 | C73: 12 | D73: 9857 | E73: 13 | F73: 9862 | G73: 14 | H73: 9869 | K73: 0 | L73: 2111
A74: 12 | B74: 9977 | C74: 14 | D74: 9982 | E74: 13 | F74: 9986 | G74: 14 | H74: 10000 | K74: 0 | L74: 1111
A75: 12 | B75: 10111 | C75: 14 | D75: 10116 | E75: 13 | F75: 10120 | G75: 14 | H75: 10127 | K75: 0 | L75: 1111
A76: 12 | B76: 10240 | C76: 14 | D76: 10245 | E76: 13 | F76: 10251 | G76: 14 | H76: 10259 | K76: 0 | L76: 1111
A77: 12 | B77: 10373 | C77: 14 | D77: 10377 | E77: 13 | F77: 10383 | G77: 14 | H77: 10404 | K77: 0 | L77: 1111
A78: 12 | B78: 10521 | C78: 14 | D78: 10525 | E78: 13 | F78: 10530 | G78: 14 | H78: 10537 | K78: 0 | L78: 1111
A79: 12 | B79: 10661 | C79: 14 | D79: 10668 | E79: 24 | F79: 10676 | G79: 14 | H79: 10685 | K79: 0 | L79: 1121
A80: 12 | B80: 10796 | C80: 14 | D80: 10802 | E80: 13 | F80: 10809 | G80: 14 | H80: 10816 | K80: 0 | L80: 1111
A81: 12 | B81: 10988 | C81: 14 | D81: 10994 | E81: 24 | F81: 11003 | G81: 14 | H81: 11010 | K81: 0 | L81: 1121
A82: 12 | B82: 11240 | C82: 14 | D82: 11262 | E82: 13 | F82: 11283 | G82: 14 | H82: 11305 | K82: 0 | L82: 1111
A83: 12 | B83: 11428 | C83: 14 | D83: 11433 | E83: 13 | F83: 11440 | G83: 23 | H83: 11460 | K83: 0 | L83: 1112
A84: 12 | B84: 11566 | C84: 14 | D84: 11570 | E84: 13 | F84: 11575 | G84: 14 | H84: 11582 | K84: 0 | L84: 1111
A85: 12 | B85: 11691 | C85: 14 | D85: 11695 | E85: 13 | F85: 11702 | G85: 14 | H85: 11721 | K85: 0 | L85: 1111
A86: 12 | B86: 11854 | C86: 14 | D86: 11858 | E86: 13 | F86: 11863 | G86: 14 | H86: 11883 | K86: 0 | L86: 1111
A87: 12 | B87: 11994 | C87: 14 | D87: 11999 | E87: 13 | F87: 12003 | G87: 14 | H87: 12025 | K87: 0 | L87: 1111
A88: 21 | B88: 12127 | C88: 12 | D88: 12135 | E88: 13 | F88: 12140 | G88: 14 | H88: 12147 | K88: 0 | L88: 2111
A89: 12 | B89: 12259 | C89: 14 | D89: 12263 | E89: 13 | F89: 12267 | G89: 14 | H89: 12273 | K89: 0 | L89: 1111
A90: 12 | B90: 12378 | C90: 14 | D90: 12383 | E90: 13 | F90: 12387 | G90: 14 | H90: 12393 | K90: 0 | L90: 1111
A91: 12 | B91: 12509 | C91: 14 | D91: 12513 | E91: 13 | F91: 12520 | G91: 14 | H91: 12539 | K91: 0 | L91: 1111
A92: 12 | B92: 12640 | C92: 14 | D92: 12646 | E92: 13 | F92: 12653 | G92: 23 | H92: 12665 | K92: 0 | L92: 1112
A93: 12 | B93: 12771 | C93: 14 | D93: 12775 | E93: 13 | F93: 12780 | G93: 14 | H93: 12784 | K93: 0 | L93: 1111
A94: 12 | B94: 12891 | C94: 14 | D94: 12896 | E94: 13 | F94: 12900 | G94: 14 | H94: 12906 | K94: 0 | L94: 1111
A95: 12 | B95: 13022 | C95: 14 | D95: 13026 | E95: 13 | F95: 13033 | G95: 14 | H95: 13050 | K95: 0 | L95: 1111
A96: 12 | B96: 13155 | C96: 14 | D96: 13159 | E96: 13 | F96: 13165 | G96: 14 | H96: 13171 | K96: 0 | L96: 1111
A97: 12 | B97: 13277 | C97: 14 | D97: 13281 | E97: 13 | F97: 13287 | G97: 23 | H97: 13300 | K97: 0 | L97: 1112
A98: 12 | B98: 13411 | C98: 14 | D98: 13415 | E98: 13 | F98: 13421 | G98: 14 | H98: 13428 | K98: 0 | L98: 1111
A99: 12 | B99: 13577 | C99: 14 | D99: 13584 | E99: 13 | F99: 13590 | G99: 14 | H99: 13598 | K99: 0 | L99: 1111
A100: 12 | B100: 13745 | C100: 14 | D100: 13749 | E100: 13 | F100: 13754 | G100: 14 | H100: 13762 | K100: 0 | L100: 1111
A101: 12 | B101: 13869 | C101: 14 | D101: 13873 | E101: 13 | F101: 13880 | G101: 14 | H101: 13888 | K101: 0 | L101: 1111
A102: 12 | B102: 13991 | C102: 14 | D102: 13996 | E102: 13 | F102: 14000 | G102: 14 | H102: 14008 | K102: 0 | L102: 1111
A103: 12 | B103: 14117 | C103: 14 | D103: 14121 | E103: 13 | F103: 14126 | G103: 14 | H103: 14132 | K103: 0 | L103: 1111
A104: 12 | B104: 14244 | C104: 14 | D104: 14248 | E104: 13 | F104: 14253 | G104: 14 | H104: 14258 | K104: 0 | L104: 1111
A105: 12 | B105: 14378 | C105: 14 | D105: 14383 | E105: 13 | F105: 14388 | G105: 14 | H105: 14393 | K105: 0 | L105: 1111
A106: 12 | B106: 14495 | C106: 14 | D106: 14499 | E106: 13 | F106: 14503 | G106: 14 | H106: 14512 | K106: 0 | L106: 1111
A107: 12 | B107: 14622 | C107: 14 | D107: 14626 | E107: 13 | F107: 14630 | G107: 14 | H107: 14637 | K107: 0 | L107: 1111
A108: 12 | B108: 14741 | C108: 14 | D108: 14746 | E108: 13 | F108: 14750 | G108: 14 | H108: 14757 | K108: 0 | L108: 1111
A109: 12 | B109: 14871 | C109: 14 | D109: 14876 | E109: 13 | F109: 14882 | G109: 14 | H109: 14889 | K109: 0 | L109: 1111
A110: 12 | B110: 14991 | C110: 14 | D110: 14996 | E110: 13 | F110: 15001 | G110: 14 | H110: 15007 | K110: 0 | L110: 1111
A111: 12 | B111: 15111 | C111: 14 | D111: 15116 | E111: 13 | F111: 15120 | G111: 14 | H111: 15127 | K111: 0 | L111: 1111
A112: 12 | B112: 15230 | C112: 14 | D112: 15237 | E112: 13 | F112: 15243 | G112: 14 | H112: 15250 | K112: 0 | L112: 1111
A113: 12 | B113: 15383 | C113: 14 | D113: 15388 | E113: 13 | F113: 15395 | G113: 14 | H113: 15417 | K113: 0 | L113: 1111
A114: 12 | B114: 15523 | C114: 14 | D114: 15528 | E114: 13 | F114: 15534 | G114: 14 | H114: 15541 | K114: 0 | L114: 1111
A115: 12 | B115: 15646 | C115: 14 | D115: 15650 | E115: 13 | F115: 15655 | G115: 14 | H115: 15661 | K115: 0 | L115: 1111
A116: 12 | B116: 15797 | C116: 14 | D116: 15802 | E116: 13 | F116: 15808 | G116: 23 | H116: 15819 | K116: 0 | L116: 1112
A117: 12 | B117: 15926 | C117: 14 | D117: 15930 | E117: 13 | F117: 15934 | G117: 14 | H117: 15940 | K117: 0 | L117: 1111
A118: 12 | B118: 16048 | C118: 14 | D118: 16052 | E118: 13 | F118: 16056 | G118: 14 | H118: 16062 | K118: 0 | L118: 1111
A119: 12 | B119: 16174 | C119: 14 | D119: 16179 | E119: 13 | F119: 16183 | G119: 14 | H119: 16190 | K119: 0 | L119: 1111
A120: 12 | B120: 16328 | C120: 14 | D120: 16333 | E120: 13 | F120: 16344 | G120: 14 | H120: 16360 | K120: 0 | L120: 1111
A121: 12 | B121: 16466 | C121: 14 | D121: 16471 | E121: 13 | F121: 16475 | G121: 14 | H121: 16481 | K121: 0 | L121: 1111
A122: 12 | B122: 16610 | C122: 14 | D122: 16613 | E122: 13 | F122: 16619 | G122: 14 | H122: 16630 | K122: 0 | L122: 1111
A123: 12 | B123: 16743 | C123: 14 | D123: 16747 | E123: 13 | F123: 16754 | G123: 23 | H123: 16763 | K123: 0 | L123: 1112
A124: 12 | B124: 16869 | C124: 14 | D124: 16873 | E124: 13 | F124: 16877 | G124: 14 | H124: 16883 | K124: 0 | L124: 1111
A125: 21 | B125: 16993 | C125: 12 | D125: 17000 | E125: 13 | F125: 17004 | G125: 14 | H125: 17011 | K125: 0 | L125: 2111
A126: 12 | B126: 17127 | C126: 14 | D126: 17133 | E126: 13 | F126: 17139 | G126: 14 | H126: 17146 | K126: 0 | L126: 1111
A127: 12 | B127: 17294 | C127: 14 | D127: 17300 | E127: 24 | F127: 17311 | G127: 14 | H127: 17323 | K127: 0 | L127: 1121
A128: 12 | B128: 17448 | C128: 14 | D128: 17452 | E128: 13 | F128: 17457 | G128: 14 | H128: 17464 | K128: 0 | L128: 1111
A129: 12 | B129: 17590 | C129: 14 | D129: 17594 | E129: 13 | F129: 17601 | G129: 14 | H129: 17621 | K129: 0 | L129: 1111
A130: 12 | B130: 17732 | C130: 14 | D130: 17736 | E130: 13 | F130: 17742 | G130: 14 | H130: 17749 | K130: 0 | L130: 1111
A131: 12 | B131: 17855 | C131: 14 | D131: 17859 | E131: 13 | F131: 17866 | G131: 14 | H131: 17874 | K131: 0 | L131: 1111
A132: 12 | B132: 17995 | C132: 14 | D132: 18000 | E132: 13 | F132: 18004 | G132: 14 | H132: 18011 | K132: 0 | L132: 1111
A133: 12 | B133: 18139 | C133: 14 | D133: 18143 | E133: 13 | F133: 18149 | G133: 14 | H133: 18160 | K133: 0 | L133: 1111
A134: 12 | B134: 18273 | C134: 14 | D134: 18277 | E134: 13 | F134: 18282 | G134: 14 | H134: 18288 | K134: 0 | L134: 1111
A135: 12 | B135: 18426 | C135: 14 | D135: 18431 | E135: 13 | F135: 18438 | G135: 14 | H135: 18448 | K135: 0 | L135: 1111
A136: 12 | B136: 18577 | C136: 14 | D136: 18582 | E136: 13 | F136: 18589 | G136: 14 | H136: 18600 | K136: 0 | L136: 1111
A137: 12 | B137: 18720 | C137: 14 | D137: 18725 | E137: 13 | F137: 18732 | G137: 14 | H137: 18750 | K137: 0 | L137: 1111
A138: 12 | B138: 18899 | C138: 14 | D138: 18903 | E138: 13 | F138: 18909 | G138: 14 | H138: 18919 | K138: 0 | L138: 1111
A139: 12 | B139: 19038 | C139: 14 | D139: 19042 | E139: 13 | F139: 19046 | G139: 14 | H139: 19050 | K139: 0 | L139: 1111
A140: 12 | B140: 19168 | C140: 14 | D140: 19173 | E140: 13 | F140: 19180 | G140: 14 | H140: 19189 | K140: 0 | L140: 1111
A141: 12 | B141: 19342 | C141: 14 | D141: 19348 | E141: 13 | F141: 19359 | G141: 14 | H141: 19371 | K141: 0 | L141: 1111
A142: 12 | B142: 19555 | C142: 14 | D142: 19559 | E142: 13 | F142: 19566 | G142: 14 | H142: 19587 | K142: 0 | L142: 1111
A143: 12 | B143: 19830 | C143: 14 | D143: 19834 | E143: 13 | F143: 19842 | G143: 14 | H143: 19850 | K143: 0 | L143: 1111
A144: 12 | B144: 20058 | C144: 14 | D144: 20064 | E144: 13 | F144: 20071 | G144: 14 | H144: 20083 | K144: 0 | L144: 1111
A145: 12 | B145: 20227 | C145: 14 | D145: 20231 | E145: 13 | F145: 20237 | G145: 14 | H145: 20247 | K145: 0 | L145: 1111
A146: 12 | B146: 20386 | C146: 14 | D146: 20391 | E146: 13 | F146: 20397 | G146: 14 | H146: 20408 | K146: 0 | L146: 1111
A147: 12 | B147: 20543 | C147: 14 | D147: 20547 | E147: 13 | F147: 20552 | G147: 14 | H147: 20559 | K147: 0 | L147: 1111
A148: 21 | B148: 20689 | C148: 12 | D148: 20699 | E148: 13 | F148: 20703 | G148: 14 | H148: 20711 | K148: 0 | L148: 2111
A149: 12 | B149: 20819 | C149: 14 | D149: 20825 | E149: 13 | F149: 20831 | G149: 23 | H149: 20844 | K149: 0 | L149: 1112
A150: 12 | B150: 20969 | C150: 14 | D150: 20974 | E150: 13 | F150: 20978 | G150: 14 | H150: 20985 | K150: 0 | L150: 1111
A151: 12 | B151: 21126 | C151: 14 | D151: 21131 | E151: 13 | F151: 21135 | G151: 14 | H151: 21141 | K151: 0 | L151: 1111
A152: 12 | B152: 21255 | C152: 14 | D152: 21260 | E152: 13 | F152: 21264 | G152: 14 | H152: 21271 | K152: 0 | L152: 1111
A153: 12 | B153: 21495 | C153: 14 | D153: 21499 | E153: 13 | F153: 21506 | G153: 23 | H153: 21516 | K153: 0 | L153: 1112
A154: 21 | B154: 21660 | C154: 12 | D154: 21667 | E154: 13 | F154: 21674 | G154: 14 | H154: 21701 | K154: 0 | L154: 2111
A155: 12 | B155: 21821 | C155: 14 | D155: 21827 | E155: 13 | F155: 21832 | G155: 14 | H155: 21840 | K155: 0 | L155: 1111
A156: 21 | B156: 21974 | C156: 12 | D156: 21981 | E156: 13 | F156: 21985 | G156: 14 | H156: 21992 | K156: 0 | L156: 2111
A157: 12 | B157: 22194 | C157: 14 | D157: 22198 | E157: 13 | F157: 22203 | G157: 14 | H157: 22209 | K157: 0 | L157: 1111
A158: 12 | B158: 22404 | C158: 14 | D158: 22409 | E158: 13 | F158: 22413 | G158: 14 | H158: 22417 | K158: 0 | L158: 1111
A159: 12 | B159: 22771 | C159: 14 | D159: 22777 | E159: 13 | F159: 22801 | G159: 23 | H159: 22810 | K159: 0 | L159: 1112
A160: 12 | B160: 22987 | C160: 14 | D160: 22991 | E160: 13 | F160: 22998 | G160: 14 | H160: 23005 | K160: 0 | L160: 1111
A161: 12 | B161: 23143 | C161: 14 | D161: 23147 | E161: 13 | F161: 23151 | G161: 14 | H161: 23156 | K161: 0 | L161: 1111
A162: 21 | B162: 23318 | C162: 12 | D162: 23328 | E162: 13 | F162: 23332 | G162: 14 | H162: 23338 | K162: 0 | L162: 2111
A163: 21 | B163: 23454 | C163: 12 | D163: 23464 | E163: 13 | F163: 23469 | G163: 14 | H163: 23473 | K163: 0 | L163: 2111
A164: 12 | B164: 23566 | C164: 14 | D164: 23578 | E164: 13 | F164: 23582 | G164: 14 | H164: 23587 | K164: 0 | L164: 1111
A165: 12 | B165: 23710 | C165: 14 | D165: 23715 | E165: 13 | F165: 23719 | G165: 14 | H165: 23727 | K165: 0 | L165: 1111
A166: 12 | B166: 23838 | C166: 14 | D166: 23842 | E166: 13 | F166: 23847 | G166: 14 | H166: 23854 | K166: 0 | L166: 1111
A167: 12 | B167: 23979 | C167: 14 | D167: 23984 | E167: 13 | F167: 23990 | G167: 14 | H167: 24001 | L167: 1111

Sheet !N103950.095
A1: Report for:!N103950.095
A2: Date: | B2: <date>
A3: Hen: | B3: <hen> | F3: Correct Sequence | G3: =Start!J2 -> 2212 | P3: Total Sequences in Data | Q3: =4994-COUNTBLANK(L7:L5000) -> 75 | V3: Total Sequences in Block Data | W3: =COUNTA(L7:L19) -> 13 | AA3: Total Sequences in Block Data | AB3: =COUNTA(L20:L31) -> 12 | AF3: Total Sequences in Block Data | AG3: =COUNTA(L32:L44) -> 13 | AK3: Total Sequences in Block Data | AL3: =COUNTA(L45:L56) -> 12 | AP3: Total Sequences in Block Data | AQ3: =COUNTA(L57:L69) -> 13 | AU3: Total Sequences in Block Data | AV3: =COUNTA(L70:L81) -> 12
P4: Total Sequences in Summary | Q4: =SUM(O7:O22) -> 75 | V4: Total Sequences in Block Summary | W4: =SUM(U7:U22) -> 13 | AA4: Total Sequences in Block Summary | AB4: =SUM(Z7:Z22) -> 12 | AF4: Total Sequences in Block Summary | AG4: =SUM(AE7:AE22) -> 13 | AK4: Total Sequences in Block Summary | AL4: =SUM(AJ7:AJ22) -> 12 | AP4: Total Sequences in Block Summary | AQ4: =SUM(AO7:AO22) -> 13 | AU4: Total Sequences in Block Summary | AV4: =SUM(AT7:AT22) -> 12
T5: Block 1 | Y5: Block 2 | AD5: Block 3 | AI5: Block 4 | AN5: Block 5 | AS5: Block 6
A6: Sequence Component 1 | B6: Time 1 | C6: Sequence Component 2 | D6: Time 2 | E6: Sequence Component 3 | F6: Time 3 | G6: Sequence Component 4 | H6: Time 4 | I6: Sequence Component 5 | J6: Time 5 | K6: Correct? 0=No 1=Yes | L6: Sequence | N6: Frequency | P6: Relative Frequency | Q6: Variability | T6: Frequency | V6: Relative Frequency | W6: Variability | Y6: Frequency | AA6: Relative Frequency | AB6: Variability | AD6: Frequency | AF6: Relative Frequency | AG6: Variability | AI6: Frequency | AK6: Relative Frequency | AL6: Variability | AN6: Frequency | AP6: Relative Frequency | AQ6: Variability | AS6: Frequency | AU6: Relative Frequency | AV6: Variability
A7: 21 | B7: 24 | C7: 12 | D7: 35 | E7: 13 | F7: 59 | G7: 14 | H7: 82 | K7: 0 | L7: 2111 | N7: 1111 | O7: =COUNTIF($L$7:$L$500,N7) -> 26 | P7: =O7/$Q$4 -> 0.3466666667 | Q7: =IF(P7=0,0,(P7*((LOG(P7))/LOG(2)))) -> -0.5298380437 | T7: =N7 -> 1111 | U7: =COUNTIF(L7:L19,T7) -> 5 | V7: =U7/(W4-U20) -> 0.3846153846 | W7: =IF(V7=0,0,(V7*((LOG(V7))/LOG(2)))) -> -0.5301967782 | Y7: =N7 -> 1111 | Z7: =COUNTIF(L20:L31,Y7) -> 4 | AA7: =Z7/(AB4-Z20) -> 0.3333333333 | AB7: =IF(AA7=0,0,(AA7*((LOG(AA7))/LOG(2)))) -> -0.5283208336 | AD7: =N7 -> 1111 | AE7: =COUNTIF(L32:L44,AD7) -> 1 | AF7: =AE7/(AG4-AE20) -> 0.07692307692 | AG7: =IF(AF7=0,0,(AF7*((LOG(AF7))/LOG(2)))) -> -0.2846492091 | AI7: =N7 -> 1111 | AJ7: =COUNTIF(L45:L56,AI7) -> 4 | AK7: =AJ7/(AL4-AJ20) -> 0.3333333333 | AL7: =IF(AK7=0,0,(AK7*((LOG(AK7))/LOG(2)))) -> -0.5283208336 | AN7: =N7 -> 1111 | AO7: =COUNTIF(L57:L69,AN7) -> 6 | AP7: =AO7/(AQ4-AO20) -> 0.4615384615 | AQ7: =IF(AP7=0,0,(AP7*((LOG(AP7))/LOG(2)))) -> -0.5148356388 | AS7: =N7 -> 1111 | AT7: =COUNTIF(L70:L81,AS7) -> 6 | AU7: =AT7/(AV4-AT20) -> 0.5 | AV7: =IF(AU7=0,0,(AU7*((LOG(AU7))/LOG(2)))) -> -0.5
A8: 12 | B8: 188 | C8: 14 | D8: 194 | E8: 13 | F8: 202 | G8: 14 | H8: 213 | K8: 0 | L8: 1111 | N8: 1112 | O8: =COUNTIF($L$7:$L$500,N8) -> 10 | P8: =O8/$Q$4 -> 0.1333333333 | Q8: =IF(P8=0,0,(P8*((LOG(P8))/LOG(2)))) -> -0.3875854127 | T8: =N8 -> 1112 | U8: =COUNTIF(L7:L19,T8) -> 1 | V8: =U8/(W4-U20) -> 0.07692307692 | W8: =IF(V8=0,0,(V8*((LOG(V8))/LOG(2)))) -> -0.2846492091 | Y8: =N8 -> 1112 | Z8: =COUNTIF(L20:L31,Y8) -> 3 | AA8: =Z8/(AB4-Z20) -> 0.25 | AB8: =IF(AA8=0,0,(AA8*((LOG(AA8))/LOG(2)))) -> -0.5 | AD8: =N8 -> 1112 | AE8: =COUNTIF(L32:L44,AD8) -> 2 | AF8: =AE8/(AG4-AE20) -> 0.1538461538 | AG8: =IF(AF8=0,0,(AF8*((LOG(AF8))/LOG(2)))) -> -0.4154522643 | AI8: =N8 -> 1112 | AJ8: =COUNTIF(L45:L56,AI8) -> 0 | AK8: =AJ8/(AL4-AJ20) -> 0 | AL8: =IF(AK8=0,0,(AK8*((LOG(AK8))/LOG(2)))) -> 0 | AN8: =N8 -> 1112 | AO8: =COUNTIF(L57:L69,AN8) -> 1 | AP8: =AO8/(AQ4-AO20) -> 0.07692307692 | AQ8: =IF(AP8=0,0,(AP8*((LOG(AP8))/LOG(2)))) -> -0.2846492091 | AS8: =N8 -> 1112 | AT8: =COUNTIF(L70:L81,AS8) -> 3 | AU8: =AT8/(AV4-AT20) -> 0.25 | AV8: =IF(AU8=0,0,(AU8*((LOG(AU8))/LOG(2)))) -> -0.5
A9: 21 | B9: 322 | C9: 12 | D9: 330 | E9: 13 | F9: 339 | G9: 14 | H9: 346 | K9: 0 | L9: 2111 | N9: 1121 | O9: =COUNTIF($L$7:$L$500,N9) -> 8 | P9: =O9/$Q$4 -> 0.1066666667 | Q9: =IF(P9=0,0,(P9*((LOG(P9))/LOG(2)))) -> -0.344407327 | T9: =N9 -> 1121 | U9: =COUNTIF(L7:L19,T9) -> 1 | V9: =U9/(W4-U20) -> 0.07692307692 | W9: =IF(V9=0,0,(V9*((LOG(V9))/LOG(2)))) -> -0.2846492091 | Y9: =N9 -> 1121 | Z9: =COUNTIF(L20:L31,Y9) -> 2 | AA9: =Z9/(AB4-Z20) -> 0.1666666667 | AB9: =IF(AA9=0,0,(AA9*((LOG(AA9))/LOG(2)))) -> -0.4308270835 | AD9: =N9 -> 1121 | AE9: =COUNTIF(L32:L44,AD9) -> 1 | AF9: =AE9/(AG4-AE20) -> 0.07692307692 | AG9: =IF(AF9=0,0,(AF9*((LOG(AF9))/LOG(2)))) -> -0.2846492091 | AI9: =N9 -> 1121 | AJ9: =COUNTIF(L45:L56,AI9) -> 1 | AK9: =AJ9/(AL4-AJ20) -> 0.08333333333 | AL9: =IF(AK9=0,0,(AK9*((LOG(AK9))/LOG(2)))) -> -0.2987468751 | AN9: =N9 -> 1121 | AO9: =COUNTIF(L57:L69,AN9) -> 2 | AP9: =AO9/(AQ4-AO20) -> 0.1538461538 | AQ9: =IF(AP9=0,0,(AP9*((LOG(AP9))/LOG(2)))) -> -0.4154522643 | AS9: =N9 -> 1121 | AT9: =COUNTIF(L70:L81,AS9) -> 1 | AU9: =AT9/(AV4-AT20) -> 0.08333333333 | AV9: =IF(AU9=0,0,(AU9*((LOG(AU9))/LOG(2)))) -> -0.2987468751
A10: 21 | B10: 461 | C10: 12 | D10: 480 | E10: 13 | F10: 487 | G10: 14 | H10: 495 | K10: 0 | L10: 2111 | N10: 1122 | O10: =COUNTIF($L$7:$L$500,N10) -> 0 | P10: =O10/$Q$4 -> 0 | Q10: =IF(P10=0,0,(P10*((LOG(P10))/LOG(2)))) -> 0 | T10: =N10 -> 1122 | U10: =COUNTIF(L7:L19,T10) -> 0 | V10: =U10/(W4-U20) -> 0 | W10: =IF(V10=0,0,(V10*((LOG(V10))/LOG(2)))) -> 0 | Y10: =N10 -> 1122 | Z10: =COUNTIF(L20:L31,Y10) -> 0 | AA10: =Z10/(AB4-Z20) -> 0 | AB10: =IF(AA10=0,0,(AA10*((LOG(AA10))/LOG(2)))) -> 0 | AD10: =N10 -> 1122 | AE10: =COUNTIF(L32:L44,AD10) -> 0 | AF10: =AE10/(AG4-AE20) -> 0 | AG10: =IF(AF10=0,0,(AF10*((LOG(AF10))/LOG(2)))) -> 0 | AI10: =N10 -> 1122 | AJ10: =COUNTIF(L45:L56,AI10) -> 0 | AK10: =AJ10/(AL4-AJ20) -> 0 | AL10: =IF(AK10=0,0,(AK10*((LOG(AK10))/LOG(2)))) -> 0 | AN10: =N10 -> 1122 | AO10: =COUNTIF(L57:L69,AN10) -> 0 | AP10: =AO10/(AQ4-AO20) -> 0 | AQ10: =IF(AP10=0,0,(AP10*((LOG(AP10))/LOG(2)))) -> 0 | AS10: =N10 -> 1122 | AT10: =COUNTIF(L70:L81,AS10) -> 0 | AU10: =AT10/(AV4-AT20) -> 0 | AV10: =IF(AU10=0,0,(AU10*((LOG(AU10))/LOG(2)))) -> 0
A11: 12 | B11: 630 | C11: 14 | D11: 637 | E11: 13 | F11: 645 | G11: 14 | H11: 672 | K11: 0 | L11: 1111 | N11: 1211 | O11: =COUNTIF($L$7:$L$500,N11) -> 7 | P11: =O11/$Q$4 -> 0.09333333333 | Q11: =IF(P11=0,0,(P11*((LOG(P11))/LOG(2)))) -> -0.3193366184 | T11: =N11 -> 1211 | U11: =COUNTIF(L7:L19,T11) -> 0 | V11: =U11/(W4-U20) -> 0 | W11: =IF(V11=0,0,(V11*((LOG(V11))/LOG(2)))) -> 0 | Y11: =N11 -> 1211 | Z11: =COUNTIF(L20:L31,Y11) -> 1 | AA11: =Z11/(AB4-Z20) -> 0.08333333333 | AB11: =IF(AA11=0,0,(AA11*((LOG(AA11))/LOG(2)))) -> -0.2987468751 | AD11: =N11 -> 1211 | AE11: =COUNTIF(L32:L44,AD11) -> 1 | AF11: =AE11/(AG4-AE20) -> 0.07692307692 | AG11: =IF(AF11=0,0,(AF11*((LOG(AF11))/LOG(2)))) -> -0.2846492091 | AI11: =N11 -> 1211 | AJ11: =COUNTIF(L45:L56,AI11) -> 3 | AK11: =AJ11/(AL4-AJ20) -> 0.25 | AL11: =IF(AK11=0,0,(AK11*((LOG(AK11))/LOG(2)))) -> -0.5 | AN11: =N11 -> 1211 | AO11: =COUNTIF(L57:L69,AN11) -> 1 | AP11: =AO11/(AQ4-AO20) -> 0.07692307692 | AQ11: =IF(AP11=0,0,(AP11*((LOG(AP11))/LOG(2)))) -> -0.2846492091 | AS11: =N11 -> 1211 | AT11: =COUNTIF(L70:L81,AS11) -> 1 | AU11: =AT11/(AV4-AT20) -> 0.08333333333 | AV11: =IF(AU11=0,0,(AU11*((LOG(AU11))/LOG(2)))) -> -0.2987468751
A12: 12 | B12: 833 | C12: 14 | D12: 840 | E12: 13 | F12: 847 | G12: 14 | H12: 854 | K12: 0 | L12: 1111 | N12: 1212 | O12: =COUNTIF($L$7:$L$500,N12) -> 2 | P12: =O12/$Q$4 -> 0.02666666667 | Q12: =IF(P12=0,0,(P12*((LOG(P12))/LOG(2)))) -> -0.1394351651 | T12: =N12 -> 1212 | U12: =COUNTIF(L7:L19,T12) -> 0 | V12: =U12/(W4-U20) -> 0 | W12: =IF(V12=0,0,(V12*((LOG(V12))/LOG(2)))) -> 0 | Y12: =N12 -> 1212 | Z12: =COUNTIF(L20:L31,Y12) -> 0 | AA12: =Z12/(AB4-Z20) -> 0 | AB12: =IF(AA12=0,0,(AA12*((LOG(AA12))/LOG(2)))) -> 0 | AD12: =N12 -> 1212 | AE12: =COUNTIF(L32:L44,AD12) -> 1 | AF12: =AE12/(AG4-AE20) -> 0.07692307692 | AG12: =IF(AF12=0,0,(AF12*((LOG(AF12))/LOG(2)))) -> -0.2846492091 | AI12: =N12 -> 1212 | AJ12: =COUNTIF(L45:L56,AI12) -> 0 | AK12: =AJ12/(AL4-AJ20) -> 0 | AL12: =IF(AK12=0,0,(AK12*((LOG(AK12))/LOG(2)))) -> 0 | AN12: =N12 -> 1212 | AO12: =COUNTIF(L57:L69,AN12) -> 0 | AP12: =AO12/(AQ4-AO20) -> 0 | AQ12: =IF(AP12=0,0,(AP12*((LOG(AP12))/LOG(2)))) -> 0 | AS12: =N12 -> 1212 | AT12: =COUNTIF(L70:L81,AS12) -> 1 | AU12: =AT12/(AV4-AT20) -> 0.08333333333 | AV12: =IF(AU12=0,0,(AU12*((LOG(AU12))/LOG(2)))) -> -0.2987468751
A13: 21 | B13: 974 | C13: 12 | D13: 984 | E13: 13 | F13: 991 | G13: 14 | H13: 998 | K13: 0 | L13: 2111 | N13: 1221 | O13: =COUNTIF($L$7:$L$500,N13) -> 0 | P13: =O13/$Q$4 -> 0 | Q13: =IF(P13=0,0,(P13*((LOG(P13))/LOG(2)))) -> 0 | T13: =N13 -> 1221 | U13: =COUNTIF(L7:L19,T13) -> 0 | V13: =U13/(W4-U20) -> 0 | W13: =IF(V13=0,0,(V13*((LOG(V13))/LOG(2)))) -> 0 | Y13: =N13 -> 1221 | Z13: =COUNTIF(L20:L31,Y13) -> 0 | AA13: =Z13/(AB4-Z20) -> 0 | AB13: =IF(AA13=0,0,(AA13*((LOG(AA13))/LOG(2)))) -> 0 | AD13: =N13 -> 1221 | AE13: =COUNTIF(L32:L44,AD13) -> 0 | AF13: =AE13/(AG4-AE20) -> 0 | AG13: =IF(AF13=0,0,(AF13*((LOG(AF13))/LOG(2)))) -> 0 | AI13: =N13 -> 1221 | AJ13: =COUNTIF(L45:L56,AI13) -> 0 | AK13: =AJ13/(AL4-AJ20) -> 0 | AL13: =IF(AK13=0,0,(AK13*((LOG(AK13))/LOG(2)))) -> 0 | AN13: =N13 -> 1221 | AO13: =COUNTIF(L57:L69,AN13) -> 0 | AP13: =AO13/(AQ4-AO20) -> 0 | AQ13: =IF(AP13=0,0,(AP13*((LOG(AP13))/LOG(2)))) -> 0 | AS13: =N13 -> 1221 | AT13: =COUNTIF(L70:L81,AS13) -> 0 | AU13: =AT13/(AV4-AT20) -> 0 | AV13: =IF(AU13=0,0,(AU13*((LOG(AU13))/LOG(2)))) -> 0
A14: 21 | B14: 1113 | C14: 12 | D14: 1124 | E14: 13 | F14: 1131 | G14: 14 | H14: 1138 | K14: 0 | L14: 2111 | N14: 1222 | O14: =COUNTIF($L$7:$L$500,N14) -> 0 | P14: =O14/$Q$4 -> 0 | Q14: =IF(P14=0,0,(P14*((LOG(P14))/LOG(2)))) -> 0 | T14: =N14 -> 1222 | U14: =COUNTIF(L7:L19,T14) -> 0 | V14: =U14/(W4-U20) -> 0 | W14: =IF(V14=0,0,(V14*((LOG(V14))/LOG(2)))) -> 0 | Y14: =N14 -> 1222 | Z14: =COUNTIF(L20:L31,Y14) -> 0 | AA14: =Z14/(AB4-Z20) -> 0 | AB14: =IF(AA14=0,0,(AA14*((LOG(AA14))/LOG(2)))) -> 0 | AD14: =N14 -> 1222 | AE14: =COUNTIF(L32:L44,AD14) -> 0 | AF14: =AE14/(AG4-AE20) -> 0 | AG14: =IF(AF14=0,0,(AF14*((LOG(AF14))/LOG(2)))) -> 0 | AI14: =N14 -> 1222 | AJ14: =COUNTIF(L45:L56,AI14) -> 0 | AK14: =AJ14/(AL4-AJ20) -> 0 | AL14: =IF(AK14=0,0,(AK14*((LOG(AK14))/LOG(2)))) -> 0 | AN14: =N14 -> 1222 | AO14: =COUNTIF(L57:L69,AN14) -> 0 | AP14: =AO14/(AQ4-AO20) -> 0 | AQ14: =IF(AP14=0,0,(AP14*((LOG(AP14))/LOG(2)))) -> 0 | AS14: =N14 -> 1222 | AT14: =COUNTIF(L70:L81,AS14) -> 0 | AU14: =AT14/(AV4-AT20) -> 0 | AV14: =IF(AU14=0,0,(AU14*((LOG(AU14))/LOG(2)))) -> 0
A15: 12 | B15: 1289 | C15: 14 | D15: 1297 | E15: 13 | F15: 1324 | G15: 23 | H15: 1336 | K15: 0 | L15: 1112 | N15: 2111 | O15: =COUNTIF($L$7:$L$500,N15) -> 11 | P15: =O15/$Q$4 -> 0.1466666667 | Q15: =IF(P15=0,0,(P15*((LOG(P15))/LOG(2)))) -> -0.4061767705 | T15: =N15 -> 2111 | U15: =COUNTIF(L7:L19,T15) -> 5 | V15: =U15/(W4-U20) -> 0.3846153846 | W15: =IF(V15=0,0,(V15*((LOG(V15))/LOG(2)))) -> -0.5301967782 | Y15: =N15 -> 2111 | Z15: =COUNTIF(L20:L31,Y15) -> 1 | AA15: =Z15/(AB4-Z20) -> 0.08333333333 | AB15: =IF(AA15=0,0,(AA15*((LOG(AA15))/LOG(2)))) -> -0.2987468751 | AD15: =N15 -> 2111 | AE15: =COUNTIF(L32:L44,AD15) -> 4 | AF15: =AE15/(AG4-AE20) -> 0.3076923077 | AG15: =IF(AF15=0,0,(AF15*((LOG(AF15))/LOG(2)))) -> -0.523212221 | AI15: =N15 -> 2111 | AJ15: =COUNTIF(L45:L56,AI15) -> 0 | AK15: =AJ15/(AL4-AJ20) -> 0 | AL15: =IF(AK15=0,0,(AK15*((LOG(AK15))/LOG(2)))) -> 0 | AN15: =N15 -> 2111 | AO15: =COUNTIF(L57:L69,AN15) -> 1 | AP15: =AO15/(AQ4-AO20) -> 0.07692307692 | AQ15: =IF(AP15=0,0,(AP15*((LOG(AP15))/LOG(2)))) -> -0.2846492091 | AS15: =N15 -> 2111 | AT15: =COUNTIF(L70:L81,AS15) -> 0 | AU15: =AT15/(AV4-AT20) -> 0 | AV15: =IF(AU15=0,0,(AU15*((LOG(AU15))/LOG(2)))) -> 0
A16: 12 | B16: 1461 | C16: 14 | D16: 1466 | E16: 13 | F16: 1486 | G16: 14 | H16: 1491 | K16: 0 | L16: 1111 | N16: 2112 | O16: =COUNTIF($L$7:$L$500,N16) -> 5 | P16: =O16/$Q$4 -> 0.06666666667 | Q16: =IF(P16=0,0,(P16*((LOG(P16))/LOG(2)))) -> -0.260459373 | T16: =N16 -> 2112 | U16: =COUNTIF(L7:L19,T16) -> 0 | V16: =U16/(W4-U20) -> 0 | W16: =IF(V16=0,0,(V16*((LOG(V16))/LOG(2)))) -> 0 | Y16: =N16 -> 2112 | Z16: =COUNTIF(L20:L31,Y16) -> 0 | AA16: =Z16/(AB4-Z20) -> 0 | AB16: =IF(AA16=0,0,(AA16*((LOG(AA16))/LOG(2)))) -> 0 | AD16: =N16 -> 2112 | AE16: =COUNTIF(L32:L44,AD16) -> 1 | AF16: =AE16/(AG4-AE20) -> 0.07692307692 | AG16: =IF(AF16=0,0,(AF16*((LOG(AF16))/LOG(2)))) -> -0.2846492091 | AI16: =N16 -> 2112 | AJ16: =COUNTIF(L45:L56,AI16) -> 2 | AK16: =AJ16/(AL4-AJ20) -> 0.1666666667 | AL16: =IF(AK16=0,0,(AK16*((LOG(AK16))/LOG(2)))) -> -0.4308270835 | AN16: =N16 -> 2112 | AO16: =COUNTIF(L57:L69,AN16) -> 2 | AP16: =AO16/(AQ4-AO20) -> 0.1538461538 | AQ16: =IF(AP16=0,0,(AP16*((LOG(AP16))/LOG(2)))) -> -0.4154522643 | AS16: =N16 -> 2112 | AT16: =COUNTIF(L70:L81,AS16) -> 0 | AU16: =AT16/(AV4-AT20) -> 0 | AV16: =IF(AU16=0,0,(AU16*((LOG(AU16))/LOG(2)))) -> 0
A17: 21 | B17: 1623 | C17: 21 | D17: 1640 | E17: 11 | F17: 1649 | G17: 12 | H17: 1655 | K17: 0 | L17: 2211 | N17: 2121 | O17: =COUNTIF($L$7:$L$500,N17) -> 3 | P17: =O17/$Q$4 -> 0.04 | Q17: =IF(P17=0,0,(P17*((LOG(P17))/LOG(2)))) -> -0.1857542476 | T17: =N17 -> 2121 | U17: =COUNTIF(L7:L19,T17) -> 0 | V17: =U17/(W4-U20) -> 0 | W17: =IF(V17=0,0,(V17*((LOG(V17))/LOG(2)))) -> 0 | Y17: =N17 -> 2121 | Z17: =COUNTIF(L20:L31,Y17) -> 0 | AA17: =Z17/(AB4-Z20) -> 0 | AB17: =IF(AA17=0,0,(AA17*((LOG(AA17))/LOG(2)))) -> 0 | AD17: =N17 -> 2121 | AE17: =COUNTIF(L32:L44,AD17) -> 1 | AF17: =AE17/(AG4-AE20) -> 0.07692307692 | AG17: =IF(AF17=0,0,(AF17*((LOG(AF17))/LOG(2)))) -> -0.2846492091 | AI17: =N17 -> 2121 | AJ17: =COUNTIF(L45:L56,AI17) -> 2 | AK17: =AJ17/(AL4-AJ20) -> 0.1666666667 | AL17: =IF(AK17=0,0,(AK17*((LOG(AK17))/LOG(2)))) -> -0.4308270835 | AN17: =N17 -> 2121 | AO17: =COUNTIF(L57:L69,AN17) -> 0 | AP17: =AO17/(AQ4-AO20) -> 0 | AQ17: =IF(AP17=0,0,(AP17*((LOG(AP17))/LOG(2)))) -> 0 | AS17: =N17 -> 2121 | AT17: =COUNTIF(L70:L81,AS17) -> 0 | AU17: =AT17/(AV4-AT20) -> 0 | AV17: =IF(AU17=0,0,(AU17*((LOG(AU17))/LOG(2)))) -> 0
A18: 12 | B18: 1894 | C18: 14 | D18: 1899 | E18: 24 | F18: 1912 | G18: 14 | H18: 1923 | K18: 0 | L18: 1121 | N18: 2122 | O18: =COUNTIF($L$7:$L$500,N18) -> 0 | P18: =O18/$Q$4 -> 0 | Q18: =IF(P18=0,0,(P18*((LOG(P18))/LOG(2)))) -> 0 | T18: =N18 -> 2122 | U18: =COUNTIF(L7:L19,T18) -> 0 | V18: =U18/(W4-U20) -> 0 | W18: =IF(V18=0,0,(V18*((LOG(V18))/LOG(2)))) -> 0 | Y18: =N18 -> 2122 | Z18: =COUNTIF(L20:L31,Y18) -> 0 | AA18: =Z18/(AB4-Z20) -> 0 | AB18: =IF(AA18=0,0,(AA18*((LOG(AA18))/LOG(2)))) -> 0 | AD18: =N18 -> 2122 | AE18: =COUNTIF(L32:L44,AD18) -> 0 | AF18: =AE18/(AG4-AE20) -> 0 | AG18: =IF(AF18=0,0,(AF18*((LOG(AF18))/LOG(2)))) -> 0 | AI18: =N18 -> 2122 | AJ18: =COUNTIF(L45:L56,AI18) -> 0 | AK18: =AJ18/(AL4-AJ20) -> 0 | AL18: =IF(AK18=0,0,(AK18*((LOG(AK18))/LOG(2)))) -> 0 | AN18: =N18 -> 2122 | AO18: =COUNTIF(L57:L69,AN18) -> 0 | AP18: =AO18/(AQ4-AO20) -> 0 | AQ18: =IF(AP18=0,0,(AP18*((LOG(AP18))/LOG(2)))) -> 0 | AS18: =N18 -> 2122 | AT18: =COUNTIF(L70:L81,AS18) -> 0 | AU18: =AT18/(AV4-AT20) -> 0 | AV18: =IF(AU18=0,0,(AU18*((LOG(AU18))/LOG(2)))) -> 0
A19: 12 | B19: 2083 | C19: 14 | D19: 2087 | E19: 13 | F19: 2095 | G19: 14 | H19: 2107 | K19: 0 | L19: 1111 | N19: 2211 | O19: =COUNTIF($L$7:$L$500,N19) -> 2 | P19: =O19/$Q$4 -> 0.02666666667 | Q19: =IF(P19=0,0,(P19*((LOG(P19))/LOG(2)))) -> -0.1394351651 | T19: =N19 -> 2211 | U19: =COUNTIF(L7:L19,T19) -> 1 | V19: =U19/(W4-U20) -> 0.07692307692 | W19: =IF(V19=0,0,(V19*((LOG(V19))/LOG(2)))) -> -0.2846492091 | Y19: =N19 -> 2211 | Z19: =COUNTIF(L20:L31,Y19) -> 1 | AA19: =Z19/(AB4-Z20) -> 0.08333333333 | AB19: =IF(AA19=0,0,(AA19*((LOG(AA19))/LOG(2)))) -> -0.2987468751 | AD19: =N19 -> 2211 | AE19: =COUNTIF(L32:L44,AD19) -> 0 | AF19: =AE19/(AG4-AE20) -> 0 | AG19: =IF(AF19=0,0,(AF19*((LOG(AF19))/LOG(2)))) -> 0 | AI19: =N19 -> 2211 | AJ19: =COUNTIF(L45:L56,AI19) -> 0 | AK19: =AJ19/(AL4-AJ20) -> 0 | AL19: =IF(AK19=0,0,(AK19*((LOG(AK19))/LOG(2)))) -> 0 | AN19: =N19 -> 2211 | AO19: =COUNTIF(L57:L69,AN19) -> 0 | AP19: =AO19/(AQ4-AO20) -> 0 | AQ19: =IF(AP19=0,0,(AP19*((LOG(AP19))/LOG(2)))) -> 0 | AS19: =N19 -> 2211 | AT19: =COUNTIF(L70:L81,AS19) -> 0 | AU19: =AT19/(AV4-AT20) -> 0 | AV19: =IF(AU19=0,0,(AU19*((LOG(AU19))/LOG(2)))) -> 0
A20: 12 | B20: 2257 | C20: 14 | D20: 2262 | E20: 13 | F20: 2269 | G20: 23 | H20: 2283 | K20: 0 | L20: 1112 | N20: 2212 | O20: =COUNTIF($L$7:$L$500,N20) -> 0 | P20: =O20/$Q$4 -> 0 | Q20: =IF(P20=0,0,(P20*((LOG(P20))/LOG(2)))) -> 0 | T20: =N20 -> 2212 | U20: =COUNTIF(L7:L19,T20) -> 0 | Y20: =N20 -> 2212 | Z20: =COUNTIF(L20:L31,Y20) -> 0 | AD20: =N20 -> 2212 | AE20: =COUNTIF(L32:L44,AD20) -> 0 | AI20: =N20 -> 2212 | AJ20: =COUNTIF(L45:L56,AI20) -> 0 | AN20: =N20 -> 2212 | AO20: =COUNTIF(L57:L69,AN20) -> 0 | AS20: =N20 -> 2212 | AT20: =COUNTIF(L70:L81,AS20) -> 0
A21: 12 | B21: 2446 | C21: 23 | D21: 2461 | E21: 13 | F21: 2473 | G21: 14 | H21: 2486 | K21: 0 | L21: 1211 | N21: 2221 | O21: =COUNTIF($L$7:$L$500,N21) -> 1 | P21: =O21/$Q$4 -> 0.01333333333 | Q21: =IF(P21=0,0,(P21*((LOG(P21))/LOG(2)))) -> -0.08305091587 | T21: =N21 -> 2221 | U21: =COUNTIF(L7:L19,T21) -> 0 | V21: =U21/(W4-U20) -> 0 | W21: =IF(V21=0,0,(V21*((LOG(V21))/LOG(2)))) -> 0 | Y21: =N21 -> 2221 | Z21: =COUNTIF(L20:L31,Y21) -> 0 | AA21: =Z21/(AB4-Z20) -> 0 | AB21: =IF(AA21=0,0,(AA21*((LOG(AA21))/LOG(2)))) -> 0 | AD21: =N21 -> 2221 | AE21: =COUNTIF(L32:L44,AD21) -> 1 | AF21: =AE21/(AG4-AE20) -> 0.07692307692 | AG21: =IF(AF21=0,0,(AF21*((LOG(AF21))/LOG(2)))) -> -0.2846492091 | AI21: =N21 -> 2221 | AJ21: =COUNTIF(L45:L56,AI21) -> 0 | AK21: =AJ21/(AL4-AJ20) -> 0 | AL21: =IF(AK21=0,0,(AK21*((LOG(AK21))/LOG(2)))) -> 0 | AN21: =N21 -> 2221 | AO21: =COUNTIF(L57:L69,AN21) -> 0 | AP21: =AO21/(AQ4-AO20) -> 0 | AQ21: =IF(AP21=0,0,(AP21*((LOG(AP21))/LOG(2)))) -> 0 | AS21: =N21 -> 2221 | AT21: =COUNTIF(L70:L81,AS21) -> 0 | AU21: =AT21/(AV4-AT20) -> 0 | AV21: =IF(AU21=0,0,(AU21*((LOG(AU21))/LOG(2)))) -> 0
A22: 12 | B22: 2660 | C22: 14 | D22: 2667 | E22: 13 | F22: 2690 | G22: 23 | H22: 2702 | K22: 0 | L22: 1112 | N22: 2222 | O22: =COUNTIF($L$7:$L$500,N22) -> 0 | P22: =O22/$Q$4 -> 0 | Q22: =IF(P22=0,0,(P22*((LOG(P22))/LOG(2)))) -> 0 | T22: =N22 -> 2222 | U22: =COUNTIF(L7:L19,T22) -> 0 | V22: =U22/(W4-U20) -> 0 | W22: =IF(V22=0,0,(V22*((LOG(V22))/LOG(2)))) -> 0 | Y22: =N22 -> 2222 | Z22: =COUNTIF(L20:L31,Y22) -> 0 | AA22: =Z22/(AB4-Z20) -> 0 | AB22: =IF(AA22=0,0,(AA22*((LOG(AA22))/LOG(2)))) -> 0 | AD22: =N22 -> 2222 | AE22: =COUNTIF(L32:L44,AD22) -> 0 | AF22: =AE22/(AG4-AE20) -> 0 | AG22: =IF(AF22=0,0,(AF22*((LOG(AF22))/LOG(2)))) -> 0 | AI22: =N22 -> 2222 | AJ22: =COUNTIF(L45:L56,AI22) -> 0 | AK22: =AJ22/(AL4-AJ20) -> 0 | AL22: =IF(AK22=0,0,(AK22*((LOG(AK22))/LOG(2)))) -> 0 | AN22: =N22 -> 2222 | AO22: =COUNTIF(L57:L69,AN22) -> 0 | AP22: =AO22/(AQ4-AO20) -> 0 | AQ22: =IF(AP22=0,0,(AP22*((LOG(AP22))/LOG(2)))) -> 0 | AS22: =N22 -> 2222 | AT22: =COUNTIF(L70:L81,AS22) -> 0 | AU22: =AT22/(AV4-AT20) -> 0 | AV22: =IF(AU22=0,0,(AU22*((LOG(AU22))/LOG(2)))) -> 0
A23: 12 | B23: 2856 | C23: 14 | D23: 2863 | E23: 13 | F23: 2884 | G23: 14 | H23: 2909 | K23: 0 | L23: 1111 | P23: =SUM(P7:P22) -> 1 | Q23: =-SUM(Q7:Q22) -> 2.795479039 | V23: =SUM(V7:V22) -> 1 | W23: =-SUM(W7:W22) -> 1.914341184 | AA23: =SUM(AA7:AA22) -> 1 | AB23: =-SUM(AB7:AB22) -> 2.355388542 | AF23: =SUM(AF7:AF22) -> 1 | AG23: =-SUM(AG7:AG22) -> 2.931208949 | AK23: =SUM(AK7:AK22) -> 1 | AL23: =-SUM(AL7:AL22) -> 2.188721876 | AP23: =SUM(AP7:AP22) -> 1 | AQ23: =-SUM(AQ7:AQ22) -> 2.199687795 | AU23: =SUM(AU7:AU22) -> 1 | AV23: =-SUM(AV7:AV22) -> 1.896240625
A24: 12 | B24: 3063 | C24: 14 | D24: 3071 | E24: 13 | F24: 3097 | G24: 23 | H24: 3106 | K24: 0 | L24: 1112 | P24: U= | Q24: =Q23/(LOG(Q4)/LOG(2)) -> 0.4487976257 | V24: U1= | W24: =W23/(LOG(W4)/LOG(2)) -> 0.5173280284 | AA24: U2= | AB24: =AB23/(LOG(AB4)/LOG(2)) -> 0.6570190181 | AF24: U3= | AG24: =AG23/(LOG(AG4)/LOG(2)) -> 0.7921244966 | AK24: U4= | AL24: =AL23/(LOG(AL4)/LOG(2)) -> 0.6105285272 | AP24: U5= | AQ24: =AQ23/(LOG(AQ4)/LOG(2)) -> 0.59443957 | AU24: U6= | AV24: =AV23/(LOG(AV4)/LOG(2)) -> 0.5289429457
A25: 12 | B25: 3237 | C25: 14 | D25: 3244 | E25: 24 | F25: 3258 | G25: 14 | H25: 3267 | K25: 0 | L25: 1121
A26: 12 | B26: 3401 | C26: 14 | D26: 3407 | E26: 24 | F26: 3421 | G26: 14 | H26: 3432 | K26: 0 | L26: 1121
A27: 12 | B27: 3685 | C27: 14 | D27: 3696 | E27: 13 | F27: 3707 | G27: 14 | H27: 3733 | K27: 0 | L27: 1111 | N27: Total Target Seq
A28: 21 | B28: 3842 | C28: 21 | D28: 3855 | E28: 11 | F28: 3868 | G28: 12 | H28: 3874 | K28: 0 | L28: 2211 | N28: =COUNTIF(L7:L81,G3) -> 0 | P28: 13 | Q28: 12 | R28: 13 | S28: 12 | T28: 13 | U28: 12
A29: 12 | B29: 4039 | C29: 14 | D29: 4043 | E29: 13 | F29: 4051 | G29: 14 | H29: 4073 | K29: 0 | L29: 1111 | P29: % of reinforcement given in 6 equal intervals based on number of trials
A30: 21 | B30: 4205 | C30: 12 | D30: 4215 | E30: 13 | F30: 4219 | G30: 14 | H30: 4244 | K30: 0 | L30: 2111 | P30: %_1 | Q30: %_2 | R30: %_3 | S30: %_4 | T30: %_5 | U30: %_6
A31: 12 | B31: 4422 | C31: 14 | D31: 4429 | E31: 13 | F31: 4449 | G31: 14 | H31: 4469 | K31: 0 | L31: 1111 | O31: target sequence | P31: =$G$3 -> 2212 | Q31: =$G$3 -> 2212 | R31: =$G$3 -> 2212 | S31: =$G$3 -> 2212 | T31: =$G$3 -> 2212 | U31: =$G$3 -> 2212
A32: 12 | B32: 4648 | C32: 14 | D32: 4654 | E32: 13 | F32: 4658 | G32: 23 | H32: 4669 | K32: 0 | L32: 1112 | O32: total reinforcement | P32: =U20 -> 0 | Q32: =Z20 -> 0 | R32: =AE20 -> 0 | S32: =AJ20 -> 0 | T32: =AO20 -> 0 | U32: =AT20 -> 0
A33: 21 | B33: 4796 | C33: 12 | D33: 4808 | E33: 13 | F33: 4813 | G33: 14 | H33: 4820 | K33: 0 | L33: 2111 | O33: % target
A34: 12 | B34: 4971 | C34: 23 | D34: 4980 | E34: 13 | F34: 4992 | G34: 23 | H34: 5003 | K34: 0 | L34: 1212 | O34: CCRF
A35: 12 | B35: 5268 | C35: 23 | D35: 5281 | E35: 13 | F35: 5294 | G35: 14 | H35: 5319 | K35: 0 | L35: 1211 | O35: % CCRf
A36: 12 | B36: 5474 | C36: 14 | D36: 5479 | E36: 24 | F36: 5492 | G36: 14 | H36: 5503 | K36: 0 | L36: 1121 | O36: average response rate | P36: =H19/P28 -> 162.0769231 | Q36: =(H31-H19)/Q28 -> 196.8333333 | R36: =(H44-H31)/R28 -> 201.6153846 | S36: =(H56-H44)/S28 -> 264.5 | T36: =(H69-H56)/T28 -> 251.1538462 | U36: =(H81-H69)/U28 -> 678.1666667
A37: 21 | B37: 5623 | C37: 21 | D37: 5631 | E37: 22 | F37: 5644 | G37: 14 | H37: 5654 | K37: 0 | L37: 2221
A38: 21 | B38: 5782 | C38: 12 | D38: 5791 | E38: 13 | F38: 5799 | G38: 14 | H38: 5821 | K38: 0 | L38: 2111
A39: 21 | B39: 5964 | C39: 12 | D39: 5973 | E39: 24 | F39: 5982 | G39: 14 | H39: 5994 | K39: 0 | L39: 2121
A40: 21 | B40: 6141 | C40: 12 | D40: 6155 | E40: 13 | F40: 6178 | G40: 14 | H40: 6190 | K40: 0 | L40: 2111
A41: 21 | B41: 6438 | C41: 12 | D41: 6449 | E41: 13 | F41: 6471 | G41: 23 | H41: 6488 | K41: 0 | L41: 2112
A42: 21 | B42: 6632 | C42: 12 | D42: 6645 | E42: 13 | F42: 6665 | G42: 14 | H42: 6687 | K42: 0 | L42: 2111
A43: 12 | B43: 6856 | C43: 14 | D43: 6863 | E43: 13 | F43: 6871 | G43: 23 | H43: 6886 | K43: 0 | L43: 1112
A44: 12 | B44: 7035 | C44: 14 | D44: 7042 | E44: 13 | F44: 7063 | G44: 14 | H44: 7090 | K44: 0 | L44: 1111
A45: 21 | B45: 7214 | C45: 12 | D45: 7244 | E45: 24 | F45: 7256 | G45: 14 | H45: 7268 | K45: 0 | L45: 2121
A46: 21 | B46: 7393 | C46: 12 | D46: 7436 | E46: 13 | F46: 7444 | G46: 23 | H46: 7456 | K46: 0 | L46: 2112
A47: 12 | B47: 7620 | C47: 14 | D47: 7627 | E47: 13 | F47: 7648 | G47: 14 | H47: 7673 | K47: 0 | L47: 1111
A48: 12 | B48: 7834 | C48: 23 | D48: 7843 | E48: 13 | F48: 7876 | G48: 14 | H48: 7910 | K48: 0 | L48: 1211
A49: 21 | B49: 8379 | C49: 12 | D49: 8389 | E49: 24 | F49: 8398 | G49: 14 | H49: 8410 | K49: 0 | L49: 2121
A50: 12 | B50: 8550 | C50: 23 | D50: 8564 | E50: 13 | F50: 8577 | G50: 14 | H50: 8601 | K50: 0 | L50: 1211
A51: 21 | B51: 8979 | C51: 12 | D51: 8992 | E51: 13 | F51: 9019 | G51: 23 | H51: 9033 | K51: 0 | L51: 2112
A52: 12 | B52: 9274 | C52: 14 | D52: 9284 | E52: 13 | F52: 9321 | G52: 14 | H52: 9351 | K52: 0 | L52: 1111
A53: 12 | B53: 9550 | C53: 14 | D53: 9588 | E53: 13 | F53: 9614 | G53: 14 | H53: 9626 | K53: 0 | L53: 1111
A54: 12 | B54: 9857 | C54: 23 | D54: 9870 | E54: 13 | F54: 9882 | G54: 14 | H54: 9892 | K54: 0 | L54: 1211
A55: 12 | B55: 10051 | C55: 14 | D55: 10056 | E55: 13 | F55: 10063 | G55: 14 | H55: 10086 | K55: 0 | L55: 1111
A56: 12 | B56: 10227 | C56: 14 | D56: 10234 | E56: 24 | F56: 10252 | G56: 14 | H56: 10264 | K56: 0 | L56: 1121
A57: 12 | B57: 10375 | C57: 14 | D57: 10381 | E57: 24 | F57: 10391 | G57: 14 | H57: 10408 | K57: 0 | L57: 1121
A58: 12 | B58: 10552 | C58: 14 | D58: 10559 | E58: 24 | F58: 10568 | G58: 14 | H58: 10594 | K58: 0 | L58: 1121
A59: 21 | B59: 10719 | C59: 12 | D59: 10742 | E59: 13 | F59: 10752 | G59: 23 | H59: 10766 | K59: 0 | L59: 2112
A60: 12 | B60: 10929 | C60: 14 | D60: 10935 | E60: 13 | F60: 10962 | G60: 14 | H60: 10995 | K60: 0 | L60: 1111
A61: 12 | B61: 11182 | C61: 14 | D61: 11202 | E61: 13 | F61: 11222 | G61: 14 | H61: 11247 | K61: 0 | L61: 1111
A62: 21 | B62: 11411 | C62: 12 | D62: 11439 | E62: 13 | F62: 11445 | G62: 23 | H62: 11468 | K62: 0 | L62: 2112
A63: 12 | B63: 11759 | C63: 14 | D63: 11767 | E63: 13 | F63: 11791 | G63: 14 | H63: 11803 | K63: 0 | L63: 1111
A64: 12 | B64: 11962 | C64: 23 | D64: 11971 | E64: 13 | F64: 11984 | G64: 14 | H64: 12004 | K64: 0 | L64: 1211
A65: 21 | B65: 12342 | C65: 12 | D65: 12351 | E65: 13 | F65: 12372 | G65: 14 | H65: 12400 | K65: 0 | L65: 2111
A66: 12 | B66: 12693 | C66: 14 | D66: 12759 | E66: 13 | F66: 12764 | G66: 14 | H66: 12769 | K66: 0 | L66: 1111
A67: 12 | B67: 12951 | C67: 14 | D67: 12957 | E67: 13 | F67: 12976 | G67: 14 | H67: 12996 | K67: 0 | L67: 1111
A68: 12 | B68: 13253 | C68: 14 | D68: 13262 | E68: 13 | F68: 13285 | G68: 23 | H68: 13294 | K68: 0 | L68: 1112
A69: 12 | B69: 13488 | C69: 14 | D69: 13493 | E69: 13 | F69: 13502 | G69: 14 | H69: 13529 | K69: 0 | L69: 1111
A70: 12 | B70: 13739 | C70: 23 | D70: 13748 | E70: 13 | F70: 13760 | G70: 23 | H70: 13770 | K70: 0 | L70: 1212
A71: 12 | B71: 14169 | C71: 14 | D71: 14179 | E71: 13 | F71: 14205 | G71: 23 | H71: 14239 | K71: 0 | L71: 1112
A72: 12 | B72: 16457 | C72: 14 | D72: 16466 | E72: 24 | F72: 16484 | G72: 14 | H72: 16499 | K72: 0 | L72: 1121
A73: 12 | B73: 16789 | C73: 14 | D73: 16811 | E73: 13 | F73: 16845 | G73: 14 | H73: 16852 | K73: 0 | L73: 1111
A74: 12 | B74: 16996 | C74: 14 | D74: 17003 | E74: 13 | F74: 17012 | G74: 14 | H74: 17021 | K74: 0 | L74: 1111
A75: 12 | B75: 17393 | C75: 14 | D75: 17400 | E75: 13 | F75: 17409 | G75: 14 | H75: 17431 | K75: 0 | L75: 1111
A76: 12 | B76: 17565 | C76: 14 | D76: 17599 | E76: 13 | F76: 17608 | G76: 14 | H76: 17646 | K76: 0 | L76: 1111
A77: 12 | B77: 18521 | C77: 14 | D77: 18550 | E77: 13 | F77: 18594 | G77: 14 | H77: 18603 | K77: 0 | L77: 1111
A78: 12 | B78: 18762 | C78: 14 | D78: 18769 | E78: 13 | F78: 18777 | G78: 23 | H78: 18797 | K78: 0 | L78: 1112
A79: 12 | B79: 20480 | C79: 23 | D79: 20494 | E79: 13 | F79: 20508 | G79: 14 | H79: 20536 | K79: 0 | L79: 1211
A80: 12 | B80: 20731 | C80: 14 | D80: 20739 | E80: 13 | F80: 20775 | G80: 23 | H80: 20787 | K80: 0 | L80: 1112
A81: 12 | B81: 21591 | C81: 14 | D81: 21597 | E81: 13 | F81: 21605 | G81: 14 | H81: 21667 | K81: 0 | L81: 1111

Sheet !N104C40.095
A1: Report for:!N104C40.095
A2: Date: | B2: <date>
A3: Hen: | B3: <hen> | F3: Correct Sequence | G3: =Start!J2 -> 2212 | P3: Total Sequences in Data | Q3: =4994-COUNTBLANK(L7:L5000) -> 144 | V3: Total Sequences in Block Data | W3: =COUNTA(L7:L30) -> 24 | AA3: Total Sequences in Block Data | AB3: =COUNTA(L31:L54) -> 24 | AF3: Total Sequences in Block Data | AG3: =COUNTA(L55:L78) -> 24 | AK3: Total Sequences in Block Data | AL3: =COUNTA(L79:L102) -> 24 | AP3: Total Sequences in Block Data | AQ3: =COUNTA(L103:L126) -> 24 | AU3: Total Sequences in Block Data | AV3: =COUNTA(L127:L150) -> 24
P4: Total Sequences in Summary | Q4: =SUM(O7:O22) -> 144 | V4: Total Sequences in Block Summary | W4: =SUM(U7:U22) -> 24 | AA4: Total Sequences in Block Summary | AB4: =SUM(Z7:Z22) -> 24 | AF4: Total Sequences in Block Summary | AG4: =SUM(AE7:AE22) -> 24 | AK4: Total Sequences in Block Summary | AL4: =SUM(AJ7:AJ22) -> 24 | AP4: Total Sequences in Block Summary | AQ4: =SUM(AO7:AO22) -> 24 | AU4: Total Sequences in Block Summary | AV4: =SUM(AT7:AT22) -> 24
T5: Block 1 | Y5: Block 2 | AD5: Block 3 | AI5: Block 4 | AN5: Block 5 | AS5: Block 6
A6: Sequence Component 1 | B6: Time 1 | C6: Sequence Component 2 | D6: Time 2 | E6: Sequence Component 3 | F6: Time 3 | G6: Sequence Component 4 | H6: Time 4 | I6: Sequence Component 5 | J6: Time 5 | K6: Correct? 0=No 1=Yes | L6: Sequence | N6: Frequency | P6: Relative Frequency | Q6: Variability | T6: Frequency | V6: Relative Frequency | W6: Variability | Y6: Frequency | AA6: Relative Frequency | AB6: Variability | AD6: Frequency | AF6: Relative Frequency | AG6: Variability | AI6: Frequency | AK6: Relative Frequency | AL6: Variability | AN6: Frequency | AP6: Relative Frequency | AQ6: Variability | AS6: Frequency | AU6: Relative Frequency | AV6: Variability
A7: 12 | B7: 20 | C7: 23 | D7: 54 | E7: 13 | F7: 66 | G7: 23 | H7: 75 | K7: 0 | L7: 1212 | N7: 1111 | O7: =COUNTIF($L$7:$L$500,N7) -> 72 | P7: =O7/$Q$4 -> 0.5 | Q7: =IF(P7=0,0,(P7*((LOG(P7))/LOG(2)))) -> -0.5 | T7: =N7 -> 1111 | U7: =COUNTIF(L7:L30,T7) -> 11 | V7: =U7/(W4-U20) -> 0.4583333333 | W7: =IF(V7=0,0,(V7*((LOG(V7))/LOG(2)))) -> -0.515868321 | Y7: =N7 -> 1111 | Z7: =COUNTIF(L31:L54,Y7) -> 13 | AA7: =Z7/(AB4-Z20) -> 0.5416666667 | AB7: =IF(AA7=0,0,(AA7*((LOG(AA7))/LOG(2)))) -> -0.4791165072 | AD7: =N7 -> 1111 | AE7: =COUNTIF(L55:L78,AD7) -> 19 | AF7: =AE7/(AG4-AE20) -> 0.8260869565 | AG7: =IF(AF7=0,0,(AF7*((LOG(AF7))/LOG(2)))) -> -0.2276980178 | AI7: =N7 -> 1111 | AJ7: =COUNTIF(L79:L102,AI7) -> 12 | AK7: =AJ7/(AL4-AJ20) -> 0.5217391304 | AL7: =IF(AK7=0,0,(AK7*((LOG(AK7))/LOG(2)))) -> -0.4897040637 | AN7: =N7 -> 1111 | AO7: =COUNTIF(L103:L126,AN7) -> 11 | AP7: =AO7/(AQ4-AO20) -> 0.4782608696 | AQ7: =IF(AP7=0,0,(AP7*((LOG(AP7))/LOG(2)))) -> -0.5089319005 | AS7: =N7 -> 1111 | AT7: =COUNTIF(L127:L150,AS7) -> 6 | AU7: =AT7/(AV4-AT20) -> 0.2608695652 | AV7: =IF(AU7=0,0,(AU7*((LOG(AU7))/LOG(2)))) -> -0.505721597
A8: 21 | B8: 237 | C8: 12 | D8: 267 | E8: 13 | F8: 273 | G8: 23 | H8: 282 | K8: 0 | L8: 2112 | N8: 1112 | O8: =COUNTIF($L$7:$L$500,N8) -> 9 | P8: =O8/$Q$4 -> 0.0625 | Q8: =IF(P8=0,0,(P8*((LOG(P8))/LOG(2)))) -> -0.25 | T8: =N8 -> 1112 | U8: =COUNTIF(L7:L30,T8) -> 1 | V8: =U8/(W4-U20) -> 0.04166666667 | W8: =IF(V8=0,0,(V8*((LOG(V8))/LOG(2)))) -> -0.1910401042 | Y8: =N8 -> 1112 | Z8: =COUNTIF(L31:L54,Y8) -> 2 | AA8: =Z8/(AB4-Z20) -> 0.08333333333 | AB8: =IF(AA8=0,0,(AA8*((LOG(AA8))/LOG(2)))) -> -0.2987468751 | AD8: =N8 -> 1112 | AE8: =COUNTIF(L55:L78,AD8) -> 0 | AF8: =AE8/(AG4-AE20) -> 0 | AG8: =IF(AF8=0,0,(AF8*((LOG(AF8))/LOG(2)))) -> 0 | AI8: =N8 -> 1112 | AJ8: =COUNTIF(L79:L102,AI8) -> 2 | AK8: =AJ8/(AL4-AJ20) -> 0.08695652174 | AL8: =IF(AK8=0,0,(AK8*((LOG(AK8))/LOG(2)))) -> -0.3063966918 | AN8: =N8 -> 1112 | AO8: =COUNTIF(L103:L126,AN8) -> 2 | AP8: =AO8/(AQ4-AO20) -> 0.08695652174 | AQ8: =IF(AP8=0,0,(AP8*((LOG(AP8))/LOG(2)))) -> -0.3063966918 | AS8: =N8 -> 1112 | AT8: =COUNTIF(L127:L150,AS8) -> 2 | AU8: =AT8/(AV4-AT20) -> 0.08695652174 | AV8: =IF(AU8=0,0,(AU8*((LOG(AU8))/LOG(2)))) -> -0.3063966918
A9: 12 | B9: 411 | C9: 14 | D9: 417 | E9: 24 | F9: 429 | G9: 14 | H9: 440 | K9: 0 | L9: 1121 | N9: 1121 | O9: =COUNTIF($L$7:$L$500,N9) -> 9 | P9: =O9/$Q$4 -> 0.0625 | Q9: =IF(P9=0,0,(P9*((LOG(P9))/LOG(2)))) -> -0.25 | T9: =N9 -> 1121 | U9: =COUNTIF(L7:L30,T9) -> 3 | V9: =U9/(W4-U20) -> 0.125 | W9: =IF(V9=0,0,(V9*((LOG(V9))/LOG(2)))) -> -0.375 | Y9: =N9 -> 1121 | Z9: =COUNTIF(L31:L54,Y9) -> 1 | AA9: =Z9/(AB4-Z20) -> 0.04166666667 | AB9: =IF(AA9=0,0,(AA9*((LOG(AA9))/LOG(2)))) -> -0.1910401042 | AD9: =N9 -> 1121 | AE9: =COUNTIF(L55:L78,AD9) -> 0 | AF9: =AE9/(AG4-AE20) -> 0 | AG9: =IF(AF9=0,0,(AF9*((LOG(AF9))/LOG(2)))) -> 0 | AI9: =N9 -> 1121 | AJ9: =COUNTIF(L79:L102,AI9) -> 2 | AK9: =AJ9/(AL4-AJ20) -> 0.08695652174 | AL9: =IF(AK9=0,0,(AK9*((LOG(AK9))/LOG(2)))) -> -0.3063966918 | AN9: =N9 -> 1121 | AO9: =COUNTIF(L103:L126,AN9) -> 2 | AP9: =AO9/(AQ4-AO20) -> 0.08695652174 | AQ9: =IF(AP9=0,0,(AP9*((LOG(AP9))/LOG(2)))) -> -0.3063966918 | AS9: =N9 -> 1121 | AT9: =COUNTIF(L127:L150,AS9) -> 1 | AU9: =AT9/(AV4-AT20) -> 0.04347826087 | AV9: =IF(AU9=0,0,(AU9*((LOG(AU9))/LOG(2)))) -> -0.1966766068
A10: 21 | B10: 541 | C10: 12 | D10: 560 | E10: 13 | F10: 565 | G10: 14 | H10: 572 | K10: 0 | L10: 2111 | N10: 1122 | O10: =COUNTIF($L$7:$L$500,N10) -> 1 | P10: =O10/$Q$4 -> 0.006944444444 | Q10: =IF(P10=0,0,(P10*((LOG(P10))/LOG(2)))) -> -0.04979114584 | T10: =N10 -> 1122 | U10: =COUNTIF(L7:L30,T10) -> 0 | V10: =U10/(W4-U20) -> 0 | W10: =IF(V10=0,0,(V10*((LOG(V10))/LOG(2)))) -> 0 | Y10: =N10 -> 1122 | Z10: =COUNTIF(L31:L54,Y10) -> 0 | AA10: =Z10/(AB4-Z20) -> 0 | AB10: =IF(AA10=0,0,(AA10*((LOG(AA10))/LOG(2)))) -> 0 | AD10: =N10 -> 1122 | AE10: =COUNTIF(L55:L78,AD10) -> 0 | AF10: =AE10/(AG4-AE20) -> 0 | AG10: =IF(AF10=0,0,(AF10*((LOG(AF10))/LOG(2)))) -> 0 | AI10: =N10 -> 1122 | AJ10: =COUNTIF(L79:L102,AI10) -> 1 | AK10: =AJ10/(AL4-AJ20) -> 0.04347826087 | AL10: =IF(AK10=0,0,(AK10*((LOG(AK10))/LOG(2)))) -> -0.1966766068 | AN10: =N10 -> 1122 | AO10: =COUNTIF(L103:L126,AN10) -> 0 | AP10: =AO10/(AQ4-AO20) -> 0 | AQ10: =IF(AP10=0,0,(AP10*((LOG(AP10))/LOG(2)))) -> 0 | AS10: =N10 -> 1122 | AT10: =COUNTIF(L127:L150,AS10) -> 0 | AU10: =AT10/(AV4-AT20) -> 0 | AV10: =IF(AU10=0,0,(AU10*((LOG(AU10))/LOG(2)))) -> 0
A11: 12 | B11: 733 | C11: 14 | D11: 741 | E11: 24 | F11: 756 | G11: 14 | H11: 769 | K11: 0 | L11: 1121 | N11: 1211 | O11: =COUNTIF($L$7:$L$500,N11) -> 1 | P11: =O11/$Q$4 -> 0.006944444444 | Q11: =IF(P11=0,0,(P11*((LOG(P11))/LOG(2)))) -> -0.04979114584 | T11: =N11 -> 1211 | U11: =COUNTIF(L7:L30,T11) -> 0 | V11: =U11/(W4-U20) -> 0 | W11: =IF(V11=0,0,(V11*((LOG(V11))/LOG(2)))) -> 0 | Y11: =N11 -> 1211 | Z11: =COUNTIF(L31:L54,Y11) -> 0 | AA11: =Z11/(AB4-Z20) -> 0 | AB11: =IF(AA11=0,0,(AA11*((LOG(AA11))/LOG(2)))) -> 0 | AD11: =N11 -> 1211 | AE11: =COUNTIF(L55:L78,AD11) -> 0 | AF11: =AE11/(AG4-AE20) -> 0 | AG11: =IF(AF11=0,0,(AF11*((LOG(AF11))/LOG(2)))) -> 0 | AI11: =N11 -> 1211 | AJ11: =COUNTIF(L79:L102,AI11) -> 0 | AK11: =AJ11/(AL4-AJ20) -> 0 | AL11: =IF(AK11=0,0,(AK11*((LOG(AK11))/LOG(2)))) -> 0 | AN11: =N11 -> 1211 | AO11: =COUNTIF(L103:L126,AN11) -> 0 | AP11: =AO11/(AQ4-AO20) -> 0 | AQ11: =IF(AP11=0,0,(AP11*((LOG(AP11))/LOG(2)))) -> 0 | AS11: =N11 -> 1211 | AT11: =COUNTIF(L127:L150,AS11) -> 1 | AU11: =AT11/(AV4-AT20) -> 0.04347826087 | AV11: =IF(AU11=0,0,(AU11*((LOG(AU11))/LOG(2)))) -> -0.1966766068
A12: 12 | B12: 912 | C12: 14 | D12: 917 | E12: 13 | F12: 925 | G12: 14 | H12: 938 | K12: 0 | L12: 1111 | N12: 1212 | O12: =COUNTIF($L$7:$L$500,N12) -> 1 | P12: =O12/$Q$4 -> 0.006944444444 | Q12: =IF(P12=0,0,(P12*((LOG(P12))/LOG(2)))) -> -0.04979114584 | T12: =N12 -> 1212 | U12: =COUNTIF(L7:L30,T12) -> 1 | V12: =U12/(W4-U20) -> 0.04166666667 | W12: =IF(V12=0,0,(V12*((LOG(V12))/LOG(2)))) -> -0.1910401042 | Y12: =N12 -> 1212 | Z12: =COUNTIF(L31:L54,Y12) -> 0 | AA12: =Z12/(AB4-Z20) -> 0 | AB12: =IF(AA12=0,0,(AA12*((LOG(AA12))/LOG(2)))) -> 0 | AD12: =N12 -> 1212 | AE12: =COUNTIF(L55:L78,AD12) -> 0 | AF12: =AE12/(AG4-AE20) -> 0 | AG12: =IF(AF12=0,0,(AF12*((LOG(AF12))/LOG(2)))) -> 0 | AI12: =N12 -> 1212 | AJ12: =COUNTIF(L79:L102,AI12) -> 0 | AK12: =AJ12/(AL4-AJ20) -> 0 | AL12: =IF(AK12=0,0,(AK12*((LOG(AK12))/LOG(2)))) -> 0 | AN12: =N12 -> 1212 | AO12: =COUNTIF(L103:L126,AN12) -> 0 | AP12: =AO12/(AQ4-AO20) -> 0 | AQ12: =IF(AP12=0,0,(AP12*((LOG(AP12))/LOG(2)))) -> 0 | AS12: =N12 -> 1212 | AT12: =COUNTIF(L127:L150,AS12) -> 0 | AU12: =AT12/(AV4-AT20) -> 0 | AV12: =IF(AU12=0,0,(AU12*((LOG(AU12))/LOG(2)))) -> 0
A13: 12 | B13: 1084 | C13: 14 | D13: 1092 | E13: 13 | F13: 1102 | G13: 14 | H13: 1115 | K13: 0 | L13: 1111 | N13: 1221 | O13: =COUNTIF($L$7:$L$500,N13) -> 1 | P13: =O13/$Q$4 -> 0.006944444444 | Q13: =IF(P13=0,0,(P13*((LOG(P13))/LOG(2)))) -> -0.04979114584 | T13: =N13 -> 1221 | U13: =COUNTIF(L7:L30,T13) -> 1 | V13: =U13/(W4-U20) -> 0.04166666667 | W13: =IF(V13=0,0,(V13*((LOG(V13))/LOG(2)))) -> -0.1910401042 | Y13: =N13 -> 1221 | Z13: =COUNTIF(L31:L54,Y13) -> 0 | AA13: =Z13/(AB4-Z20) -> 0 | AB13: =IF(AA13=0,0,(AA13*((LOG(AA13))/LOG(2)))) -> 0 | AD13: =N13 -> 1221 | AE13: =COUNTIF(L55:L78,AD13) -> 0 | AF13: =AE13/(AG4-AE20) -> 0 | AG13: =IF(AF13=0,0,(AF13*((LOG(AF13))/LOG(2)))) -> 0 | AI13: =N13 -> 1221 | AJ13: =COUNTIF(L79:L102,AI13) -> 0 | AK13: =AJ13/(AL4-AJ20) -> 0 | AL13: =IF(AK13=0,0,(AK13*((LOG(AK13))/LOG(2)))) -> 0 | AN13: =N13 -> 1221 | AO13: =COUNTIF(L103:L126,AN13) -> 0 | AP13: =AO13/(AQ4-AO20) -> 0 | AQ13: =IF(AP13=0,0,(AP13*((LOG(AP13))/LOG(2)))) -> 0 | AS13: =N13 -> 1221 | AT13: =COUNTIF(L127:L150,AS13) -> 0 | AU13: =AT13/(AV4-AT20) -> 0 | AV13: =IF(AU13=0,0,(AU13*((LOG(AU13))/LOG(2)))) -> 0
A14: 12 | B14: 1258 | C14: 14 | D14: 1264 | E14: 13 | F14: 1273 | G14: 14 | H14: 1306 | K14: 0 | L14: 1111 | N14: 1222 | O14: =COUNTIF($L$7:$L$500,N14) -> 0 | P14: =O14/$Q$4 -> 0 | Q14: =IF(P14=0,0,(P14*((LOG(P14))/LOG(2)))) -> 0 | T14: =N14 -> 1222 | U14: =COUNTIF(L7:L30,T14) -> 0 | V14: =U14/(W4-U20) -> 0 | W14: =IF(V14=0,0,(V14*((LOG(V14))/LOG(2)))) -> 0 | Y14: =N14 -> 1222 | Z14: =COUNTIF(L31:L54,Y14) -> 0 | AA14: =Z14/(AB4-Z20) -> 0 | AB14: =IF(AA14=0,0,(AA14*((LOG(AA14))/LOG(2)))) -> 0 | AD14: =N14 -> 1222 | AE14: =COUNTIF(L55:L78,AD14) -> 0 | AF14: =AE14/(AG4-AE20) -> 0 | AG14: =IF(AF14=0,0,(AF14*((LOG(AF14))/LOG(2)))) -> 0 | AI14: =N14 -> 1222 | AJ14: =COUNTIF(L79:L102,AI14) -> 0 | AK14: =AJ14/(AL4-AJ20) -> 0 | AL14: =IF(AK14=0,0,(AK14*((LOG(AK14))/LOG(2)))) -> 0 | AN14: =N14 -> 1222 | AO14: =COUNTIF(L103:L126,AN14) -> 0 | AP14: =AO14/(AQ4-AO20) -> 0 | AQ14: =IF(AP14=0,0,(AP14*((LOG(AP14))/LOG(2)))) -> 0 | AS14: =N14 -> 1222 | AT14: =COUNTIF(L127:L150,AS14) -> 0 | AU14: =AT14/(AV4-AT20) -> 0 | AV14: =IF(AU14=0,0,(AU14*((LOG(AU14))/LOG(2)))) -> 0
A15: 12 | B15: 1441 | C15: 14 | D15: 1449 | E15: 13 | F15: 1457 | G15: 14 | H15: 1468 | K15: 0 | L15: 1111 | N15: 2111 | O15: =COUNTIF($L$7:$L$500,N15) -> 26 | P15: =O15/$Q$4 -> 0.1805555556 | Q15: =IF(P15=0,0,(P15*((LOG(P15))/LOG(2)))) -> -0.4458792873 | T15: =N15 -> 2111 | U15: =COUNTIF(L7:L30,T15) -> 4 | V15: =U15/(W4-U20) -> 0.1666666667 | W15: =IF(V15=0,0,(V15*((LOG(V15))/LOG(2)))) -> -0.4308270835 | Y15: =N15 -> 2111 | Z15: =COUNTIF(L31:L54,Y15) -> 7 | AA15: =Z15/(AB4-Z20) -> 0.2916666667 | AB15: =IF(AA15=0,0,(AA15*((LOG(AA15))/LOG(2)))) -> -0.5184688771 | AD15: =N15 -> 2111 | AE15: =COUNTIF(L55:L78,AD15) -> 4 | AF15: =AE15/(AG4-AE20) -> 0.1739130435 | AG15: =IF(AF15=0,0,(AF15*((LOG(AF15))/LOG(2)))) -> -0.4388803402 | AI15: =N15 -> 2111 | AJ15: =COUNTIF(L79:L102,AI15) -> 3 | AK15: =AJ15/(AL4-AJ20) -> 0.1304347826 | AL15: =IF(AK15=0,0,(AK15*((LOG(AK15))/LOG(2)))) -> -0.3832955811 | AN15: =N15 -> 2111 | AO15: =COUNTIF(L103:L126,AN15) -> 4 | AP15: =AO15/(AQ4-AO20) -> 0.1739130435 | AQ15: =IF(AP15=0,0,(AP15*((LOG(AP15))/LOG(2)))) -> -0.4388803402 | AS15: =N15 -> 2111 | AT15: =COUNTIF(L127:L150,AS15) -> 4 | AU15: =AT15/(AV4-AT20) -> 0.1739130435 | AV15: =IF(AU15=0,0,(AU15*((LOG(AU15))/LOG(2)))) -> -0.4388803402
A16: 12 | B16: 1696 | C16: 14 | D16: 1719 | E16: 13 | F16: 1730 | G16: 14 | H16: 1742 | K16: 0 | L16: 1111 | N16: 2112 | O16: =COUNTIF($L$7:$L$500,N16) -> 5 | P16: =O16/$Q$4 -> 0.03472222222 | Q16: =IF(P16=0,0,(P16*((LOG(P16))/LOG(2)))) -> -0.1683332259 | T16: =N16 -> 2112 | U16: =COUNTIF(L7:L30,T16) -> 1 | V16: =U16/(W4-U20) -> 0.04166666667 | W16: =IF(V16=0,0,(V16*((LOG(V16))/LOG(2)))) -> -0.1910401042 | Y16: =N16 -> 2112 | Z16: =COUNTIF(L31:L54,Y16) -> 1 | AA16: =Z16/(AB4-Z20) -> 0.04166666667 | AB16: =IF(AA16=0,0,(AA16*((LOG(AA16))/LOG(2)))) -> -0.1910401042 | AD16: =N16 -> 2112 | AE16: =COUNTIF(L55:L78,AD16) -> 0 | AF16: =AE16/(AG4-AE20) -> 0 | AG16: =IF(AF16=0,0,(AF16*((LOG(AF16))/LOG(2)))) -> 0 | AI16: =N16 -> 2112 | AJ16: =COUNTIF(L79:L102,AI16) -> 0 | AK16: =AJ16/(AL4-AJ20) -> 0 | AL16: =IF(AK16=0,0,(AK16*((LOG(AK16))/LOG(2)))) -> 0 | AN16: =N16 -> 2112 | AO16: =COUNTIF(L103:L126,AN16) -> 1 | AP16: =AO16/(AQ4-AO20) -> 0.04347826087 | AQ16: =IF(AP16=0,0,(AP16*((LOG(AP16))/LOG(2)))) -> -0.1966766068 | AS16: =N16 -> 2112 | AT16: =COUNTIF(L127:L150,AS16) -> 2 | AU16: =AT16/(AV4-AT20) -> 0.08695652174 | AV16: =IF(AU16=0,0,(AU16*((LOG(AU16))/LOG(2)))) -> -0.3063966918
A17: 12 | B17: 1994 | C17: 14 | D17: 2000 | E17: 13 | F17: 2010 | G17: 14 | H17: 2018 | K17: 0 | L17: 1111 | N17: 2121 | O17: =COUNTIF($L$7:$L$500,N17) -> 2 | P17: =O17/$Q$4 -> 0.01388888889 | Q17: =IF(P17=0,0,(P17*((LOG(P17))/LOG(2)))) -> -0.0856934028 | T17: =N17 -> 2121 | U17: =COUNTIF(L7:L30,T17) -> 1 | V17: =U17/(W4-U20) -> 0.04166666667 | W17: =IF(V17=0,0,(V17*((LOG(V17))/LOG(2)))) -> -0.1910401042 | Y17: =N17 -> 2121 | Z17: =COUNTIF(L31:L54,Y17) -> 0 | AA17: =Z17/(AB4-Z20) -> 0 | AB17: =IF(AA17=0,0,(AA17*((LOG(AA17))/LOG(2)))) -> 0 | AD17: =N17 -> 2121 | AE17: =COUNTIF(L55:L78,AD17) -> 0 | AF17: =AE17/(AG4-AE20) -> 0 | AG17: =IF(AF17=0,0,(AF17*((LOG(AF17))/LOG(2)))) -> 0 | AI17: =N17 -> 2121 | AJ17: =COUNTIF(L79:L102,AI17) -> 0 | AK17: =AJ17/(AL4-AJ20) -> 0 | AL17: =IF(AK17=0,0,(AK17*((LOG(AK17))/LOG(2)))) -> 0 | AN17: =N17 -> 2121 | AO17: =COUNTIF(L103:L126,AN17) -> 0 | AP17: =AO17/(AQ4-AO20) -> 0 | AQ17: =IF(AP17=0,0,(AP17*((LOG(AP17))/LOG(2)))) -> 0 | AS17: =N17 -> 2121 | AT17: =COUNTIF(L127:L150,AS17) -> 1 | AU17: =AT17/(AV4-AT20) -> 0.04347826087 | AV17: =IF(AU17=0,0,(AU17*((LOG(AU17))/LOG(2)))) -> -0.1966766068
A18: 21 | B18: 2249 | C18: 12 | D18: 2274 | E18: 13 | F18: 2289 | G18: 14 | H18: 2302 | K18: 0 | L18: 2111 | N18: 2122 | O18: =COUNTIF($L$7:$L$500,N18) -> 0 | P18: =O18/$Q$4 -> 0 | Q18: =IF(P18=0,0,(P18*((LOG(P18))/LOG(2)))) -> 0 | T18: =N18 -> 2122 | U18: =COUNTIF(L7:L30,T18) -> 0 | V18: =U18/(W4-U20) -> 0 | W18: =IF(V18=0,0,(V18*((LOG(V18))/LOG(2)))) -> 0 | Y18: =N18 -> 2122 | Z18: =COUNTIF(L31:L54,Y18) -> 0 | AA18: =Z18/(AB4-Z20) -> 0 | AB18: =IF(AA18=0,0,(AA18*((LOG(AA18))/LOG(2)))) -> 0 | AD18: =N18 -> 2122 | AE18: =COUNTIF(L55:L78,AD18) -> 0 | AF18: =AE18/(AG4-AE20) -> 0 | AG18: =IF(AF18=0,0,(AF18*((LOG(AF18))/LOG(2)))) -> 0 | AI18: =N18 -> 2122 | AJ18: =COUNTIF(L79:L102,AI18) -> 0 | AK18: =AJ18/(AL4-AJ20) -> 0 | AL18: =IF(AK18=0,0,(AK18*((LOG(AK18))/LOG(2)))) -> 0 | AN18: =N18 -> 2122 | AO18: =COUNTIF(L103:L126,AN18) -> 0 | AP18: =AO18/(AQ4-AO20) -> 0 | AQ18: =IF(AP18=0,0,(AP18*((LOG(AP18))/LOG(2)))) -> 0 | AS18: =N18 -> 2122 | AT18: =COUNTIF(L127:L150,AS18) -> 0 | AU18: =AT18/(AV4-AT20) -> 0 | AV18: =IF(AU18=0,0,(AU18*((LOG(AU18))/LOG(2)))) -> 0
A19: 12 | B19: 2527 | C19: 23 | D19: 2538 | E19: 24 | F19: 2551 | G19: 14 | H19: 2564 | K19: 0 | L19: 1221 | N19: 2211 | O19: =COUNTIF($L$7:$L$500,N19) -> 10 | P19: =O19/$Q$4 -> 0.06944444444 | Q19: =IF(P19=0,0,(P19*((LOG(P19))/LOG(2)))) -> -0.2672220074 | T19: =N19 -> 2211 | U19: =COUNTIF(L7:L30,T19) -> 1 | V19: =U19/(W4-U20) -> 0.04166666667 | W19: =IF(V19=0,0,(V19*((LOG(V19))/LOG(2)))) -> -0.1910401042 | Y19: =N19 -> 2211 | Z19: =COUNTIF(L31:L54,Y19) -> 0 | AA19: =Z19/(AB4-Z20) -> 0 | AB19: =IF(AA19=0,0,(AA19*((LOG(AA19))/LOG(2)))) -> 0 | AD19: =N19 -> 2211 | AE19: =COUNTIF(L55:L78,AD19) -> 0 | AF19: =AE19/(AG4-AE20) -> 0 | AG19: =IF(AF19=0,0,(AF19*((LOG(AF19))/LOG(2)))) -> 0 | AI19: =N19 -> 2211 | AJ19: =COUNTIF(L79:L102,AI19) -> 3 | AK19: =AJ19/(AL4-AJ20) -> 0.1304347826 | AL19: =IF(AK19=0,0,(AK19*((LOG(AK19))/LOG(2)))) -> -0.3832955811 | AN19: =N19 -> 2211 | AO19: =COUNTIF(L103:L126,AN19) -> 2 | AP19: =AO19/(AQ4-AO20) -> 0.08695652174 | AQ19: =IF(AP19=0,0,(AP19*((LOG(AP19))/LOG(2)))) -> -0.3063966918 | AS19: =N19 -> 2211 | AT19: =COUNTIF(L127:L150,AS19) -> 4 | AU19: =AT19/(AV4-AT20) -> 0.1739130435 | AV19: =IF(AU19=0,0,(AU19*((LOG(AU19))/LOG(2)))) -> -0.4388803402
A20: 21 | B20: 2700 | C20: 21 | D20: 2714 | E20: 11 | F20: 2729 | G20: 12 | H20: 2737 | K20: 0 | L20: 2211 | N20: 2212 | O20: =COUNTIF($L$7:$L$500,N20) -> 4 | P20: =O20/$Q$4 -> 0.02777777778 | Q20: =IF(P20=0,0,(P20*((LOG(P20))/LOG(2)))) -> -0.1436090278 | T20: =N20 -> 2212 | U20: =COUNTIF(L7:L30,T20) -> 0 | Y20: =N20 -> 2212 | Z20: =COUNTIF(L31:L54,Y20) -> 0 | AD20: =N20 -> 2212 | AE20: =COUNTIF(L55:L78,AD20) -> 1 | AI20: =N20 -> 2212 | AJ20: =COUNTIF(L79:L102,AI20) -> 1 | AN20: =N20 -> 2212 | AO20: =COUNTIF(L103:L126,AN20) -> 1 | AS20: =N20 -> 2212 | AT20: =COUNTIF(L127:L150,AS20) -> 1
A21: 12 | B21: 2875 | C21: 14 | D21: 2895 | E21: 13 | F21: 2903 | G21: 14 | H21: 2936 | K21: 0 | L21: 1111 | N21: 2221 | O21: =COUNTIF($L$7:$L$500,N21) -> 3 | P21: =O21/$Q$4 -> 0.02083333333 | Q21: =IF(P21=0,0,(P21*((LOG(P21))/LOG(2)))) -> -0.1163533854 | T21: =N21 -> 2221 | U21: =COUNTIF(L7:L30,T21) -> 0 | V21: =U21/(W4-U20) -> 0 | W21: =IF(V21=0,0,(V21*((LOG(V21))/LOG(2)))) -> 0 | Y21: =N21 -> 2221 | Z21: =COUNTIF(L31:L54,Y21) -> 0 | AA21: =Z21/(AB4-Z20) -> 0 | AB21: =IF(AA21=0,0,(AA21*((LOG(AA21))/LOG(2)))) -> 0 | AD21: =N21 -> 2221 | AE21: =COUNTIF(L55:L78,AD21) -> 0 | AF21: =AE21/(AG4-AE20) -> 0 | AG21: =IF(AF21=0,0,(AF21*((LOG(AF21))/LOG(2)))) -> 0 | AI21: =N21 -> 2221 | AJ21: =COUNTIF(L79:L102,AI21) -> 0 | AK21: =AJ21/(AL4-AJ20) -> 0 | AL21: =IF(AK21=0,0,(AK21*((LOG(AK21))/LOG(2)))) -> 0 | AN21: =N21 -> 2221 | AO21: =COUNTIF(L103:L126,AN21) -> 1 | AP21: =AO21/(AQ4-AO20) -> 0.04347826087 | AQ21: =IF(AP21=0,0,(AP21*((LOG(AP21))/LOG(2)))) -> -0.1966766068 | AS21: =N21 -> 2221 | AT21: =COUNTIF(L127:L150,AS21) -> 2 | AU21: =AT21/(AV4-AT20) -> 0.08695652174 | AV21: =IF(AU21=0,0,(AU21*((LOG(AU21))/LOG(2)))) -> -0.3063966918
A22: 12 | B22: 3059 | C22: 14 | D22: 3064 | E22: 13 | F22: 3069 | G22: 14 | H22: 3076 | K22: 0 | L22: 1111 | N22: 2222 | O22: =COUNTIF($L$7:$L$500,N22) -> 0 | P22: =O22/$Q$4 -> 0 | Q22: =IF(P22=0,0,(P22*((LOG(P22))/LOG(2)))) -> 0 | T22: =N22 -> 2222 | U22: =COUNTIF(L7:L30,T22) -> 0 | V22: =U22/(W4-U20) -> 0 | W22: =IF(V22=0,0,(V22*((LOG(V22))/LOG(2)))) -> 0 | Y22: =N22 -> 2222 | Z22: =COUNTIF(L31:L54,Y22) -> 0 | AA22: =Z22/(AB4-Z20) -> 0 | AB22: =IF(AA22=0,0,(AA22*((LOG(AA22))/LOG(2)))) -> 0 | AD22: =N22 -> 2222 | AE22: =COUNTIF(L55:L78,AD22) -> 0 | AF22: =AE22/(AG4-AE20) -> 0 | AG22: =IF(AF22=0,0,(AF22*((LOG(AF22))/LOG(2)))) -> 0 | AI22: =N22 -> 2222 | AJ22: =COUNTIF(L79:L102,AI22) -> 0 | AK22: =AJ22/(AL4-AJ20) -> 0 | AL22: =IF(AK22=0,0,(AK22*((LOG(AK22))/LOG(2)))) -> 0 | AN22: =N22 -> 2222 | AO22: =COUNTIF(L103:L126,AN22) -> 0 | AP22: =AO22/(AQ4-AO20) -> 0 | AQ22: =IF(AP22=0,0,(AP22*((LOG(AP22))/LOG(2)))) -> 0 | AS22: =N22 -> 2222 | AT22: =COUNTIF(L127:L150,AS22) -> 0 | AU22: =AT22/(AV4-AT20) -> 0 | AV22: =IF(AU22=0,0,(AU22*((LOG(AU22))/LOG(2)))) -> 0
A23: 21 | B23: 3246 | C23: 12 | D23: 3255 | E23: 13 | F23: 3263 | G23: 14 | H23: 3271 | K23: 0 | L23: 2111 | P23: =SUM(P7:P22) -> 1 | Q23: =-SUM(Q7:Q22) -> 2.42625492 | V23: =SUM(V7:V22) -> 1 | W23: =-SUM(W7:W22) -> 2.46793603 | AA23: =SUM(AA7:AA22) -> 1 | AB23: =-SUM(AB7:AB22) -> 1.678412468 | AF23: =SUM(AF7:AF22) -> 1 | AG23: =-SUM(AG7:AG22) -> 0.666578358 | AK23: =SUM(AK7:AK22) -> 1 | AL23: =-SUM(AL7:AL22) -> 2.065765216 | AP23: =SUM(AP7:AP22) -> 1 | AQ23: =-SUM(AQ7:AQ22) -> 2.26035553 | AU23: =SUM(AU7:AU22) -> 1 | AV23: =-SUM(AV7:AV22) -> 2.892702173
A24: 12 | B24: 3408 | C24: 14 | D24: 3415 | E24: 13 | F24: 3422 | G24: 23 | H24: 3431 | K24: 0 | L24: 1112 | P24: U= | Q24: =Q23/(LOG(Q4)/LOG(2)) -> 0.3383933471 | V24: U1= | W24: =W23/(LOG(W4)/LOG(2)) -> 0.5382674404 | AA24: U2= | AB24: =AB23/(LOG(AB4)/LOG(2)) -> 0.3660689629 | AF24: U3= | AG24: =AG23/(LOG(AG4)/LOG(2)) -> 0.1453836008 | AK24: U4= | AL24: =AL23/(LOG(AL4)/LOG(2)) -> 0.4505522599 | AP24: U5= | AQ24: =AQ23/(LOG(AQ4)/LOG(2)) -> 0.4929932425 | AU24: U6= | AV24: =AV23/(LOG(AV4)/LOG(2)) -> 0.6309107594
A25: 12 | B25: 3547 | C25: 14 | D25: 3561 | E25: 13 | F25: 3581 | G25: 14 | H25: 3589 | K25: 0 | L25: 1111
A26: 21 | B26: 3696 | C26: 12 | D26: 3704 | E26: 13 | F26: 3709 | G26: 14 | H26: 3716 | K26: 0 | L26: 2111
A27: 12 | B27: 3868 | C27: 14 | D27: 3876 | E27: 24 | F27: 3884 | G27: 14 | H27: 3902 | K27: 0 | L27: 1121 | N27: Total Target Seq
A28: 21 | B28: 4021 | C28: 12 | D28: 4056 | E28: 24 | F28: 4070 | G28: 14 | H28: 4083 | K28: 0 | L28: 2121 | N28: =COUNTIF(L7:L150,G3) -> 4 | P28: 24 | Q28: 24 | R28: 24 | S28: 24 | T28: 24 | U28: 24
A29: 12 | B29: 4221 | C29: 14 | D29: 4228 | E29: 13 | F29: 4235 | G29: 14 | H29: 4255 | K29: 0 | L29: 1111 | P29: % of reinforcement given in 6 equal intervals based on number of trials
A30: 12 | B30: 4382 | C30: 14 | D30: 4387 | E30: 13 | F30: 4392 | G30: 14 | H30: 4400 | K30: 0 | L30: 1111 | P30: %_1 | Q30: %_2 | R30: %_3 | S30: %_4 | T30: %_5 | U30: %_6
A31: 21 | B31: 4534 | C31: 12 | D31: 4644 | E31: 13 | F31: 4665 | G31: 14 | H31: 4693 | K31: 0 | L31: 2111 | O31: target sequence | P31: =$G$3 -> 2212 | Q31: =$G$3 -> 2212 | R31: =$G$3 -> 2212 | S31: =$G$3 -> 2212 | T31: =$G$3 -> 2212 | U31: =$G$3 -> 2212
A32: 12 | B32: 4842 | C32: 14 | D32: 4862 | E32: 13 | F32: 4883 | G32: 14 | H32: 4904 | K32: 0 | L32: 1111 | O32: total reinforcement | P32: =U20 -> 0 | Q32: =Z20 -> 0 | R32: =AE20 -> 1 | S32: =AJ20 -> 1 | T32: =AO20 -> 1 | U32: =AT20 -> 1
A33: 21 | B33: 5033 | C33: 12 | D33: 5046 | E33: 13 | F33: 5070 | G33: 14 | H33: 5094 | K33: 0 | L33: 2111 | O33: % target
A34: 12 | B34: 5211 | C34: 14 | D34: 5219 | E34: 24 | F34: 5228 | G34: 14 | H34: 5241 | K34: 0 | L34: 1121 | O34: CCRF
A35: 12 | B35: 5350 | C35: 14 | D35: 5357 | E35: 13 | F35: 5361 | G35: 14 | H35: 5368 | K35: 0 | L35: 1111 | O35: % CCRf
A36: 12 | B36: 5500 | C36: 14 | D36: 5508 | E36: 13 | F36: 5530 | G36: 14 | H36: 5541 | K36: 0 | L36: 1111 | O36: average response rate | P36: =H30/P28 -> 183.3333333 | Q36: =(H54-H30)/Q28 -> 171.5 | R36: =(H78-H54)/R28 -> 155.2083333 | S36: =(H102-H78)/S28 -> 137.7916667 | T36: =(H126-H102)/T28 -> 178.6666667 | U36: =(H150-H126)/U28 -> 172.4166667
A37: 21 | B37: 5696 | C37: 12 | D37: 5704 | E37: 13 | F37: 5710 | G37: 14 | H37: 5737 | K37: 0 | L37: 2111
A38: 21 | B38: 5840 | C38: 12 | D38: 5849 | E38: 13 | F38: 5855 | G38: 14 | H38: 5862 | K38: 0 | L38: 2111
A39: 21 | B39: 5971 | C39: 12 | D39: 5979 | E39: 13 | F39: 5984 | G39: 14 | H39: 5992 | K39: 0 | L39: 2111
A40: 12 | B40: 6109 | C40: 14 | D40: 6115 | E40: 13 | F40: 6122 | G40: 14 | H40: 6137 | K40: 0 | L40: 1111
A41: 12 | B41: 6250 | C41: 14 | D41: 6255 | E41: 13 | F41: 6262 | G41: 14 | H41: 6282 | K41: 0 | L41: 1111
A42: 12 | B42: 6616 | C42: 14 | D42: 6622 | E42: 13 | F42: 6629 | G42: 14 | H42: 6637 | K42: 0 | L42: 1111
A43: 12 | B43: 6755 | C43: 14 | D43: 6760 | E43: 13 | F43: 6767 | G43: 14 | H43: 6782 | K43: 0 | L43: 1111
A44: 12 | B44: 6913 | C44: 14 | D44: 6920 | E44: 13 | F44: 6927 | G44: 23 | H44: 6948 | K44: 0 | L44: 1112
A45: 12 | B45: 7075 | C45: 14 | D45: 7079 | E45: 13 | F45: 7084 | G45: 14 | H45: 7091 | K45: 0 | L45: 1111
A46: 12 | B46: 7202 | C46: 14 | D46: 7207 | E46: 13 | F46: 7214 | G46: 14 | H46: 7230 | K46: 0 | L46: 1111
A47: 12 | B47: 7384 | C47: 14 | D47: 7390 | E47: 13 | F47: 7402 | G47: 14 | H47: 7411 | K47: 0 | L47: 1111
A48: 12 | B48: 7534 | C48: 14 | D48: 7539 | E48: 13 | F48: 7546 | G48: 14 | H48: 7555 | K48: 0 | L48: 1111
A49: 21 | B49: 7773 | C49: 12 | D49: 7793 | E49: 13 | F49: 7829 | G49: 23 | H49: 7843 | K49: 0 | L49: 2112
A50: 12 | B50: 7964 | C50: 14 | D50: 7971 | E50: 13 | F50: 7977 | G50: 23 | H50: 7986 | K50: 0 | L50: 1112
A51: 12 | B51: 8103 | C51: 14 | D51: 8107 | E51: 13 | F51: 8115 | G51: 14 | H51: 8126 | K51: 0 | L51: 1111
A52: 21 | B52: 8234 | C52: 12 | D52: 8243 | E52: 13 | F52: 8250 | G52: 14 | H52: 8259 | K52: 0 | L52: 2111
A53: 12 | B53: 8374 | C53: 14 | D53: 8378 | E53: 13 | F53: 8385 | G53: 14 | H53: 8393 | K53: 0 | L53: 1111
A54: 21 | B54: 8496 | C54: 12 | D54: 8505 | E54: 13 | F54: 8509 | G54: 14 | H54: 8516 | K54: 0 | L54: 2111
A55: 12 | B55: 8623 | C55: 14 | D55: 8627 | E55: 13 | F55: 8634 | G55: 14 | H55: 8641 | K55: 0 | L55: 1111
A56: 12 | B56: 8814 | C56: 14 | D56: 8821 | E56: 13 | F56: 8842 | G56: 14 | H56: 8872 | K56: 0 | L56: 1111
A57: 21 | B57: 9014 | C57: 12 | D57: 9027 | E57: 13 | F57: 9032 | G57: 14 | H57: 9039 | K57: 0 | L57: 2111
A58: 12 | B58: 9339 | C58: 14 | D58: 9347 | E58: 13 | F58: 9357 | G58: 14 | H58: 9368 | K58: 0 | L58: 1111
A59: 21 | B59: 9478 | C59: 21 | D59: 9492 | E59: 11 | F59: 9517 | G59: 21 | H59: 9526 | K59: 0 | L59: 2212
A60: 12 | B60: 9628 | C60: 14 | D60: 9633 | E60: 13 | F60: 9638 | G60: 14 | H60: 9644 | K60: 0 | L60: 1111
A61: 12 | B61: 9768 | C61: 14 | D61: 9773 | E61: 13 | F61: 9797 | G61: 14 | H61: 9823 | K61: 0 | L61: 1111
A62: 12 | B62: 9954 | C62: 14 | D62: 9959 | E62: 13 | F62: 9966 | G62: 14 | H62: 9990 | K62: 0 | L62: 1111
A63: 12 | B63: 10110 | C63: 14 | D63: 10115 | E63: 13 | F63: 10122 | G63: 14 | H63: 10144 | K63: 0 | L63: 1111
A64: 12 | B64: 10252 | C64: 14 | D64: 10261 | E64: 13 | F64: 10265 | G64: 14 | H64: 10271 | K64: 0 | L64: 1111
A65: 21 | B65: 10391 | C65: 12 | D65: 10403 | E65: 13 | F65: 10407 | G65: 14 | H65: 10415 | K65: 0 | L65: 2111
A66: 12 | B66: 10517 | C66: 14 | D66: 10522 | E66: 13 | F66: 10528 | G66: 14 | H66: 10557 | K66: 0 | L66: 1111
A67: 12 | B67: 10672 | C67: 14 | D67: 10676 | E67: 13 | F67: 10681 | G67: 14 | H67: 10689 | K67: 0 | L67: 1111
A68: 21 | B68: 10790 | C68: 12 | D68: 10810 | E68: 13 | F68: 10815 | G68: 14 | H68: 10820 | K68: 0 | L68: 2111
A69: 12 | B69: 10933 | C69: 14 | D69: 10937 | E69: 13 | F69: 10943 | G69: 14 | H69: 10955 | K69: 0 | L69: 1111
A70: 12 | B70: 11054 | C70: 14 | D70: 11059 | E70: 13 | F70: 11063 | G70: 14 | H70: 11070 | K70: 0 | L70: 1111
A71: 12 | B71: 11185 | C71: 14 | D71: 11190 | E71: 13 | F71: 11198 | G71: 14 | H71: 11205 | K71: 0 | L71: 1111
A72: 21 | B72: 11318 | C72: 12 | D72: 11326 | E72: 13 | F72: 11331 | G72: 14 | H72: 11335 | K72: 0 | L72: 2111
A73: 12 | B73: 11450 | C73: 14 | D73: 11455 | E73: 13 | F73: 11460 | G73: 14 | H73: 11464 | K73: 0 | L73: 1111
A74: 12 | B74: 11629 | C74: 14 | D74: 11633 | E74: 13 | F74: 11641 | G74: 14 | H74: 11650 | K74: 0 | L74: 1111
A75: 12 | B75: 11786 | C75: 14 | D75: 11793 | E75: 13 | F75: 11800 | G75: 14 | H75: 11809 | K75: 0 | L75: 1111
A76: 12 | B76: 11939 | C76: 14 | D76: 11943 | E76: 13 | F76: 11951 | G76: 14 | H76: 11960 | K76: 0 | L76: 1111
A77: 12 | B77: 12087 | C77: 14 | D77: 12094 | E77: 13 | F77: 12103 | G77: 14 | H77: 12111 | K77: 0 | L77: 1111
A78: 12 | B78: 12221 | C78: 14 | D78: 12227 | E78: 13 | F78: 12234 | G78: 14 | H78: 12241 | K78: 0 | L78: 1111
A79: 21 | B79: 12345 | C79: 12 | D79: 12354 | E79: 13 | F79: 12358 | G79: 14 | H79: 12365 | K79: 0 | L79: 2111
A80: 12 | B80: 12485 | C80: 14 | D80: 12490 | E80: 13 | F80: 12495 | G80: 14 | H80: 12506 | K80: 0 | L80: 1111
A81: 12 | B81: 12615 | C81: 14 | D81: 12622 | E81: 24 | F81: 12637 | G81: 14 | H81: 12650 | K81: 0 | L81: 1121
A82: 21 | B82: 12765 | C82: 21 | D82: 12774 | E82: 11 | F82: 12783 | G82: 12 | H82: 12787 | K82: 0 | L82: 2211
A83: 21 | B83: 12897 | C83: 21 | D83: 12922 | E83: 11 | F83: 12935 | G83: 21 | H83: 12947 | K83: 0 | L83: 2212
A84: 12 | B84: 13047 | C84: 14 | D84: 13052 | E84: 13 | F84: 13059 | G84: 23 | H84: 13072 | K84: 0 | L84: 1112
A85: 12 | B85: 13180 | C85: 14 | D85: 13184 | E85: 13 | F85: 13191 | G85: 14 | H85: 13198 | K85: 0 | L85: 1111
A86: 12 | B86: 13311 | C86: 14 | D86: 13316 | E86: 13 | F86: 13322 | G86: 14 | H86: 13351 | K86: 0 | L86: 1111
A87: 21 | B87: 13460 | C87: 12 | D87: 13469 | E87: 13 | F87: 13474 | G87: 14 | H87: 13482 | K87: 0 | L87: 2111
A88: 12 | B88: 13605 | C88: 14 | D88: 13612 | E88: 24 | F88: 13622 | G88: 23 | H88: 13631 | K88: 0 | L88: 1122
A89: 12 | B89: 13744 | C89: 14 | D89: 13749 | E89: 13 | F89: 13757 | G89: 14 | H89: 13769 | K89: 0 | L89: 1111
A90: 12 | B90: 13902 | C90: 14 | D90: 13906 | E90: 13 | F90: 13915 | G90: 14 | H90: 13926 | K90: 0 | L90: 1111
A91: 12 | B91: 14027 | C91: 14 | D91: 14035 | E91: 13 | F91: 14046 | G91: 14 | H91: 14058 | K91: 0 | L91: 1111
A92: 12 | B92: 14172 | C92: 14 | D92: 14177 | E92: 13 | F92: 14182 | G92: 14 | H92: 14189 | K92: 0 | L92: 1111
A93: 12 | B93: 14295 | C93: 14 | D93: 14299 | E93: 13 | F93: 14305 | G93: 14 | H93: 14312 | K93: 0 | L93: 1111
A94: 21 | B94: 14412 | C94: 21 | D94: 14422 | E94: 11 | F94: 14432 | G94: 12 | H94: 14437 | K94: 0 | L94: 2211
A95: 12 | B95: 14570 | C95: 14 | D95: 14576 | E95: 13 | F95: 14583 | G95: 23 | H95: 14596 | K95: 0 | L95: 1112
A96: 12 | B96: 14701 | C96: 14 | D96: 14708 | E96: 24 | F96: 14722 | G96: 14 | H96: 14731 | K96: 0 | L96: 1121
A97: 12 | B97: 14839 | C97: 14 | D97: 14844 | E97: 13 | F97: 14850 | G97: 14 | H97: 14859 | K97: 0 | L97: 1111
A98: 21 | B98: 14963 | C98: 12 | D98: 14980 | E98: 13 | F98: 14988 | G98: 14 | H98: 14999 | K98: 0 | L98: 2111
A99: 12 | B99: 15113 | C99: 14 | D99: 15118 | E99: 13 | F99: 15126 | G99: 14 | H99: 15137 | K99: 0 | L99: 1111
A100: 12 | B100: 15266 | C100: 14 | D100: 15270 | E100: 13 | F100: 15277 | G100: 14 | H100: 15289 | K100: 0 | L100: 1111
A101: 12 | B101: 15393 | C101: 14 | D101: 15398 | E101: 13 | F101: 15405 | G101: 14 | H101: 15413 | K101: 0 | L101: 1111
A102: 21 | B102: 15524 | C102: 21 | D102: 15533 | E102: 11 | F102: 15543 | G102: 12 | H102: 15548 | K102: 0 | L102: 2211
A103: 12 | B103: 15680 | C103: 14 | D103: 15686 | E103: 13 | F103: 15693 | G103: 14 | H103: 15699 | K103: 0 | L103: 1111
A104: 12 | B104: 15842 | C104: 14 | D104: 15848 | E104: 13 | F104: 15858 | G104: 14 | H104: 15866 | K104: 0 | L104: 1111
A105: 12 | B105: 15997 | C105: 14 | D105: 16002 | E105: 13 | F105: 16009 | G105: 14 | H105: 16020 | K105: 0 | L105: 1111
A106: 12 | B106: 16126 | C106: 14 | D106: 16132 | E106: 13 | F106: 16139 | G106: 14 | H106: 16149 | K106: 0 | L106: 1111
A107: 12 | B107: 16263 | C107: 14 | D107: 16269 | E107: 13 | F107: 16276 | G107: 23 | H107: 16285 | K107: 0 | L107: 1112
A108: 12 | B108: 16409 | C108: 14 | D108: 16416 | E108: 13 | F108: 16423 | G108: 14 | H108: 16434 | K108: 0 | L108: 1111
A109: 12 | B109: 16639 | C109: 14 | D109: 16646 | E109: 24 | F109: 16659 | G109: 14 | H109: 16672 | K109: 0 | L109: 1121
A110: 12 | B110: 16787 | C110: 14 | D110: 16791 | E110: 13 | F110: 16797 | G110: 14 | H110: 16804 | K110: 0 | L110: 1111
A111: 12 | B111: 16930 | C111: 14 | D111: 16937 | E111: 13 | F111: 16945 | G111: 14 | H111: 16956 | K111: 0 | L111: 1111
A112: 12 | B112: 17098 | C112: 14 | D112: 17135 | E112: 13 | F112: 17160 | G112: 14 | H112: 17196 | K112: 0 | L112: 1111
A113: 21 | B113: 17304 | C113: 12 | D113: 17330 | E113: 13 | F113: 17335 | G113: 23 | H113: 17348 | K113: 0 | L113: 2112
A114: 12 | B114: 17520 | C114: 14 | D114: 17551 | E114: 13 | F114: 17587 | G114: 14 | H114: 17621 | K114: 0 | L114: 1111
A115: 12 | B115: 17748 | C115: 14 | D115: 17752 | E115: 13 | F115: 17758 | G115: 14 | H115: 17782 | K115: 0 | L115: 1111
A116: 21 | B116: 17922 | C116: 12 | D116: 17932 | E116: 13 | F116: 17938 | G116: 14 | H116: 17947 | K116: 0 | L116: 2111
A117: 21 | B117: 18057 | C117: 21 | D117: 18104 | E117: 11 | F117: 18126 | G117: 12 | H117: 18149 | K117: 0 | L117: 2211
A118: 12 | B118: 18303 | C118: 14 | D118: 18308 | E118: 13 | F118: 18317 | G118: 14 | H118: 18356 | K118: 0 | L118: 1111
A119: 21 | B119: 18466 | C119: 12 | D119: 18498 | E119: 13 | F119: 18505 | G119: 14 | H119: 18512 | K119: 0 | L119: 2111
A120: 12 | B120: 18609 | C120: 14 | D120: 18639 | E120: 13 | F120: 18647 | G120: 23 | H120: 18656 | K120: 0 | L120: 1112
A121: 21 | B121: 18775 | C121: 12 | D121: 18801 | E121: 13 | F121: 18806 | G121: 14 | H121: 18814 | K121: 0 | L121: 2111
A122: 12 | B122: 18950 | C122: 14 | D122: 18957 | E122: 24 | F122: 18966 | G122: 14 | H122: 18978 | K122: 0 | L122: 1121
A123: 21 | B123: 19121 | C123: 12 | D123: 19161 | E123: 13 | F123: 19168 | G123: 14 | H123: 19224 | K123: 0 | L123: 2111
A124: 21 | B124: 19347 | C124: 21 | D124: 19361 | E124: 22 | F124: 19376 | G124: 14 | H124: 19402 | K124: 0 | L124: 2221
A125: 21 | B125: 19519 | C125: 21 | D125: 19536 | E125: 11 | F125: 19549 | G125: 12 | H125: 19556 | K125: 0 | L125: 2211
A126: 21 | B126: 19768 | C126: 21 | D126: 19795 | E126: 11 | F126: 19807 | G126: 21 | H126: 19836 | K126: 0 | L126: 2212
A127: 12 | B127: 19948 | C127: 14 | D127: 19954 | E127: 13 | F127: 19987 | G127: 14 | H127: 20039 | K127: 0 | L127: 1111
A128: 12 | B128: 20145 | C128: 14 | D128: 20149 | E128: 13 | F128: 20155 | G128: 23 | H128: 20165 | K128: 0 | L128: 1112
A129: 12 | B129: 20261 | C129: 14 | D129: 20267 | E129: 13 | F129: 20271 | G129: 14 | H129: 20279 | K129: 0 | L129: 1111
A130: 12 | B130: 20371 | C130: 23 | D130: 20383 | E130: 13 | F130: 20442 | G130: 14 | H130: 20449 | K130: 0 | L130: 1211
A131: 21 | B131: 20559 | C131: 21 | D131: 20568 | E131: 11 | F131: 20595 | G131: 12 | H131: 20601 | K131: 0 | L131: 2211
A132: 21 | B132: 20707 | C132: 21 | D132: 20726 | E132: 22 | F132: 20790 | G132: 14 | H132: 20832 | K132: 0 | L132: 2221
A133: 12 | B133: 20988 | C133: 14 | D133: 21047 | E133: 13 | F133: 21076 | G133: 14 | H133: 21109 | K133: 0 | L133: 1111
A134: 21 | B134: 21217 | C134: 12 | D134: 21328 | E134: 13 | F134: 21334 | G134: 23 | H134: 21364 | K134: 0 | L134: 2112
A135: 21 | B135: 21476 | C135: 12 | D135: 21487 | E135: 13 | F135: 21492 | G135: 14 | H135: 21499 | K135: 0 | L135: 2111
A136: 12 | B136: 21605 | C136: 14 | D136: 21610 | E136: 13 | F136: 21617 | G136: 14 | H136: 21657 | K136: 0 | L136: 1111
A137: 21 | B137: 21759 | C137: 12 | D137: 21799 | E137: 13 | F137: 21803 | G137: 14 | H137: 21811 | K137: 0 | L137: 2111
A138: 21 | B138: 21927 | C138: 12 | D138: 21958 | E138: 13 | F138: 21966 | G138: 14 | H138: 21987 | K138: 0 | L138: 2111
A139: 21 | B139: 22179 | C139: 12 | D139: 22192 | E139: 13 | F139: 22200 | G139: 23 | H139: 22220 | K139: 0 | L139: 2112
A140: 21 | B140: 22322 | C140: 21 | D140: 22330 | E140: 11 | F140: 22354 | G140: 12 | H140: 22359 | K140: 0 | L140: 2211
A141: 21 | B141: 22505 | C141: 12 | D141: 22543 | E141: 24 | F141: 22552 | G141: 14 | H141: 22577 | K141: 0 | L141: 2121
A142: 21 | B142: 22707 | C142: 21 | D142: 22719 | E142: 11 | F142: 22732 | G142: 21 | H142: 22740 | K142: 0 | L142: 2212
A143: 12 | B143: 22847 | C143: 14 | D143: 22854 | E143: 24 | F143: 22867 | G143: 14 | H143: 22897 | K143: 0 | L143: 1121
A144: 12 | B144: 23017 | C144: 14 | D144: 23022 | E144: 13 | F144: 23029 | G144: 14 | H144: 23060 | K144: 0 | L144: 1111
A145: 21 | B145: 23176 | C145: 21 | D145: 23192 | E145: 11 | F145: 23204 | G145: 12 | H145: 23208 | K145: 0 | L145: 2211
A146: 12 | B146: 23320 | C146: 14 | D146: 23324 | E146: 13 | F146: 23331 | G146: 23 | H146: 23343 | K146: 0 | L146: 1112
A147: 12 | B147: 23439 | C147: 14 | D147: 23494 | E147: 13 | F147: 23500 | G147: 14 | H147: 23507 | K147: 0 | L147: 1111
A148: 21 | B148: 23616 | C148: 12 | D148: 23628 | E148: 13 | F148: 23632 | G148: 14 | H148: 23637 | K148: 0 | L148: 2111
A149: 21 | B149: 23745 | C149: 21 | D149: 23754 | E149: 11 | F149: 23762 | G149: 12 | H149: 23820 | K149: 0 | L149: 2211
A150: 21 | B150: 23938 | C150: 21 | D150: 23954 | E150: 22 | F150: 23963 | G150: 14 | H150: 23974 | L150: 2221

Sheet !N105A10.095
A1: Report for:!N105A10.095
A2: Date: | B2: <date>
A3: Hen: | B3: <hen> | F3: Correct Sequence | G3: =Start!J2 -> 2212 | P3: Total Sequences in Data | Q3: =4994-COUNTBLANK(L7:L5000) -> 142 | V3: Total Sequences in Block Data | W3: =COUNTA(L7:L30) -> 24 | AA3: Total Sequences in Block Data | AB3: =COUNTA(L31:L53) -> 23 | AF3: Total Sequences in Block Data | AG3: =COUNTA(L54:L77) -> 24 | AK3: Total Sequences in Block Data | AL3: =COUNTA(L78:L101) -> 24 | AP3: Total Sequences in Block Data | AQ3: =COUNTA(L102:L124) -> 23 | AU3: Total Sequences in Block Data | AV3: =COUNTA(L125:L148) -> 24
P4: Total Sequences in Summary | Q4: =SUM(O7:O22) -> 141 | V4: Total Sequences in Block Summary | W4: =SUM(U7:U22) -> 24 | AA4: Total Sequences in Block Summary | AB4: =SUM(Z7:Z22) -> 23 | AF4: Total Sequences in Block Summary | AG4: =SUM(AE7:AE22) -> 24 | AK4: Total Sequences in Block Summary | AL4: =SUM(AJ7:AJ22) -> 24 | AP4: Total Sequences in Block Summary | AQ4: =SUM(AO7:AO22) -> 23 | AU4: Total Sequences in Block Summary | AV4: =SUM(AT7:AT22) -> 23
T5: Block 1 | Y5: Block 2 | AD5: Block 3 | AI5: Block 4 | AN5: Block 5 | AS5: Block 6
A6: Sequence Component 1 | B6: Time 1 | C6: Sequence Component 2 | D6: Time 2 | E6: Sequence Component 3 | F6: Time 3 | G6: Sequence Component 4 | H6: Time 4 | I6: Sequence Component 5 | J6: Time 5 | K6: Correct? 0=No 1=Yes | L6: Sequence | N6: Frequency | P6: Relative Frequency | Q6: Variability | T6: Frequency | V6: Relative Frequency | W6: Variability | Y6: Frequency | AA6: Relative Frequency | AB6: Variability | AD6: Frequency | AF6: Relative Frequency | AG6: Variability | AI6: Frequency | AK6: Relative Frequency | AL6: Variability | AN6: Frequency | AP6: Relative Frequency | AQ6: Variability | AS6: Frequency | AU6: Relative Frequency | AV6: Variability
A7: 12 | B7: 24 | C7: 14 | D7: 31 | E7: 13 | F7: 36 | G7: 14 | H7: 42 | K7: 0 | L7: 1111 | N7: 1111 | O7: =COUNTIF($L$7:$L$500,N7) -> 12 | P7: =O7/$Q$4 -> 0.08510638298 | Q7: =IF(P7=0,0,(P7*((LOG(P7))/LOG(2)))) -> -0.3025182001 | T7: =N7 -> 1111 | U7: =COUNTIF(L7:L30,T7) -> 1 | V7: =U7/(W4-U20) -> 0.04347826087 | W7: =IF(V7=0,0,(V7*((LOG(V7))/LOG(2)))) -> -0.1966766068 | Y7: =N7 -> 1111 | Z7: =COUNTIF(L31:L53,Y7) -> 3 | AA7: =Z7/(AB4-Z20) -> 0.1428571429 | AB7: =IF(AA7=0,0,(AA7*((LOG(AA7))/LOG(2)))) -> -0.4010507032 | AD7: =N7 -> 1111 | AE7: =COUNTIF(L54:L77,AD7) -> 4 | AF7: =AE7/(AG4-AE20) -> 0.1904761905 | AG7: =IF(AF7=0,0,(AF7*((LOG(AF7))/LOG(2)))) -> -0.4556795091 | AI7: =N7 -> 1111 | AJ7: =COUNTIF(L78:L101,AI7) -> 0 | AK7: =AJ7/(AL4-AJ20) -> 0 | AL7: =IF(AK7=0,0,(AK7*((LOG(AK7))/LOG(2)))) -> 0 | AN7: =N7 -> 1111 | AO7: =COUNTIF(L102:L124,AN7) -> 1 | AP7: =AO7/(AQ4-AO20) -> 0.05263157895 | AQ7: =IF(AP7=0,0,(AP7*((LOG(AP7))/LOG(2)))) -> -0.2235751323 | AS7: =N7 -> 1111 | AT7: =COUNTIF(L125:L148,AS7) -> 3 | AU7: =AT7/(AV4-AT20) -> 0.1428571429 | AV7: =IF(AU7=0,0,(AU7*((LOG(AU7))/LOG(2)))) -> -0.4010507032
A8: 21 | B8: 214 | C8: 12 | D8: 228 | E8: 24 | F8: 239 | G8: 14 | H8: 252 | K8: 0 | L8: 2121 | N8: 1112 | O8: =COUNTIF($L$7:$L$500,N8) -> 6 | P8: =O8/$Q$4 -> 0.04255319149 | Q8: =IF(P8=0,0,(P8*((LOG(P8))/LOG(2)))) -> -0.1938122916 | T8: =N8 -> 1112 | U8: =COUNTIF(L7:L30,T8) -> 0 | V8: =U8/(W4-U20) -> 0 | W8: =IF(V8=0,0,(V8*((LOG(V8))/LOG(2)))) -> 0 | Y8: =N8 -> 1112 | Z8: =COUNTIF(L31:L53,Y8) -> 1 | AA8: =Z8/(AB4-Z20) -> 0.04761904762 | AB8: =IF(AA8=0,0,(AA8*((LOG(AA8))/LOG(2)))) -> -0.2091579725 | AD8: =N8 -> 1112 | AE8: =COUNTIF(L54:L77,AD8) -> 4 | AF8: =AE8/(AG4-AE20) -> 0.1904761905 | AG8: =IF(AF8=0,0,(AF8*((LOG(AF8))/LOG(2)))) -> -0.4556795091 | AI8: =N8 -> 1112 | AJ8: =COUNTIF(L78:L101,AI8) -> 0 | AK8: =AJ8/(AL4-AJ20) -> 0 | AL8: =IF(AK8=0,0,(AK8*((LOG(AK8))/LOG(2)))) -> 0 | AN8: =N8 -> 1112 | AO8: =COUNTIF(L102:L124,AN8) -> 0 | AP8: =AO8/(AQ4-AO20) -> 0 | AQ8: =IF(AP8=0,0,(AP8*((LOG(AP8))/LOG(2)))) -> 0 | AS8: =N8 -> 1112 | AT8: =COUNTIF(L125:L148,AS8) -> 1 | AU8: =AT8/(AV4-AT20) -> 0.04761904762 | AV8: =IF(AU8=0,0,(AU8*((LOG(AU8))/LOG(2)))) -> -0.2091579725
A9: 12 | B9: 359 | C9: 14 | D9: 368 | E9: 24 | F9: 391 | G9: 14 | H9: 405 | K9: 0 | L9: 1121 | N9: 1121 | O9: =COUNTIF($L$7:$L$500,N9) -> 7 | P9: =O9/$Q$4 -> 0.04964539007 | Q9: =IF(P9=0,0,(P9*((LOG(P9))/LOG(2)))) -> -0.2150735816 | T9: =N9 -> 1121 | U9: =COUNTIF(L7:L30,T9) -> 5 | V9: =U9/(W4-U20) -> 0.2173913043 | W9: =IF(V9=0,0,(V9*((LOG(V9))/LOG(2)))) -> -0.4786160568 | Y9: =N9 -> 1121 | Z9: =COUNTIF(L31:L53,Y9) -> 1 | AA9: =Z9/(AB4-Z20) -> 0.04761904762 | AB9: =IF(AA9=0,0,(AA9*((LOG(AA9))/LOG(2)))) -> -0.2091579725 | AD9: =N9 -> 1121 | AE9: =COUNTIF(L54:L77,AD9) -> 0 | AF9: =AE9/(AG4-AE20) -> 0 | AG9: =IF(AF9=0,0,(AF9*((LOG(AF9))/LOG(2)))) -> 0 | AI9: =N9 -> 1121 | AJ9: =COUNTIF(L78:L101,AI9) -> 0 | AK9: =AJ9/(AL4-AJ20) -> 0 | AL9: =IF(AK9=0,0,(AK9*((LOG(AK9))/LOG(2)))) -> 0 | AN9: =N9 -> 1121 | AO9: =COUNTIF(L102:L124,AN9) -> 0 | AP9: =AO9/(AQ4-AO20) -> 0 | AQ9: =IF(AP9=0,0,(AP9*((LOG(AP9))/LOG(2)))) -> 0 | AS9: =N9 -> 1121 | AT9: =COUNTIF(L125:L148,AS9) -> 1 | AU9: =AT9/(AV4-AT20) -> 0.04761904762 | AV9: =IF(AU9=0,0,(AU9*((LOG(AU9))/LOG(2)))) -> -0.2091579725
A10: 21 | B10: 507 | C10: 12 | D10: 529 | E10: 13 | F10: 553 | G10: 14 | H10: 575 | K10: 0 | L10: 2111 | N10: 1122 | O10: =COUNTIF($L$7:$L$500,N10) -> 1 | P10: =O10/$Q$4 -> 0.007092198582 | Q10: =IF(P10=0,0,(P10*((LOG(P10))/LOG(2)))) -> -0.05063511597 | T10: =N10 -> 1122 | U10: =COUNTIF(L7:L30,T10) -> 0 | V10: =U10/(W4-U20) -> 0 | W10: =IF(V10=0,0,(V10*((LOG(V10))/LOG(2)))) -> 0 | Y10: =N10 -> 1122 | Z10: =COUNTIF(L31:L53,Y10) -> 0 | AA10: =Z10/(AB4-Z20) -> 0 | AB10: =IF(AA10=0,0,(AA10*((LOG(AA10))/LOG(2)))) -> 0 | AD10: =N10 -> 1122 | AE10: =COUNTIF(L54:L77,AD10) -> 0 | AF10: =AE10/(AG4-AE20) -> 0 | AG10: =IF(AF10=0,0,(AF10*((LOG(AF10))/LOG(2)))) -> 0 | AI10: =N10 -> 1122 | AJ10: =COUNTIF(L78:L101,AI10) -> 0 | AK10: =AJ10/(AL4-AJ20) -> 0 | AL10: =IF(AK10=0,0,(AK10*((LOG(AK10))/LOG(2)))) -> 0 | AN10: =N10 -> 1122 | AO10: =COUNTIF(L102:L124,AN10) -> 1 | AP10: =AO10/(AQ4-AO20) -> 0.05263157895 | AQ10: =IF(AP10=0,0,(AP10*((LOG(AP10))/LOG(2)))) -> -0.2235751323 | AS10: =N10 -> 1122 | AT10: =COUNTIF(L125:L148,AS10) -> 0 | AU10: =AT10/(AV4-AT20) -> 0 | AV10: =IF(AU10=0,0,(AU10*((LOG(AU10))/LOG(2)))) -> 0
A11: 12 | B11: 684 | C11: 14 | D11: 689 | E11: 24 | F11: 701 | G11: 14 | H11: 714 | K11: 0 | L11: 1121 | N11: 1211 | O11: =COUNTIF($L$7:$L$500,N11) -> 4 | P11: =O11/$Q$4 -> 0.02836879433 | Q11: =IF(P11=0,0,(P11*((LOG(P11))/LOG(2)))) -> -0.1458028752 | T11: =N11 -> 1211 | U11: =COUNTIF(L7:L30,T11) -> 1 | V11: =U11/(W4-U20) -> 0.04347826087 | W11: =IF(V11=0,0,(V11*((LOG(V11))/LOG(2)))) -> -0.1966766068 | Y11: =N11 -> 1211 | Z11: =COUNTIF(L31:L53,Y11) -> 1 | AA11: =Z11/(AB4-Z20) -> 0.04761904762 | AB11: =IF(AA11=0,0,(AA11*((LOG(AA11))/LOG(2)))) -> -0.2091579725 | AD11: =N11 -> 1211 | AE11: =COUNTIF(L54:L77,AD11) -> 1 | AF11: =AE11/(AG4-AE20) -> 0.04761904762 | AG11: =IF(AF11=0,0,(AF11*((LOG(AF11))/LOG(2)))) -> -0.2091579725 | AI11: =N11 -> 1211 | AJ11: =COUNTIF(L78:L101,AI11) -> 0 | AK11: =AJ11/(AL4-AJ20) -> 0 | AL11: =IF(AK11=0,0,(AK11*((LOG(AK11))/LOG(2)))) -> 0 | AN11: =N11 -> 1211 | AO11: =COUNTIF(L102:L124,AN11) -> 1 | AP11: =AO11/(AQ4-AO20) -> 0.05263157895 | AQ11: =IF(AP11=0,0,(AP11*((LOG(AP11))/LOG(2)))) -> -0.2235751323 | AS11: =N11 -> 1211 | AT11: =COUNTIF(L125:L148,AS11) -> 0 | AU11: =AT11/(AV4-AT20) -> 0 | AV11: =IF(AU11=0,0,(AU11*((LOG(AU11))/LOG(2)))) -> 0
A12: 21 | B12: 827 | C12: 12 | D12: 836 | E12: 13 | F12: 860 | G12: 14 | H12: 871 | K12: 0 | L12: 2111 | N12: 1212 | O12: =COUNTIF($L$7:$L$500,N12) -> 2 | P12: =O12/$Q$4 -> 0.01418439716 | Q12: =IF(P12=0,0,(P12*((LOG(P12))/LOG(2)))) -> -0.08708583479 | T12: =N12 -> 1212 | U12: =COUNTIF(L7:L30,T12) -> 0 | V12: =U12/(W4-U20) -> 0 | W12: =IF(V12=0,0,(V12*((LOG(V12))/LOG(2)))) -> 0 | Y12: =N12 -> 1212 | Z12: =COUNTIF(L31:L53,Y12) -> 0 | AA12: =Z12/(AB4-Z20) -> 0 | AB12: =IF(AA12=0,0,(AA12*((LOG(AA12))/LOG(2)))) -> 0 | AD12: =N12 -> 1212 | AE12: =COUNTIF(L54:L77,AD12) -> 1 | AF12: =AE12/(AG4-AE20) -> 0.04761904762 | AG12: =IF(AF12=0,0,(AF12*((LOG(AF12))/LOG(2)))) -> -0.2091579725 | AI12: =N12 -> 1212 | AJ12: =COUNTIF(L78:L101,AI12) -> 0 | AK12: =AJ12/(AL4-AJ20) -> 0 | AL12: =IF(AK12=0,0,(AK12*((LOG(AK12))/LOG(2)))) -> 0 | AN12: =N12 -> 1212 | AO12: =COUNTIF(L102:L124,AN12) -> 1 | AP12: =AO12/(AQ4-AO20) -> 0.05263157895 | AQ12: =IF(AP12=0,0,(AP12*((LOG(AP12))/LOG(2)))) -> -0.2235751323 | AS12: =N12 -> 1212 | AT12: =COUNTIF(L125:L148,AS12) -> 0 | AU12: =AT12/(AV4-AT20) -> 0 | AV12: =IF(AU12=0,0,(AU12*((LOG(AU12))/LOG(2)))) -> 0
A13: 12 | B13: 1003 | C13: 14 | D13: 1010 | E13: 24 | F13: 1024 | G13: 14 | H13: 1033 | K13: 0 | L13: 1121 | N13: 1221 | O13: =COUNTIF($L$7:$L$500,N13) -> 2 | P13: =O13/$Q$4 -> 0.01418439716 | Q13: =IF(P13=0,0,(P13*((LOG(P13))/LOG(2)))) -> -0.08708583479 | T13: =N13 -> 1221 | U13: =COUNTIF(L7:L30,T13) -> 1 | V13: =U13/(W4-U20) -> 0.04347826087 | W13: =IF(V13=0,0,(V13*((LOG(V13))/LOG(2)))) -> -0.1966766068 | Y13: =N13 -> 1221 | Z13: =COUNTIF(L31:L53,Y13) -> 1 | AA13: =Z13/(AB4-Z20) -> 0.04761904762 | AB13: =IF(AA13=0,0,(AA13*((LOG(AA13))/LOG(2)))) -> -0.2091579725 | AD13: =N13 -> 1221 | AE13: =COUNTIF(L54:L77,AD13) -> 0 | AF13: =AE13/(AG4-AE20) -> 0 | AG13: =IF(AF13=0,0,(AF13*((LOG(AF13))/LOG(2)))) -> 0 | AI13: =N13 -> 1221 | AJ13: =COUNTIF(L78:L101,AI13) -> 0 | AK13: =AJ13/(AL4-AJ20) -> 0 | AL13: =IF(AK13=0,0,(AK13*((LOG(AK13))/LOG(2)))) -> 0 | AN13: =N13 -> 1221 | AO13: =COUNTIF(L102:L124,AN13) -> 0 | AP13: =AO13/(AQ4-AO20) -> 0 | AQ13: =IF(AP13=0,0,(AP13*((LOG(AP13))/LOG(2)))) -> 0 | AS13: =N13 -> 1221 | AT13: =COUNTIF(L125:L148,AS13) -> 0 | AU13: =AT13/(AV4-AT20) -> 0 | AV13: =IF(AU13=0,0,(AU13*((LOG(AU13))/LOG(2)))) -> 0
A14: 21 | B14: 1141 | C14: 12 | D14: 1166 | E14: 13 | F14: 1171 | G14: 14 | H14: 1205 | K14: 0 | L14: 2111 | N14: 1222 | O14: =COUNTIF($L$7:$L$500,N14) -> 2 | P14: =O14/$Q$4 -> 0.01418439716 | Q14: =IF(P14=0,0,(P14*((LOG(P14))/LOG(2)))) -> -0.08708583479 | T14: =N14 -> 1222 | U14: =COUNTIF(L7:L30,T14) -> 0 | V14: =U14/(W4-U20) -> 0 | W14: =IF(V14=0,0,(V14*((LOG(V14))/LOG(2)))) -> 0 | Y14: =N14 -> 1222 | Z14: =COUNTIF(L31:L53,Y14) -> 0 | AA14: =Z14/(AB4-Z20) -> 0 | AB14: =IF(AA14=0,0,(AA14*((LOG(AA14))/LOG(2)))) -> 0 | AD14: =N14 -> 1222 | AE14: =COUNTIF(L54:L77,AD14) -> 0 | AF14: =AE14/(AG4-AE20) -> 0 | AG14: =IF(AF14=0,0,(AF14*((LOG(AF14))/LOG(2)))) -> 0 | AI14: =N14 -> 1222 | AJ14: =COUNTIF(L78:L101,AI14) -> 0 | AK14: =AJ14/(AL4-AJ20) -> 0 | AL14: =IF(AK14=0,0,(AK14*((LOG(AK14))/LOG(2)))) -> 0 | AN14: =N14 -> 1222 | AO14: =COUNTIF(L102:L124,AN14) -> 0 | AP14: =AO14/(AQ4-AO20) -> 0 | AQ14: =IF(AP14=0,0,(AP14*((LOG(AP14))/LOG(2)))) -> 0 | AS14: =N14 -> 1222 | AT14: =COUNTIF(L125:L148,AS14) -> 2 | AU14: =AT14/(AV4-AT20) -> 0.09523809524 | AV14: =IF(AU14=0,0,(AU14*((LOG(AU14))/LOG(2)))) -> -0.3230778498
A15: 21 | B15: 1347 | C15: 12 | D15: 1358 | E15: 24 | F15: 1367 | G15: 23 | H15: 1380 | K15: 0 | L15: 2122 | N15: 2111 | O15: =COUNTIF($L$7:$L$500,N15) -> 22 | P15: =O15/$Q$4 -> 0.1560283688 | Q15: =IF(P15=0,0,(P15*((LOG(P15))/LOG(2)))) -> -0.4181747102 | T15: =N15 -> 2111 | U15: =COUNTIF(L7:L30,T15) -> 7 | V15: =U15/(W4-U20) -> 0.3043478261 | W15: =IF(V15=0,0,(V15*((LOG(V15))/LOG(2)))) -> -0.5223238799 | Y15: =N15 -> 2111 | Z15: =COUNTIF(L31:L53,Y15) -> 7 | AA15: =Z15/(AB4-Z20) -> 0.3333333333 | AB15: =IF(AA15=0,0,(AA15*((LOG(AA15))/LOG(2)))) -> -0.5283208336 | AD15: =N15 -> 2111 | AE15: =COUNTIF(L54:L77,AD15) -> 4 | AF15: =AE15/(AG4-AE20) -> 0.1904761905 | AG15: =IF(AF15=0,0,(AF15*((LOG(AF15))/LOG(2)))) -> -0.4556795091 | AI15: =N15 -> 2111 | AJ15: =COUNTIF(L78:L101,AI15) -> 1 | AK15: =AJ15/(AL4-AJ20) -> 0.04347826087 | AL15: =IF(AK15=0,0,(AK15*((LOG(AK15))/LOG(2)))) -> -0.1966766068 | AN15: =N15 -> 2111 | AO15: =COUNTIF(L102:L124,AN15) -> 2 | AP15: =AO15/(AQ4-AO20) -> 0.1052631579 | AQ15: =IF(AP15=0,0,(AP15*((LOG(AP15))/LOG(2)))) -> -0.3418871067 | AS15: =N15 -> 2111 | AT15: =COUNTIF(L125:L148,AS15) -> 1 | AU15: =AT15/(AV4-AT20) -> 0.04761904762 | AV15: =IF(AU15=0,0,(AU15*((LOG(AU15))/LOG(2)))) -> -0.2091579725
A16: 21 | B16: 1505 | C16: 12 | D16: 1527 | E16: 13 | F16: 1549 | G16: 14 | H16: 1576 | K16: 0 | L16: 2111 | N16: 2112 | O16: =COUNTIF($L$7:$L$500,N16) -> 17 | P16: =O16/$Q$4 -> 0.1205673759 | Q16: =IF(P16=0,0,(P16*((LOG(P16))/LOG(2)))) -> -0.3679823028 | T16: =N16 -> 2112 | U16: =COUNTIF(L7:L30,T16) -> 3 | V16: =U16/(W4-U20) -> 0.1304347826 | W16: =IF(V16=0,0,(V16*((LOG(V16))/LOG(2)))) -> -0.3832955811 | Y16: =N16 -> 2112 | Z16: =COUNTIF(L31:L53,Y16) -> 1 | AA16: =Z16/(AB4-Z20) -> 0.04761904762 | AB16: =IF(AA16=0,0,(AA16*((LOG(AA16))/LOG(2)))) -> -0.2091579725 | AD16: =N16 -> 2112 | AE16: =COUNTIF(L54:L77,AD16) -> 3 | AF16: =AE16/(AG4-AE20) -> 0.1428571429 | AG16: =IF(AF16=0,0,(AF16*((LOG(AF16))/LOG(2)))) -> -0.4010507032 | AI16: =N16 -> 2112 | AJ16: =COUNTIF(L78:L101,AI16) -> 4 | AK16: =AJ16/(AL4-AJ20) -> 0.1739130435 | AL16: =IF(AK16=0,0,(AK16*((LOG(AK16))/LOG(2)))) -> -0.4388803402 | AN16: =N16 -> 2112 | AO16: =COUNTIF(L102:L124,AN16) -> 2 | AP16: =AO16/(AQ4-AO20) -> 0.1052631579 | AQ16: =IF(AP16=0,0,(AP16*((LOG(AP16))/LOG(2)))) -> -0.3418871067 | AS16: =N16 -> 2112 | AT16: =COUNTIF(L125:L148,AS16) -> 4 | AU16: =AT16/(AV4-AT20) -> 0.1904761905 | AV16: =IF(AU16=0,0,(AU16*((LOG(AU16))/LOG(2)))) -> -0.4556795091
A17: 21 | B17: 1691 | C17: 12 | D17: 1741 | E17: 13 | F17: 1764 | G17: 23 | H17: 1785 | K17: 0 | L17: 2112 | N17: 2121 | O17: =COUNTIF($L$7:$L$500,N17) -> 7 | P17: =O17/$Q$4 -> 0.04964539007 | Q17: =IF(P17=0,0,(P17*((LOG(P17))/LOG(2)))) -> -0.2150735816 | T17: =N17 -> 2121 | U17: =COUNTIF(L7:L30,T17) -> 2 | V17: =U17/(W4-U20) -> 0.08695652174 | W17: =IF(V17=0,0,(V17*((LOG(V17))/LOG(2)))) -> -0.3063966918 | Y17: =N17 -> 2121 | Z17: =COUNTIF(L31:L53,Y17) -> 1 | AA17: =Z17/(AB4-Z20) -> 0.04761904762 | AB17: =IF(AA17=0,0,(AA17*((LOG(AA17))/LOG(2)))) -> -0.2091579725 | AD17: =N17 -> 2121 | AE17: =COUNTIF(L54:L77,AD17) -> 0 | AF17: =AE17/(AG4-AE20) -> 0 | AG17: =IF(AF17=0,0,(AF17*((LOG(AF17))/LOG(2)))) -> 0 | AI17: =N17 -> 2121 | AJ17: =COUNTIF(L78:L101,AI17) -> 2 | AK17: =AJ17/(AL4-AJ20) -> 0.08695652174 | AL17: =IF(AK17=0,0,(AK17*((LOG(AK17))/LOG(2)))) -> -0.3063966918 | AN17: =N17 -> 2121 | AO17: =COUNTIF(L102:L124,AN17) -> 1 | AP17: =AO17/(AQ4-AO20) -> 0.05263157895 | AQ17: =IF(AP17=0,0,(AP17*((LOG(AP17))/LOG(2)))) -> -0.2235751323 | AS17: =N17 -> 2121 | AT17: =COUNTIF(L125:L148,AS17) -> 1 | AU17: =AT17/(AV4-AT20) -> 0.04761904762 | AV17: =IF(AU17=0,0,(AU17*((LOG(AU17))/LOG(2)))) -> -0.2091579725
A18: 21 | B18: 1947 | C18: 12 | D18: 1960 | E18: 13 | F18: 1978 | G18: 23 | H18: 1990 | K18: 0 | L18: 2112 | N18: 2122 | O18: =COUNTIF($L$7:$L$500,N18) -> 11 | P18: =O18/$Q$4 -> 0.0780141844 | Q18: =IF(P18=0,0,(P18*((LOG(P18))/LOG(2)))) -> -0.2871015395 | T18: =N18 -> 2122 | U18: =COUNTIF(L7:L30,T18) -> 1 | V18: =U18/(W4-U20) -> 0.04347826087 | W18: =IF(V18=0,0,(V18*((LOG(V18))/LOG(2)))) -> -0.1966766068 | Y18: =N18 -> 2122 | Z18: =COUNTIF(L31:L53,Y18) -> 0 | AA18: =Z18/(AB4-Z20) -> 0 | AB18: =IF(AA18=0,0,(AA18*((LOG(AA18))/LOG(2)))) -> 0 | AD18: =N18 -> 2122 | AE18: =COUNTIF(L54:L77,AD18) -> 0 | AF18: =AE18/(AG4-AE20) -> 0 | AG18: =IF(AF18=0,0,(AF18*((LOG(AF18))/LOG(2)))) -> 0 | AI18: =N18 -> 2122 | AJ18: =COUNTIF(L78:L101,AI18) -> 6 | AK18: =AJ18/(AL4-AJ20) -> 0.2608695652 | AL18: =IF(AK18=0,0,(AK18*((LOG(AK18))/LOG(2)))) -> -0.505721597 | AN18: =N18 -> 2122 | AO18: =COUNTIF(L102:L124,AN18) -> 2 | AP18: =AO18/(AQ4-AO20) -> 0.1052631579 | AQ18: =IF(AP18=0,0,(AP18*((LOG(AP18))/LOG(2)))) -> -0.3418871067 | AS18: =N18 -> 2122 | AT18: =COUNTIF(L125:L148,AS18) -> 2 | AU18: =AT18/(AV4-AT20) -> 0.09523809524 | AV18: =IF(AU18=0,0,(AU18*((LOG(AU18))/LOG(2)))) -> -0.3230778498
A19: 21 | B19: 2099 | C19: 12 | D19: 2143 | E19: 13 | F19: 2150 | G19: 14 | H19: 2157 | K19: 0 | L19: 2111 | N19: 2211 | O19: =COUNTIF($L$7:$L$500,N19) -> 10 | P19: =O19/$Q$4 -> 0.07092198582 | Q19: =IF(P19=0,0,(P19*((LOG(P19))/LOG(2)))) -> -0.2707534225 | T19: =N19 -> 2211 | U19: =COUNTIF(L7:L30,T19) -> 1 | V19: =U19/(W4-U20) -> 0.04347826087 | W19: =IF(V19=0,0,(V19*((LOG(V19))/LOG(2)))) -> -0.1966766068 | Y19: =N19 -> 2211 | Z19: =COUNTIF(L31:L53,Y19) -> 2 | AA19: =Z19/(AB4-Z20) -> 0.09523809524 | AB19: =IF(AA19=0,0,(AA19*((LOG(AA19))/LOG(2)))) -> -0.3230778498 | AD19: =N19 -> 2211 | AE19: =COUNTIF(L54:L77,AD19) -> 2 | AF19: =AE19/(AG4-AE20) -> 0.09523809524 | AG19: =IF(AF19=0,0,(AF19*((LOG(AF19))/LOG(2)))) -> -0.3230778498 | AI19: =N19 -> 2211 | AJ19: =COUNTIF(L78:L101,AI19) -> 2 | AK19: =AJ19/(AL4-AJ20) -> 0.08695652174 | AL19: =IF(AK19=0,0,(AK19*((LOG(AK19))/LOG(2)))) -> -0.3063966918 | AN19: =N19 -> 2211 | AO19: =COUNTIF(L102:L124,AN19) -> 2 | AP19: =AO19/(AQ4-AO20) -> 0.1052631579 | AQ19: =IF(AP19=0,0,(AP19*((LOG(AP19))/LOG(2)))) -> -0.3418871067 | AS19: =N19 -> 2211 | AT19: =COUNTIF(L125:L148,AS19) -> 1 | AU19: =AT19/(AV4-AT20) -> 0.04761904762 | AV19: =IF(AU19=0,0,(AU19*((LOG(AU19))/LOG(2)))) -> -0.2091579725
A20: 21 | B20: 2349 | C20: 12 | D20: 2369 | E20: 24 | F20: 2377 | G20: 14 | H20: 2389 | K20: 0 | L20: 2121 | N20: 2212 | O20: =COUNTIF($L$7:$L$500,N20) -> 13 | P20: =O20/$Q$4 -> 0.09219858156 | Q20: =IF(P20=0,0,(P20*((LOG(P20))/LOG(2)))) -> -0.3170812145 | T20: =N20 -> 2212 | U20: =COUNTIF(L7:L30,T20) -> 1 | Y20: =N20 -> 2212 | Z20: =COUNTIF(L31:L53,Y20) -> 2 | AD20: =N20 -> 2212 | AE20: =COUNTIF(L54:L77,AD20) -> 3 | AI20: =N20 -> 2212 | AJ20: =COUNTIF(L78:L101,AI20) -> 1 | AN20: =N20 -> 2212 | AO20: =COUNTIF(L102:L124,AN20) -> 4 | AS20: =N20 -> 2212 | AT20: =COUNTIF(L125:L148,AS20) -> 2
A21: 12 | B21: 2607 | C21: 14 | D21: 2632 | E21: 24 | F21: 2667 | G21: 14 | H21: 2713 | K21: 0 | L21: 1121 | N21: 2221 | O21: =COUNTIF($L$7:$L$500,N21) -> 15 | P21: =O21/$Q$4 -> 0.1063829787 | Q21: =IF(P21=0,0,(P21*((LOG(P21))/LOG(2)))) -> -0.3439000805 | T21: =N21 -> 2221 | U21: =COUNTIF(L7:L30,T21) -> 1 | V21: =U21/(W4-U20) -> 0.04347826087 | W21: =IF(V21=0,0,(V21*((LOG(V21))/LOG(2)))) -> -0.1966766068 | Y21: =N21 -> 2221 | Z21: =COUNTIF(L31:L53,Y21) -> 0 | AA21: =Z21/(AB4-Z20) -> 0 | AB21: =IF(AA21=0,0,(AA21*((LOG(AA21))/LOG(2)))) -> 0 | AD21: =N21 -> 2221 | AE21: =COUNTIF(L54:L77,AD21) -> 1 | AF21: =AE21/(AG4-AE20) -> 0.04761904762 | AG21: =IF(AF21=0,0,(AF21*((LOG(AF21))/LOG(2)))) -> -0.2091579725 | AI21: =N21 -> 2221 | AJ21: =COUNTIF(L78:L101,AI21) -> 6 | AK21: =AJ21/(AL4-AJ20) -> 0.2608695652 | AL21: =IF(AK21=0,0,(AK21*((LOG(AK21))/LOG(2)))) -> -0.505721597 | AN21: =N21 -> 2221 | AO21: =COUNTIF(L102:L124,AN21) -> 3 | AP21: =AO21/(AQ4-AO20) -> 0.1578947368 | AQ21: =IF(AP21=0,0,(AP21*((LOG(AP21))/LOG(2)))) -> -0.4204681599 | AS21: =N21 -> 2221 | AT21: =COUNTIF(L125:L148,AS21) -> 4 | AU21: =AT21/(AV4-AT20) -> 0.1904761905 | AV21: =IF(AU21=0,0,(AU21*((LOG(AU21))/LOG(2)))) -> -0.4556795091
A22: 12 | B22: 2881 | C22: 14 | D22: 2900 | E22: 24 | F22: 2909 | G22: 14 | H22: 2934 | K22: 0 | L22: 1121 | N22: 2222 | O22: =COUNTIF($L$7:$L$500,N22) -> 10 | P22: =O22/$Q$4 -> 0.07092198582 | Q22: =IF(P22=0,0,(P22*((LOG(P22))/LOG(2)))) -> -0.2707534225 | T22: =N22 -> 2222 | U22: =COUNTIF(L7:L30,T22) -> 0 | V22: =U22/(W4-U20) -> 0 | W22: =IF(V22=0,0,(V22*((LOG(V22))/LOG(2)))) -> 0 | Y22: =N22 -> 2222 | Z22: =COUNTIF(L31:L53,Y22) -> 3 | AA22: =Z22/(AB4-Z20) -> 0.1428571429 | AB22: =IF(AA22=0,0,(AA22*((LOG(AA22))/LOG(2)))) -> -0.4010507032 | AD22: =N22 -> 2222 | AE22: =COUNTIF(L54:L77,AD22) -> 1 | AF22: =AE22/(AG4-AE20) -> 0.04761904762 | AG22: =IF(AF22=0,0,(AF22*((LOG(AF22))/LOG(2)))) -> -0.2091579725 | AI22: =N22 -> 2222 | AJ22: =COUNTIF(L78:L101,AI22) -> 2 | AK22: =AJ22/(AL4-AJ20) -> 0.08695652174 | AL22: =IF(AK22=0,0,(AK22*((LOG(AK22))/LOG(2)))) -> -0.3063966918 | AN22: =N22 -> 2222 | AO22: =COUNTIF(L102:L124,AN22) -> 3 | AP22: =AO22/(AQ4-AO20) -> 0.1578947368 | AQ22: =IF(AP22=0,0,(AP22*((LOG(AP22))/LOG(2)))) -> -0.4204681599 | AS22: =N22 -> 2222 | AT22: =COUNTIF(L125:L148,AS22) -> 1 | AU22: =AT22/(AV4-AT20) -> 0.04761904762 | AV22: =IF(AU22=0,0,(AU22*((LOG(AU22))/LOG(2)))) -> -0.2091579725
A23: 12 | B23: 3161 | C23: 23 | D23: 3175 | E23: 24 | F23: 3187 | G23: 14 | H23: 3215 | K23: 0 | L23: 1221 | P23: =SUM(P7:P22) -> 1 | Q23: =-SUM(Q7:Q22) -> 3.659919843 | V23: =SUM(V7:V22) -> 1 | W23: =-SUM(W7:W22) -> 2.87069185 | AA23: =SUM(AA7:AA22) -> 1 | AB23: =-SUM(AB7:AB22) -> 2.908447925 | AF23: =SUM(AF7:AF22) -> 1 | AG23: =-SUM(AG7:AG22) -> 2.92779897 | AK23: =SUM(AK7:AK22) -> 1 | AL23: =-SUM(AL7:AL22) -> 2.566190217 | AP23: =SUM(AP7:AP22) -> 1 | AQ23: =-SUM(AQ7:AQ22) -> 3.326360408 | AU23: =SUM(AU7:AU22) -> 1 | AV23: =-SUM(AV7:AV22) -> 3.213513256
A24: 21 | B24: 3325 | C24: 21 | D24: 3348 | E24: 22 | F24: 3360 | G24: 14 | H24: 3372 | K24: 0 | L24: 2221 | P24: U= | Q24: =Q23/(LOG(Q4)/LOG(2)) -> 0.5126260268 | V24: U1= | W24: =W23/(LOG(W4)/LOG(2)) -> 0.6261102135 | AA24: U2= | AB24: =AB23/(LOG(AB4)/LOG(2)) -> 0.6429552536 | AF24: U3= | AG24: =AG23/(LOG(AG4)/LOG(2)) -> 0.6385655215 | AK24: U4= | AL24: =AL23/(LOG(AL4)/LOG(2)) -> 0.5596971003 | AP24: U5= | AQ24: =AQ23/(LOG(AQ4)/LOG(2)) -> 0.7353409637 | AU24: U6= | AV24: =AV23/(LOG(AV4)/LOG(2)) -> 0.7103944385
A25: 21 | B25: 3493 | C25: 21 | D25: 3535 | E25: 11 | F25: 3548 | G25: 21 | H25: 3562 | K25: 0 | L25: 2212
A26: 21 | B26: 3656 | C26: 12 | D26: 3681 | E26: 13 | F26: 3688 | G26: 14 | H26: 3696 | K26: 0 | L26: 2111
A27: 21 | B27: 3830 | C27: 12 | D27: 3839 | E27: 13 | F27: 3865 | G27: 23 | H27: 3879 | K27: 0 | L27: 2112 | N27: Total Target Seq
A28: 12 | B28: 3993 | C28: 23 | D28: 4018 | E28: 13 | F28: 4030 | G28: 14 | H28: 4066 | K28: 0 | L28: 1211 | N28: =COUNTIF(L7:L148,G3) -> 13 | P28: 24 | Q28: 23 | R28: 24 | S28: 24 | T28: 23 | U28: 24
A29: 21 | B29: 4175 | C29: 12 | D29: 4199 | E29: 13 | F29: 4230 | G29: 14 | H29: 4253 | K29: 0 | L29: 2111 | P29: % of reinforcement given in 6 equal intervals based on number of trials
A30: 21 | B30: 4353 | C30: 21 | D30: 4364 | E30: 11 | F30: 4376 | G30: 12 | H30: 4384 | K30: 0 | L30: 2211 | P30: %_1 | Q30: %_2 | R30: %_3 | S30: %_4 | T30: %_5 | U30: %_6
A31: 21 | B31: 4482 | C31: 21 | D31: 4489 | E31: 22 | F31: 4517 | G31: 23 | H31: 4539 | K31: 0 | L31: 2222 | O31: target sequence | P31: =$G$3 -> 2212 | Q31: =$G$3 -> 2212 | R31: =$G$3 -> 2212 | S31: =$G$3 -> 2212 | T31: =$G$3 -> 2212 | U31: =$G$3 -> 2212
A32: 21 | B32: 4719 | C32: 12 | D32: 4731 | E32: 24 | F32: 4788 | G32: 14 | H32: 4809 | K32: 0 | L32: 2121 | O32: total reinforcement | P32: =U20 -> 1 | Q32: =Z20 -> 2 | R32: =AE20 -> 3 | S32: =AJ20 -> 1 | T32: =AO20 -> 4 | U32: =AT20 -> 2
A33: 21 | B33: 4908 | C33: 21 | D33: 4929 | E33: 11 | F33: 4951 | G33: 12 | H33: 5011 | K33: 0 | L33: 2211 | O33: % target
A34: 21 | B34: 5110 | C34: 21 | D34: 5118 | E34: 22 | F34: 5132 | G34: 23 | H34: 5175 | K34: 0 | L34: 2222 | O34: CCRF
A35: 21 | B35: 5300 | C35: 21 | D35: 5310 | E35: 22 | F35: 5329 | G35: 23 | H35: 5352 | K35: 0 | L35: 2222 | O35: % CCRf
A36: 12 | B36: 5466 | C36: 14 | D36: 5503 | E36: 13 | F36: 5531 | G36: 14 | H36: 5543 | K36: 0 | L36: 1111 | O36: average response rate | P36: =H30/P28 -> 182.6666667 | Q36: =(H53-H30)/Q28 -> 175.0869565 | R36: =(H77-H53)/R28 -> 170.4166667 | S36: =(H101-H77)/S28 -> 160.25 | T36: =(H124-H101)/T28 -> 163.3043478 | U36: =(H148-H124)/U28 -> -837.625
A37: 21 | B37: 5646 | C37: 21 | D37: 5674 | E37: 11 | F37: 5686 | G37: 21 | H37: 5708 | K37: 0 | L37: 2212
A38: 12 | B38: 5813 | C38: 14 | D38: 5818 | E38: 13 | F38: 5887 | G38: 23 | H38: 5899 | K38: 0 | L38: 1112
A39: 12 | B39: 6027 | C39: 23 | D39: 6039 | E39: 24 | F39: 6058 | G39: 14 | H39: 6070 | K39: 0 | L39: 1221
A40: 21 | B40: 6184 | C40: 12 | D40: 6193 | E40: 13 | F40: 6198 | G40: 14 | H40: 6206 | K40: 0 | L40: 2111
A41: 12 | B41: 6353 | C41: 23 | D41: 6379 | E41: 13 | F41: 6391 | G41: 14 | H41: 6422 | K41: 0 | L41: 1211
A42: 21 | B42: 6531 | C42: 12 | D42: 6548 | E42: 13 | F42: 6555 | G42: 14 | H42: 6563 | K42: 0 | L42: 2111
A43: 21 | B43: 6665 | C43: 12 | D43: 6678 | E43: 13 | F43: 6682 | G43: 14 | H43: 6689 | K43: 0 | L43: 2111
A44: 21 | B44: 6806 | C44: 21 | D44: 6820 | E44: 11 | F44: 6830 | G44: 12 | H44: 6842 | K44: 0 | L44: 2211
A45: 12 | B45: 6968 | C45: 14 | D45: 6973 | E45: 24 | F45: 7004 | G45: 14 | H45: 7016 | K45: 0 | L45: 1121
A46: 21 | B46: 7132 | C46: 12 | D46: 7142 | E46: 13 | F46: 7148 | G46: 14 | H46: 7168 | K46: 0 | L46: 2111
A47: 12 | B47: 7284 | C47: 14 | D47: 7292 | E47: 13 | F47: 7296 | G47: 14 | H47: 7303 | K47: 0 | L47: 1111
A48: 12 | B48: 7479 | C48: 14 | D48: 7500 | E48: 13 | F48: 7511 | G48: 14 | H48: 7536 | K48: 0 | L48: 1111
A49: 21 | B49: 7651 | C49: 21 | D49: 7663 | E49: 11 | F49: 7682 | G49: 21 | H49: 7700 | K49: 0 | L49: 2212
A50: 21 | B50: 7790 | C50: 12 | D50: 7803 | E50: 13 | F50: 7807 | G50: 23 | H50: 7816 | K50: 0 | L50: 2112
A51: 21 | B51: 7927 | C51: 12 | D51: 7940 | E51: 13 | F51: 7944 | G51: 14 | H51: 7951 | K51: 0 | L51: 2111
A52: 21 | B52: 8079 | C52: 12 | D52: 8098 | E52: 13 | F52: 8142 | G52: 14 | H52: 8185 | K52: 0 | L52: 2111
A53: 21 | B53: 8316 | C53: 12 | D53: 8341 | E53: 13 | F53: 8376 | G53: 14 | H53: 8411 | K53: 0 | L53: 2111
A54: 21 | B54: 8535 | C54: 21 | D54: 8544 | E54: 11 | F54: 8556 | G54: 21 | H54: 8566 | K54: 0 | L54: 2212
A55: 12 | B55: 8667 | C55: 14 | D55: 8675 | E55: 13 | F55: 8684 | G55: 14 | H55: 8692 | K55: 0 | L55: 1111
A56: 12 | B56: 8809 | C56: 14 | D56: 8819 | E56: 13 | F56: 8854 | G56: 14 | H56: 8883 | K56: 0 | L56: 1111
A57: 12 | B57: 9126 | C57: 23 | D57: 9255 | E57: 13 | F57: 9267 | G57: 14 | H57: 9275 | K57: 0 | L57: 1211
A58: 21 | B58: 9397 | C58: 12 | D58: 9410 | E58: 13 | F58: 9453 | G58: 14 | H58: 9469 | K58: 0 | L58: 2111
A59: 21 | B59: 9588 | C59: 12 | D59: 9599 | E59: 13 | F59: 9622 | G59: 14 | H59: 9656 | K59: 0 | L59: 2111
A60: 21 | B60: 9770 | C60: 12 | D60: 9780 | E60: 13 | F60: 9785 | G60: 14 | H60: 9793 | K60: 0 | L60: 2111
A61: 21 | B61: 9907 | C61: 12 | D61: 9924 | E61: 13 | F61: 9931 | G61: 23 | H61: 9939 | K61: 0 | L61: 2112
A62: 21 | B62: 10046 | C62: 12 | D62: 10111 | E62: 13 | F62: 10120 | G62: 14 | H62: 10149 | K62: 0 | L62: 2111
A63: 21 | B63: 10252 | C63: 21 | D63: 10262 | E63: 22 | F63: 10278 | G63: 23 | H63: 10303 | K63: 0 | L63: 2222
A64: 21 | B64: 10439 | C64: 12 | D64: 10457 | E64: 13 | F64: 10492 | G64: 23 | H64: 10504 | K64: 0 | L64: 2112
A65: 12 | B65: 10646 | C65: 23 | D65: 10658 | E65: 13 | F65: 10678 | G65: 23 | H65: 10699 | K65: 0 | L65: 1212
A66: 21 | B66: 10799 | C66: 21 | D66: 10807 | E66: 22 | F66: 10816 | G66: 14 | H66: 10825 | K66: 0 | L66: 2221
A67: 12 | B67: 10942 | C67: 14 | D67: 10946 | E67: 13 | F67: 10954 | G67: 23 | H67: 10962 | K67: 0 | L67: 1112
A68: 21 | B68: 11069 | C68: 21 | D68: 11079 | E68: 11 | F68: 11089 | G68: 21 | H68: 11118 | K68: 0 | L68: 2212
A69: 21 | B69: 11210 | C69: 21 | D69: 11235 | E69: 11 | F69: 11245 | G69: 21 | H69: 11254 | K69: 0 | L69: 2212
A70: 12 | B70: 11356 | C70: 14 | D70: 11361 | E70: 13 | F70: 11366 | G70: 23 | H70: 11379 | K70: 0 | L70: 1112
A71: 21 | B71: 11495 | C71: 21 | D71: 11507 | E71: 11 | F71: 11526 | G71: 12 | H71: 11552 | K71: 0 | L71: 2211
A72: 12 | B72: 11663 | C72: 14 | D72: 11669 | E72: 13 | F72: 11674 | G72: 23 | H72: 11686 | K72: 0 | L72: 1112
A73: 12 | B73: 11798 | C73: 14 | D73: 11802 | E73: 13 | F73: 11809 | G73: 14 | H73: 11841 | K73: 0 | L73: 1111
A74: 12 | B74: 11951 | C74: 14 | D74: 11955 | E74: 13 | F74: 11959 | G74: 14 | H74: 11966 | K74: 0 | L74: 1111
A75: 12 | B75: 12088 | C75: 14 | D75: 12092 | E75: 13 | F75: 12139 | G75: 23 | H75: 12157 | K75: 0 | L75: 1112
A76: 21 | B76: 12275 | C76: 12 | D76: 12292 | E76: 13 | F76: 12299 | G76: 23 | H76: 12323 | K76: 0 | L76: 2112
A77: 21 | B77: 12430 | C77: 21 | D77: 12448 | E77: 11 | F77: 12461 | G77: 12 | H77: 12501 | K77: 0 | L77: 2211
A78: 21 | B78: 12612 | C78: 12 | D78: 12625 | E78: 13 | F78: 12634 | G78: 23 | H78: 12646 | K78: 0 | L78: 2112
A79: 21 | B79: 12763 | C79: 21 | D79: 12782 | E79: 22 | F79: 12795 | G79: 14 | H79: 12807 | K79: 0 | L79: 2221
A80: 21 | B80: 12917 | C80: 12 | D80: 12935 | E80: 13 | F80: 12941 | G80: 23 | H80: 12953 | K80: 0 | L80: 2112
A81: 21 | B81: 13054 | C81: 21 | D81: 13068 | E81: 11 | F81: 13088 | G81: 12 | H81: 13136 | K81: 0 | L81: 2211
A82: 21 | B82: 13242 | C82: 12 | D82: 13263 | E82: 13 | F82: 13271 | G82: 23 | H82: 13282 | K82: 0 | L82: 2112
A83: 21 | B83: 13402 | C83: 12 | D83: 13411 | E83: 24 | F83: 13423 | G83: 23 | H83: 13431 | K83: 0 | L83: 2122
A84: 21 | B84: 13535 | C84: 12 | D84: 13551 | E84: 24 | F84: 13564 | G84: 23 | H84: 13586 | K84: 0 | L84: 2122
A85: 21 | B85: 13693 | C85: 21 | D85: 13717 | E85: 22 | F85: 13725 | G85: 14 | H85: 13737 | K85: 0 | L85: 2221
A86: 21 | B86: 13839 | C86: 12 | D86: 13863 | E86: 13 | F86: 13870 | G86: 14 | H86: 13899 | K86: 0 | L86: 2111
A87: 21 | B87: 14003 | C87: 21 | D87: 14022 | E87: 22 | F87: 14040 | G87: 14 | H87: 14062 | K87: 0 | L87: 2221
A88: 21 | B88: 14162 | C88: 21 | D88: 14178 | E88: 22 | F88: 14196 | G88: 14 | H88: 14220 | K88: 0 | L88: 2221
A89: 21 | B89: 14342 | C89: 12 | D89: 14361 | E89: 24 | F89: 14372 | G89: 23 | H89: 14388 | K89: 0 | L89: 2122
A90: 21 | B90: 14487 | C90: 21 | D90: 14495 | E90: 22 | F90: 14522 | G90: 14 | H90: 14534 | K90: 0 | L90: 2221
A91: 21 | B91: 14642 | C91: 21 | D91: 14657 | E91: 11 | F91: 14676 | G91: 21 | H91: 14691 | K91: 0 | L91: 2212
A92: 21 | B92: 14788 | C92: 21 | D92: 14807 | E92: 22 | F92: 14817 | G92: 14 | H92: 14838 | K92: 0 | L92: 2221
A93: 21 | B93: 14945 | C93: 21 | D93: 14961 | E93: 22 | F93: 14970 | G93: 23 | H93: 14978 | K93: 0 | L93: 2222
A94: 21 | B94: 15080 | C94: 21 | D94: 15096 | E94: 11 | F94: 15104 | G94: 12 | H94: 15147 | K94: 0 | L94: 2211
A95: 21 | B95: 15245 | C95: 12 | D95: 15255 | E95: 24 | F95: 15281 | G95: 14 | H95: 15293 | K95: 0 | L95: 2121
A96: 21 | B96: 15405 | C96: 21 | D96: 15414 | E96: 22 | F96: 15425 | G96: 23 | H96: 15433 | K96: 0 | L96: 2222
A97: 21 | B97: 15571 | C97: 12 | D97: 15580 | E97: 24 | F97: 15603 | G97: 14 | H97: 15624 | K97: 0 | L97: 2121
A98: 21 | B98: 15736 | C98: 12 | D98: 15747 | E98: 13 | F98: 15790 | G98: 23 | H98: 15801 | K98: 0 | L98: 2112
A99: 21 | B99: 15904 | C99: 12 | D99: 15920 | E99: 24 | F99: 15929 | G99: 23 | H99: 15949 | K99: 0 | L99: 2122
A100: 21 | B100: 16066 | C100: 12 | D100: 16078 | E100: 24 | F100: 16086 | G100: 23 | H100: 16102 | K100: 0 | L100: 2122
A101: 21 | B101: 16289 | C101: 12 | D101: 16326 | E101: 24 | F101: 16336 | G101: 23 | H101: 16347 | K101: 0 | L101: 2122
A102: 12 | B102: 16483 | C102: 23 | D102: 16494 | E102: 13 | F102: 16515 | G102: 23 | H102: 16526 | K102: 0 | L102: 1212
A103: 21 | B103: 16659 | C103: 12 | D103: 16675 | E103: 13 | F103: 16703 | G103: 23 | H103: 16721 | K103: 0 | L103: 2112
A104: 21 | B104: 16830 | C104: 21 | D104: 16842 | E104: 11 | F104: 16899 | G104: 21 | H104: 16910 | K104: 0 | L104: 2212
A105: 21 | B105: 16999 | C105: 12 | D105: 17014 | E105: 13 | F105: 17020 | G105: 14 | H105: 17025 | K105: 0 | L105: 2111
A106: 21 | B106: 17129 | C106: 21 | D106: 17149 | E106: 22 | F106: 17163 | G106: 23 | H106: 17174 | K106: 0 | L106: 2222
A107: 21 | B107: 17270 | C107: 12 | D107: 17288 | E107: 13 | F107: 17293 | G107: 14 | H107: 17299 | K107: 0 | L107: 2111
A108: 21 | B108: 17397 | C108: 21 | D108: 17428 | E108: 22 | F108: 17451 | G108: 23 | H108: 17462 | K108: 0 | L108: 2222
A109: 21 | B109: 17571 | C109: 21 | D109: 17580 | E109: 11 | F109: 17595 | G109: 21 | H109: 17606 | K109: 0 | L109: 2212
A110: 21 | B110: 17718 | C110: 21 | D110: 17755 | E110: 22 | F110: 17796 | G110: 23 | H110: 17818 | K110: 0 | L110: 2222
A111: 21 | B111: 17919 | C111: 12 | D111: 17936 | E111: 24 | F111: 17945 | G111: 23 | H111: 17977 | K111: 0 | L111: 2122
A112: 21 | B112: 18095 | C112: 12 | D112: 18104 | E112: 24 | F112: 18113 | G112: 23 | H112: 18120 | K112: 0 | L112: 2122
A113: 12 | B113: 18244 | C113: 14 | D113: 18250 | E113: 13 | F113: 18288 | G113: 14 | H113: 18320 | K113: 0 | L113: 1111
A114: 21 | B114: 18420 | C114: 21 | D114: 18427 | E114: 22 | F114: 18443 | G114: 14 | H114: 18475 | K114: 0 | L114: 2221
A115: 21 | B115: 18596 | C115: 12 | D115: 18605 | E115: 24 | F115: 18643 | G115: 14 | H115: 18668 | K115: 0 | L115: 2121
A116: 12 | B116: 18793 | C116: 23 | D116: 18804 | E116: 13 | F116: 18846 | G116: 14 | H116: 18875 | K116: 0 | L116: 1211
A117: 21 | B117: 18976 | C117: 21 | D117: 18990 | E117: 22 | F117: 19036 | G117: 14 | H117: 19045 | K117: 0 | L117: 2221
A118: 21 | B118: 19151 | C118: 21 | D118: 19164 | E118: 22 | F118: 19178 | G118: 14 | H118: 19193 | K118: 0 | L118: 2221
A119: 21 | B119: 19292 | C119: 21 | D119: 19299 | E119: 11 | F119: 19344 | G119: 21 | H119: 19370 | K119: 0 | L119: 2212
A120: 21 | B120: 19471 | C120: 21 | D120: 19478 | E120: 11 | F120: 19496 | G120: 21 | H120: 19536 | K120: 0 | L120: 2212
A121: 21 | B121: 19633 | C121: 12 | D121: 19642 | E121: 13 | F121: 19649 | G121: 23 | H121: 19665 | K121: 0 | L121: 2112
A122: 21 | B122: 19774 | C122: 21 | D122: 19781 | E122: 11 | F122: 19790 | G122: 12 | H122: 19798 | K122: 0 | L122: 2211
A123: 12 | B123: 19902 | C123: 14 | D123: 19906 | E123: 24 | F123: 19919 | G123: 23 | H123: 19927 | K123: 0 | L123: 1122
A124: 21 | B124: 20032 | C124: 21 | D124: 20039 | E124: 11 | F124: 20076 | G124: 12 | H124: 20103 | K124: 0 | L124: 2211
A125: 21 | B125: 20205 | C125: 12 | D125: 20229 | E125: 13 | F125: 20271 | G125: 23 | H125: 20296 | K125: 0 | L125: 2112
A126: 21 | B126: 20407 | C126: 21 | D126: 20415 | E126: 22 | F126: 20423 | G126: 14 | H126: 20441 | K126: 0 | L126: 2221
A127: 21 | B127: 20546 | C127: 21 | D127: 20553 | E127: 22 | F127: 20561 | G127: 23 | H127: 20585 | K127: 0 | L127: 2222
A128: 21 | B128: 20700 | C128: 12 | D128: 20723 | E128: 24 | F128: 20733 | G128: 23 | H128: 20759 | K128: 0 | L128: 2122
A129: 21 | B129: 20879 | C129: 21 | D129: 20887 | E129: 11 | F129: 20913 | G129: 21 | H129: 20930 | K129: 0 | L129: 2212
A130: 12 | B130: 21024 | C130: 14 | D130: 21028 | E130: 13 | F130: 21032 | G130: 23 | H130: 21059 | K130: 0 | L130: 1112
A131: 21 | B131: 21163 | C131: 12 | D131: 21185 | E131: 13 | F131: 21193 | G131: 23 | H131: 21217 | K131: 0 | L131: 2112
A132: 12 | B132: 21374 | C132: 14 | D132: 21407 | E132: 13 | F132: 21446 | G132: 14 | H132: 21479 | K132: 0 | L132: 1111
A133: 21 | B133: 21588 | C133: 21 | D133: 21601 | E133: 22 | F133: 21624 | G133: 14 | H133: 21634 | K133: 0 | L133: 2221
A134: 12 | B134: 21743 | C134: 14 | D134: 21747 | E134: 13 | F134: 21755 | G134: 14 | H134: 21785 | K134: 0 | L134: 1111
A135: 12 | B135: 21890 | C135: 14 | D135: 21894 | E135: 13 | F135: 21899 | G135: 14 | H135: 21905 | K135: 0 | L135: 1111
A136: 21 | B136: 22003 | C136: 21 | D136: 22025 | E136: 11 | F136: 22035 | G136: 12 | H136: 22043 | K136: 0 | L136: 2211
A137: 21 | B137: 22153 | C137: 21 | D137: 22165 | E137: 22 | F137: 22185 | G137: 14 | H137: 22213 | K137: 0 | L137: 2221
A138: 21 | B138: 22320 | C138: 21 | D138: 22329 | E138: 11 | F138: 22357 | G138: 21 | H138: 22376 | K138: 0 | L138: 2212
A139: 12 | B139: 22495 | C139: 14 | D139: 22552 | E139: 24 | F139: 22560 | G139: 14 | H139: 22595 | K139: 0 | L139: 1121
A140: 21 | B140: 22705 | C140: 12 | D140: 22713 | E140: 24 | F140: 22730 | G140: 14 | H140: 22738 | K140: 0 | L140: 2121
A141: 21 | B141: 22841 | C141: 21 | D141: 22849 | E141: 22 | F141: 22863 | G141: 14 | H141: 22871 | K141: 0 | L141: 2221
A142: 12 | B142: 22984 | C142: 23 | D142: 22992 | E142: 24 | F142: 23005 | G142: 23 | H142: 23013 | K142: 0 | L142: 1222
A143: 21 | B143: 23118 | C143: 12 | D143: 23134 | E143: 13 | F143: 23161 | G143: 14 | H143: 23200 | K143: 0 | L143: 2111
A144: 21 | B144: 23326 | C144: 12 | D144: 23335 | E144: 24 | F144: 23357 | G144: 23 | H144: 23365 | K144: 0 | L144: 2122
A145: 12 | B145: 23472 | C145: 23 | D145: 23495 | E145: 24 | F145: 23510 | G145: 23 | H145: 23518 | K145: 0 | L145: 1222
A146: 21 | B146: 23631 | C146: 12 | D146: 23660 | E146: 13 | F146: 23668 | G146: 23 | H146: 23685 | K146: 0 | L146: 2112
A147: 21 | B147: 23791 | C147: 12 | D147: 23807 | E147: 13 | F147: 23835 | G147: 23 | H147: 23862 | K147: 0 | L147: 2112
A148: 21 | B148: 23980 | C148: 12 | D148: 23988 | E148: 24 | F148: 24000 | L148: 212

Sheet !N106840.095
A1: Report for:!N106840.095
A2: Date: | B2: <date>
A3: Hen: | B3: <hen> | F3: Correct Sequence | G3: =Start!J2 -> 2212 | P3: Total Sequences in Data | Q3: =4994-COUNTBLANK(L7:L5000) -> 154 | V3: Total Sequences in Block Data | W3: =COUNTA(L7:L32) -> 26 | AA3: Total Sequences in Block Data | AB3: =COUNTA(L33:L57) -> 25 | AF3: Total Sequences in Block Data | AG3: =COUNTA(L58:L83) -> 26 | AK3: Total Sequences in Block Data | AL3: =COUNTA(L84:L109) -> 26 | AP3: Total Sequences in Block Data | AQ3: =COUNTA(L110:L134) -> 25 | AU3: Total Sequences in Block Data | AV3: =COUNTA(L135:L160) -> 26
P4: Total Sequences in Summary | Q4: =SUM(O7:O22) -> 154 | V4: Total Sequences in Block Summary | W4: =SUM(U7:U22) -> 26 | AA4: Total Sequences in Block Summary | AB4: =SUM(Z7:Z22) -> 25 | AF4: Total Sequences in Block Summary | AG4: =SUM(AE7:AE22) -> 26 | AK4: Total Sequences in Block Summary | AL4: =SUM(AJ7:AJ22) -> 26 | AP4: Total Sequences in Block Summary | AQ4: =SUM(AO7:AO22) -> 25 | AU4: Total Sequences in Block Summary | AV4: =SUM(AT7:AT22) -> 26
T5: Block 1 | Y5: Block 2 | AD5: Block 3 | AI5: Block 4 | AN5: Block 5 | AS5: Block 6
A6: Sequence Component 1 | B6: Time 1 | C6: Sequence Component 2 | D6: Time 2 | E6: Sequence Component 3 | F6: Time 3 | G6: Sequence Component 4 | H6: Time 4 | I6: Sequence Component 5 | J6: Time 5 | K6: Correct? 0=No 1=Yes | L6: Sequence | N6: Frequency | P6: Relative Frequency | Q6: Variability | T6: Frequency | V6: Relative Frequency | W6: Variability | Y6: Frequency | AA6: Relative Frequency | AB6: Variability | AD6: Frequency | AF6: Relative Frequency | AG6: Variability | AI6: Frequency | AK6: Relative Frequency | AL6: Variability | AN6: Frequency | AP6: Relative Frequency | AQ6: Variability | AS6: Frequency | AU6: Relative Frequency | AV6: Variability
A7: 12 | B7: 99 | C7: 23 | D7: 112 | E7: 13 | F7: 126 | G7: 23 | H7: 139 | K7: 0 | L7: 1212 | N7: 1111 | O7: =COUNTIF($L$7:$L$500,N7) -> 9 | P7: =O7/$Q$4 -> 0.05844155844 | Q7: =IF(P7=0,0,(P7*((LOG(P7))/LOG(2)))) -> -0.2394269731 | T7: =N7 -> 1111 | U7: =COUNTIF(L7:L32,T7) -> 0 | V7: =U7/(W4-U20) -> 0 | W7: =IF(V7=0,0,(V7*((LOG(V7))/LOG(2)))) -> 0 | Y7: =N7 -> 1111 | Z7: =COUNTIF(L33:L57,Y7) -> 2 | AA7: =Z7/(AB4-Z20) -> 0.08 | AB7: =IF(AA7=0,0,(AA7*((LOG(AA7))/LOG(2)))) -> -0.2915084952 | AD7: =N7 -> 1111 | AE7: =COUNTIF(L58:L83,AD7) -> 2 | AF7: =AE7/(AG4-AE20) -> 0.09090909091 | AG7: =IF(AF7=0,0,(AF7*((LOG(AF7))/LOG(2)))) -> -0.3144937835 | AI7: =N7 -> 1111 | AJ7: =COUNTIF(L84:L109,AI7) -> 0 | AK7: =AJ7/(AL4-AJ20) -> 0 | AL7: =IF(AK7=0,0,(AK7*((LOG(AK7))/LOG(2)))) -> 0 | AN7: =N7 -> 1111 | AO7: =COUNTIF(L110:L134,AN7) -> 3 | AP7: =AO7/(AQ4-AO20) -> 0.125 | AQ7: =IF(AP7=0,0,(AP7*((LOG(AP7))/LOG(2)))) -> -0.375 | AS7: =N7 -> 1111 | AT7: =COUNTIF(L135:L160,AS7) -> 2 | AU7: =AT7/(AV4-AT20) -> 0.09090909091 | AV7: =IF(AU7=0,0,(AU7*((LOG(AU7))/LOG(2)))) -> -0.3144937835
A8: 21 | B8: 269 | C8: 21 | D8: 284 | E8: 22 | F8: 294 | G8: 23 | H8: 332 | K8: 0 | L8: 2222 | N8: 1112 | O8: =COUNTIF($L$7:$L$500,N8) -> 15 | P8: =O8/$Q$4 -> 0.0974025974 | Q8: =IF(P8=0,0,(P8*((LOG(P8))/LOG(2)))) -> -0.3272625921 | T8: =N8 -> 1112 | U8: =COUNTIF(L7:L32,T8) -> 2 | V8: =U8/(W4-U20) -> 0.09523809524 | W8: =IF(V8=0,0,(V8*((LOG(V8))/LOG(2)))) -> -0.3230778498 | Y8: =N8 -> 1112 | Z8: =COUNTIF(L33:L57,Y8) -> 3 | AA8: =Z8/(AB4-Z20) -> 0.12 | AB8: =IF(AA8=0,0,(AA8*((LOG(AA8))/LOG(2)))) -> -0.3670672427 | AD8: =N8 -> 1112 | AE8: =COUNTIF(L58:L83,AD8) -> 3 | AF8: =AE8/(AG4-AE20) -> 0.1363636364 | AG8: =IF(AF8=0,0,(AF8*((LOG(AF8))/LOG(2)))) -> -0.3919730615 | AI8: =N8 -> 1112 | AJ8: =COUNTIF(L84:L109,AI8) -> 3 | AK8: =AJ8/(AL4-AJ20) -> 0.1304347826 | AL8: =IF(AK8=0,0,(AK8*((LOG(AK8))/LOG(2)))) -> -0.3832955811 | AN8: =N8 -> 1112 | AO8: =COUNTIF(L110:L134,AN8) -> 2 | AP8: =AO8/(AQ4-AO20) -> 0.08333333333 | AQ8: =IF(AP8=0,0,(AP8*((LOG(AP8))/LOG(2)))) -> -0.2987468751 | AS8: =N8 -> 1112 | AT8: =COUNTIF(L135:L160,AS8) -> 2 | AU8: =AT8/(AV4-AT20) -> 0.09090909091 | AV8: =IF(AU8=0,0,(AU8*((LOG(AU8))/LOG(2)))) -> -0.3144937835
A9: 12 | B9: 477 | C9: 23 | D9: 491 | E9: 24 | F9: 504 | G9: 14 | H9: 517 | K9: 0 | L9: 1221 | N9: 1121 | O9: =COUNTIF($L$7:$L$500,N9) -> 7 | P9: =O9/$Q$4 -> 0.04545454545 | Q9: =IF(P9=0,0,(P9*((LOG(P9))/LOG(2)))) -> -0.2027014372 | T9: =N9 -> 1121 | U9: =COUNTIF(L7:L32,T9) -> 1 | V9: =U9/(W4-U20) -> 0.04761904762 | W9: =IF(V9=0,0,(V9*((LOG(V9))/LOG(2)))) -> -0.2091579725 | Y9: =N9 -> 1121 | Z9: =COUNTIF(L33:L57,Y9) -> 2 | AA9: =Z9/(AB4-Z20) -> 0.08 | AB9: =IF(AA9=0,0,(AA9*((LOG(AA9))/LOG(2)))) -> -0.2915084952 | AD9: =N9 -> 1121 | AE9: =COUNTIF(L58:L83,AD9) -> 3 | AF9: =AE9/(AG4-AE20) -> 0.1363636364 | AG9: =IF(AF9=0,0,(AF9*((LOG(AF9))/LOG(2)))) -> -0.3919730615 | AI9: =N9 -> 1121 | AJ9: =COUNTIF(L84:L109,AI9) -> 1 | AK9: =AJ9/(AL4-AJ20) -> 0.04347826087 | AL9: =IF(AK9=0,0,(AK9*((LOG(AK9))/LOG(2)))) -> -0.1966766068 | AN9: =N9 -> 1121 | AO9: =COUNTIF(L110:L134,AN9) -> 0 | AP9: =AO9/(AQ4-AO20) -> 0 | AQ9: =IF(AP9=0,0,(AP9*((LOG(AP9))/LOG(2)))) -> 0 | AS9: =N9 -> 1121 | AT9: =COUNTIF(L135:L160,AS9) -> 0 | AU9: =AT9/(AV4-AT20) -> 0 | AV9: =IF(AU9=0,0,(AU9*((LOG(AU9))/LOG(2)))) -> 0
A10: 12 | B10: 643 | C10: 14 | D10: 652 | E10: 24 | F10: 665 | G10: 23 | H10: 675 | K10: 0 | L10: 1122 | N10: 1122 | O10: =COUNTIF($L$7:$L$500,N10) -> 6 | P10: =O10/$Q$4 -> 0.03896103896 | Q10: =IF(P10=0,0,(P10*((LOG(P10))/LOG(2)))) -> -0.1824087288 | T10: =N10 -> 1122 | U10: =COUNTIF(L7:L32,T10) -> 1 | V10: =U10/(W4-U20) -> 0.04761904762 | W10: =IF(V10=0,0,(V10*((LOG(V10))/LOG(2)))) -> -0.2091579725 | Y10: =N10 -> 1122 | Z10: =COUNTIF(L33:L57,Y10) -> 0 | AA10: =Z10/(AB4-Z20) -> 0 | AB10: =IF(AA10=0,0,(AA10*((LOG(AA10))/LOG(2)))) -> 0 | AD10: =N10 -> 1122 | AE10: =COUNTIF(L58:L83,AD10) -> 0 | AF10: =AE10/(AG4-AE20) -> 0 | AG10: =IF(AF10=0,0,(AF10*((LOG(AF10))/LOG(2)))) -> 0 | AI10: =N10 -> 1122 | AJ10: =COUNTIF(L84:L109,AI10) -> 2 | AK10: =AJ10/(AL4-AJ20) -> 0.08695652174 | AL10: =IF(AK10=0,0,(AK10*((LOG(AK10))/LOG(2)))) -> -0.3063966918 | AN10: =N10 -> 1122 | AO10: =COUNTIF(L110:L134,AN10) -> 1 | AP10: =AO10/(AQ4-AO20) -> 0.04166666667 | AQ10: =IF(AP10=0,0,(AP10*((LOG(AP10))/LOG(2)))) -> -0.1910401042 | AS10: =N10 -> 1122 | AT10: =COUNTIF(L135:L160,AS10) -> 2 | AU10: =AT10/(AV4-AT20) -> 0.09090909091 | AV10: =IF(AU10=0,0,(AU10*((LOG(AU10))/LOG(2)))) -> -0.3144937835
A11: 21 | B11: 790 | C11: 21 | D11: 799 | E11: 11 | F11: 813 | G11: 12 | H11: 819 | K11: 0 | L11: 2211 | N11: 1211 | O11: =COUNTIF($L$7:$L$500,N11) -> 3 | P11: =O11/$Q$4 -> 0.01948051948 | Q11: =IF(P11=0,0,(P11*((LOG(P11))/LOG(2)))) -> -0.1106848839 | T11: =N11 -> 1211 | U11: =COUNTIF(L7:L32,T11) -> 0 | V11: =U11/(W4-U20) -> 0 | W11: =IF(V11=0,0,(V11*((LOG(V11))/LOG(2)))) -> 0 | Y11: =N11 -> 1211 | Z11: =COUNTIF(L33:L57,Y11) -> 1 | AA11: =Z11/(AB4-Z20) -> 0.04 | AB11: =IF(AA11=0,0,(AA11*((LOG(AA11))/LOG(2)))) -> -0.1857542476 | AD11: =N11 -> 1211 | AE11: =COUNTIF(L58:L83,AD11) -> 2 | AF11: =AE11/(AG4-AE20) -> 0.09090909091 | AG11: =IF(AF11=0,0,(AF11*((LOG(AF11))/LOG(2)))) -> -0.3144937835 | AI11: =N11 -> 1211 | AJ11: =COUNTIF(L84:L109,AI11) -> 0 | AK11: =AJ11/(AL4-AJ20) -> 0 | AL11: =IF(AK11=0,0,(AK11*((LOG(AK11))/LOG(2)))) -> 0 | AN11: =N11 -> 1211 | AO11: =COUNTIF(L110:L134,AN11) -> 0 | AP11: =AO11/(AQ4-AO20) -> 0 | AQ11: =IF(AP11=0,0,(AP11*((LOG(AP11))/LOG(2)))) -> 0 | AS11: =N11 -> 1211 | AT11: =COUNTIF(L135:L160,AS11) -> 0 | AU11: =AT11/(AV4-AT20) -> 0 | AV11: =IF(AU11=0,0,(AU11*((LOG(AU11))/LOG(2)))) -> 0
A12: 21 | B12: 931 | C12: 12 | D12: 944 | E12: 13 | F12: 950 | G12: 14 | H12: 958 | K12: 0 | L12: 2111 | N12: 1212 | O12: =COUNTIF($L$7:$L$500,N12) -> 4 | P12: =O12/$Q$4 -> 0.02597402597 | Q12: =IF(P12=0,0,(P12*((LOG(P12))/LOG(2)))) -> -0.1367996504 | T12: =N12 -> 1212 | U12: =COUNTIF(L7:L32,T12) -> 3 | V12: =U12/(W4-U20) -> 0.1428571429 | W12: =IF(V12=0,0,(V12*((LOG(V12))/LOG(2)))) -> -0.4010507032 | Y12: =N12 -> 1212 | Z12: =COUNTIF(L33:L57,Y12) -> 0 | AA12: =Z12/(AB4-Z20) -> 0 | AB12: =IF(AA12=0,0,(AA12*((LOG(AA12))/LOG(2)))) -> 0 | AD12: =N12 -> 1212 | AE12: =COUNTIF(L58:L83,AD12) -> 0 | AF12: =AE12/(AG4-AE20) -> 0 | AG12: =IF(AF12=0,0,(AF12*((LOG(AF12))/LOG(2)))) -> 0 | AI12: =N12 -> 1212 | AJ12: =COUNTIF(L84:L109,AI12) -> 0 | AK12: =AJ12/(AL4-AJ20) -> 0 | AL12: =IF(AK12=0,0,(AK12*((LOG(AK12))/LOG(2)))) -> 0 | AN12: =N12 -> 1212 | AO12: =COUNTIF(L110:L134,AN12) -> 1 | AP12: =AO12/(AQ4-AO20) -> 0.04166666667 | AQ12: =IF(AP12=0,0,(AP12*((LOG(AP12))/LOG(2)))) -> -0.1910401042 | AS12: =N12 -> 1212 | AT12: =COUNTIF(L135:L160,AS12) -> 0 | AU12: =AT12/(AV4-AT20) -> 0 | AV12: =IF(AU12=0,0,(AU12*((LOG(AU12))/LOG(2)))) -> 0
A13: 21 | B13: 1137 | C13: 21 | D13: 1147 | E13: 11 | F13: 1160 | G13: 21 | H13: 1173 | K13: 0 | L13: 2212 | N13: 1221 | O13: =COUNTIF($L$7:$L$500,N13) -> 9 | P13: =O13/$Q$4 -> 0.05844155844 | Q13: =IF(P13=0,0,(P13*((LOG(P13))/LOG(2)))) -> -0.2394269731 | T13: =N13 -> 1221 | U13: =COUNTIF(L7:L32,T13) -> 1 | V13: =U13/(W4-U20) -> 0.04761904762 | W13: =IF(V13=0,0,(V13*((LOG(V13))/LOG(2)))) -> -0.2091579725 | Y13: =N13 -> 1221 | Z13: =COUNTIF(L33:L57,Y13) -> 3 | AA13: =Z13/(AB4-Z20) -> 0.12 | AB13: =IF(AA13=0,0,(AA13*((LOG(AA13))/LOG(2)))) -> -0.3670672427 | AD13: =N13 -> 1221 | AE13: =COUNTIF(L58:L83,AD13) -> 2 | AF13: =AE13/(AG4-AE20) -> 0.09090909091 | AG13: =IF(AF13=0,0,(AF13*((LOG(AF13))/LOG(2)))) -> -0.3144937835 | AI13: =N13 -> 1221 | AJ13: =COUNTIF(L84:L109,AI13) -> 1 | AK13: =AJ13/(AL4-AJ20) -> 0.04347826087 | AL13: =IF(AK13=0,0,(AK13*((LOG(AK13))/LOG(2)))) -> -0.1966766068 | AN13: =N13 -> 1221 | AO13: =COUNTIF(L110:L134,AN13) -> 1 | AP13: =AO13/(AQ4-AO20) -> 0.04166666667 | AQ13: =IF(AP13=0,0,(AP13*((LOG(AP13))/LOG(2)))) -> -0.1910401042 | AS13: =N13 -> 1221 | AT13: =COUNTIF(L135:L160,AS13) -> 1 | AU13: =AT13/(AV4-AT20) -> 0.04545454545 | AV13: =IF(AU13=0,0,(AU13*((LOG(AU13))/LOG(2)))) -> -0.2027014372
A14: 12 | B14: 1309 | C14: 23 | D14: 1322 | E14: 24 | F14: 1346 | G14: 23 | H14: 1393 | K14: 0 | L14: 1222 | N14: 1222 | O14: =COUNTIF($L$7:$L$500,N14) -> 4 | P14: =O14/$Q$4 -> 0.02597402597 | Q14: =IF(P14=0,0,(P14*((LOG(P14))/LOG(2)))) -> -0.1367996504 | T14: =N14 -> 1222 | U14: =COUNTIF(L7:L32,T14) -> 1 | V14: =U14/(W4-U20) -> 0.04761904762 | W14: =IF(V14=0,0,(V14*((LOG(V14))/LOG(2)))) -> -0.2091579725 | Y14: =N14 -> 1222 | Z14: =COUNTIF(L33:L57,Y14) -> 0 | AA14: =Z14/(AB4-Z20) -> 0 | AB14: =IF(AA14=0,0,(AA14*((LOG(AA14))/LOG(2)))) -> 0 | AD14: =N14 -> 1222 | AE14: =COUNTIF(L58:L83,AD14) -> 0 | AF14: =AE14/(AG4-AE20) -> 0 | AG14: =IF(AF14=0,0,(AF14*((LOG(AF14))/LOG(2)))) -> 0 | AI14: =N14 -> 1222 | AJ14: =COUNTIF(L84:L109,AI14) -> 2 | AK14: =AJ14/(AL4-AJ20) -> 0.08695652174 | AL14: =IF(AK14=0,0,(AK14*((LOG(AK14))/LOG(2)))) -> -0.3063966918 | AN14: =N14 -> 1222 | AO14: =COUNTIF(L110:L134,AN14) -> 1 | AP14: =AO14/(AQ4-AO20) -> 0.04166666667 | AQ14: =IF(AP14=0,0,(AP14*((LOG(AP14))/LOG(2)))) -> -0.1910401042 | AS14: =N14 -> 1222 | AT14: =COUNTIF(L135:L160,AS14) -> 0 | AU14: =AT14/(AV4-AT20) -> 0 | AV14: =IF(AU14=0,0,(AU14*((LOG(AU14))/LOG(2)))) -> 0
A15: 21 | B15: 1498 | C15: 21 | D15: 1507 | E15: 22 | F15: 1545 | G15: 23 | H15: 1554 | K15: 0 | L15: 2222 | N15: 2111 | O15: =COUNTIF($L$7:$L$500,N15) -> 10 | P15: =O15/$Q$4 -> 0.06493506494 | Q15: =IF(P15=0,0,(P15*((LOG(P15))/LOG(2)))) -> -0.2561596393 | T15: =N15 -> 2111 | U15: =COUNTIF(L7:L32,T15) -> 2 | V15: =U15/(W4-U20) -> 0.09523809524 | W15: =IF(V15=0,0,(V15*((LOG(V15))/LOG(2)))) -> -0.3230778498 | Y15: =N15 -> 2111 | Z15: =COUNTIF(L33:L57,Y15) -> 0 | AA15: =Z15/(AB4-Z20) -> 0 | AB15: =IF(AA15=0,0,(AA15*((LOG(AA15))/LOG(2)))) -> 0 | AD15: =N15 -> 2111 | AE15: =COUNTIF(L58:L83,AD15) -> 0 | AF15: =AE15/(AG4-AE20) -> 0 | AG15: =IF(AF15=0,0,(AF15*((LOG(AF15))/LOG(2)))) -> 0 | AI15: =N15 -> 2111 | AJ15: =COUNTIF(L84:L109,AI15) -> 0 | AK15: =AJ15/(AL4-AJ20) -> 0 | AL15: =IF(AK15=0,0,(AK15*((LOG(AK15))/LOG(2)))) -> 0 | AN15: =N15 -> 2111 | AO15: =COUNTIF(L110:L134,AN15) -> 3 | AP15: =AO15/(AQ4-AO20) -> 0.125 | AQ15: =IF(AP15=0,0,(AP15*((LOG(AP15))/LOG(2)))) -> -0.375 | AS15: =N15 -> 2111 | AT15: =COUNTIF(L135:L160,AS15) -> 5 | AU15: =AT15/(AV4-AT20) -> 0.2272727273 | AV15: =IF(AU15=0,0,(AU15*((LOG(AU15))/LOG(2)))) -> -0.4857962554
A16: 21 | B16: 1678 | C16: 21 | D16: 1690 | E16: 22 | F16: 1703 | G16: 14 | H16: 1718 | K16: 0 | L16: 2221 | N16: 2112 | O16: =COUNTIF($L$7:$L$500,N16) -> 8 | P16: =O16/$Q$4 -> 0.05194805195 | Q16: =IF(P16=0,0,(P16*((LOG(P16))/LOG(2)))) -> -0.2216512489 | T16: =N16 -> 2112 | U16: =COUNTIF(L7:L32,T16) -> 1 | V16: =U16/(W4-U20) -> 0.04761904762 | W16: =IF(V16=0,0,(V16*((LOG(V16))/LOG(2)))) -> -0.2091579725 | Y16: =N16 -> 2112 | Z16: =COUNTIF(L33:L57,Y16) -> 3 | AA16: =Z16/(AB4-Z20) -> 0.12 | AB16: =IF(AA16=0,0,(AA16*((LOG(AA16))/LOG(2)))) -> -0.3670672427 | AD16: =N16 -> 2112 | AE16: =COUNTIF(L58:L83,AD16) -> 1 | AF16: =AE16/(AG4-AE20) -> 0.04545454545 | AG16: =IF(AF16=0,0,(AF16*((LOG(AF16))/LOG(2)))) -> -0.2027014372 | AI16: =N16 -> 2112 | AJ16: =COUNTIF(L84:L109,AI16) -> 0 | AK16: =AJ16/(AL4-AJ20) -> 0 | AL16: =IF(AK16=0,0,(AK16*((LOG(AK16))/LOG(2)))) -> 0 | AN16: =N16 -> 2112 | AO16: =COUNTIF(L110:L134,AN16) -> 1 | AP16: =AO16/(AQ4-AO20) -> 0.04166666667 | AQ16: =IF(AP16=0,0,(AP16*((LOG(AP16))/LOG(2)))) -> -0.1910401042 | AS16: =N16 -> 2112 | AT16: =COUNTIF(L135:L160,AS16) -> 2 | AU16: =AT16/(AV4-AT20) -> 0.09090909091 | AV16: =IF(AU16=0,0,(AU16*((LOG(AU16))/LOG(2)))) -> -0.3144937835
A17: 21 | B17: 1836 | C17: 21 | D17: 1854 | E17: 22 | F17: 1869 | G17: 14 | H17: 1891 | K17: 0 | L17: 2221 | N17: 2121 | O17: =COUNTIF($L$7:$L$500,N17) -> 17 | P17: =O17/$Q$4 -> 0.1103896104 | Q17: =IF(P17=0,0,(P17*((LOG(P17))/LOG(2)))) -> -0.3509643045 | T17: =N17 -> 2121 | U17: =COUNTIF(L7:L32,T17) -> 2 | V17: =U17/(W4-U20) -> 0.09523809524 | W17: =IF(V17=0,0,(V17*((LOG(V17))/LOG(2)))) -> -0.3230778498 | Y17: =N17 -> 2121 | Z17: =COUNTIF(L33:L57,Y17) -> 4 | AA17: =Z17/(AB4-Z20) -> 0.16 | AB17: =IF(AA17=0,0,(AA17*((LOG(AA17))/LOG(2)))) -> -0.4230169904 | AD17: =N17 -> 2121 | AE17: =COUNTIF(L58:L83,AD17) -> 4 | AF17: =AE17/(AG4-AE20) -> 0.1818181818 | AG17: =IF(AF17=0,0,(AF17*((LOG(AF17))/LOG(2)))) -> -0.4471693852 | AI17: =N17 -> 2121 | AJ17: =COUNTIF(L84:L109,AI17) -> 4 | AK17: =AJ17/(AL4-AJ20) -> 0.1739130435 | AL17: =IF(AK17=0,0,(AK17*((LOG(AK17))/LOG(2)))) -> -0.4388803402 | AN17: =N17 -> 2121 | AO17: =COUNTIF(L110:L134,AN17) -> 1 | AP17: =AO17/(AQ4-AO20) -> 0.04166666667 | AQ17: =IF(AP17=0,0,(AP17*((LOG(AP17))/LOG(2)))) -> -0.1910401042 | AS17: =N17 -> 2121 | AT17: =COUNTIF(L135:L160,AS17) -> 2 | AU17: =AT17/(AV4-AT20) -> 0.09090909091 | AV17: =IF(AU17=0,0,(AU17*((LOG(AU17))/LOG(2)))) -> -0.3144937835
A18: 21 | B18: 2001 | C18: 12 | D18: 2044 | E18: 24 | F18: 2056 | G18: 14 | H18: 2087 | K18: 0 | L18: 2121 | N18: 2122 | O18: =COUNTIF($L$7:$L$500,N18) -> 16 | P18: =O18/$Q$4 -> 0.1038961039 | Q18: =IF(P18=0,0,(P18*((LOG(P18))/LOG(2)))) -> -0.3394063938 | T18: =N18 -> 2122 | U18: =COUNTIF(L7:L32,T18) -> 2 | V18: =U18/(W4-U20) -> 0.09523809524 | W18: =IF(V18=0,0,(V18*((LOG(V18))/LOG(2)))) -> -0.3230778498 | Y18: =N18 -> 2122 | Z18: =COUNTIF(L33:L57,Y18) -> 0 | AA18: =Z18/(AB4-Z20) -> 0 | AB18: =IF(AA18=0,0,(AA18*((LOG(AA18))/LOG(2)))) -> 0 | AD18: =N18 -> 2122 | AE18: =COUNTIF(L58:L83,AD18) -> 1 | AF18: =AE18/(AG4-AE20) -> 0.04545454545 | AG18: =IF(AF18=0,0,(AF18*((LOG(AF18))/LOG(2)))) -> -0.2027014372 | AI18: =N18 -> 2122 | AJ18: =COUNTIF(L84:L109,AI18) -> 5 | AK18: =AJ18/(AL4-AJ20) -> 0.2173913043 | AL18: =IF(AK18=0,0,(AK18*((LOG(AK18))/LOG(2)))) -> -0.4786160568 | AN18: =N18 -> 2122 | AO18: =COUNTIF(L110:L134,AN18) -> 5 | AP18: =AO18/(AQ4-AO20) -> 0.2083333333 | AQ18: =IF(AP18=0,0,(AP18*((LOG(AP18))/LOG(2)))) -> -0.4714655012 | AS18: =N18 -> 2122 | AT18: =COUNTIF(L135:L160,AS18) -> 3 | AU18: =AT18/(AV4-AT20) -> 0.1363636364 | AV18: =IF(AU18=0,0,(AU18*((LOG(AU18))/LOG(2)))) -> -0.3919730615
A19: 21 | B19: 2208 | C19: 21 | D19: 2232 | E19: 11 | F19: 2264 | G19: 21 | H19: 2280 | K19: 0 | L19: 2212 | N19: 2211 | O19: =COUNTIF($L$7:$L$500,N19) -> 5 | P19: =O19/$Q$4 -> 0.03246753247 | Q19: =IF(P19=0,0,(P19*((LOG(P19))/LOG(2)))) -> -0.1605473521 | T19: =N19 -> 2211 | U19: =COUNTIF(L7:L32,T19) -> 1 | V19: =U19/(W4-U20) -> 0.04761904762 | W19: =IF(V19=0,0,(V19*((LOG(V19))/LOG(2)))) -> -0.2091579725 | Y19: =N19 -> 2211 | Z19: =COUNTIF(L33:L57,Y19) -> 2 | AA19: =Z19/(AB4-Z20) -> 0.08 | AB19: =IF(AA19=0,0,(AA19*((LOG(AA19))/LOG(2)))) -> -0.2915084952 | AD19: =N19 -> 2211 | AE19: =COUNTIF(L58:L83,AD19) -> 2 | AF19: =AE19/(AG4-AE20) -> 0.09090909091 | AG19: =IF(AF19=0,0,(AF19*((LOG(AF19))/LOG(2)))) -> -0.3144937835 | AI19: =N19 -> 2211 | AJ19: =COUNTIF(L84:L109,AI19) -> 0 | AK19: =AJ19/(AL4-AJ20) -> 0 | AL19: =IF(AK19=0,0,(AK19*((LOG(AK19))/LOG(2)))) -> 0 | AN19: =N19 -> 2211 | AO19: =COUNTIF(L110:L134,AN19) -> 0 | AP19: =AO19/(AQ4-AO20) -> 0 | AQ19: =IF(AP19=0,0,(AP19*((LOG(AP19))/LOG(2)))) -> 0 | AS19: =N19 -> 2211 | AT19: =COUNTIF(L135:L160,AS19) -> 0 | AU19: =AT19/(AV4-AT20) -> 0 | AV19: =IF(AU19=0,0,(AU19*((LOG(AU19))/LOG(2)))) -> 0
A20: 21 | B20: 2381 | C20: 12 | D20: 2425 | E20: 24 | F20: 2457 | G20: 14 | H20: 2480 | K20: 0 | L20: 2121 | N20: 2212 | O20: =COUNTIF($L$7:$L$500,N20) -> 17 | P20: =O20/$Q$4 -> 0.1103896104 | Q20: =IF(P20=0,0,(P20*((LOG(P20))/LOG(2)))) -> -0.3509643045 | T20: =N20 -> 2212 | U20: =COUNTIF(L7:L32,T20) -> 5 | Y20: =N20 -> 2212 | Z20: =COUNTIF(L33:L57,Y20) -> 0 | AD20: =N20 -> 2212 | AE20: =COUNTIF(L58:L83,AD20) -> 4 | AI20: =N20 -> 2212 | AJ20: =COUNTIF(L84:L109,AI20) -> 3 | AN20: =N20 -> 2212 | AO20: =COUNTIF(L110:L134,AN20) -> 1 | AS20: =N20 -> 2212 | AT20: =COUNTIF(L135:L160,AS20) -> 4
A21: 21 | B21: 2590 | C21: 21 | D21: 2598 | E21: 11 | F21: 2616 | G21: 21 | H21: 2628 | K21: 0 | L21: 2212 | N21: 2221 | O21: =COUNTIF($L$7:$L$500,N21) -> 12 | P21: =O21/$Q$4 -> 0.07792207792 | Q21: =IF(P21=0,0,(P21*((LOG(P21))/LOG(2)))) -> -0.2868953797 | T21: =N21 -> 2221 | U21: =COUNTIF(L7:L32,T21) -> 2 | V21: =U21/(W4-U20) -> 0.09523809524 | W21: =IF(V21=0,0,(V21*((LOG(V21))/LOG(2)))) -> -0.3230778498 | Y21: =N21 -> 2221 | Z21: =COUNTIF(L33:L57,Y21) -> 5 | AA21: =Z21/(AB4-Z20) -> 0.2 | AB21: =IF(AA21=0,0,(AA21*((LOG(AA21))/LOG(2)))) -> -0.464385619 | AD21: =N21 -> 2221 | AE21: =COUNTIF(L58:L83,AD21) -> 0 | AF21: =AE21/(AG4-AE20) -> 0 | AG21: =IF(AF21=0,0,(AF21*((LOG(AF21))/LOG(2)))) -> 0 | AI21: =N21 -> 2221 | AJ21: =COUNTIF(L84:L109,AI21) -> 2 | AK21: =AJ21/(AL4-AJ20) -> 0.08695652174 | AL21: =IF(AK21=0,0,(AK21*((LOG(AK21))/LOG(2)))) -> -0.3063966918 | AN21: =N21 -> 2221 | AO21: =COUNTIF(L110:L134,AN21) -> 2 | AP21: =AO21/(AQ4-AO20) -> 0.08333333333 | AQ21: =IF(AP21=0,0,(AP21*((LOG(AP21))/LOG(2)))) -> -0.2987468751 | AS21: =N21 -> 2221 | AT21: =COUNTIF(L135:L160,AS21) -> 1 | AU21: =AT21/(AV4-AT20) -> 0.04545454545 | AV21: =IF(AU21=0,0,(AU21*((LOG(AU21))/LOG(2)))) -> -0.2027014372
A22: 21 | B22: 2728 | C22: 21 | D22: 2750 | E22: 11 | F22: 2763 | G22: 21 | H22: 2788 | K22: 0 | L22: 2212 | N22: 2222 | O22: =COUNTIF($L$7:$L$500,N22) -> 12 | P22: =O22/$Q$4 -> 0.07792207792 | Q22: =IF(P22=0,0,(P22*((LOG(P22))/LOG(2)))) -> -0.2868953797 | T22: =N22 -> 2222 | U22: =COUNTIF(L7:L32,T22) -> 2 | V22: =U22/(W4-U20) -> 0.09523809524 | W22: =IF(V22=0,0,(V22*((LOG(V22))/LOG(2)))) -> -0.3230778498 | Y22: =N22 -> 2222 | Z22: =COUNTIF(L33:L57,Y22) -> 0 | AA22: =Z22/(AB4-Z20) -> 0 | AB22: =IF(AA22=0,0,(AA22*((LOG(AA22))/LOG(2)))) -> 0 | AD22: =N22 -> 2222 | AE22: =COUNTIF(L58:L83,AD22) -> 2 | AF22: =AE22/(AG4-AE20) -> 0.09090909091 | AG22: =IF(AF22=0,0,(AF22*((LOG(AF22))/LOG(2)))) -> -0.3144937835 | AI22: =N22 -> 2222 | AJ22: =COUNTIF(L84:L109,AI22) -> 3 | AK22: =AJ22/(AL4-AJ20) -> 0.1304347826 | AL22: =IF(AK22=0,0,(AK22*((LOG(AK22))/LOG(2)))) -> -0.3832955811 | AN22: =N22 -> 2222 | AO22: =COUNTIF(L110:L134,AN22) -> 3 | AP22: =AO22/(AQ4-AO20) -> 0.125 | AQ22: =IF(AP22=0,0,(AP22*((LOG(AP22))/LOG(2)))) -> -0.375 | AS22: =N22 -> 2222 | AT22: =COUNTIF(L135:L160,AS22) -> 2 | AU22: =AT22/(AV4-AT20) -> 0.09090909091 | AV22: =IF(AU22=0,0,(AU22*((LOG(AU22))/LOG(2)))) -> -0.3144937835
A23: 21 | B23: 2888 | C23: 21 | D23: 2914 | E23: 11 | F23: 2923 | G23: 21 | H23: 2935 | K23: 0 | L23: 2212 | P23: =SUM(P7:P22) -> 1 | Q23: =-SUM(Q7:Q22) -> 3.828994892 | V23: =SUM(V7:V22) -> 1 | W23: =-SUM(W7:W22) -> 3.594465637 | AA23: =SUM(AA7:AA22) -> 1 | AB23: =-SUM(AB7:AB22) -> 3.048884071 | AF23: =SUM(AF7:AF22) -> 1 | AG23: =-SUM(AG7:AG22) -> 3.2089873 | AK23: =SUM(AK7:AK22) -> 1 | AL23: =-SUM(AL7:AL22) -> 2.996630848 | AP23: =SUM(AP7:AP22) -> 1 | AQ23: =-SUM(AQ7:AQ22) -> 3.340199877 | AU23: =SUM(AU7:AU22) -> 1 | AV23: =-SUM(AV7:AV22) -> 3.170134892
A24: 21 | B24: 3059 | C24: 12 | D24: 3076 | E24: 24 | F24: 3089 | G24: 23 | H24: 3097 | K24: 0 | L24: 2122 | P24: U= | Q24: =Q23/(LOG(Q4)/LOG(2)) -> 0.5269172103 | V24: U1= | W24: =W23/(LOG(W4)/LOG(2)) -> 0.7647083789 | AA24: U2= | AB24: =AB23/(LOG(AB4)/LOG(2)) -> 0.6565414487 | AF24: U3= | AG24: =AG23/(LOG(AG4)/LOG(2)) -> 0.682699384 | AK24: U4= | AL24: =AL23/(LOG(AL4)/LOG(2)) -> 0.6375213869 | AP24: U5= | AQ24: =AQ23/(LOG(AQ4)/LOG(2)) -> 0.719272893 | AU24: U6= | AV24: =AV23/(LOG(AV4)/LOG(2)) -> 0.6744336876
A25: 12 | B25: 3222 | C25: 14 | D25: 3254 | E25: 24 | F25: 3264 | G25: 14 | H25: 3289 | K25: 0 | L25: 1121
A26: 21 | B26: 3405 | C26: 12 | D26: 3433 | E26: 13 | F26: 3458 | G26: 14 | H26: 3495 | K26: 0 | L26: 2111
A27: 12 | B27: 3627 | C27: 23 | D27: 3637 | E27: 13 | F27: 3668 | G27: 23 | H27: 3686 | K27: 0 | L27: 1212 | N27: Total Target Seq
A28: 12 | B28: 3817 | C28: 14 | D28: 3852 | E28: 13 | F28: 3903 | G28: 23 | H28: 3941 | K28: 0 | L28: 1112 | N28: =COUNTIF(L7:L160,G3) -> 17 | P28: 26 | Q28: 25 | R28: 26 | S28: 26 | T28: 25 | U28: 26
A29: 12 | B29: 4043 | C29: 14 | D29: 4048 | E29: 13 | F29: 4069 | G29: 23 | H29: 4081 | K29: 0 | L29: 1112 | P29: % of reinforcement given in 6 equal intervals based on number of trials
A30: 21 | B30: 4195 | C30: 12 | D30: 4213 | E30: 24 | F30: 4222 | G30: 23 | H30: 4233 | K30: 0 | L30: 2122 | P30: %_1 | Q30: %_2 | R30: %_3 | S30: %_4 | T30: %_5 | U30: %_6
A31: 12 | B31: 4343 | C31: 23 | D31: 4353 | E31: 13 | F31: 4362 | G31: 23 | H31: 4383 | K31: 0 | L31: 1212 | O31: target sequence | P31: =$G$3 -> 2212 | Q31: =$G$3 -> 2212 | R31: =$G$3 -> 2212 | S31: =$G$3 -> 2212 | T31: =$G$3 -> 2212 | U31: =$G$3 -> 2212
A32: 21 | B32: 4515 | C32: 12 | D32: 4525 | E32: 13 | F32: 4544 | G32: 23 | H32: 4553 | K32: 0 | L32: 2112 | O32: total reinforcement | P32: =U20 -> 5 | Q32: =Z20 -> 0 | R32: =AE20 -> 4 | S32: =AJ20 -> 3 | T32: =AO20 -> 1 | U32: =AT20 -> 4
A33: 12 | B33: 4672 | C33: 14 | D33: 4691 | E33: 13 | F33: 4712 | G33: 23 | H33: 4722 | K33: 0 | L33: 1112 | O33: % target
A34: 21 | B34: 4833 | C34: 12 | D34: 4842 | E34: 24 | F34: 4851 | G34: 14 | H34: 4871 | K34: 0 | L34: 2121 | O34: CCRF
A35: 21 | B35: 4972 | C35: 12 | D35: 4981 | E35: 24 | F35: 4993 | G35: 14 | H35: 5000 | K35: 0 | L35: 2121 | O35: % CCRf
A36: 12 | B36: 5100 | C36: 14 | D36: 5119 | E36: 13 | F36: 5148 | G36: 14 | H36: 5177 | K36: 0 | L36: 1111 | O36: average response rate | P36: =H32/P28 -> 175.1153846 | Q36: =(H57-H32)/Q28 -> 157.72 | R36: =(H83-H57)/R28 -> 156.1538462 | S36: =(H109-H83)/S28 -> 156.1538462 | T36: =(H134-H109)/T28 -> 142.44 | U36: =(H160-H134)/U28 -> 143.3846154
A37: 12 | B37: 5281 | C37: 14 | D37: 5287 | E37: 13 | F37: 5301 | G37: 23 | H37: 5311 | K37: 0 | L37: 1112
A38: 12 | B38: 5413 | C38: 14 | D38: 5422 | E38: 24 | F38: 5433 | G38: 14 | H38: 5446 | K38: 0 | L38: 1121
A39: 21 | B39: 5550 | C39: 12 | D39: 5559 | E39: 24 | F39: 5570 | G39: 14 | H39: 5582 | K39: 0 | L39: 2121
A40: 12 | B40: 5707 | C40: 14 | D40: 5727 | E40: 13 | F40: 5758 | G40: 14 | H40: 5788 | K40: 0 | L40: 1111
A41: 12 | B41: 5888 | C41: 23 | D41: 5898 | E41: 13 | F41: 5908 | G41: 14 | H41: 5935 | K41: 0 | L41: 1211
A42: 12 | B42: 6034 | C42: 14 | D42: 6040 | E42: 13 | F42: 6048 | G42: 23 | H42: 6059 | K42: 0 | L42: 1112
A43: 12 | B43: 6182 | C43: 23 | D43: 6192 | E43: 24 | F43: 6207 | G43: 14 | H43: 6216 | K43: 0 | L43: 1221
A44: 21 | B44: 6323 | C44: 21 | D44: 6336 | E44: 22 | F44: 6351 | G44: 14 | H44: 6361 | K44: 0 | L44: 2221
A45: 12 | B45: 6464 | C45: 14 | D45: 6477 | E45: 24 | F45: 6491 | G45: 14 | H45: 6504 | K45: 0 | L45: 1121
A46: 21 | B46: 6610 | C46: 21 | D46: 6623 | E46: 22 | F46: 6634 | G46: 14 | H46: 6648 | K46: 0 | L46: 2221
A47: 12 | B47: 6761 | C47: 23 | D47: 6784 | E47: 24 | F47: 6808 | G47: 14 | H47: 6816 | K47: 0 | L47: 1221
A48: 21 | B48: 6923 | C48: 21 | D48: 6936 | E48: 22 | F48: 6948 | G48: 14 | H48: 6975 | K48: 0 | L48: 2221
A49: 21 | B49: 7076 | C49: 12 | D49: 7087 | E49: 24 | F49: 7096 | G49: 14 | H49: 7116 | K49: 0 | L49: 2121
A50: 21 | B50: 7215 | C50: 12 | D50: 7256 | E50: 13 | F50: 7283 | G50: 23 | H50: 7291 | K50: 0 | L50: 2112
A51: 12 | B51: 7404 | C51: 23 | D51: 7422 | E51: 24 | F51: 7436 | G51: 14 | H51: 7454 | K51: 0 | L51: 1221
A52: 21 | B52: 7558 | C52: 21 | D52: 7574 | E52: 11 | F52: 7584 | G52: 12 | H52: 7622 | K52: 0 | L52: 2211
A53: 21 | B53: 7732 | C53: 21 | D53: 7740 | E53: 11 | F53: 7768 | G53: 12 | H53: 7793 | K53: 0 | L53: 2211
A54: 21 | B54: 7899 | C54: 21 | D54: 7913 | E54: 22 | F54: 7923 | G54: 14 | H54: 7932 | K54: 0 | L54: 2221
A55: 21 | B55: 8047 | C55: 12 | D55: 8056 | E55: 13 | F55: 8091 | G55: 23 | H55: 8111 | K55: 0 | L55: 2112
A56: 21 | B56: 8222 | C56: 21 | D56: 8234 | E56: 22 | F56: 8245 | G56: 14 | H56: 8296 | K56: 0 | L56: 2221
A57: 21 | B57: 8404 | C57: 12 | D57: 8448 | E57: 13 | F57: 8475 | G57: 23 | H57: 8496 | K57: 0 | L57: 2112
A58: 21 | B58: 8605 | C58: 21 | D58: 8614 | E58: 22 | F58: 8630 | G58: 23 | H58: 8639 | K58: 0 | L58: 2222
A59: 12 | B59: 8758 | C59: 14 | D59: 8768 | E59: 24 | F59: 8782 | G59: 14 | H59: 8792 | K59: 0 | L59: 1121
A60: 21 | B60: 8898 | C60: 12 | D60: 8926 | E60: 24 | F60: 8936 | G60: 14 | H60: 8945 | K60: 0 | L60: 2121
A61: 12 | B61: 9075 | C61: 14 | D61: 9104 | E61: 13 | F61: 9135 | G61: 23 | H61: 9146 | K61: 0 | L61: 1112
A62: 21 | B62: 9282 | C62: 12 | D62: 9291 | E62: 24 | F62: 9303 | G62: 14 | H62: 9325 | K62: 0 | L62: 2121
A63: 12 | B63: 9436 | C63: 14 | D63: 9441 | E63: 24 | F63: 9455 | G63: 14 | H63: 9463 | K63: 0 | L63: 1121
A64: 12 | B64: 9578 | C64: 23 | D64: 9586 | E64: 13 | F64: 9596 | G64: 14 | H64: 9625 | K64: 0 | L64: 1211
A65: 12 | B65: 9742 | C65: 14 | D65: 9747 | E65: 13 | F65: 9755 | G65: 23 | H65: 9776 | K65: 0 | L65: 1112
A66: 21 | B66: 9879 | C66: 21 | D66: 9892 | E66: 11 | F66: 9903 | G66: 12 | H66: 9908 | K66: 0 | L66: 2211
A67: 21 | B67: 10014 | C67: 21 | D67: 10034 | E67: 11 | F67: 10041 | G67: 21 | H67: 10060 | K67: 0 | L67: 2212
A68: 21 | B68: 10155 | C68: 21 | D68: 10169 | E68: 11 | F68: 10177 | G68: 12 | H68: 10195 | K68: 0 | L68: 2211
A69: 21 | B69: 10298 | C69: 21 | D69: 10331 | E69: 22 | F69: 10343 | G69: 23 | H69: 10364 | K69: 0 | L69: 2222
A70: 12 | B70: 10484 | C70: 14 | D70: 10489 | E70: 13 | F70: 10509 | G70: 14 | H70: 10551 | K70: 0 | L70: 1111
A71: 21 | B71: 10665 | C71: 21 | D71: 10686 | E71: 11 | F71: 10695 | G71: 21 | H71: 10704 | K71: 0 | L71: 2212
A72: 12 | B72: 10832 | C72: 23 | D72: 10842 | E72: 24 | F72: 10854 | G72: 14 | H72: 10863 | K72: 0 | L72: 1221
A73: 12 | B73: 10961 | C73: 14 | D73: 10983 | E73: 24 | F73: 10993 | G73: 14 | H73: 11002 | K73: 0 | L73: 1121
A74: 12 | B74: 11106 | C74: 23 | D74: 11122 | E74: 13 | F74: 11130 | G74: 14 | H74: 11151 | K74: 0 | L74: 1211
A75: 12 | B75: 11248 | C75: 14 | D75: 11257 | E75: 13 | F75: 11262 | G75: 14 | H75: 11279 | K75: 0 | L75: 1111
A76: 21 | B76: 11396 | C76: 12 | D76: 11405 | E76: 24 | F76: 11434 | G76: 23 | H76: 11451 | K76: 0 | L76: 2122
A77: 21 | B77: 11568 | C77: 12 | D77: 11585 | E77: 24 | F77: 11605 | G77: 14 | H77: 11623 | K77: 0 | L77: 2121
A78: 12 | B78: 11764 | C78: 23 | D78: 11778 | E78: 24 | F78: 11813 | G78: 14 | H78: 11823 | K78: 0 | L78: 1221
A79: 21 | B79: 11923 | C79: 12 | D79: 11945 | E79: 24 | F79: 11963 | G79: 14 | H79: 11987 | K79: 0 | L79: 2121
A80: 12 | B80: 12101 | C80: 14 | D80: 12107 | E80: 13 | F80: 12116 | G80: 23 | H80: 12139 | K80: 0 | L80: 1112
A81: 21 | B81: 12250 | C81: 21 | D81: 12258 | E81: 11 | F81: 12284 | G81: 21 | H81: 12301 | K81: 0 | L81: 2212
A82: 21 | B82: 12398 | C82: 21 | D82: 12415 | E82: 11 | F82: 12425 | G82: 21 | H82: 12434 | K82: 0 | L82: 2212
A83: 21 | B83: 12525 | C83: 12 | D83: 12535 | E83: 13 | F83: 12541 | G83: 23 | H83: 12556 | K83: 0 | L83: 2112
A84: 12 | B84: 12745 | C84: 23 | D84: 12755 | E84: 24 | F84: 12777 | G84: 14 | H84: 12795 | K84: 0 | L84: 1221
A85: 21 | B85: 12896 | C85: 12 | D85: 12907 | E85: 24 | F85: 12924 | G85: 23 | H85: 12945 | K85: 0 | L85: 2122
A86: 12 | B86: 13037 | C86: 14 | D86: 13045 | E86: 13 | F86: 13050 | G86: 23 | H86: 13060 | K86: 0 | L86: 1112
A87: 21 | B87: 13175 | C87: 12 | D87: 13184 | E87: 24 | F87: 13197 | G87: 23 | H87: 13204 | K87: 0 | L87: 2122
A88: 21 | B88: 13326 | C88: 12 | D88: 13344 | E88: 24 | F88: 13357 | G88: 23 | H88: 13381 | K88: 0 | L88: 2122
A89: 12 | B89: 13486 | C89: 23 | D89: 13495 | E89: 24 | F89: 13504 | G89: 23 | H89: 13512 | K89: 0 | L89: 1222
A90: 12 | B90: 13617 | C90: 14 | D90: 13626 | E90: 24 | F90: 13640 | G90: 23 | H90: 13649 | K90: 0 | L90: 1122
A91: 12 | B91: 13755 | C91: 14 | D91: 13760 | E91: 13 | F91: 13769 | G91: 23 | H91: 13779 | K91: 0 | L91: 1112
A92: 21 | B92: 13880 | C92: 12 | D92: 13889 | E92: 24 | F92: 13899 | G92: 14 | H92: 13912 | K92: 0 | L92: 2121
A93: 21 | B93: 14010 | C93: 12 | D93: 14019 | E93: 24 | F93: 14052 | G93: 14 | H93: 14065 | K93: 0 | L93: 2121
A94: 21 | B94: 14170 | C94: 12 | D94: 14179 | E94: 24 | F94: 14192 | G94: 23 | H94: 14200 | K94: 0 | L94: 2122
A95: 21 | B95: 14309 | C95: 21 | D95: 14329 | E95: 11 | F95: 14361 | G95: 21 | H95: 14374 | K95: 0 | L95: 2212
A96: 12 | B96: 14477 | C96: 14 | D96: 14482 | E96: 13 | F96: 14517 | G96: 23 | H96: 14530 | K96: 0 | L96: 1112
A97: 21 | B97: 14646 | C97: 12 | D97: 14654 | E97: 24 | F97: 14697 | G97: 14 | H97: 14719 | K97: 0 | L97: 2121
A98: 21 | B98: 14834 | C98: 12 | D98: 14862 | E98: 24 | F98: 14876 | G98: 23 | H98: 14891 | K98: 0 | L98: 2122
A99: 21 | B99: 15007 | C99: 21 | D99: 15021 | E99: 22 | F99: 15039 | G99: 23 | H99: 15053 | K99: 0 | L99: 2222
A100: 21 | B100: 15173 | C100: 21 | D100: 15199 | E100: 22 | F100: 15213 | G100: 14 | H100: 15224 | K100: 0 | L100: 2221
A101: 21 | B101: 15337 | C101: 12 | D101: 15349 | E101: 24 | F101: 15358 | G101: 14 | H101: 15395 | K101: 0 | L101: 2121
A102: 21 | B102: 15499 | C102: 21 | D102: 15517 | E102: 11 | F102: 15534 | G102: 21 | H102: 15595 | K102: 0 | L102: 2212
A103: 12 | B103: 15700 | C103: 23 | D103: 15709 | E103: 24 | F103: 15721 | G103: 23 | H103: 15737 | K103: 0 | L103: 1222
A104: 21 | B104: 15844 | C104: 21 | D104: 15861 | E104: 22 | F104: 15869 | G104: 14 | H104: 15889 | K104: 0 | L104: 2221
A105: 21 | B105: 15993 | C105: 21 | D105: 16006 | E105: 22 | F105: 16014 | G105: 23 | H105: 16023 | K105: 0 | L105: 2222
A106: 12 | B106: 16131 | C106: 14 | D106: 16136 | E106: 24 | F106: 16150 | G106: 14 | H106: 16172 | K106: 0 | L106: 1121
A107: 12 | B107: 16273 | C107: 14 | D107: 16278 | E107: 24 | F107: 16301 | G107: 23 | H107: 16310 | K107: 0 | L107: 1122
A108: 21 | B108: 16415 | C108: 21 | D108: 16428 | E108: 22 | F108: 16446 | G108: 23 | H108: 16460 | K108: 0 | L108: 2222
A109: 21 | B109: 16563 | C109: 21 | D109: 16578 | E109: 11 | F109: 16595 | G109: 21 | H109: 16616 | K109: 0 | L109: 2212
A110: 12 | B110: 16714 | C110: 14 | D110: 16719 | E110: 13 | F110: 16726 | G110: 14 | H110: 16733 | K110: 0 | L110: 1111
A111: 21 | B111: 16828 | C111: 21 | D111: 16837 | E111: 22 | F111: 16855 | G111: 23 | H111: 16871 | K111: 0 | L111: 2222
A112: 12 | B112: 16970 | C112: 23 | D112: 16979 | E112: 24 | F112: 16993 | G112: 23 | H112: 17002 | K112: 0 | L112: 1222
A113: 21 | B113: 17104 | C113: 21 | D113: 17121 | E113: 22 | F113: 17132 | G113: 23 | H113: 17148 | K113: 0 | L113: 2222
A114: 21 | B114: 17257 | C114: 21 | D114: 17274 | E114: 22 | F114: 17286 | G114: 14 | H114: 17300 | K114: 0 | L114: 2221
A115: 21 | B115: 17404 | C115: 12 | D115: 17416 | E115: 13 | F115: 17420 | G115: 14 | H115: 17428 | K115: 0 | L115: 2111
A116: 21 | B116: 17530 | C116: 12 | D116: 17540 | E116: 24 | F116: 17550 | G116: 23 | H116: 17559 | K116: 0 | L116: 2122
A117: 21 | B117: 17664 | C117: 12 | D117: 17674 | E117: 24 | F117: 17683 | G117: 23 | H117: 17693 | K117: 0 | L117: 2122
A118: 21 | B118: 17798 | C118: 12 | D118: 17806 | E118: 24 | F118: 17816 | G118: 23 | H118: 17825 | K118: 0 | L118: 2122
A119: 12 | B119: 17947 | C119: 23 | D119: 17976 | E119: 13 | F119: 17989 | G119: 23 | H119: 18011 | K119: 0 | L119: 1212
A120: 21 | B120: 18125 | C120: 21 | D120: 18142 | E120: 22 | F120: 18152 | G120: 14 | H120: 18169 | K120: 0 | L120: 2221
A121: 12 | B121: 18278 | C121: 14 | D121: 18282 | E121: 13 | F121: 18290 | G121: 23 | H121: 18308 | K121: 0 | L121: 1112
A122: 12 | B122: 18441 | C122: 14 | D122: 18445 | E122: 24 | F122: 18464 | G122: 23 | H122: 18502 | K122: 0 | L122: 1122
A123: 21 | B123: 18614 | C123: 12 | D123: 18625 | E123: 24 | F123: 18634 | G123: 23 | H123: 18670 | K123: 0 | L123: 2122
A124: 21 | B124: 18776 | C124: 21 | D124: 18800 | E124: 22 | F124: 18810 | G124: 23 | H124: 18838 | K124: 0 | L124: 2222
A125: 21 | B125: 18942 | C125: 12 | D125: 18956 | E125: 13 | F125: 18962 | G125: 14 | H125: 18970 | K125: 0 | L125: 2111
A126: 12 | B126: 19086 | C126: 23 | D126: 19095 | E126: 24 | F126: 19104 | G126: 14 | H126: 19116 | K126: 0 | L126: 1221
A127: 21 | B127: 19220 | C127: 12 | D127: 19228 | E127: 24 | F127: 19253 | G127: 14 | H127: 19266 | K127: 0 | L127: 2121
A128: 21 | B128: 19381 | C128: 21 | D128: 19390 | E128: 11 | F128: 19412 | G128: 21 | H128: 19425 | K128: 0 | L128: 2212
A129: 12 | B129: 19523 | C129: 14 | D129: 19529 | E129: 13 | F129: 19534 | G129: 14 | H129: 19539 | K129: 0 | L129: 1111
A130: 12 | B130: 19637 | C130: 14 | D130: 19642 | E130: 13 | F130: 19647 | G130: 23 | H130: 19665 | K130: 0 | L130: 1112
A131: 21 | B131: 19769 | C131: 12 | D131: 19779 | E131: 13 | F131: 19783 | G131: 23 | H131: 19802 | K131: 0 | L131: 2112
A132: 21 | B132: 19898 | C132: 12 | D132: 19908 | E132: 13 | F132: 19912 | G132: 14 | H132: 19918 | K132: 0 | L132: 2111
A133: 12 | B133: 20021 | C133: 14 | D133: 20025 | E133: 13 | F133: 20032 | G133: 14 | H133: 20038 | K133: 0 | L133: 1111
A134: 21 | B134: 20147 | C134: 12 | D134: 20156 | E134: 24 | F134: 20166 | G134: 23 | H134: 20177 | K134: 0 | L134: 2122
A135: 21 | B135: 20276 | C135: 12 | D135: 20286 | E135: 13 | F135: 20291 | G135: 14 | H135: 20299 | K135: 0 | L135: 2111
A136: 21 | B136: 20410 | C136: 12 | D136: 20421 | E136: 24 | F136: 20450 | G136: 14 | H136: 20463 | K136: 0 | L136: 2121
A137: 21 | B137: 20570 | C137: 12 | D137: 20579 | E137: 24 | F137: 20589 | G137: 23 | H137: 20598 | K137: 0 | L137: 2122
A138: 21 | B138: 20695 | C138: 21 | D138: 20713 | E138: 11 | F138: 20723 | G138: 21 | H138: 20732 | K138: 0 | L138: 2212
A139: 21 | B139: 20832 | C139: 21 | D139: 20846 | E139: 11 | F139: 20855 | G139: 21 | H139: 20876 | K139: 0 | L139: 2212
A140: 12 | B140: 20975 | C140: 14 | D140: 20982 | E140: 13 | F140: 20988 | G140: 23 | H140: 21002 | K140: 0 | L140: 1112
A141: 21 | B141: 21119 | C141: 12 | D141: 21131 | E141: 24 | F141: 21141 | G141: 23 | H141: 21150 | K141: 0 | L141: 2122
A142: 21 | B142: 21290 | C142: 21 | D142: 21298 | E142: 22 | F142: 21307 | G142: 23 | H142: 21315 | K142: 0 | L142: 2222
A143: 21 | B143: 21423 | C143: 12 | D143: 21432 | E143: 13 | F143: 21437 | G143: 14 | H143: 21445 | K143: 0 | L143: 2111
A144: 21 | B144: 21553 | C144: 12 | D144: 21565 | E144: 24 | F144: 21583 | G144: 14 | H144: 21603 | K144: 0 | L144: 2121
A145: 21 | B145: 21711 | C145: 12 | D145: 21720 | E145: 13 | F145: 21725 | G145: 14 | H145: 21734 | K145: 0 | L145: 2111
A146: 21 | B146: 21841 | C146: 12 | D146: 21852 | E146: 13 | F146: 21860 | G146: 14 | H146: 21890 | K146: 0 | L146: 2111
A147: 12 | B147: 22008 | C147: 14 | D147: 22013 | E147: 13 | F147: 22018 | G147: 23 | H147: 22032 | K147: 0 | L147: 1112
A148: 21 | B148: 22135 | C148: 12 | D148: 22144 | E148: 13 | F148: 22149 | G148: 23 | H148: 22175 | K148: 0 | L148: 2112
A149: 21 | B149: 22289 | C149: 21 | D149: 22312 | E149: 22 | F149: 22320 | G149: 14 | H149: 22332 | K149: 0 | L149: 2221
A150: 12 | B150: 22442 | C150: 14 | D150: 22447 | E150: 24 | F150: 22460 | G150: 23 | H150: 22478 | K150: 0 | L150: 1122
A151: 12 | B151: 22587 | C151: 14 | D151: 22593 | E151: 24 | F151: 22602 | G151: 23 | H151: 22611 | K151: 0 | L151: 1122
A152: 12 | B152: 22721 | C152: 14 | D152: 22726 | E152: 13 | F152: 22733 | G152: 14 | H152: 22742 | K152: 0 | L152: 1111
A153: 12 | B153: 22846 | C153: 14 | D153: 22851 | E153: 13 | F153: 22856 | G153: 14 | H153: 22864 | K153: 0 | L153: 1111
A154: 21 | B154: 22980 | C154: 12 | D154: 22989 | E154: 24 | F154: 22999 | G154: 23 | H154: 23011 | K154: 0 | L154: 2122
A155: 21 | B155: 23110 | C155: 12 | D155: 23119 | E155: 13 | F155: 23125 | G155: 14 | H155: 23133 | K155: 0 | L155: 2111
A156: 21 | B156: 23237 | C156: 21 | D156: 23253 | E156: 11 | F156: 23265 | G156: 21 | H156: 23278 | K156: 0 | L156: 2212
A157: 21 | B157: 23379 | C157: 21 | D157: 23397 | E157: 11 | F157: 23406 | G157: 21 | H157: 23438 | K157: 0 | L157: 2212
A158: 21 | B158: 23540 | C158: 21 | D158: 23557 | E158: 22 | F158: 23572 | G158: 23 | H158: 23588 | K158: 0 | L158: 2222
A159: 21 | B159: 23686 | C159: 12 | D159: 23698 | E159: 13 | F159: 23703 | G159: 23 | H159: 23742 | K159: 0 | L159: 2112
A160: 12 | B160: 23856 | C160: 23 | D160: 23866 | E160: 24 | F160: 23878 | G160: 14 | H160: 23905 | K160: 0 | L160: 1221

Sheet !N107930.095
A1: Report for:!N107930.095
A2: Date: | B2: <date>
A3: Hen: | B3: <hen> | F3: Correct Sequence | G3: =Start!J2 -> 2212 | P3: Total Sequences in Data | Q3: =4994-COUNTBLANK(L7:L5000) -> 149 | V3: Total Sequences in Block Data | W3: =COUNTA(L7:L31) -> 25 | AA3: Total Sequences in Block Data | AB3: =COUNTA(L32:L56) -> 25 | AF3: Total Sequences in Block Data | AG3: =COUNTA(L57:L80) -> 24 | AK3: Total Sequences in Block Data | AL3: =COUNTA(L81:L105) -> 25 | AP3: Total Sequences in Block Data | AQ3: =COUNTA(L106:L130) -> 25 | AU3: Total Sequences in Block Data | AV3: =COUNTA(L131:L155) -> 25
P4: Total Sequences in Summary | Q4: =SUM(O7:O22) -> 149 | V4: Total Sequences in Block Summary | W4: =SUM(U7:U22) -> 25 | AA4: Total Sequences in Block Summary | AB4: =SUM(Z7:Z22) -> 25 | AF4: Total Sequences in Block Summary | AG4: =SUM(AE7:AE22) -> 24 | AK4: Total Sequences in Block Summary | AL4: =SUM(AJ7:AJ22) -> 25 | AP4: Total Sequences in Block Summary | AQ4: =SUM(AO7:AO22) -> 25 | AU4: Total Sequences in Block Summary | AV4: =SUM(AT7:AT22) -> 25
T5: Block 1 | Y5: Block 2 | AD5: Block 3 | AI5: Block 4 | AN5: Block 5 | AS5: Block 6
A6: Sequence Component 1 | B6: Time 1 | C6: Sequence Component 2 | D6: Time 2 | E6: Sequence Component 3 | F6: Time 3 | G6: Sequence Component 4 | H6: Time 4 | I6: Sequence Component 5 | J6: Time 5 | K6: Correct? 0=No 1=Yes | L6: Sequence | N6: Frequency | P6: Relative Frequency | Q6: Variability | T6: Frequency | V6: Relative Frequency | W6: Variability | Y6: Frequency | AA6: Relative Frequency | AB6: Variability | AD6: Frequency | AF6: Relative Frequency | AG6: Variability | AI6: Frequency | AK6: Relative Frequency | AL6: Variability | AN6: Frequency | AP6: Relative Frequency | AQ6: Variability | AS6: Frequency | AU6: Relative Frequency | AV6: Variability
A7: 21 | B7: 20 | C7: 12 | D7: 46 | E7: 24 | F7: 78 | G7: 14 | H7: 91 | K7: 0 | L7: 2121 | N7: 1111 | O7: =COUNTIF($L$7:$L$500,N7) -> 1 | P7: =O7/$Q$4 -> 0.006711409396 | Q7: =IF(P7=0,0,(P7*((LOG(P7))/LOG(2)))) -> -0.04845079544 | T7: =N7 -> 1111 | U7: =COUNTIF(L7:L31,T7) -> 0 | V7: =U7/(W4-U20) -> 0 | W7: =IF(V7=0,0,(V7*((LOG(V7))/LOG(2)))) -> 0 | Y7: =N7 -> 1111 | Z7: =COUNTIF(L32:L56,Y7) -> 0 | AA7: =Z7/(AB4-Z20) -> 0 | AB7: =IF(AA7=0,0,(AA7*((LOG(AA7))/LOG(2)))) -> 0 | AD7: =N7 -> 1111 | AE7: =COUNTIF(L57:L80,AD7) -> 1 | AF7: =AE7/(AG4-AE20) -> 0.04545454545 | AG7: =IF(AF7=0,0,(AF7*((LOG(AF7))/LOG(2)))) -> -0.2027014372 | AI7: =N7 -> 1111 | AJ7: =COUNTIF(L81:L105,AI7) -> 0 | AK7: =AJ7/(AL4-AJ20) -> 0 | AL7: =IF(AK7=0,0,(AK7*((LOG(AK7))/LOG(2)))) -> 0 | AN7: =N7 -> 1111 | AO7: =COUNTIF(L106:L130,AN7) -> 0 | AP7: =AO7/(AQ4-AO20) -> 0 | AQ7: =IF(AP7=0,0,(AP7*((LOG(AP7))/LOG(2)))) -> 0 | AS7: =N7 -> 1111 | AT7: =COUNTIF(L131:L155,AS7) -> 0 | AU7: =AT7/(AV4-AT20) -> 0 | AV7: =IF(AU7=0,0,(AU7*((LOG(AU7))/LOG(2)))) -> 0
A8: 12 | B8: 235 | C8: 14 | D8: 269 | E8: 24 | F8: 295 | G8: 23 | H8: 318 | K8: 0 | L8: 1122 | N8: 1112 | O8: =COUNTIF($L$7:$L$500,N8) -> 12 | P8: =O8/$Q$4 -> 0.08053691275 | Q8: =IF(P8=0,0,(P8*((LOG(P8))/LOG(2)))) -> -0.2926877331 | T8: =N8 -> 1112 | U8: =COUNTIF(L7:L31,T8) -> 2 | V8: =U8/(W4-U20) -> 0.1176470588 | W8: =IF(V8=0,0,(V8*((LOG(V8))/LOG(2)))) -> -0.3632309225 | Y8: =N8 -> 1112 | Z8: =COUNTIF(L32:L56,Y8) -> 1 | AA8: =Z8/(AB4-Z20) -> 0.04761904762 | AB8: =IF(AA8=0,0,(AA8*((LOG(AA8))/LOG(2)))) -> -0.2091579725 | AD8: =N8 -> 1112 | AE8: =COUNTIF(L57:L80,AD8) -> 0 | AF8: =AE8/(AG4-AE20) -> 0 | AG8: =IF(AF8=0,0,(AF8*((LOG(AF8))/LOG(2)))) -> 0 | AI8: =N8 -> 1112 | AJ8: =COUNTIF(L81:L105,AI8) -> 3 | AK8: =AJ8/(AL4-AJ20) -> 0.12 | AL8: =IF(AK8=0,0,(AK8*((LOG(AK8))/LOG(2)))) -> -0.3670672427 | AN8: =N8 -> 1112 | AO8: =COUNTIF(L106:L130,AN8) -> 1 | AP8: =AO8/(AQ4-AO20) -> 0.04545454545 | AQ8: =IF(AP8=0,0,(AP8*((LOG(AP8))/LOG(2)))) -> -0.2027014372 | AS8: =N8 -> 1112 | AT8: =COUNTIF(L131:L155,AS8) -> 5 | AU8: =AT8/(AV4-AT20) -> 0.2083333333 | AV8: =IF(AU8=0,0,(AU8*((LOG(AU8))/LOG(2)))) -> -0.4714655012
A9: 12 | B9: 431 | C9: 23 | D9: 440 | E9: 24 | F9: 449 | G9: 14 | H9: 478 | K9: 0 | L9: 1221 | N9: 1121 | O9: =COUNTIF($L$7:$L$500,N9) -> 3 | P9: =O9/$Q$4 -> 0.02013422819 | Q9: =IF(P9=0,0,(P9*((LOG(P9))/LOG(2)))) -> -0.1134403897 | T9: =N9 -> 1121 | U9: =COUNTIF(L7:L31,T9) -> 0 | V9: =U9/(W4-U20) -> 0 | W9: =IF(V9=0,0,(V9*((LOG(V9))/LOG(2)))) -> 0 | Y9: =N9 -> 1121 | Z9: =COUNTIF(L32:L56,Y9) -> 2 | AA9: =Z9/(AB4-Z20) -> 0.09523809524 | AB9: =IF(AA9=0,0,(AA9*((LOG(AA9))/LOG(2)))) -> -0.3230778498 | AD9: =N9 -> 1121 | AE9: =COUNTIF(L57:L80,AD9) -> 0 | AF9: =AE9/(AG4-AE20) -> 0 | AG9: =IF(AF9=0,0,(AF9*((LOG(AF9))/LOG(2)))) -> 0 | AI9: =N9 -> 1121 | AJ9: =COUNTIF(L81:L105,AI9) -> 0 | AK9: =AJ9/(AL4-AJ20) -> 0 | AL9: =IF(AK9=0,0,(AK9*((LOG(AK9))/LOG(2)))) -> 0 | AN9: =N9 -> 1121 | AO9: =COUNTIF(L106:L130,AN9) -> 0 | AP9: =AO9/(AQ4-AO20) -> 0 | AQ9: =IF(AP9=0,0,(AP9*((LOG(AP9))/LOG(2)))) -> 0 | AS9: =N9 -> 1121 | AT9: =COUNTIF(L131:L155,AS9) -> 1 | AU9: =AT9/(AV4-AT20) -> 0.04166666667 | AV9: =IF(AU9=0,0,(AU9*((LOG(AU9))/LOG(2)))) -> -0.1910401042
A10: 21 | B10: 581 | C10: 12 | D10: 641 | E10: 13 | F10: 690 | G10: 23 | H10: 712 | K10: 0 | L10: 2112 | N10: 1122 | O10: =COUNTIF($L$7:$L$500,N10) -> 6 | P10: =O10/$Q$4 -> 0.04026845638 | Q10: =IF(P10=0,0,(P10*((LOG(P10))/LOG(2)))) -> -0.1866123229 | T10: =N10 -> 1122 | U10: =COUNTIF(L7:L31,T10) -> 1 | V10: =U10/(W4-U20) -> 0.05882352941 | W10: =IF(V10=0,0,(V10*((LOG(V10))/LOG(2)))) -> -0.2404389907 | Y10: =N10 -> 1122 | Z10: =COUNTIF(L32:L56,Y10) -> 3 | AA10: =Z10/(AB4-Z20) -> 0.1428571429 | AB10: =IF(AA10=0,0,(AA10*((LOG(AA10))/LOG(2)))) -> -0.4010507032 | AD10: =N10 -> 1122 | AE10: =COUNTIF(L57:L80,AD10) -> 1 | AF10: =AE10/(AG4-AE20) -> 0.04545454545 | AG10: =IF(AF10=0,0,(AF10*((LOG(AF10))/LOG(2)))) -> -0.2027014372 | AI10: =N10 -> 1122 | AJ10: =COUNTIF(L81:L105,AI10) -> 1 | AK10: =AJ10/(AL4-AJ20) -> 0.04 | AL10: =IF(AK10=0,0,(AK10*((LOG(AK10))/LOG(2)))) -> -0.1857542476 | AN10: =N10 -> 1122 | AO10: =COUNTIF(L106:L130,AN10) -> 0 | AP10: =AO10/(AQ4-AO20) -> 0 | AQ10: =IF(AP10=0,0,(AP10*((LOG(AP10))/LOG(2)))) -> 0 | AS10: =N10 -> 1122 | AT10: =COUNTIF(L131:L155,AS10) -> 0 | AU10: =AT10/(AV4-AT20) -> 0 | AV10: =IF(AU10=0,0,(AU10*((LOG(AU10))/LOG(2)))) -> 0
A11: 12 | B11: 869 | C11: 14 | D11: 894 | E11: 13 | F11: 922 | G11: 23 | H11: 935 | K11: 0 | L11: 1112 | N11: 1211 | O11: =COUNTIF($L$7:$L$500,N11) -> 10 | P11: =O11/$Q$4 -> 0.06711409396 | Q11: =IF(P11=0,0,(P11*((LOG(P11))/LOG(2)))) -> -0.2615597601 | T11: =N11 -> 1211 | U11: =COUNTIF(L7:L31,T11) -> 0 | V11: =U11/(W4-U20) -> 0 | W11: =IF(V11=0,0,(V11*((LOG(V11))/LOG(2)))) -> 0 | Y11: =N11 -> 1211 | Z11: =COUNTIF(L32:L56,Y11) -> 1 | AA11: =Z11/(AB4-Z20) -> 0.04761904762 | AB11: =IF(AA11=0,0,(AA11*((LOG(AA11))/LOG(2)))) -> -0.2091579725 | AD11: =N11 -> 1211 | AE11: =COUNTIF(L57:L80,AD11) -> 3 | AF11: =AE11/(AG4-AE20) -> 0.1363636364 | AG11: =IF(AF11=0,0,(AF11*((LOG(AF11))/LOG(2)))) -> -0.3919730615 | AI11: =N11 -> 1211 | AJ11: =COUNTIF(L81:L105,AI11) -> 2 | AK11: =AJ11/(AL4-AJ20) -> 0.08 | AL11: =IF(AK11=0,0,(AK11*((LOG(AK11))/LOG(2)))) -> -0.2915084952 | AN11: =N11 -> 1211 | AO11: =COUNTIF(L106:L130,AN11) -> 2 | AP11: =AO11/(AQ4-AO20) -> 0.09090909091 | AQ11: =IF(AP11=0,0,(AP11*((LOG(AP11))/LOG(2)))) -> -0.3144937835 | AS11: =N11 -> 1211 | AT11: =COUNTIF(L131:L155,AS11) -> 2 | AU11: =AT11/(AV4-AT20) -> 0.08333333333 | AV11: =IF(AU11=0,0,(AU11*((LOG(AU11))/LOG(2)))) -> -0.2987468751
A12: 21 | B12: 1055 | C12: 21 | D12: 1072 | E12: 11 | F12: 1081 | G12: 21 | H12: 1106 | K12: 0 | L12: 2212 | N12: 1212 | O12: =COUNTIF($L$7:$L$500,N12) -> 19 | P12: =O12/$Q$4 -> 0.1275167785 | Q12: =IF(P12=0,0,(P12*((LOG(P12))/LOG(2)))) -> -0.3788830814 | T12: =N12 -> 1212 | U12: =COUNTIF(L7:L31,T12) -> 0 | V12: =U12/(W4-U20) -> 0 | W12: =IF(V12=0,0,(V12*((LOG(V12))/LOG(2)))) -> 0 | Y12: =N12 -> 1212 | Z12: =COUNTIF(L32:L56,Y12) -> 4 | AA12: =Z12/(AB4-Z20) -> 0.1904761905 | AB12: =IF(AA12=0,0,(AA12*((LOG(AA12))/LOG(2)))) -> -0.4556795091 | AD12: =N12 -> 1212 | AE12: =COUNTIF(L57:L80,AD12) -> 0 | AF12: =AE12/(AG4-AE20) -> 0 | AG12: =IF(AF12=0,0,(AF12*((LOG(AF12))/LOG(2)))) -> 0 | AI12: =N12 -> 1212 | AJ12: =COUNTIF(L81:L105,AI12) -> 3 | AK12: =AJ12/(AL4-AJ20) -> 0.12 | AL12: =IF(AK12=0,0,(AK12*((LOG(AK12))/LOG(2)))) -> -0.3670672427 | AN12: =N12 -> 1212 | AO12: =COUNTIF(L106:L130,AN12) -> 5 | AP12: =AO12/(AQ4-AO20) -> 0.2272727273 | AQ12: =IF(AP12=0,0,(AP12*((LOG(AP12))/LOG(2)))) -> -0.4857962554 | AS12: =N12 -> 1212 | AT12: =COUNTIF(L131:L155,AS12) -> 7 | AU12: =AT12/(AV4-AT20) -> 0.2916666667 | AV12: =IF(AU12=0,0,(AU12*((LOG(AU12))/LOG(2)))) -> -0.5184688771
A13: 21 | B13: 1229 | C13: 12 | D13: 1238 | E13: 24 | F13: 1256 | G13: 14 | H13: 1265 | K13: 0 | L13: 2121 | N13: 1221 | O13: =COUNTIF($L$7:$L$500,N13) -> 10 | P13: =O13/$Q$4 -> 0.06711409396 | Q13: =IF(P13=0,0,(P13*((LOG(P13))/LOG(2)))) -> -0.2615597601 | T13: =N13 -> 1221 | U13: =COUNTIF(L7:L31,T13) -> 1 | V13: =U13/(W4-U20) -> 0.05882352941 | W13: =IF(V13=0,0,(V13*((LOG(V13))/LOG(2)))) -> -0.2404389907 | Y13: =N13 -> 1221 | Z13: =COUNTIF(L32:L56,Y13) -> 0 | AA13: =Z13/(AB4-Z20) -> 0 | AB13: =IF(AA13=0,0,(AA13*((LOG(AA13))/LOG(2)))) -> 0 | AD13: =N13 -> 1221 | AE13: =COUNTIF(L57:L80,AD13) -> 4 | AF13: =AE13/(AG4-AE20) -> 0.1818181818 | AG13: =IF(AF13=0,0,(AF13*((LOG(AF13))/LOG(2)))) -> -0.4471693852 | AI13: =N13 -> 1221 | AJ13: =COUNTIF(L81:L105,AI13) -> 2 | AK13: =AJ13/(AL4-AJ20) -> 0.08 | AL13: =IF(AK13=0,0,(AK13*((LOG(AK13))/LOG(2)))) -> -0.2915084952 | AN13: =N13 -> 1221 | AO13: =COUNTIF(L106:L130,AN13) -> 2 | AP13: =AO13/(AQ4-AO20) -> 0.09090909091 | AQ13: =IF(AP13=0,0,(AP13*((LOG(AP13))/LOG(2)))) -> -0.3144937835 | AS13: =N13 -> 1221 | AT13: =COUNTIF(L131:L155,AS13) -> 1 | AU13: =AT13/(AV4-AT20) -> 0.04166666667 | AV13: =IF(AU13=0,0,(AU13*((LOG(AU13))/LOG(2)))) -> -0.1910401042
A14: 21 | B14: 1388 | C14: 12 | D14: 1406 | E14: 13 | F14: 1430 | G14: 23 | H14: 1439 | K14: 0 | L14: 2112 | N14: 1222 | O14: =COUNTIF($L$7:$L$500,N14) -> 4 | P14: =O14/$Q$4 -> 0.02684563758 | Q14: =IF(P14=0,0,(P14*((LOG(P14))/LOG(2)))) -> -0.1401119066 | T14: =N14 -> 1222 | U14: =COUNTIF(L7:L31,T14) -> 0 | V14: =U14/(W4-U20) -> 0 | W14: =IF(V14=0,0,(V14*((LOG(V14))/LOG(2)))) -> 0 | Y14: =N14 -> 1222 | Z14: =COUNTIF(L32:L56,Y14) -> 2 | AA14: =Z14/(AB4-Z20) -> 0.09523809524 | AB14: =IF(AA14=0,0,(AA14*((LOG(AA14))/LOG(2)))) -> -0.3230778498 | AD14: =N14 -> 1222 | AE14: =COUNTIF(L57:L80,AD14) -> 1 | AF14: =AE14/(AG4-AE20) -> 0.04545454545 | AG14: =IF(AF14=0,0,(AF14*((LOG(AF14))/LOG(2)))) -> -0.2027014372 | AI14: =N14 -> 1222 | AJ14: =COUNTIF(L81:L105,AI14) -> 0 | AK14: =AJ14/(AL4-AJ20) -> 0 | AL14: =IF(AK14=0,0,(AK14*((LOG(AK14))/LOG(2)))) -> 0 | AN14: =N14 -> 1222 | AO14: =COUNTIF(L106:L130,AN14) -> 0 | AP14: =AO14/(AQ4-AO20) -> 0 | AQ14: =IF(AP14=0,0,(AP14*((LOG(AP14))/LOG(2)))) -> 0 | AS14: =N14 -> 1222 | AT14: =COUNTIF(L131:L155,AS14) -> 1 | AU14: =AT14/(AV4-AT20) -> 0.04166666667 | AV14: =IF(AU14=0,0,(AU14*((LOG(AU14))/LOG(2)))) -> -0.1910401042
A15: 21 | B15: 1544 | C15: 21 | D15: 1555 | E15: 22 | F15: 1593 | G15: 14 | H15: 1613 | K15: 0 | L15: 2221 | N15: 2111 | O15: =COUNTIF($L$7:$L$500,N15) -> 13 | P15: =O15/$Q$4 -> 0.08724832215 | Q15: =IF(P15=0,0,(P15*((LOG(P15))/LOG(2)))) -> -0.3070031841 | T15: =N15 -> 2111 | U15: =COUNTIF(L7:L31,T15) -> 2 | V15: =U15/(W4-U20) -> 0.1176470588 | W15: =IF(V15=0,0,(V15*((LOG(V15))/LOG(2)))) -> -0.3632309225 | Y15: =N15 -> 2111 | Z15: =COUNTIF(L32:L56,Y15) -> 1 | AA15: =Z15/(AB4-Z20) -> 0.04761904762 | AB15: =IF(AA15=0,0,(AA15*((LOG(AA15))/LOG(2)))) -> -0.2091579725 | AD15: =N15 -> 2111 | AE15: =COUNTIF(L57:L80,AD15) -> 3 | AF15: =AE15/(AG4-AE20) -> 0.1363636364 | AG15: =IF(AF15=0,0,(AF15*((LOG(AF15))/LOG(2)))) -> -0.3919730615 | AI15: =N15 -> 2111 | AJ15: =COUNTIF(L81:L105,AI15) -> 3 | AK15: =AJ15/(AL4-AJ20) -> 0.12 | AL15: =IF(AK15=0,0,(AK15*((LOG(AK15))/LOG(2)))) -> -0.3670672427 | AN15: =N15 -> 2111 | AO15: =COUNTIF(L106:L130,AN15) -> 3 | AP15: =AO15/(AQ4-AO20) -> 0.1363636364 | AQ15: =IF(AP15=0,0,(AP15*((LOG(AP15))/LOG(2)))) -> -0.3919730615 | AS15: =N15 -> 2111 | AT15: =COUNTIF(L131:L155,AS15) -> 1 | AU15: =AT15/(AV4-AT20) -> 0.04166666667 | AV15: =IF(AU15=0,0,(AU15*((LOG(AU15))/LOG(2)))) -> -0.1910401042
A16: 21 | B16: 1713 | C16: 21 | D16: 1727 | E16: 11 | F16: 1744 | G16: 21 | H16: 1755 | K16: 0 | L16: 2212 | N16: 2112 | O16: =COUNTIF($L$7:$L$500,N16) -> 13 | P16: =O16/$Q$4 -> 0.08724832215 | Q16: =IF(P16=0,0,(P16*((LOG(P16))/LOG(2)))) -> -0.3070031841 | T16: =N16 -> 2112 | U16: =COUNTIF(L7:L31,T16) -> 4 | V16: =U16/(W4-U20) -> 0.2352941176 | W16: =IF(V16=0,0,(V16*((LOG(V16))/LOG(2)))) -> -0.4911677274 | Y16: =N16 -> 2112 | Z16: =COUNTIF(L32:L56,Y16) -> 1 | AA16: =Z16/(AB4-Z20) -> 0.04761904762 | AB16: =IF(AA16=0,0,(AA16*((LOG(AA16))/LOG(2)))) -> -0.2091579725 | AD16: =N16 -> 2112 | AE16: =COUNTIF(L57:L80,AD16) -> 1 | AF16: =AE16/(AG4-AE20) -> 0.04545454545 | AG16: =IF(AF16=0,0,(AF16*((LOG(AF16))/LOG(2)))) -> -0.2027014372 | AI16: =N16 -> 2112 | AJ16: =COUNTIF(L81:L105,AI16) -> 2 | AK16: =AJ16/(AL4-AJ20) -> 0.08 | AL16: =IF(AK16=0,0,(AK16*((LOG(AK16))/LOG(2)))) -> -0.2915084952 | AN16: =N16 -> 2112 | AO16: =COUNTIF(L106:L130,AN16) -> 2 | AP16: =AO16/(AQ4-AO20) -> 0.09090909091 | AQ16: =IF(AP16=0,0,(AP16*((LOG(AP16))/LOG(2)))) -> -0.3144937835 | AS16: =N16 -> 2112 | AT16: =COUNTIF(L131:L155,AS16) -> 3 | AU16: =AT16/(AV4-AT20) -> 0.125 | AV16: =IF(AU16=0,0,(AU16*((LOG(AU16))/LOG(2)))) -> -0.375
A17: 21 | B17: 1854 | C17: 12 | D17: 1875 | E17: 13 | F17: 1904 | G17: 23 | H17: 1946 | K17: 0 | L17: 2112 | N17: 2121 | O17: =COUNTIF($L$7:$L$500,N17) -> 18 | P17: =O17/$Q$4 -> 0.1208053691 | Q17: =IF(P17=0,0,(P17*((LOG(P17))/LOG(2)))) -> -0.3683649889 | T17: =N17 -> 2121 | U17: =COUNTIF(L7:L31,T17) -> 2 | V17: =U17/(W4-U20) -> 0.1176470588 | W17: =IF(V17=0,0,(V17*((LOG(V17))/LOG(2)))) -> -0.3632309225 | Y17: =N17 -> 2121 | Z17: =COUNTIF(L32:L56,Y17) -> 3 | AA17: =Z17/(AB4-Z20) -> 0.1428571429 | AB17: =IF(AA17=0,0,(AA17*((LOG(AA17))/LOG(2)))) -> -0.4010507032 | AD17: =N17 -> 2121 | AE17: =COUNTIF(L57:L80,AD17) -> 4 | AF17: =AE17/(AG4-AE20) -> 0.1818181818 | AG17: =IF(AF17=0,0,(AF17*((LOG(AF17))/LOG(2)))) -> -0.4471693852 | AI17: =N17 -> 2121 | AJ17: =COUNTIF(L81:L105,AI17) -> 7 | AK17: =AJ17/(AL4-AJ20) -> 0.28 | AL17: =IF(AK17=0,0,(AK17*((LOG(AK17))/LOG(2)))) -> -0.514220355 | AN17: =N17 -> 2121 | AO17: =COUNTIF(L106:L130,AN17) -> 0 | AP17: =AO17/(AQ4-AO20) -> 0 | AQ17: =IF(AP17=0,0,(AP17*((LOG(AP17))/LOG(2)))) -> 0 | AS17: =N17 -> 2121 | AT17: =COUNTIF(L131:L155,AS17) -> 2 | AU17: =AT17/(AV4-AT20) -> 0.08333333333 | AV17: =IF(AU17=0,0,(AU17*((LOG(AU17))/LOG(2)))) -> -0.2987468751
A18: 21 | B18: 2059 | C18: 12 | D18: 2093 | E18: 13 | F18: 2148 | G18: 14 | H18: 2193 | K18: 0 | L18: 2111 | N18: 2122 | O18: =COUNTIF($L$7:$L$500,N18) -> 11 | P18: =O18/$Q$4 -> 0.07382550336 | Q18: =IF(P18=0,0,(P18*((LOG(P18))/LOG(2)))) -> -0.2775644693 | T18: =N18 -> 2122 | U18: =COUNTIF(L7:L31,T18) -> 1 | V18: =U18/(W4-U20) -> 0.05882352941 | W18: =IF(V18=0,0,(V18*((LOG(V18))/LOG(2)))) -> -0.2404389907 | Y18: =N18 -> 2122 | Z18: =COUNTIF(L32:L56,Y18) -> 0 | AA18: =Z18/(AB4-Z20) -> 0 | AB18: =IF(AA18=0,0,(AA18*((LOG(AA18))/LOG(2)))) -> 0 | AD18: =N18 -> 2122 | AE18: =COUNTIF(L57:L80,AD18) -> 4 | AF18: =AE18/(AG4-AE20) -> 0.1818181818 | AG18: =IF(AF18=0,0,(AF18*((LOG(AF18))/LOG(2)))) -> -0.4471693852 | AI18: =N18 -> 2122 | AJ18: =COUNTIF(L81:L105,AI18) -> 0 | AK18: =AJ18/(AL4-AJ20) -> 0 | AL18: =IF(AK18=0,0,(AK18*((LOG(AK18))/LOG(2)))) -> 0 | AN18: =N18 -> 2122 | AO18: =COUNTIF(L106:L130,AN18) -> 5 | AP18: =AO18/(AQ4-AO20) -> 0.2272727273 | AQ18: =IF(AP18=0,0,(AP18*((LOG(AP18))/LOG(2)))) -> -0.4857962554 | AS18: =N18 -> 2122 | AT18: =COUNTIF(L131:L155,AS18) -> 1 | AU18: =AT18/(AV4-AT20) -> 0.04166666667 | AV18: =IF(AU18=0,0,(AU18*((LOG(AU18))/LOG(2)))) -> -0.1910401042
A19: 21 | B19: 2308 | C19: 21 | D19: 2327 | E19: 11 | F19: 2368 | G19: 21 | H19: 2397 | K19: 0 | L19: 2212 | N19: 2211 | O19: =COUNTIF($L$7:$L$500,N19) -> 3 | P19: =O19/$Q$4 -> 0.02013422819 | Q19: =IF(P19=0,0,(P19*((LOG(P19))/LOG(2)))) -> -0.1134403897 | T19: =N19 -> 2211 | U19: =COUNTIF(L7:L31,T19) -> 0 | V19: =U19/(W4-U20) -> 0 | W19: =IF(V19=0,0,(V19*((LOG(V19))/LOG(2)))) -> 0 | Y19: =N19 -> 2211 | Z19: =COUNTIF(L32:L56,Y19) -> 0 | AA19: =Z19/(AB4-Z20) -> 0 | AB19: =IF(AA19=0,0,(AA19*((LOG(AA19))/LOG(2)))) -> 0 | AD19: =N19 -> 2211 | AE19: =COUNTIF(L57:L80,AD19) -> 0 | AF19: =AE19/(AG4-AE20) -> 0 | AG19: =IF(AF19=0,0,(AF19*((LOG(AF19))/LOG(2)))) -> 0 | AI19: =N19 -> 2211 | AJ19: =COUNTIF(L81:L105,AI19) -> 2 | AK19: =AJ19/(AL4-AJ20) -> 0.08 | AL19: =IF(AK19=0,0,(AK19*((LOG(AK19))/LOG(2)))) -> -0.2915084952 | AN19: =N19 -> 2211 | AO19: =COUNTIF(L106:L130,AN19) -> 1 | AP19: =AO19/(AQ4-AO20) -> 0.04545454545 | AQ19: =IF(AP19=0,0,(AP19*((LOG(AP19))/LOG(2)))) -> -0.2027014372 | AS19: =N19 -> 2211 | AT19: =COUNTIF(L131:L155,AS19) -> 0 | AU19: =AT19/(AV4-AT20) -> 0 | AV19: =IF(AU19=0,0,(AU19*((LOG(AU19))/LOG(2)))) -> 0
A20: 21 | B20: 2490 | C20: 12 | D20: 2500 | E20: 13 | F20: 2505 | G20: 14 | H20: 2528 | K20: 0 | L20: 2111 | N20: 2212 | O20: =COUNTIF($L$7:$L$500,N20) -> 18 | P20: =O20/$Q$4 -> 0.1208053691 | Q20: =IF(P20=0,0,(P20*((LOG(P20))/LOG(2)))) -> -0.3683649889 | T20: =N20 -> 2212 | U20: =COUNTIF(L7:L31,T20) -> 8 | Y20: =N20 -> 2212 | Z20: =COUNTIF(L32:L56,Y20) -> 4 | AD20: =N20 -> 2212 | AE20: =COUNTIF(L57:L80,AD20) -> 2 | AI20: =N20 -> 2212 | AJ20: =COUNTIF(L81:L105,AI20) -> 0 | AN20: =N20 -> 2212 | AO20: =COUNTIF(L106:L130,AN20) -> 3 | AS20: =N20 -> 2212 | AT20: =COUNTIF(L131:L155,AS20) -> 1
A21: 21 | B21: 2641 | C21: 21 | D21: 2653 | E21: 11 | F21: 2682 | G21: 21 | H21: 2707 | K21: 0 | L21: 2212 | N21: 2221 | O21: =COUNTIF($L$7:$L$500,N21) -> 4 | P21: =O21/$Q$4 -> 0.02684563758 | Q21: =IF(P21=0,0,(P21*((LOG(P21))/LOG(2)))) -> -0.1401119066 | T21: =N21 -> 2221 | U21: =COUNTIF(L7:L31,T21) -> 2 | V21: =U21/(W4-U20) -> 0.1176470588 | W21: =IF(V21=0,0,(V21*((LOG(V21))/LOG(2)))) -> -0.3632309225 | Y21: =N21 -> 2221 | Z21: =COUNTIF(L32:L56,Y21) -> 1 | AA21: =Z21/(AB4-Z20) -> 0.04761904762 | AB21: =IF(AA21=0,0,(AA21*((LOG(AA21))/LOG(2)))) -> -0.2091579725 | AD21: =N21 -> 2221 | AE21: =COUNTIF(L57:L80,AD21) -> 0 | AF21: =AE21/(AG4-AE20) -> 0 | AG21: =IF(AF21=0,0,(AF21*((LOG(AF21))/LOG(2)))) -> 0 | AI21: =N21 -> 2221 | AJ21: =COUNTIF(L81:L105,AI21) -> 0 | AK21: =AJ21/(AL4-AJ20) -> 0 | AL21: =IF(AK21=0,0,(AK21*((LOG(AK21))/LOG(2)))) -> 0 | AN21: =N21 -> 2221 | AO21: =COUNTIF(L106:L130,AN21) -> 1 | AP21: =AO21/(AQ4-AO20) -> 0.04545454545 | AQ21: =IF(AP21=0,0,(AP21*((LOG(AP21))/LOG(2)))) -> -0.2027014372 | AS21: =N21 -> 2221 | AT21: =COUNTIF(L131:L155,AS21) -> 0 | AU21: =AT21/(AV4-AT20) -> 0 | AV21: =IF(AU21=0,0,(AU21*((LOG(AU21))/LOG(2)))) -> 0
A22: 21 | B22: 2812 | C22: 21 | D22: 2841 | E22: 11 | F22: 2859 | G22: 21 | H22: 2883 | K22: 0 | L22: 2212 | N22: 2222 | O22: =COUNTIF($L$7:$L$500,N22) -> 4 | P22: =O22/$Q$4 -> 0.02684563758 | Q22: =IF(P22=0,0,(P22*((LOG(P22))/LOG(2)))) -> -0.1401119066 | T22: =N22 -> 2222 | U22: =COUNTIF(L7:L31,T22) -> 2 | V22: =U22/(W4-U20) -> 0.1176470588 | W22: =IF(V22=0,0,(V22*((LOG(V22))/LOG(2)))) -> -0.3632309225 | Y22: =N22 -> 2222 | Z22: =COUNTIF(L32:L56,Y22) -> 2 | AA22: =Z22/(AB4-Z20) -> 0.09523809524 | AB22: =IF(AA22=0,0,(AA22*((LOG(AA22))/LOG(2)))) -> -0.3230778498 | AD22: =N22 -> 2222 | AE22: =COUNTIF(L57:L80,AD22) -> 0 | AF22: =AE22/(AG4-AE20) -> 0 | AG22: =IF(AF22=0,0,(AF22*((LOG(AF22))/LOG(2)))) -> 0 | AI22: =N22 -> 2222 | AJ22: =COUNTIF(L81:L105,AI22) -> 0 | AK22: =AJ22/(AL4-AJ20) -> 0 | AL22: =IF(AK22=0,0,(AK22*((LOG(AK22))/LOG(2)))) -> 0 | AN22: =N22 -> 2222 | AO22: =COUNTIF(L106:L130,AN22) -> 0 | AP22: =AO22/(AQ4-AO20) -> 0 | AQ22: =IF(AP22=0,0,(AP22*((LOG(AP22))/LOG(2)))) -> 0 | AS22: =N22 -> 2222 | AT22: =COUNTIF(L131:L155,AS22) -> 0 | AU22: =AT22/(AV4-AT20) -> 0 | AV22: =IF(AU22=0,0,(AU22*((LOG(AU22))/LOG(2)))) -> 0
A23: 21 | B23: 2977 | C23: 21 | D23: 2991 | E23: 22 | F23: 3028 | G23: 23 | H23: 3044 | K23: 0 | L23: 2222 | P23: =SUM(P7:P22) -> 1 | Q23: =-SUM(Q7:Q22) -> 3.705270767 | V23: =SUM(V7:V22) -> 1 | W23: =-SUM(W7:W22) -> 3.028639312 | AA23: =SUM(AA7:AA22) -> 1 | AB23: =-SUM(AB7:AB22) -> 3.272804327 | AF23: =SUM(AF7:AF22) -> 1 | AG23: =-SUM(AG7:AG22) -> 2.936260028 | AK23: =SUM(AK7:AK22) -> 1 | AL23: =-SUM(AL7:AL22) -> 2.967210311 | AP23: =SUM(AP7:AP22) -> 1 | AQ23: =-SUM(AQ7:AQ22) -> 2.915151234 | AU23: =SUM(AU7:AU22) -> 1 | AV23: =-SUM(AV7:AV22) -> 2.917628649
A24: 21 | B24: 3155 | C24: 12 | D24: 3191 | E24: 24 | F24: 3200 | G24: 23 | H24: 3232 | K24: 0 | L24: 2122 | P24: U= | Q24: =Q23/(LOG(Q4)/LOG(2)) -> 0.5132545053 | V24: U1= | W24: =W23/(LOG(W4)/LOG(2)) -> 0.6521819772 | AA24: U2= | AB24: =AB23/(LOG(AB4)/LOG(2)) -> 0.7047600515 | AF24: U3= | AG24: =AG23/(LOG(AG4)/LOG(2)) -> 0.6404109144 | AK24: U4= | AL24: =AL23/(LOG(AL4)/LOG(2)) -> 0.638953962 | AP24: U5= | AQ24: =AQ23/(LOG(AQ4)/LOG(2)) -> 0.62774365 | AU24: U6= | AV24: =AV23/(LOG(AV4)/LOG(2)) -> 0.6282771322
A25: 21 | B25: 3376 | C25: 12 | D25: 3393 | E25: 13 | F25: 3430 | G25: 23 | H25: 3456 | K25: 0 | L25: 2112
A26: 21 | B26: 3584 | C26: 21 | D26: 3617 | E26: 11 | F26: 3626 | G26: 21 | H26: 3641 | K26: 0 | L26: 2212
A27: 21 | B27: 3761 | C27: 21 | D27: 3777 | E27: 22 | F27: 3784 | G27: 14 | H27: 3792 | K27: 0 | L27: 2221 | N27: Total Target Seq
A28: 21 | B28: 3890 | C28: 21 | D28: 3912 | E28: 11 | F28: 3944 | G28: 21 | H28: 3970 | K28: 0 | L28: 2212 | N28: =COUNTIF(L7:L155,G3) -> 18 | P28: 25 | Q28: 25 | R28: 24 | S28: 25 | T28: 25 | U28: 25
A29: 21 | B29: 4070 | C29: 21 | D29: 4077 | E29: 22 | F29: 4093 | G29: 23 | H29: 4124 | K29: 0 | L29: 2222 | P29: % of reinforcement given in 6 equal intervals based on number of trials
A30: 21 | B30: 4234 | C30: 21 | D30: 4245 | E30: 11 | F30: 4288 | G30: 21 | H30: 4329 | K30: 0 | L30: 2212 | P30: %_1 | Q30: %_2 | R30: %_3 | S30: %_4 | T30: %_5 | U30: %_6
A31: 12 | B31: 4428 | C31: 14 | D31: 4441 | E31: 13 | F31: 4467 | G31: 23 | H31: 4475 | K31: 0 | L31: 1112 | O31: target sequence | P31: =$G$3 -> 2212 | Q31: =$G$3 -> 2212 | R31: =$G$3 -> 2212 | S31: =$G$3 -> 2212 | T31: =$G$3 -> 2212 | U31: =$G$3 -> 2212
A32: 21 | B32: 4580 | C32: 21 | D32: 4594 | E32: 11 | F32: 4601 | G32: 21 | H32: 4627 | K32: 0 | L32: 2212 | O32: total reinforcement | P32: =U20 -> 8 | Q32: =Z20 -> 4 | R32: =AE20 -> 2 | S32: =AJ20 -> 0 | T32: =AO20 -> 3 | U32: =AT20 -> 1
A33: 21 | B33: 4741 | C33: 21 | D33: 4748 | E33: 11 | F33: 4757 | G33: 21 | H33: 4807 | K33: 0 | L33: 2212 | O33: % target
A34: 21 | B34: 4921 | C34: 21 | D34: 4936 | E34: 22 | F34: 4952 | G34: 23 | H34: 4965 | K34: 0 | L34: 2222 | O34: CCRF
A35: 21 | B35: 5091 | C35: 21 | D35: 5102 | E35: 22 | F35: 5111 | G35: 23 | H35: 5143 | K35: 0 | L35: 2222 | O35: % CCRf
A36: 21 | B36: 5250 | C36: 21 | D36: 5262 | E36: 11 | F36: 5270 | G36: 21 | H36: 5279 | K36: 0 | L36: 2212 | O36: average response rate | P36: =H31/P28 -> 179 | Q36: =(H56-H31)/Q28 -> 156.16 | R36: =(H80-H56)/R28 -> 161.9583333 | S36: =(H105-H80)/S28 -> 155.32 | T36: =(H130-H105)/T28 -> 159.68 | U36: =(H155-H130)/U28 -> 151.96
A37: 12 | B37: 5394 | C37: 14 | D37: 5413 | E37: 24 | F37: 5447 | G37: 23 | H37: 5456 | K37: 0 | L37: 1122
A38: 12 | B38: 5561 | C38: 14 | D38: 5568 | E38: 24 | F38: 5576 | G38: 14 | H38: 5584 | K38: 0 | L38: 1121
A39: 12 | B39: 5685 | C39: 14 | D39: 5691 | E39: 24 | F39: 5700 | G39: 14 | H39: 5709 | K39: 0 | L39: 1121
A40: 21 | B40: 5817 | C40: 21 | D40: 5832 | E40: 22 | F40: 5839 | G40: 14 | H40: 5848 | K40: 0 | L40: 2221
A41: 12 | B41: 5970 | C41: 23 | D41: 5994 | E41: 13 | F41: 6057 | G41: 23 | H41: 6066 | K41: 0 | L41: 1212
A42: 12 | B42: 6197 | C42: 23 | D42: 6215 | E42: 24 | F42: 6238 | G42: 23 | H42: 6254 | K42: 0 | L42: 1222
A43: 12 | B43: 6366 | C43: 14 | D43: 6383 | E43: 24 | F43: 6407 | G43: 23 | H43: 6415 | K43: 0 | L43: 1122
A44: 12 | B44: 6530 | C44: 23 | D44: 6539 | E44: 24 | F44: 6548 | G44: 23 | H44: 6556 | K44: 0 | L44: 1222
A45: 12 | B45: 6668 | C45: 23 | D45: 6677 | E45: 13 | F45: 6686 | G45: 23 | H45: 6702 | K45: 0 | L45: 1212
A46: 12 | B46: 6810 | C46: 23 | D46: 6819 | E46: 13 | F46: 6826 | G46: 23 | H46: 6863 | K46: 0 | L46: 1212
A47: 21 | B47: 6971 | C47: 12 | D47: 6979 | E47: 13 | F47: 6998 | G47: 23 | H47: 7027 | K47: 0 | L47: 2112
A48: 12 | B48: 7134 | C48: 23 | D48: 7143 | E48: 13 | F48: 7151 | G48: 23 | H48: 7160 | K48: 0 | L48: 1212
A49: 12 | B49: 7271 | C49: 14 | D49: 7288 | E49: 24 | F49: 7297 | G49: 23 | H49: 7309 | K49: 0 | L49: 1122
A50: 12 | B50: 7425 | C50: 14 | D50: 7430 | E50: 13 | F50: 7438 | G50: 23 | H50: 7452 | K50: 0 | L50: 1112
A51: 21 | B51: 7563 | C51: 12 | D51: 7571 | E51: 24 | F51: 7598 | G51: 14 | H51: 7608 | K51: 0 | L51: 2121
A52: 21 | B52: 7725 | C52: 12 | D52: 7732 | E52: 24 | F52: 7766 | G52: 14 | H52: 7786 | K52: 0 | L52: 2121
A53: 21 | B53: 7898 | C53: 12 | D53: 7920 | E53: 24 | F53: 7936 | G53: 14 | H53: 7954 | K53: 0 | L53: 2121
A54: 21 | B54: 8054 | C54: 12 | D54: 8063 | E54: 13 | F54: 8073 | G54: 14 | H54: 8080 | K54: 0 | L54: 2111
A55: 12 | B55: 8191 | C55: 23 | D55: 8200 | E55: 13 | F55: 8209 | G55: 14 | H55: 8237 | K55: 0 | L55: 1211
A56: 21 | B56: 8340 | C56: 21 | D56: 8353 | E56: 11 | F56: 8362 | G56: 21 | H56: 8379 | K56: 0 | L56: 2212
A57: 12 | B57: 8477 | C57: 23 | D57: 8485 | E57: 13 | F57: 8493 | G57: 14 | H57: 8519 | K57: 0 | L57: 1211
A58: 21 | B58: 8642 | C58: 12 | D58: 8650 | E58: 24 | F58: 8662 | G58: 23 | H58: 8670 | K58: 0 | L58: 2122
A59: 21 | B59: 8774 | C59: 21 | D59: 8787 | E59: 11 | F59: 8796 | G59: 21 | H59: 8819 | K59: 0 | L59: 2212
A60: 12 | B60: 8937 | C60: 14 | D60: 8956 | E60: 24 | F60: 8982 | G60: 23 | H60: 8989 | K60: 0 | L60: 1122
A61: 21 | B61: 9158 | C61: 12 | D61: 9167 | E61: 24 | F61: 9243 | G61: 23 | H61: 9250 | K61: 0 | L61: 2122
A62: 21 | B62: 9363 | C62: 12 | D62: 9371 | E62: 13 | F62: 9405 | G62: 23 | H62: 9415 | K62: 0 | L62: 2112
A63: 12 | B63: 9547 | C63: 23 | D63: 9559 | E63: 24 | F63: 9567 | G63: 14 | H63: 9591 | K63: 0 | L63: 1221
A64: 21 | B64: 9692 | C64: 12 | D64: 9701 | E64: 24 | F64: 9708 | G64: 14 | H64: 9716 | K64: 0 | L64: 2121
A65: 12 | B65: 9851 | C65: 23 | D65: 9860 | E65: 24 | F65: 9868 | G65: 14 | H65: 9901 | K65: 0 | L65: 1221
A66: 21 | B66: 10016 | C66: 12 | D66: 10023 | E66: 24 | F66: 10031 | G66: 14 | H66: 10041 | K66: 0 | L66: 2121
A67: 12 | B67: 10173 | C67: 23 | D67: 10181 | E67: 24 | F67: 10197 | G67: 14 | H67: 10209 | K67: 0 | L67: 1221
A68: 12 | B68: 10314 | C68: 23 | D68: 10321 | E68: 13 | F68: 10329 | G68: 14 | H68: 10355 | K68: 0 | L68: 1211
A69: 21 | B69: 10465 | C69: 12 | D69: 10473 | E69: 13 | F69: 10489 | G69: 14 | H69: 10530 | K69: 0 | L69: 2111
A70: 12 | B70: 10655 | C70: 23 | D70: 10704 | E70: 24 | F70: 10713 | G70: 23 | H70: 10727 | K70: 0 | L70: 1222
A71: 12 | B71: 10836 | C71: 14 | D71: 10844 | E71: 13 | F71: 10848 | G71: 14 | H71: 10856 | K71: 0 | L71: 1111
A72: 21 | B72: 10961 | C72: 12 | D72: 10968 | E72: 24 | F72: 10976 | G72: 23 | H72: 10984 | K72: 0 | L72: 2122
A73: 21 | B73: 11103 | C73: 12 | D73: 11110 | E73: 13 | F73: 11136 | G73: 14 | H73: 11182 | K73: 0 | L73: 2111
A74: 12 | B74: 11299 | C74: 23 | D74: 11307 | E74: 13 | F74: 11316 | G74: 14 | H74: 11390 | K74: 0 | L74: 1211
A75: 21 | B75: 11505 | C75: 12 | D75: 11513 | E75: 24 | F75: 11522 | G75: 14 | H75: 11538 | K75: 0 | L75: 2121
A76: 21 | B76: 11659 | C76: 12 | D76: 11670 | E76: 13 | F76: 11675 | G76: 14 | H76: 11709 | K76: 0 | L76: 2111
A77: 21 | B77: 11810 | C77: 12 | D77: 11818 | E77: 24 | F77: 11835 | G77: 23 | H77: 11851 | K77: 0 | L77: 2122
A78: 21 | B78: 11952 | C78: 12 | D78: 11972 | E78: 24 | F78: 11988 | G78: 14 | H78: 12000 | K78: 0 | L78: 2121
A79: 21 | B79: 12103 | C79: 21 | D79: 12111 | E79: 11 | F79: 12120 | G79: 21 | H79: 12128 | K79: 0 | L79: 2212
A80: 12 | B80: 12233 | C80: 23 | D80: 12242 | E80: 24 | F80: 12250 | G80: 14 | H80: 12266 | K80: 0 | L80: 1221
A81: 12 | B81: 12376 | C81: 14 | D81: 12391 | E81: 13 | F81: 12425 | G81: 23 | H81: 12452 | K81: 0 | L81: 1112
A82: 21 | B82: 12561 | C82: 12 | D82: 12570 | E82: 13 | F82: 12590 | G82: 23 | H82: 12607 | K82: 0 | L82: 2112
A83: 21 | B83: 12714 | C83: 12 | D83: 12730 | E83: 24 | F83: 12738 | G83: 14 | H83: 12747 | K83: 0 | L83: 2121
A84: 12 | B84: 12856 | C84: 23 | D84: 12865 | E84: 13 | F84: 12874 | G84: 23 | H84: 12897 | K84: 0 | L84: 1212
A85: 12 | B85: 13008 | C85: 14 | D85: 13025 | E85: 24 | F85: 13040 | G85: 23 | H85: 13056 | K85: 0 | L85: 1122
A86: 21 | B86: 13159 | C86: 12 | D86: 13170 | E86: 24 | F86: 13181 | G86: 14 | H86: 13192 | K86: 0 | L86: 2121
A87: 21 | B87: 13292 | C87: 12 | D87: 13300 | E87: 13 | F87: 13306 | G87: 14 | H87: 13313 | K87: 0 | L87: 2111
A88: 12 | B88: 13428 | C88: 14 | D88: 13436 | E88: 13 | F88: 13444 | G88: 23 | H88: 13468 | K88: 0 | L88: 1112
A89: 21 | B89: 13595 | C89: 12 | D89: 13604 | E89: 24 | F89: 13630 | G89: 14 | H89: 13661 | K89: 0 | L89: 2121
A90: 12 | B90: 13772 | C90: 23 | D90: 13780 | E90: 24 | F90: 13788 | G90: 14 | H90: 13799 | K90: 0 | L90: 1221
A91: 21 | B91: 13909 | C91: 12 | D91: 13917 | E91: 24 | F91: 13943 | G91: 14 | H91: 13979 | K91: 0 | L91: 2121
A92: 21 | B92: 14096 | C92: 12 | D92: 14104 | E92: 13 | F92: 14137 | G92: 14 | H92: 14183 | K92: 0 | L92: 2111
A93: 21 | B93: 14283 | C93: 21 | D93: 14306 | E93: 11 | F93: 14315 | G93: 12 | H93: 14339 | K93: 0 | L93: 2211
A94: 12 | B94: 14462 | C94: 23 | D94: 14488 | E94: 24 | F94: 14497 | G94: 14 | H94: 14518 | K94: 0 | L94: 1221
A95: 21 | B95: 14621 | C95: 12 | D95: 14637 | E95: 24 | F95: 14647 | G95: 14 | H95: 14656 | K95: 0 | L95: 2121
A96: 12 | B96: 14758 | C96: 23 | D96: 14766 | E96: 13 | F96: 14774 | G96: 23 | H96: 14783 | K96: 0 | L96: 1212
A97: 12 | B97: 14878 | C97: 23 | D97: 14889 | E97: 13 | F97: 14897 | G97: 23 | H97: 14923 | K97: 0 | L97: 1212
A98: 12 | B98: 15037 | C98: 23 | D98: 15049 | E98: 13 | F98: 15059 | G98: 14 | H98: 15091 | K98: 0 | L98: 1211
A99: 12 | B99: 15200 | C99: 14 | D99: 15205 | E99: 13 | F99: 15211 | G99: 23 | H99: 15224 | K99: 0 | L99: 1112
A100: 21 | B100: 15328 | C100: 21 | D100: 15337 | E100: 11 | F100: 15346 | G100: 12 | H100: 15352 | K100: 0 | L100: 2211
A101: 21 | B101: 15458 | C101: 12 | D101: 15470 | E101: 13 | F101: 15479 | G101: 14 | H101: 15487 | K101: 0 | L101: 2111
A102: 21 | B102: 15596 | C102: 12 | D102: 15605 | E102: 24 | F102: 15656 | G102: 14 | H102: 15672 | K102: 0 | L102: 2121
A103: 12 | B103: 15796 | C103: 23 | D103: 15815 | E103: 13 | F103: 15838 | G103: 14 | H103: 15882 | K103: 0 | L103: 1211
A104: 21 | B104: 15981 | C104: 12 | D104: 15989 | E104: 24 | F104: 15999 | G104: 14 | H104: 16012 | K104: 0 | L104: 2121
A105: 21 | B105: 16112 | C105: 12 | D105: 16127 | E105: 13 | F105: 16135 | G105: 23 | H105: 16149 | K105: 0 | L105: 2112
A106: 12 | B106: 16257 | C106: 23 | D106: 16265 | E106: 13 | F106: 16273 | G106: 23 | H106: 16314 | K106: 0 | L106: 1212
A107: 12 | B107: 16424 | C107: 23 | D107: 16434 | E107: 13 | F107: 16442 | G107: 14 | H107: 16472 | K107: 0 | L107: 1211
A108: 21 | B108: 16569 | C108: 21 | D108: 16590 | E108: 11 | F108: 16609 | G108: 21 | H108: 16635 | K108: 0 | L108: 2212
A109: 21 | B109: 16731 | C109: 12 | D109: 16749 | E109: 24 | F109: 16770 | G109: 23 | H109: 16778 | K109: 0 | L109: 2122
A110: 21 | B110: 16886 | C110: 12 | D110: 16894 | E110: 13 | F110: 16910 | G110: 23 | H110: 16938 | K110: 0 | L110: 2112
A111: 21 | B111: 17043 | C111: 21 | D111: 17061 | E111: 11 | F111: 17069 | G111: 21 | H111: 17081 | K111: 0 | L111: 2212
A112: 21 | B112: 17199 | C112: 12 | D112: 17207 | E112: 24 | F112: 17231 | G112: 23 | H112: 17247 | K112: 0 | L112: 2122
A113: 21 | B113: 17348 | C113: 21 | D113: 17359 | E113: 22 | F113: 17363 | G113: 14 | H113: 17376 | K113: 0 | L113: 2221
A114: 12 | B114: 17484 | C114: 23 | D114: 17493 | E114: 24 | F114: 17502 | G114: 14 | H114: 17521 | K114: 0 | L114: 1221
A115: 12 | B115: 17630 | C115: 23 | D115: 17639 | E115: 13 | F115: 17648 | G115: 23 | H115: 17668 | K115: 0 | L115: 1212
A116: 12 | B116: 17782 | C116: 23 | D116: 17793 | E116: 13 | F116: 17810 | G116: 23 | H116: 17844 | K116: 0 | L116: 1212
A117: 12 | B117: 17955 | C117: 14 | D117: 17960 | E117: 13 | F117: 17968 | G117: 23 | H117: 17989 | K117: 0 | L117: 1112
A118: 12 | B118: 18113 | C118: 23 | D118: 18122 | E118: 13 | F118: 18139 | G118: 23 | H118: 18158 | K118: 0 | L118: 1212
A119: 21 | B119: 18281 | C119: 12 | D119: 18288 | E119: 13 | F119: 18323 | G119: 14 | H119: 18392 | K119: 0 | L119: 2111
A120: 12 | B120: 18512 | C120: 23 | D120: 18521 | E120: 24 | F120: 18537 | G120: 14 | H120: 18559 | K120: 0 | L120: 1221
A121: 21 | B121: 18655 | C121: 12 | D121: 18665 | E121: 13 | F121: 18670 | G121: 14 | H121: 18676 | K121: 0 | L121: 2111
A122: 21 | B122: 18772 | C122: 12 | D122: 18781 | E122: 13 | F122: 18789 | G122: 14 | H122: 18817 | K122: 0 | L122: 2111
A123: 12 | B123: 18937 | C123: 23 | D123: 18954 | E123: 13 | F123: 18963 | G123: 23 | H123: 18999 | K123: 0 | L123: 1212
A124: 21 | B124: 19115 | C124: 12 | D124: 19124 | E124: 24 | F124: 19140 | G124: 23 | H124: 19149 | K124: 0 | L124: 2122
A125: 21 | B125: 19254 | C125: 21 | D125: 19263 | E125: 11 | F125: 19295 | G125: 21 | H125: 19313 | K125: 0 | L125: 2212
A126: 21 | B126: 19419 | C126: 12 | D126: 19428 | E126: 24 | F126: 19440 | G126: 23 | H126: 19455 | K126: 0 | L126: 2122
A127: 21 | B127: 19560 | C127: 21 | D127: 19570 | E127: 11 | F127: 19578 | G127: 12 | H127: 19611 | K127: 0 | L127: 2211
A128: 21 | B128: 19729 | C128: 12 | D128: 19738 | E128: 13 | F128: 19775 | G128: 23 | H128: 19787 | K128: 0 | L128: 2112
A129: 12 | B129: 19912 | C129: 23 | D129: 19929 | E129: 13 | F129: 19938 | G129: 14 | H129: 19986 | K129: 0 | L129: 1211
A130: 21 | B130: 20084 | C130: 12 | D130: 20101 | E130: 24 | F130: 20132 | G130: 23 | H130: 20141 | K130: 0 | L130: 2122
A131: 12 | B131: 20245 | C131: 14 | D131: 20253 | E131: 13 | F131: 20283 | G131: 23 | H131: 20298 | K131: 0 | L131: 1112
A132: 12 | B132: 20397 | C132: 14 | D132: 20403 | E132: 13 | F132: 20408 | G132: 23 | H132: 20420 | K132: 0 | L132: 1112
A133: 12 | B133: 20515 | C133: 23 | D133: 20524 | E133: 13 | F133: 20533 | G133: 23 | H133: 20541 | K133: 0 | L133: 1212
A134: 21 | B134: 20661 | C134: 12 | D134: 20670 | E134: 13 | F134: 20714 | G134: 23 | H134: 20731 | K134: 0 | L134: 2112
A135: 12 | B135: 20841 | C135: 23 | D135: 20850 | E135: 13 | F135: 20859 | G135: 23 | H135: 20872 | K135: 0 | L135: 1212
A136: 21 | B136: 20979 | C136: 12 | D136: 20989 | E136: 24 | F136: 20997 | G136: 23 | H136: 21011 | K136: 0 | L136: 2122
A137: 12 | B137: 21126 | C137: 23 | D137: 21136 | E137: 24 | F137: 21144 | G137: 23 | H137: 21152 | K137: 0 | L137: 1222
A138: 12 | B138: 21270 | C138: 23 | D138: 21278 | E138: 13 | F138: 21287 | G138: 23 | H138: 21295 | K138: 0 | L138: 1212
A139: 12 | B139: 21406 | C139: 14 | D139: 21416 | E139: 13 | F139: 21444 | G139: 23 | H139: 21458 | K139: 0 | L139: 1112
A140: 12 | B140: 21561 | C140: 23 | D140: 21572 | E140: 13 | F140: 21585 | G140: 23 | H140: 21594 | K140: 0 | L140: 1212
A141: 21 | B141: 21699 | C141: 21 | D141: 21715 | E141: 11 | F141: 21723 | G141: 21 | H141: 21732 | K141: 0 | L141: 2212
A142: 12 | B142: 21855 | C142: 23 | D142: 21866 | E142: 24 | F142: 21883 | G142: 14 | H142: 21894 | K142: 0 | L142: 1221
A143: 12 | B143: 22002 | C143: 14 | D143: 22019 | E143: 13 | F143: 22049 | G143: 23 | H143: 22064 | K143: 0 | L143: 1112
A144: 12 | B144: 22171 | C144: 23 | D144: 22180 | E144: 13 | F144: 22188 | G144: 14 | H144: 22213 | K144: 0 | L144: 1211
A145: 21 | B145: 22331 | C145: 12 | D145: 22338 | E145: 24 | F145: 22354 | G145: 14 | H145: 22362 | K145: 0 | L145: 2121
A146: 12 | B146: 22484 | C146: 23 | D146: 22495 | E146: 13 | F146: 22515 | G146: 23 | H146: 22535 | K146: 0 | L146: 1212
A147: 21 | B147: 22634 | C147: 12 | D147: 22642 | E147: 13 | F147: 22651 | G147: 23 | H147: 22660 | K147: 0 | L147: 2112
A148: 21 | B148: 22779 | C148: 12 | D148: 22787 | E148: 13 | F148: 22811 | G148: 23 | H148: 22824 | K148: 0 | L148: 2112
A149: 12 | B149: 22930 | C149: 14 | D149: 22938 | E149: 24 | F149: 22948 | G149: 14 | H149: 22956 | K149: 0 | L149: 1121
A150: 12 | B150: 23068 | C150: 23 | D150: 23077 | E150: 13 | F150: 23086 | G150: 23 | H150: 23106 | K150: 0 | L150: 1212
A151: 12 | B151: 23241 | C151: 23 | D151: 23273 | E151: 13 | F151: 23293 | G151: 23 | H151: 23308 | K151: 0 | L151: 1212
A152: 21 | B152: 23418 | C152: 12 | D152: 23443 | E152: 24 | F152: 23453 | G152: 14 | H152: 23462 | K152: 0 | L152: 2121
A153: 21 | B153: 23575 | C153: 12 | D153: 23584 | E153: 13 | F153: 23606 | G153: 14 | H153: 23640 | K153: 0 | L153: 2111
A154: 12 | B154: 23765 | C154: 23 | D154: 23774 | E154: 13 | F154: 23783 | G154: 14 | H154: 23793 | K154: 0 | L154: 1211
A155: 12 | B155: 23903 | C155: 14 | D155: 23911 | E155: 13 | F155: 23928 | G155: 23 | H155: 23940 | L155: 1112

Sheet !N108A40.095
A1: Report for:!N108A40.095
A2: Date: | B2: <date>
A3: Hen: | B3: <hen> | F3: Correct Sequence | G3: =Start!J2 -> 2212 | P3: Total Sequences in Data | Q3: =4994-COUNTBLANK(L7:L5000) -> 141 | V3: Total Sequences in Block Data | W3: =COUNTA(L7:L30) -> 24 | AA3: Total Sequences in Block Data | AB3: =COUNTA(L31:L53) -> 23 | AF3: Total Sequences in Block Data | AG3: =COUNTA(L54:L77) -> 24 | AK3: Total Sequences in Block Data | AL3: =COUNTA(L78:L100) -> 23 | AP3: Total Sequences in Block Data | AQ3: =COUNTA(L101:L124) -> 24 | AU3: Total Sequences in Block Data | AV3: =COUNTA(L125:L147) -> 23
P4: Total Sequences in Summary | Q4: =SUM(O7:O22) -> 141 | V4: Total Sequences in Block Summary | W4: =SUM(U7:U22) -> 24 | AA4: Total Sequences in Block Summary | AB4: =SUM(Z7:Z22) -> 23 | AF4: Total Sequences in Block Summary | AG4: =SUM(AE7:AE22) -> 24 | AK4: Total Sequences in Block Summary | AL4: =SUM(AJ7:AJ22) -> 23 | AP4: Total Sequences in Block Summary | AQ4: =SUM(AO7:AO22) -> 24 | AU4: Total Sequences in Block Summary | AV4: =SUM(AT7:AT22) -> 23
T5: Block 1 | Y5: Block 2 | AD5: Block 3 | AI5: Block 4 | AN5: Block 5 | AS5: Block 6
A6: Sequence Component 1 | B6: Time 1 | C6: Sequence Component 2 | D6: Time 2 | E6: Sequence Component 3 | F6: Time 3 | G6: Sequence Component 4 | H6: Time 4 | I6: Sequence Component 5 | J6: Time 5 | K6: Correct? 0=No 1=Yes | L6: Sequence | N6: Frequency | P6: Relative Frequency | Q6: Variability | T6: Frequency | V6: Relative Frequency | W6: Variability | Y6: Frequency | AA6: Relative Frequency | AB6: Variability | AD6: Frequency | AF6: Relative Frequency | AG6: Variability | AI6: Frequency | AK6: Relative Frequency | AL6: Variability | AN6: Frequency | AP6: Relative Frequency | AQ6: Variability | AS6: Frequency | AU6: Relative Frequency | AV6: Variability
A7: 12 | B7: 20 | C7: 14 | D7: 39 | E7: 13 | F7: 61 | G7: 23 | H7: 82 | K7: 0 | L7: 1112 | N7: 1111 | O7: =COUNTIF($L$7:$L$500,N7) -> 1 | P7: =O7/$Q$4 -> 0.007092198582 | Q7: =IF(P7=0,0,(P7*((LOG(P7))/LOG(2)))) -> -0.05063511597 | T7: =N7 -> 1111 | U7: =COUNTIF(L7:L30,T7) -> 0 | V7: =U7/(W4-U20) -> 0 | W7: =IF(V7=0,0,(V7*((LOG(V7))/LOG(2)))) -> 0 | Y7: =N7 -> 1111 | Z7: =COUNTIF(L31:L53,Y7) -> 1 | AA7: =Z7/(AB4-Z20) -> 0.04761904762 | AB7: =IF(AA7=0,0,(AA7*((LOG(AA7))/LOG(2)))) -> -0.2091579725 | AD7: =N7 -> 1111 | AE7: =COUNTIF(L54:L77,AD7) -> 0 | AF7: =AE7/(AG4-AE20) -> 0 | AG7: =IF(AF7=0,0,(AF7*((LOG(AF7))/LOG(2)))) -> 0 | AI7: =N7 -> 1111 | AJ7: =COUNTIF(L78:L100,AI7) -> 0 | AK7: =AJ7/(AL4-AJ20) -> 0 | AL7: =IF(AK7=0,0,(AK7*((LOG(AK7))/LOG(2)))) -> 0 | AN7: =N7 -> 1111 | AO7: =COUNTIF(L101:L124,AN7) -> 0 | AP7: =AO7/(AQ4-AO20) -> 0 | AQ7: =IF(AP7=0,0,(AP7*((LOG(AP7))/LOG(2)))) -> 0 | AS7: =N7 -> 1111 | AT7: =COUNTIF(L125:L147,AS7) -> 0 | AU7: =AT7/(AV4-AT20) -> 0 | AV7: =IF(AU7=0,0,(AU7*((LOG(AU7))/LOG(2)))) -> 0
A8: 12 | B8: 204 | C8: 23 | D8: 235 | E8: 13 | F8: 264 | G8: 23 | H8: 281 | K8: 0 | L8: 1212 | N8: 1112 | O8: =COUNTIF($L$7:$L$500,N8) -> 4 | P8: =O8/$Q$4 -> 0.02836879433 | Q8: =IF(P8=0,0,(P8*((LOG(P8))/LOG(2)))) -> -0.1458028752 | T8: =N8 -> 1112 | U8: =COUNTIF(L7:L30,T8) -> 2 | V8: =U8/(W4-U20) -> 0.09090909091 | W8: =IF(V8=0,0,(V8*((LOG(V8))/LOG(2)))) -> -0.3144937835 | Y8: =N8 -> 1112 | Z8: =COUNTIF(L31:L53,Y8) -> 0 | AA8: =Z8/(AB4-Z20) -> 0 | AB8: =IF(AA8=0,0,(AA8*((LOG(AA8))/LOG(2)))) -> 0 | AD8: =N8 -> 1112 | AE8: =COUNTIF(L54:L77,AD8) -> 0 | AF8: =AE8/(AG4-AE20) -> 0 | AG8: =IF(AF8=0,0,(AF8*((LOG(AF8))/LOG(2)))) -> 0 | AI8: =N8 -> 1112 | AJ8: =COUNTIF(L78:L100,AI8) -> 1 | AK8: =AJ8/(AL4-AJ20) -> 0.05 | AL8: =IF(AK8=0,0,(AK8*((LOG(AK8))/LOG(2)))) -> -0.2160964047 | AN8: =N8 -> 1112 | AO8: =COUNTIF(L101:L124,AN8) -> 1 | AP8: =AO8/(AQ4-AO20) -> 0.04761904762 | AQ8: =IF(AP8=0,0,(AP8*((LOG(AP8))/LOG(2)))) -> -0.2091579725 | AS8: =N8 -> 1112 | AT8: =COUNTIF(L125:L147,AS8) -> 0 | AU8: =AT8/(AV4-AT20) -> 0 | AV8: =IF(AU8=0,0,(AU8*((LOG(AU8))/LOG(2)))) -> 0
A9: 21 | B9: 392 | C9: 12 | D9: 422 | E9: 24 | F9: 432 | G9: 14 | H9: 452 | K9: 0 | L9: 2121 | N9: 1121 | O9: =COUNTIF($L$7:$L$500,N9) -> 8 | P9: =O9/$Q$4 -> 0.05673758865 | Q9: =IF(P9=0,0,(P9*((LOG(P9))/LOG(2)))) -> -0.2348681618 | T9: =N9 -> 1121 | U9: =COUNTIF(L7:L30,T9) -> 3 | V9: =U9/(W4-U20) -> 0.1363636364 | W9: =IF(V9=0,0,(V9*((LOG(V9))/LOG(2)))) -> -0.3919730615 | Y9: =N9 -> 1121 | Z9: =COUNTIF(L31:L53,Y9) -> 0 | AA9: =Z9/(AB4-Z20) -> 0 | AB9: =IF(AA9=0,0,(AA9*((LOG(AA9))/LOG(2)))) -> 0 | AD9: =N9 -> 1121 | AE9: =COUNTIF(L54:L77,AD9) -> 3 | AF9: =AE9/(AG4-AE20) -> 0.1428571429 | AG9: =IF(AF9=0,0,(AF9*((LOG(AF9))/LOG(2)))) -> -0.4010507032 | AI9: =N9 -> 1121 | AJ9: =COUNTIF(L78:L100,AI9) -> 1 | AK9: =AJ9/(AL4-AJ20) -> 0.05 | AL9: =IF(AK9=0,0,(AK9*((LOG(AK9))/LOG(2)))) -> -0.2160964047 | AN9: =N9 -> 1121 | AO9: =COUNTIF(L101:L124,AN9) -> 1 | AP9: =AO9/(AQ4-AO20) -> 0.04761904762 | AQ9: =IF(AP9=0,0,(AP9*((LOG(AP9))/LOG(2)))) -> -0.2091579725 | AS9: =N9 -> 1121 | AT9: =COUNTIF(L125:L147,AS9) -> 0 | AU9: =AT9/(AV4-AT20) -> 0 | AV9: =IF(AU9=0,0,(AU9*((LOG(AU9))/LOG(2)))) -> 0
A10: 21 | B10: 564 | C10: 12 | D10: 578 | E10: 13 | F10: 613 | G10: 14 | H10: 633 | K10: 0 | L10: 2111 | N10: 1122 | O10: =COUNTIF($L$7:$L$500,N10) -> 6 | P10: =O10/$Q$4 -> 0.04255319149 | Q10: =IF(P10=0,0,(P10*((LOG(P10))/LOG(2)))) -> -0.1938122916 | T10: =N10 -> 1122 | U10: =COUNTIF(L7:L30,T10) -> 2 | V10: =U10/(W4-U20) -> 0.09090909091 | W10: =IF(V10=0,0,(V10*((LOG(V10))/LOG(2)))) -> -0.3144937835 | Y10: =N10 -> 1122 | Z10: =COUNTIF(L31:L53,Y10) -> 3 | AA10: =Z10/(AB4-Z20) -> 0.1428571429 | AB10: =IF(AA10=0,0,(AA10*((LOG(AA10))/LOG(2)))) -> -0.4010507032 | AD10: =N10 -> 1122 | AE10: =COUNTIF(L54:L77,AD10) -> 0 | AF10: =AE10/(AG4-AE20) -> 0 | AG10: =IF(AF10=0,0,(AF10*((LOG(AF10))/LOG(2)))) -> 0 | AI10: =N10 -> 1122 | AJ10: =COUNTIF(L78:L100,AI10) -> 1 | AK10: =AJ10/(AL4-AJ20) -> 0.05 | AL10: =IF(AK10=0,0,(AK10*((LOG(AK10))/LOG(2)))) -> -0.2160964047 | AN10: =N10 -> 1122 | AO10: =COUNTIF(L101:L124,AN10) -> 0 | AP10: =AO10/(AQ4-AO20) -> 0 | AQ10: =IF(AP10=0,0,(AP10*((LOG(AP10))/LOG(2)))) -> 0 | AS10: =N10 -> 1122 | AT10: =COUNTIF(L125:L147,AS10) -> 0 | AU10: =AT10/(AV4-AT20) -> 0 | AV10: =IF(AU10=0,0,(AU10*((LOG(AU10))/LOG(2)))) -> 0
A11: 12 | B11: 754 | C11: 23 | D11: 764 | E11: 13 | F11: 786 | G11: 23 | H11: 823 | K11: 0 | L11: 1212 | N11: 1211 | O11: =COUNTIF($L$7:$L$500,N11) -> 2 | P11: =O11/$Q$4 -> 0.01418439716 | Q11: =IF(P11=0,0,(P11*((LOG(P11))/LOG(2)))) -> -0.08708583479 | T11: =N11 -> 1211 | U11: =COUNTIF(L7:L30,T11) -> 0 | V11: =U11/(W4-U20) -> 0 | W11: =IF(V11=0,0,(V11*((LOG(V11))/LOG(2)))) -> 0 | Y11: =N11 -> 1211 | Z11: =COUNTIF(L31:L53,Y11) -> 0 | AA11: =Z11/(AB4-Z20) -> 0 | AB11: =IF(AA11=0,0,(AA11*((LOG(AA11))/LOG(2)))) -> 0 | AD11: =N11 -> 1211 | AE11: =COUNTIF(L54:L77,AD11) -> 1 | AF11: =AE11/(AG4-AE20) -> 0.04761904762 | AG11: =IF(AF11=0,0,(AF11*((LOG(AF11))/LOG(2)))) -> -0.2091579725 | AI11: =N11 -> 1211 | AJ11: =COUNTIF(L78:L100,AI11) -> 1 | AK11: =AJ11/(AL4-AJ20) -> 0.05 | AL11: =IF(AK11=0,0,(AK11*((LOG(AK11))/LOG(2)))) -> -0.2160964047 | AN11: =N11 -> 1211 | AO11: =COUNTIF(L101:L124,AN11) -> 0 | AP11: =AO11/(AQ4-AO20) -> 0 | AQ11: =IF(AP11=0,0,(AP11*((LOG(AP11))/LOG(2)))) -> 0 | AS11: =N11 -> 1211 | AT11: =COUNTIF(L125:L147,AS11) -> 0 | AU11: =AT11/(AV4-AT20) -> 0 | AV11: =IF(AU11=0,0,(AU11*((LOG(AU11))/LOG(2)))) -> 0
A12: 21 | B12: 922 | C12: 21 | D12: 930 | E12: 11 | F12: 973 | G12: 12 | H12: 1008 | K12: 0 | L12: 2211 | N12: 1212 | O12: =COUNTIF($L$7:$L$500,N12) -> 11 | P12: =O12/$Q$4 -> 0.0780141844 | Q12: =IF(P12=0,0,(P12*((LOG(P12))/LOG(2)))) -> -0.2871015395 | T12: =N12 -> 1212 | U12: =COUNTIF(L7:L30,T12) -> 2 | V12: =U12/(W4-U20) -> 0.09090909091 | W12: =IF(V12=0,0,(V12*((LOG(V12))/LOG(2)))) -> -0.3144937835 | Y12: =N12 -> 1212 | Z12: =COUNTIF(L31:L53,Y12) -> 1 | AA12: =Z12/(AB4-Z20) -> 0.04761904762 | AB12: =IF(AA12=0,0,(AA12*((LOG(AA12))/LOG(2)))) -> -0.2091579725 | AD12: =N12 -> 1212 | AE12: =COUNTIF(L54:L77,AD12) -> 3 | AF12: =AE12/(AG4-AE20) -> 0.1428571429 | AG12: =IF(AF12=0,0,(AF12*((LOG(AF12))/LOG(2)))) -> -0.4010507032 | AI12: =N12 -> 1212 | AJ12: =COUNTIF(L78:L100,AI12) -> 3 | AK12: =AJ12/(AL4-AJ20) -> 0.15 | AL12: =IF(AK12=0,0,(AK12*((LOG(AK12))/LOG(2)))) -> -0.4105448391 | AN12: =N12 -> 1212 | AO12: =COUNTIF(L101:L124,AN12) -> 1 | AP12: =AO12/(AQ4-AO20) -> 0.04761904762 | AQ12: =IF(AP12=0,0,(AP12*((LOG(AP12))/LOG(2)))) -> -0.2091579725 | AS12: =N12 -> 1212 | AT12: =COUNTIF(L125:L147,AS12) -> 1 | AU12: =AT12/(AV4-AT20) -> 0.05263157895 | AV12: =IF(AU12=0,0,(AU12*((LOG(AU12))/LOG(2)))) -> -0.2235751323
A13: 21 | B13: 1111 | C13: 21 | D13: 1128 | E13: 11 | F13: 1139 | G13: 12 | H13: 1171 | K13: 0 | L13: 2211 | N13: 1221 | O13: =COUNTIF($L$7:$L$500,N13) -> 9 | P13: =O13/$Q$4 -> 0.06382978723 | Q13: =IF(P13=0,0,(P13*((LOG(P13))/LOG(2)))) -> -0.2533804054 | T13: =N13 -> 1221 | U13: =COUNTIF(L7:L30,T13) -> 1 | V13: =U13/(W4-U20) -> 0.04545454545 | W13: =IF(V13=0,0,(V13*((LOG(V13))/LOG(2)))) -> -0.2027014372 | Y13: =N13 -> 1221 | Z13: =COUNTIF(L31:L53,Y13) -> 2 | AA13: =Z13/(AB4-Z20) -> 0.09523809524 | AB13: =IF(AA13=0,0,(AA13*((LOG(AA13))/LOG(2)))) -> -0.3230778498 | AD13: =N13 -> 1221 | AE13: =COUNTIF(L54:L77,AD13) -> 1 | AF13: =AE13/(AG4-AE20) -> 0.04761904762 | AG13: =IF(AF13=0,0,(AF13*((LOG(AF13))/LOG(2)))) -> -0.2091579725 | AI13: =N13 -> 1221 | AJ13: =COUNTIF(L78:L100,AI13) -> 2 | AK13: =AJ13/(AL4-AJ20) -> 0.1 | AL13: =IF(AK13=0,0,(AK13*((LOG(AK13))/LOG(2)))) -> -0.3321928095 | AN13: =N13 -> 1221 | AO13: =COUNTIF(L101:L124,AN13) -> 2 | AP13: =AO13/(AQ4-AO20) -> 0.09523809524 | AQ13: =IF(AP13=0,0,(AP13*((LOG(AP13))/LOG(2)))) -> -0.3230778498 | AS13: =N13 -> 1221 | AT13: =COUNTIF(L125:L147,AS13) -> 1 | AU13: =AT13/(AV4-AT20) -> 0.05263157895 | AV13: =IF(AU13=0,0,(AU13*((LOG(AU13))/LOG(2)))) -> -0.2235751323
A14: 21 | B14: 1275 | C14: 21 | D14: 1282 | E14: 11 | F14: 1291 | G14: 12 | H14: 1317 | K14: 0 | L14: 2211 | N14: 1222 | O14: =COUNTIF($L$7:$L$500,N14) -> 9 | P14: =O14/$Q$4 -> 0.06382978723 | Q14: =IF(P14=0,0,(P14*((LOG(P14))/LOG(2)))) -> -0.2533804054 | T14: =N14 -> 1222 | U14: =COUNTIF(L7:L30,T14) -> 0 | V14: =U14/(W4-U20) -> 0 | W14: =IF(V14=0,0,(V14*((LOG(V14))/LOG(2)))) -> 0 | Y14: =N14 -> 1222 | Z14: =COUNTIF(L31:L53,Y14) -> 2 | AA14: =Z14/(AB4-Z20) -> 0.09523809524 | AB14: =IF(AA14=0,0,(AA14*((LOG(AA14))/LOG(2)))) -> -0.3230778498 | AD14: =N14 -> 1222 | AE14: =COUNTIF(L54:L77,AD14) -> 3 | AF14: =AE14/(AG4-AE20) -> 0.1428571429 | AG14: =IF(AF14=0,0,(AF14*((LOG(AF14))/LOG(2)))) -> -0.4010507032 | AI14: =N14 -> 1222 | AJ14: =COUNTIF(L78:L100,AI14) -> 0 | AK14: =AJ14/(AL4-AJ20) -> 0 | AL14: =IF(AK14=0,0,(AK14*((LOG(AK14))/LOG(2)))) -> 0 | AN14: =N14 -> 1222 | AO14: =COUNTIF(L101:L124,AN14) -> 1 | AP14: =AO14/(AQ4-AO20) -> 0.04761904762 | AQ14: =IF(AP14=0,0,(AP14*((LOG(AP14))/LOG(2)))) -> -0.2091579725 | AS14: =N14 -> 1222 | AT14: =COUNTIF(L125:L147,AS14) -> 3 | AU14: =AT14/(AV4-AT20) -> 0.1578947368 | AV14: =IF(AU14=0,0,(AU14*((LOG(AU14))/LOG(2)))) -> -0.4204681599
A15: 21 | B15: 1434 | C15: 12 | D15: 1444 | E15: 24 | F15: 1473 | G15: 14 | H15: 1484 | K15: 0 | L15: 2121 | N15: 2111 | O15: =COUNTIF($L$7:$L$500,N15) -> 4 | P15: =O15/$Q$4 -> 0.02836879433 | Q15: =IF(P15=0,0,(P15*((LOG(P15))/LOG(2)))) -> -0.1458028752 | T15: =N15 -> 2111 | U15: =COUNTIF(L7:L30,T15) -> 2 | V15: =U15/(W4-U20) -> 0.09090909091 | W15: =IF(V15=0,0,(V15*((LOG(V15))/LOG(2)))) -> -0.3144937835 | Y15: =N15 -> 2111 | Z15: =COUNTIF(L31:L53,Y15) -> 0 | AA15: =Z15/(AB4-Z20) -> 0 | AB15: =IF(AA15=0,0,(AA15*((LOG(AA15))/LOG(2)))) -> 0 | AD15: =N15 -> 2111 | AE15: =COUNTIF(L54:L77,AD15) -> 1 | AF15: =AE15/(AG4-AE20) -> 0.04761904762 | AG15: =IF(AF15=0,0,(AF15*((LOG(AF15))/LOG(2)))) -> -0.2091579725 | AI15: =N15 -> 2111 | AJ15: =COUNTIF(L78:L100,AI15) -> 1 | AK15: =AJ15/(AL4-AJ20) -> 0.05 | AL15: =IF(AK15=0,0,(AK15*((LOG(AK15))/LOG(2)))) -> -0.2160964047 | AN15: =N15 -> 2111 | AO15: =COUNTIF(L101:L124,AN15) -> 0 | AP15: =AO15/(AQ4-AO20) -> 0 | AQ15: =IF(AP15=0,0,(AP15*((LOG(AP15))/LOG(2)))) -> 0 | AS15: =N15 -> 2111 | AT15: =COUNTIF(L125:L147,AS15) -> 0 | AU15: =AT15/(AV4-AT20) -> 0 | AV15: =IF(AU15=0,0,(AU15*((LOG(AU15))/LOG(2)))) -> 0
A16: 12 | B16: 1620 | C16: 14 | D16: 1667 | E16: 24 | F16: 1678 | G16: 14 | H16: 1709 | K16: 0 | L16: 1121 | N16: 2112 | O16: =COUNTIF($L$7:$L$500,N16) -> 7 | P16: =O16/$Q$4 -> 0.04964539007 | Q16: =IF(P16=0,0,(P16*((LOG(P16))/LOG(2)))) -> -0.2150735816 | T16: =N16 -> 2112 | U16: =COUNTIF(L7:L30,T16) -> 2 | V16: =U16/(W4-U20) -> 0.09090909091 | W16: =IF(V16=0,0,(V16*((LOG(V16))/LOG(2)))) -> -0.3144937835 | Y16: =N16 -> 2112 | Z16: =COUNTIF(L31:L53,Y16) -> 1 | AA16: =Z16/(AB4-Z20) -> 0.04761904762 | AB16: =IF(AA16=0,0,(AA16*((LOG(AA16))/LOG(2)))) -> -0.2091579725 | AD16: =N16 -> 2112 | AE16: =COUNTIF(L54:L77,AD16) -> 2 | AF16: =AE16/(AG4-AE20) -> 0.09523809524 | AG16: =IF(AF16=0,0,(AF16*((LOG(AF16))/LOG(2)))) -> -0.3230778498 | AI16: =N16 -> 2112 | AJ16: =COUNTIF(L78:L100,AI16) -> 1 | AK16: =AJ16/(AL4-AJ20) -> 0.05 | AL16: =IF(AK16=0,0,(AK16*((LOG(AK16))/LOG(2)))) -> -0.2160964047 | AN16: =N16 -> 2112 | AO16: =COUNTIF(L101:L124,AN16) -> 0 | AP16: =AO16/(AQ4-AO20) -> 0 | AQ16: =IF(AP16=0,0,(AP16*((LOG(AP16))/LOG(2)))) -> 0 | AS16: =N16 -> 2112 | AT16: =COUNTIF(L125:L147,AS16) -> 1 | AU16: =AT16/(AV4-AT20) -> 0.05263157895 | AV16: =IF(AU16=0,0,(AU16*((LOG(AU16))/LOG(2)))) -> -0.2235751323
A17: 21 | B17: 1814 | C17: 21 | D17: 1822 | E17: 11 | F17: 1848 | G17: 21 | H17: 1857 | K17: 0 | L17: 2212 | N17: 2121 | O17: =COUNTIF($L$7:$L$500,N17) -> 15 | P17: =O17/$Q$4 -> 0.1063829787 | Q17: =IF(P17=0,0,(P17*((LOG(P17))/LOG(2)))) -> -0.3439000805 | T17: =N17 -> 2121 | U17: =COUNTIF(L7:L30,T17) -> 5 | V17: =U17/(W4-U20) -> 0.2272727273 | W17: =IF(V17=0,0,(V17*((LOG(V17))/LOG(2)))) -> -0.4857962554 | Y17: =N17 -> 2121 | Z17: =COUNTIF(L31:L53,Y17) -> 0 | AA17: =Z17/(AB4-Z20) -> 0 | AB17: =IF(AA17=0,0,(AA17*((LOG(AA17))/LOG(2)))) -> 0 | AD17: =N17 -> 2121 | AE17: =COUNTIF(L54:L77,AD17) -> 2 | AF17: =AE17/(AG4-AE20) -> 0.09523809524 | AG17: =IF(AF17=0,0,(AF17*((LOG(AF17))/LOG(2)))) -> -0.3230778498 | AI17: =N17 -> 2121 | AJ17: =COUNTIF(L78:L100,AI17) -> 4 | AK17: =AJ17/(AL4-AJ20) -> 0.2 | AL17: =IF(AK17=0,0,(AK17*((LOG(AK17))/LOG(2)))) -> -0.464385619 | AN17: =N17 -> 2121 | AO17: =COUNTIF(L101:L124,AN17) -> 3 | AP17: =AO17/(AQ4-AO20) -> 0.1428571429 | AQ17: =IF(AP17=0,0,(AP17*((LOG(AP17))/LOG(2)))) -> -0.4010507032 | AS17: =N17 -> 2121 | AT17: =COUNTIF(L125:L147,AS17) -> 1 | AU17: =AT17/(AV4-AT20) -> 0.05263157895 | AV17: =IF(AU17=0,0,(AU17*((LOG(AU17))/LOG(2)))) -> -0.2235751323
A18: 12 | B18: 1964 | C18: 14 | D18: 1990 | E18: 24 | F18: 2004 | G18: 23 | H18: 2011 | K18: 0 | L18: 1122 | N18: 2122 | O18: =COUNTIF($L$7:$L$500,N18) -> 19 | P18: =O18/$Q$4 -> 0.134751773 | Q18: =IF(P18=0,0,(P18*((LOG(P18))/LOG(2)))) -> -0.3896514393 | T18: =N18 -> 2122 | U18: =COUNTIF(L7:L30,T18) -> 0 | V18: =U18/(W4-U20) -> 0 | W18: =IF(V18=0,0,(V18*((LOG(V18))/LOG(2)))) -> 0 | Y18: =N18 -> 2122 | Z18: =COUNTIF(L31:L53,Y18) -> 4 | AA18: =Z18/(AB4-Z20) -> 0.1904761905 | AB18: =IF(AA18=0,0,(AA18*((LOG(AA18))/LOG(2)))) -> -0.4556795091 | AD18: =N18 -> 2122 | AE18: =COUNTIF(L54:L77,AD18) -> 3 | AF18: =AE18/(AG4-AE20) -> 0.1428571429 | AG18: =IF(AF18=0,0,(AF18*((LOG(AF18))/LOG(2)))) -> -0.4010507032 | AI18: =N18 -> 2122 | AJ18: =COUNTIF(L78:L100,AI18) -> 3 | AK18: =AJ18/(AL4-AJ20) -> 0.15 | AL18: =IF(AK18=0,0,(AK18*((LOG(AK18))/LOG(2)))) -> -0.4105448391 | AN18: =N18 -> 2122 | AO18: =COUNTIF(L101:L124,AN18) -> 5 | AP18: =AO18/(AQ4-AO20) -> 0.2380952381 | AQ18: =IF(AP18=0,0,(AP18*((LOG(AP18))/LOG(2)))) -> -0.49294984 | AS18: =N18 -> 2122 | AT18: =COUNTIF(L125:L147,AS18) -> 4 | AU18: =AT18/(AV4-AT20) -> 0.2105263158 | AV18: =IF(AU18=0,0,(AU18*((LOG(AU18))/LOG(2)))) -> -0.4732478976
A19: 12 | B19: 2137 | C19: 14 | D19: 2154 | E19: 13 | F19: 2197 | G19: 23 | H19: 2224 | K19: 0 | L19: 1112 | N19: 2211 | O19: =COUNTIF($L$7:$L$500,N19) -> 4 | P19: =O19/$Q$4 -> 0.02836879433 | Q19: =IF(P19=0,0,(P19*((LOG(P19))/LOG(2)))) -> -0.1458028752 | T19: =N19 -> 2211 | U19: =COUNTIF(L7:L30,T19) -> 3 | V19: =U19/(W4-U20) -> 0.1363636364 | W19: =IF(V19=0,0,(V19*((LOG(V19))/LOG(2)))) -> -0.3919730615 | Y19: =N19 -> 2211 | Z19: =COUNTIF(L31:L53,Y19) -> 1 | AA19: =Z19/(AB4-Z20) -> 0.04761904762 | AB19: =IF(AA19=0,0,(AA19*((LOG(AA19))/LOG(2)))) -> -0.2091579725 | AD19: =N19 -> 2211 | AE19: =COUNTIF(L54:L77,AD19) -> 0 | AF19: =AE19/(AG4-AE20) -> 0 | AG19: =IF(AF19=0,0,(AF19*((LOG(AF19))/LOG(2)))) -> 0 | AI19: =N19 -> 2211 | AJ19: =COUNTIF(L78:L100,AI19) -> 0 | AK19: =AJ19/(AL4-AJ20) -> 0 | AL19: =IF(AK19=0,0,(AK19*((LOG(AK19))/LOG(2)))) -> 0 | AN19: =N19 -> 2211 | AO19: =COUNTIF(L101:L124,AN19) -> 0 | AP19: =AO19/(AQ4-AO20) -> 0 | AQ19: =IF(AP19=0,0,(AP19*((LOG(AP19))/LOG(2)))) -> 0 | AS19: =N19 -> 2211 | AT19: =COUNTIF(L125:L147,AS19) -> 0 | AU19: =AT19/(AV4-AT20) -> 0 | AV19: =IF(AU19=0,0,(AU19*((LOG(AU19))/LOG(2)))) -> 0
A20: 21 | B20: 2334 | C20: 21 | D20: 2350 | E20: 11 | F20: 2373 | G20: 21 | H20: 2391 | K20: 0 | L20: 2212 | N20: 2212 | O20: =COUNTIF($L$7:$L$500,N20) -> 17 | P20: =O20/$Q$4 -> 0.1205673759 | Q20: =IF(P20=0,0,(P20*((LOG(P20))/LOG(2)))) -> -0.3679823028 | T20: =N20 -> 2212 | U20: =COUNTIF(L7:L30,T20) -> 2 | Y20: =N20 -> 2212 | Z20: =COUNTIF(L31:L53,Y20) -> 2 | AD20: =N20 -> 2212 | AE20: =COUNTIF(L54:L77,AD20) -> 3 | AI20: =N20 -> 2212 | AJ20: =COUNTIF(L78:L100,AI20) -> 3 | AN20: =N20 -> 2212 | AO20: =COUNTIF(L101:L124,AN20) -> 3 | AS20: =N20 -> 2212 | AT20: =COUNTIF(L125:L147,AS20) -> 4
A21: 21 | B21: 2491 | C21: 12 | D21: 2510 | E21: 24 | F21: 2525 | G21: 14 | H21: 2543 | K21: 0 | L21: 2121 | N21: 2221 | O21: =COUNTIF($L$7:$L$500,N21) -> 9 | P21: =O21/$Q$4 -> 0.06382978723 | Q21: =IF(P21=0,0,(P21*((LOG(P21))/LOG(2)))) -> -0.2533804054 | T21: =N21 -> 2221 | U21: =COUNTIF(L7:L30,T21) -> 0 | V21: =U21/(W4-U20) -> 0 | W21: =IF(V21=0,0,(V21*((LOG(V21))/LOG(2)))) -> 0 | Y21: =N21 -> 2221 | Z21: =COUNTIF(L31:L53,Y21) -> 2 | AA21: =Z21/(AB4-Z20) -> 0.09523809524 | AB21: =IF(AA21=0,0,(AA21*((LOG(AA21))/LOG(2)))) -> -0.3230778498 | AD21: =N21 -> 2221 | AE21: =COUNTIF(L54:L77,AD21) -> 0 | AF21: =AE21/(AG4-AE20) -> 0 | AG21: =IF(AF21=0,0,(AF21*((LOG(AF21))/LOG(2)))) -> 0 | AI21: =N21 -> 2221 | AJ21: =COUNTIF(L78:L100,AI21) -> 1 | AK21: =AJ21/(AL4-AJ20) -> 0.05 | AL21: =IF(AK21=0,0,(AK21*((LOG(AK21))/LOG(2)))) -> -0.2160964047 | AN21: =N21 -> 2221 | AO21: =COUNTIF(L101:L124,AN21) -> 4 | AP21: =AO21/(AQ4-AO20) -> 0.1904761905 | AQ21: =IF(AP21=0,0,(AP21*((LOG(AP21))/LOG(2)))) -> -0.4556795091 | AS21: =N21 -> 2221 | AT21: =COUNTIF(L125:L147,AS21) -> 2 | AU21: =AT21/(AV4-AT20) -> 0.1052631579 | AV21: =IF(AU21=0,0,(AU21*((LOG(AU21))/LOG(2)))) -> -0.3418871067
A22: 21 | B22: 2650 | C22: 12 | D22: 2661 | E22: 13 | F22: 2679 | G22: 23 | H22: 2702 | K22: 0 | L22: 2112 | N22: 2222 | O22: =COUNTIF($L$7:$L$500,N22) -> 16 | P22: =O22/$Q$4 -> 0.1134751773 | Q22: =IF(P22=0,0,(P22*((LOG(P22))/LOG(2)))) -> -0.3562611464 | T22: =N22 -> 2222 | U22: =COUNTIF(L7:L30,T22) -> 0 | V22: =U22/(W4-U20) -> 0 | W22: =IF(V22=0,0,(V22*((LOG(V22))/LOG(2)))) -> 0 | Y22: =N22 -> 2222 | Z22: =COUNTIF(L31:L53,Y22) -> 4 | AA22: =Z22/(AB4-Z20) -> 0.1904761905 | AB22: =IF(AA22=0,0,(AA22*((LOG(AA22))/LOG(2)))) -> -0.4556795091 | AD22: =N22 -> 2222 | AE22: =COUNTIF(L54:L77,AD22) -> 2 | AF22: =AE22/(AG4-AE20) -> 0.09523809524 | AG22: =IF(AF22=0,0,(AF22*((LOG(AF22))/LOG(2)))) -> -0.3230778498 | AI22: =N22 -> 2222 | AJ22: =COUNTIF(L78:L100,AI22) -> 1 | AK22: =AJ22/(AL4-AJ20) -> 0.05 | AL22: =IF(AK22=0,0,(AK22*((LOG(AK22))/LOG(2)))) -> -0.2160964047 | AN22: =N22 -> 2222 | AO22: =COUNTIF(L101:L124,AN22) -> 3 | AP22: =AO22/(AQ4-AO20) -> 0.1428571429 | AQ22: =IF(AP22=0,0,(AP22*((LOG(AP22))/LOG(2)))) -> -0.4010507032 | AS22: =N22 -> 2222 | AT22: =COUNTIF(L125:L147,AS22) -> 6 | AU22: =AT22/(AV4-AT20) -> 0.3157894737 | AV22: =IF(AU22=0,0,(AU22*((LOG(AU22))/LOG(2)))) -> -0.5251468461
A23: 21 | B23: 2810 | C23: 12 | D23: 2859 | E23: 24 | F23: 2887 | G23: 14 | H23: 2960 | K23: 0 | L23: 2121 | P23: =SUM(P7:P22) -> 1 | Q23: =-SUM(Q7:Q22) -> 3.723921336 | V23: =SUM(V7:V22) -> 1 | W23: =-SUM(W7:W22) -> 3.044912733 | AA23: =SUM(AA7:AA22) -> 1 | AB23: =-SUM(AB7:AB22) -> 3.118275161 | AF23: =SUM(AF7:AF22) -> 1 | AG23: =-SUM(AG7:AG22) -> 3.20091028 | AK23: =SUM(AK7:AK22) -> 1 | AL23: =-SUM(AL7:AL22) -> 3.346439345 | AP23: =SUM(AP7:AP22) -> 1 | AQ23: =-SUM(AQ7:AQ22) -> 2.910440495 | AU23: =SUM(AU7:AU22) -> 1 | AV23: =-SUM(AV7:AV22) -> 2.655050539
A24: 21 | B24: 3099 | C24: 12 | D24: 3107 | E24: 13 | F24: 3151 | G24: 23 | H24: 3171 | K24: 0 | L24: 2112 | P24: U= | Q24: =Q23/(LOG(Q4)/LOG(2)) -> 0.5215903847 | V24: U1= | W24: =W23/(LOG(W4)/LOG(2)) -> 0.6641085358 | AA24: U2= | AB24: =AB23/(LOG(AB4)/LOG(2)) -> 0.6893406548 | AF24: U3= | AG24: =AG23/(LOG(AG4)/LOG(2)) -> 0.6981322702 | AK24: U4= | AL24: =AL23/(LOG(AL4)/LOG(2)) -> 0.7397797084 | AP24: U5= | AQ24: =AQ23/(LOG(AQ4)/LOG(2)) -> 0.6347795636 | AU24: U6= | AV24: =AV23/(LOG(AV4)/LOG(2)) -> 0.5869380292
A25: 12 | B25: 3313 | C25: 14 | D25: 3340 | E25: 24 | F25: 3360 | G25: 14 | H25: 3376 | K25: 0 | L25: 1121
A26: 21 | B26: 3483 | C26: 12 | D26: 3492 | E26: 13 | F26: 3509 | G26: 14 | H26: 3548 | K26: 0 | L26: 2111
A27: 12 | B27: 3668 | C27: 14 | D27: 3685 | E27: 24 | F27: 3696 | G27: 14 | H27: 3750 | K27: 0 | L27: 1121 | N27: Total Target Seq
A28: 21 | B28: 3864 | C28: 12 | D28: 3872 | E28: 24 | F28: 3880 | G28: 14 | H28: 3891 | K28: 0 | L28: 2121 | N28: =COUNTIF(L7:L147,G3) -> 17 | P28: 24 | Q28: 23 | R28: 24 | S28: 23 | T28: 24 | U28: 23
A29: 12 | B29: 4018 | C29: 14 | D29: 4037 | E29: 24 | F29: 4047 | G29: 23 | H29: 4058 | K29: 0 | L29: 1122 | P29: % of reinforcement given in 6 equal intervals based on number of trials
A30: 12 | B30: 4194 | C30: 23 | D30: 4247 | E30: 24 | F30: 4255 | G30: 14 | H30: 4299 | K30: 0 | L30: 1221 | P30: %_1 | Q30: %_2 | R30: %_3 | S30: %_4 | T30: %_5 | U30: %_6
A31: 12 | B31: 4422 | C31: 23 | D31: 4454 | E31: 24 | F31: 4463 | G31: 23 | H31: 4509 | K31: 0 | L31: 1222 | O31: target sequence | P31: =$G$3 -> 2212 | Q31: =$G$3 -> 2212 | R31: =$G$3 -> 2212 | S31: =$G$3 -> 2212 | T31: =$G$3 -> 2212 | U31: =$G$3 -> 2212
A32: 21 | B32: 4616 | C32: 21 | D32: 4633 | E32: 11 | F32: 4643 | G32: 21 | H32: 4657 | K32: 0 | L32: 2212 | O32: total reinforcement | P32: =U20 -> 2 | Q32: =Z20 -> 2 | R32: =AE20 -> 3 | S32: =AJ20 -> 3 | T32: =AO20 -> 3 | U32: =AT20 -> 4
A33: 12 | B33: 4765 | C33: 23 | D33: 4780 | E33: 24 | F33: 4789 | G33: 14 | H33: 4807 | K33: 0 | L33: 1221 | O33: % target
A34: 21 | B34: 4931 | C34: 12 | D34: 4938 | E34: 24 | F34: 4947 | G34: 23 | H34: 4998 | K34: 0 | L34: 2122 | O34: CCRF
A35: 12 | B35: 5114 | C35: 14 | D35: 5140 | E35: 24 | F35: 5149 | G35: 23 | H35: 5230 | K35: 0 | L35: 1122 | O35: % CCRf
A36: 21 | B36: 5360 | C36: 21 | D36: 5375 | E36: 22 | F36: 5386 | G36: 14 | H36: 5396 | K36: 0 | L36: 2221 | O36: average response rate | P36: =H30/P28 -> 179.125 | Q36: =(H53-H30)/Q28 -> 189.7826087 | R36: =(H77-H53)/R28 -> 167.7083333 | S36: =(H100-H77)/S28 -> 158.7391304 | T36: =(H124-H100)/T28 -> 161.8333333 | U36: =(H147-H124)/U28 -> 163.5652174
A37: 12 | B37: 5514 | C37: 23 | D37: 5572 | E37: 24 | F37: 5580 | G37: 23 | H37: 5602 | K37: 0 | L37: 1222
A38: 21 | B38: 5730 | C38: 12 | D38: 5739 | E38: 13 | F38: 5773 | G38: 23 | H38: 5801 | K38: 0 | L38: 2112
A39: 21 | B39: 5951 | C39: 21 | D39: 5960 | E39: 22 | F39: 5985 | G39: 14 | H39: 6001 | K39: 0 | L39: 2221
A40: 21 | B40: 6101 | C40: 21 | D40: 6109 | E40: 11 | F40: 6117 | G40: 21 | H40: 6165 | K40: 0 | L40: 2212
A41: 12 | B41: 6270 | C41: 14 | D41: 6288 | E41: 24 | F41: 6304 | G41: 23 | H41: 6368 | K41: 0 | L41: 1122
A42: 12 | B42: 6485 | C42: 23 | D42: 6494 | E42: 24 | F42: 6519 | G42: 14 | H42: 6566 | K42: 0 | L42: 1221
A43: 21 | B43: 6666 | C43: 21 | D43: 6677 | E43: 11 | F43: 6694 | G43: 12 | H43: 6729 | K43: 0 | L43: 2211
A44: 21 | B44: 6827 | C44: 21 | D44: 6862 | E44: 22 | F44: 6879 | G44: 23 | H44: 6902 | K44: 0 | L44: 2222
A45: 21 | B45: 7002 | C45: 21 | D45: 7027 | E45: 22 | F45: 7049 | G45: 23 | H45: 7060 | K45: 0 | L45: 2222
A46: 21 | B46: 7196 | C46: 12 | D46: 7205 | E46: 24 | F46: 7217 | G46: 23 | H46: 7243 | K46: 0 | L46: 2122
A47: 12 | B47: 7355 | C47: 14 | D47: 7394 | E47: 13 | F47: 7455 | G47: 14 | H47: 7503 | K47: 0 | L47: 1111
A48: 12 | B48: 7629 | C48: 23 | D48: 7649 | E48: 13 | F48: 7660 | G48: 23 | H48: 7678 | K48: 0 | L48: 1212
A49: 21 | B49: 7798 | C49: 21 | D49: 7869 | E49: 22 | F49: 7894 | G49: 23 | H49: 7925 | K49: 0 | L49: 2222
A50: 21 | B50: 8040 | C50: 12 | D50: 8090 | E50: 24 | F50: 8144 | G50: 23 | H50: 8164 | K50: 0 | L50: 2122
A51: 21 | B51: 8295 | C51: 21 | D51: 8339 | E51: 22 | F51: 8347 | G51: 23 | H51: 8355 | K51: 0 | L51: 2222
A52: 21 | B52: 8483 | C52: 12 | D52: 8491 | E52: 24 | F52: 8500 | G52: 23 | H52: 8508 | K52: 0 | L52: 2122
A53: 12 | B53: 8629 | C53: 14 | D53: 8646 | E53: 24 | F53: 8655 | G53: 23 | H53: 8664 | K53: 0 | L53: 1122
A54: 12 | B54: 8773 | C54: 23 | D54: 8781 | E54: 13 | F54: 8789 | G54: 23 | H54: 8797 | K54: 0 | L54: 1212
A55: 21 | B55: 8908 | C55: 21 | D55: 8947 | E55: 11 | F55: 8956 | G55: 21 | H55: 8969 | K55: 0 | L55: 2212
A56: 21 | B56: 9065 | C56: 21 | D56: 9080 | E56: 22 | F56: 9096 | G56: 23 | H56: 9128 | K56: 0 | L56: 2222
A57: 21 | B57: 9267 | C57: 12 | D57: 9322 | E57: 13 | F57: 9357 | G57: 23 | H57: 9390 | K57: 0 | L57: 2112
A58: 12 | B58: 9513 | C58: 23 | D58: 9522 | E58: 24 | F58: 9548 | G58: 23 | H58: 9556 | K58: 0 | L58: 1222
A59: 21 | B59: 9654 | C59: 21 | D59: 9669 | E59: 11 | F59: 9684 | G59: 21 | H59: 9708 | K59: 0 | L59: 2212
A60: 21 | B60: 9821 | C60: 12 | D60: 9830 | E60: 24 | F60: 9854 | G60: 23 | H60: 9876 | K60: 0 | L60: 2122
A61: 21 | B61: 9976 | C61: 21 | D61: 9992 | E61: 22 | F61: 10009 | G61: 23 | H61: 10029 | K61: 0 | L61: 2222
A62: 12 | B62: 10149 | C62: 23 | D62: 10204 | E62: 24 | F62: 10212 | G62: 23 | H62: 10220 | K62: 0 | L62: 1222
A63: 21 | B63: 10320 | C63: 12 | D63: 10341 | E63: 24 | F63: 10351 | G63: 23 | H63: 10368 | K63: 0 | L63: 2122
A64: 12 | B64: 10484 | C64: 23 | D64: 10502 | E64: 24 | F64: 10521 | G64: 14 | H64: 10539 | K64: 0 | L64: 1221
A65: 12 | B65: 10661 | C65: 23 | D65: 10670 | E65: 13 | F65: 10689 | G65: 14 | H65: 10723 | K65: 0 | L65: 1211
A66: 21 | B66: 10824 | C66: 21 | D66: 10842 | E66: 11 | F66: 10852 | G66: 21 | H66: 10876 | K66: 0 | L66: 2212
A67: 21 | B67: 10964 | C67: 12 | D67: 10999 | E67: 13 | F67: 11046 | G67: 23 | H67: 11097 | K67: 0 | L67: 2112
A68: 12 | B68: 11226 | C68: 23 | D68: 11235 | E68: 24 | F68: 11243 | G68: 23 | H68: 11260 | K68: 0 | L68: 1222
A69: 21 | B69: 11368 | C69: 12 | D69: 11376 | E69: 24 | F69: 11393 | G69: 14 | H69: 11404 | K69: 0 | L69: 2121
A70: 21 | B70: 11499 | C70: 12 | D70: 11520 | E70: 24 | F70: 11533 | G70: 14 | H70: 11553 | K70: 0 | L70: 2121
A71: 12 | B71: 11671 | C71: 14 | D71: 11701 | E71: 24 | F71: 11721 | G71: 14 | H71: 11740 | K71: 0 | L71: 1121
A72: 21 | B72: 11842 | C72: 12 | D72: 11858 | E72: 13 | F72: 11863 | G72: 14 | H72: 11871 | K72: 0 | L72: 2111
A73: 12 | B73: 11988 | C73: 14 | D73: 12006 | E73: 24 | F73: 12021 | G73: 14 | H73: 12040 | K73: 0 | L73: 1121
A74: 12 | B74: 12155 | C74: 23 | D74: 12173 | E74: 13 | F74: 12183 | G74: 23 | H74: 12210 | K74: 0 | L74: 1212
A75: 21 | B75: 12322 | C75: 12 | D75: 12332 | E75: 24 | F75: 12340 | G75: 23 | H75: 12357 | K75: 0 | L75: 2122
A76: 12 | B76: 12487 | C76: 14 | D76: 12507 | E76: 24 | F76: 12518 | G76: 14 | H76: 12546 | K76: 0 | L76: 1121
A77: 12 | B77: 12660 | C77: 23 | D77: 12670 | E77: 13 | F77: 12678 | G77: 23 | H77: 12689 | K77: 0 | L77: 1212
A78: 21 | B78: 12792 | C78: 12 | D78: 12800 | E78: 24 | F78: 12810 | G78: 14 | H78: 12820 | K78: 0 | L78: 2121
A79: 12 | B79: 12929 | C79: 14 | D79: 12945 | E79: 24 | F79: 12954 | G79: 23 | H79: 12968 | K79: 0 | L79: 1122
A80: 21 | B80: 13065 | C80: 12 | D80: 13074 | E80: 24 | F80: 13082 | G80: 14 | H80: 13099 | K80: 0 | L80: 2121
A81: 21 | B81: 13212 | C81: 12 | D81: 13220 | E81: 24 | F81: 13253 | G81: 14 | H81: 13287 | K81: 0 | L81: 2121
A82: 21 | B82: 13402 | C82: 12 | D82: 13410 | E82: 13 | F82: 13441 | G82: 23 | H82: 13469 | K82: 0 | L82: 2112
A83: 12 | B83: 13585 | C83: 23 | D83: 13593 | E83: 24 | F83: 13601 | G83: 14 | H83: 13613 | K83: 0 | L83: 1221
A84: 12 | B84: 13733 | C84: 23 | D84: 13741 | E84: 24 | F84: 13750 | G84: 14 | H84: 13761 | K84: 0 | L84: 1221
A85: 21 | B85: 13869 | C85: 21 | D85: 13884 | E85: 11 | F85: 13910 | G85: 21 | H85: 13954 | K85: 0 | L85: 2212
A86: 12 | B86: 14064 | C86: 23 | D86: 14074 | E86: 13 | F86: 14086 | G86: 23 | H86: 14105 | K86: 0 | L86: 1212
A87: 21 | B87: 14219 | C87: 12 | D87: 14228 | E87: 24 | F87: 14236 | G87: 23 | H87: 14284 | K87: 0 | L87: 2122
A88: 21 | B88: 14398 | C88: 12 | D88: 14420 | E88: 24 | F88: 14429 | G88: 23 | H88: 14439 | K88: 0 | L88: 2122
A89: 21 | B89: 14542 | C89: 21 | D89: 14551 | E89: 11 | F89: 14568 | G89: 21 | H89: 14577 | K89: 0 | L89: 2212
A90: 12 | B90: 14688 | C90: 14 | D90: 14714 | E90: 13 | F90: 14753 | G90: 23 | H90: 14779 | K90: 0 | L90: 1112
A91: 21 | B91: 14894 | C91: 21 | D91: 14909 | E91: 11 | F91: 14925 | G91: 21 | H91: 14934 | K91: 0 | L91: 2212
A92: 12 | B92: 15053 | C92: 23 | D92: 15069 | E92: 13 | F92: 15078 | G92: 14 | H92: 15120 | K92: 0 | L92: 1211
A93: 21 | B93: 15236 | C93: 21 | D93: 15251 | E93: 22 | F93: 15267 | G93: 23 | H93: 15281 | K93: 0 | L93: 2222
A94: 21 | B94: 15410 | C94: 12 | D94: 15419 | E94: 24 | F94: 15431 | G94: 23 | H94: 15447 | K94: 0 | L94: 2122
A95: 21 | B95: 15559 | C95: 12 | D95: 15568 | E95: 24 | F95: 15576 | G95: 14 | H95: 15585 | K95: 0 | L95: 2121
A96: 12 | B96: 15699 | C96: 14 | D96: 15715 | E96: 24 | F96: 15735 | G96: 14 | H96: 15763 | K96: 0 | L96: 1121
A97: 21 | B97: 15867 | C97: 21 | D97: 15883 | E97: 22 | F97: 15895 | G97: 14 | H97: 15919 | K97: 0 | L97: 2221
A98: 21 | B98: 16016 | C98: 12 | D98: 16025 | E98: 13 | F98: 16032 | G98: 14 | H98: 16039 | K98: 0 | L98: 2111
A99: 12 | B99: 16146 | C99: 23 | D99: 16154 | E99: 13 | F99: 16164 | G99: 23 | H99: 16189 | K99: 0 | L99: 1212
A100: 12 | B100: 16298 | C100: 23 | D100: 16308 | E100: 13 | F100: 16320 | G100: 23 | H100: 16340 | K100: 0 | L100: 1212
A101: 12 | B101: 16447 | C101: 23 | D101: 16457 | E101: 24 | F101: 16465 | G101: 14 | H101: 16477 | K101: 0 | L101: 1221
A102: 12 | B102: 16585 | C102: 23 | D102: 16593 | E102: 13 | F102: 16612 | G102: 23 | H102: 16630 | K102: 0 | L102: 1212
A103: 21 | B103: 16737 | C103: 12 | D103: 16761 | E103: 24 | F103: 16779 | G103: 23 | H103: 16798 | K103: 0 | L103: 2122
A104: 21 | B104: 16911 | C104: 12 | D104: 16920 | E104: 24 | F104: 16929 | G104: 23 | H104: 16937 | K104: 0 | L104: 2122
A105: 21 | B105: 17042 | C105: 12 | D105: 17068 | E105: 24 | F105: 17076 | G105: 14 | H105: 17092 | K105: 0 | L105: 2121
A106: 21 | B106: 17199 | C106: 21 | D106: 17207 | E106: 22 | F106: 17221 | G106: 14 | H106: 17238 | K106: 0 | L106: 2221
A107: 21 | B107: 17340 | C107: 12 | D107: 17355 | E107: 24 | F107: 17371 | G107: 14 | H107: 17392 | K107: 0 | L107: 2121
A108: 12 | B108: 17539 | C108: 23 | D108: 17563 | E108: 24 | F108: 17572 | G108: 14 | H108: 17591 | K108: 0 | L108: 1221
A109: 21 | B109: 17712 | C109: 12 | D109: 17720 | E109: 24 | F109: 17743 | G109: 23 | H109: 17750 | K109: 0 | L109: 2122
A110: 21 | B110: 17852 | C110: 12 | D110: 17864 | E110: 24 | F110: 17874 | G110: 14 | H110: 17883 | K110: 0 | L110: 2121
A111: 12 | B111: 17994 | C111: 14 | D111: 18003 | E111: 13 | F111: 18033 | G111: 23 | H111: 18069 | K111: 0 | L111: 1112
A112: 21 | B112: 18178 | C112: 21 | D112: 18192 | E112: 11 | F112: 18200 | G112: 21 | H112: 18210 | K112: 0 | L112: 2212
A113: 21 | B113: 18303 | C113: 12 | D113: 18326 | E113: 24 | F113: 18369 | G113: 23 | H113: 18392 | K113: 0 | L113: 2122
A114: 21 | B114: 18501 | C114: 21 | D114: 18512 | E114: 22 | F114: 18526 | G114: 14 | H114: 18535 | K114: 0 | L114: 2221
A115: 21 | B115: 18635 | C115: 12 | D115: 18651 | E115: 24 | F115: 18668 | G115: 23 | H115: 18676 | K115: 0 | L115: 2122
A116: 21 | B116: 18790 | C116: 21 | D116: 18813 | E116: 22 | F116: 18821 | G116: 23 | H116: 18863 | K116: 0 | L116: 2222
A117: 21 | B117: 18968 | C117: 21 | D117: 19006 | E117: 22 | F117: 19034 | G117: 23 | H117: 19044 | K117: 0 | L117: 2222
A118: 12 | B118: 19160 | C118: 14 | D118: 19180 | E118: 24 | F118: 19200 | G118: 14 | H118: 19211 | K118: 0 | L118: 1121
A119: 21 | B119: 19328 | C119: 21 | D119: 19348 | E119: 22 | F119: 19356 | G119: 14 | H119: 19367 | K119: 0 | L119: 2221
A120: 21 | B120: 19489 | C120: 21 | D120: 19506 | E120: 11 | F120: 19523 | G120: 21 | H120: 19550 | K120: 0 | L120: 2212
A121: 21 | B121: 19641 | C121: 21 | D121: 19663 | E121: 22 | F121: 19687 | G121: 14 | H121: 19715 | K121: 0 | L121: 2221
A122: 21 | B122: 19827 | C122: 21 | D122: 19841 | E122: 22 | F122: 19864 | G122: 23 | H122: 19886 | K122: 0 | L122: 2222
A123: 12 | B123: 20003 | C123: 23 | D123: 20034 | E123: 24 | F123: 20059 | G123: 23 | H123: 20066 | K123: 0 | L123: 1222
A124: 21 | B124: 20172 | C124: 21 | D124: 20182 | E124: 11 | F124: 20191 | G124: 21 | H124: 20224 | K124: 0 | L124: 2212
A125: 21 | B125: 20329 | C125: 21 | D125: 20344 | E125: 11 | F125: 20352 | G125: 21 | H125: 20379 | K125: 0 | L125: 2212
A126: 21 | B126: 20484 | C126: 21 | D126: 20500 | E126: 11 | F126: 20510 | G126: 21 | H126: 20521 | K126: 0 | L126: 2212
A127: 21 | B127: 20611 | C127: 12 | D127: 20620 | E127: 24 | F127: 20640 | G127: 23 | H127: 20648 | K127: 0 | L127: 2122
A128: 21 | B128: 20754 | C128: 21 | D128: 20770 | E128: 11 | F128: 20779 | G128: 21 | H128: 20798 | K128: 0 | L128: 2212
A129: 12 | B129: 20899 | C129: 23 | D129: 20908 | E129: 24 | F129: 20916 | G129: 23 | H129: 20923 | K129: 0 | L129: 1222
A130: 21 | B130: 21029 | C130: 12 | D130: 21055 | E130: 24 | F130: 21077 | G130: 23 | H130: 21114 | K130: 0 | L130: 2122
A131: 12 | B131: 21229 | C131: 23 | D131: 21238 | E131: 24 | F131: 21252 | G131: 14 | H131: 21271 | K131: 0 | L131: 1221
A132: 12 | B132: 21395 | C132: 23 | D132: 21406 | E132: 24 | F132: 21421 | G132: 23 | H132: 21437 | K132: 0 | L132: 1222
A133: 21 | B133: 21535 | C133: 12 | D133: 21550 | E133: 13 | F133: 21574 | G133: 23 | H133: 21597 | K133: 0 | L133: 2112
A134: 21 | B134: 21700 | C134: 12 | D134: 21724 | E134: 24 | F134: 21732 | G134: 23 | H134: 21748 | K134: 0 | L134: 2122
A135: 21 | B135: 21851 | C135: 12 | D135: 21865 | E135: 24 | F135: 21874 | G135: 23 | H135: 21881 | K135: 0 | L135: 2122
A136: 12 | B136: 21973 | C136: 23 | D136: 21996 | E136: 13 | F136: 22004 | G136: 23 | H136: 22022 | K136: 0 | L136: 1212
A137: 21 | B137: 22202 | C137: 21 | D137: 22239 | E137: 22 | F137: 22257 | G137: 23 | H137: 22264 | K137: 0 | L137: 2222
A138: 21 | B138: 22426 | C138: 21 | D138: 22441 | E138: 22 | F138: 22448 | G138: 23 | H138: 22456 | K138: 0 | L138: 2222
A139: 21 | B139: 22555 | C139: 21 | D139: 22563 | E139: 22 | F139: 22578 | G139: 14 | H139: 22601 | K139: 0 | L139: 2221
A140: 21 | B140: 22699 | C140: 21 | D140: 22712 | E140: 11 | F140: 22721 | G140: 21 | H140: 22818 | K140: 0 | L140: 2212
A141: 21 | B141: 22911 | C141: 21 | D141: 22958 | E141: 22 | F141: 22966 | G141: 23 | H141: 23005 | K141: 0 | L141: 2222
A142: 21 | B142: 23120 | C142: 21 | D142: 23135 | E142: 22 | F142: 23143 | G142: 23 | H142: 23166 | K142: 0 | L142: 2222
A143: 12 | B143: 23271 | C143: 23 | D143: 23290 | E143: 24 | F143: 23317 | G143: 23 | H143: 23328 | K143: 0 | L143: 1222
A144: 21 | B144: 23427 | C144: 12 | D144: 23439 | E144: 24 | F144: 23479 | G144: 14 | H144: 23491 | K144: 0 | L144: 2121
A145: 21 | B145: 23614 | C145: 21 | D145: 23636 | E145: 22 | F145: 23659 | G145: 14 | H145: 23678 | K145: 0 | L145: 2221
A146: 21 | B146: 23786 | C146: 21 | D146: 23825 | E146: 22 | F146: 23833 | G146: 23 | H146: 23841 | K146: 0 | L146: 2222
A147: 21 | B147: 23954 | C147: 21 | D147: 23969 | E147: 22 | F147: 23977 | G147: 23 | H147: 23986 | L147: 2222

Sheet !N109930.095
A1: Report for:!N109930.095
A2: Date: | B2: <date>
A3: Hen: | B3: <hen> | F3: Correct Sequence | G3: =Start!J2 -> 2212 | P3: Total Sequences in Data | Q3: =4994-COUNTBLANK(L7:L5000) -> 150 | V3: Total Sequences in Block Data | W3: =COUNTA(L7:L31) -> 25 | AA3: Total Sequences in Block Data | AB3: =COUNTA(L32:L56) -> 25 | AF3: Total Sequences in Block Data | AG3: =COUNTA(L57:L81) -> 25 | AK3: Total Sequences in Block Data | AL3: =COUNTA(L82:L106) -> 25 | AP3: Total Sequences in Block Data | AQ3: =COUNTA(L107:L131) -> 25 | AU3: Total Sequences in Block Data | AV3: =COUNTA(L132:L156) -> 25
P4: Total Sequences in Summary | Q4: =SUM(O7:O22) -> 149 | V4: Total Sequences in Block Summary | W4: =SUM(U7:U22) -> 25 | AA4: Total Sequences in Block Summary | AB4: =SUM(Z7:Z22) -> 25 | AF4: Total Sequences in Block Summary | AG4: =SUM(AE7:AE22) -> 25 | AK4: Total Sequences in Block Summary | AL4: =SUM(AJ7:AJ22) -> 25 | AP4: Total Sequences in Block Summary | AQ4: =SUM(AO7:AO22) -> 25 | AU4: Total Sequences in Block Summary | AV4: =SUM(AT7:AT22) -> 24
T5: Block 1 | Y5: Block 2 | AD5: Block 3 | AI5: Block 4 | AN5: Block 5 | AS5: Block 6
A6: Sequence Component 1 | B6: Time 1 | C6: Sequence Component 2 | D6: Time 2 | E6: Sequence Component 3 | F6: Time 3 | G6: Sequence Component 4 | H6: Time 4 | I6: Sequence Component 5 | J6: Time 5 | K6: Correct? 0=No 1=Yes | L6: Sequence | N6: Frequency | P6: Relative Frequency | Q6: Variability | T6: Frequency | V6: Relative Frequency | W6: Variability | Y6: Frequency | AA6: Relative Frequency | AB6: Variability | AD6: Frequency | AF6: Relative Frequency | AG6: Variability | AI6: Frequency | AK6: Relative Frequency | AL6: Variability | AN6: Frequency | AP6: Relative Frequency | AQ6: Variability | AS6: Frequency | AU6: Relative Frequency | AV6: Variability
A7: 21 | B7: 23 | C7: 21 | D7: 49 | E7: 22 | F7: 68 | G7: 23 | H7: 76 | K7: 0 | L7: 2222 | N7: 1111 | O7: =COUNTIF($L$7:$L$500,N7) -> 1 | P7: =O7/$Q$4 -> 0.006711409396 | Q7: =IF(P7=0,0,(P7*((LOG(P7))/LOG(2)))) -> -0.04845079544 | T7: =N7 -> 1111 | U7: =COUNTIF(L7:L31,T7) -> 0 | V7: =U7/(W4-U20) -> 0 | W7: =IF(V7=0,0,(V7*((LOG(V7))/LOG(2)))) -> 0 | Y7: =N7 -> 1111 | Z7: =COUNTIF(L32:L56,Y7) -> 0 | AA7: =Z7/(AB4-Z20) -> 0 | AB7: =IF(AA7=0,0,(AA7*((LOG(AA7))/LOG(2)))) -> 0 | AD7: =N7 -> 1111 | AE7: =COUNTIF(L57:L81,AD7) -> 0 | AF7: =AE7/(AG4-AE20) -> 0 | AG7: =IF(AF7=0,0,(AF7*((LOG(AF7))/LOG(2)))) -> 0 | AI7: =N7 -> 1111 | AJ7: =COUNTIF(L82:L106,AI7) -> 0 | AK7: =AJ7/(AL4-AJ20) -> 0 | AL7: =IF(AK7=0,0,(AK7*((LOG(AK7))/LOG(2)))) -> 0 | AN7: =N7 -> 1111 | AO7: =COUNTIF(L107:L131,AN7) -> 0 | AP7: =AO7/(AQ4-AO20) -> 0 | AQ7: =IF(AP7=0,0,(AP7*((LOG(AP7))/LOG(2)))) -> 0 | AS7: =N7 -> 1111 | AT7: =COUNTIF(L132:L156,AS7) -> 1 | AU7: =AT7/(AV4-AT20) -> 0.04347826087 | AV7: =IF(AU7=0,0,(AU7*((LOG(AU7))/LOG(2)))) -> -0.1966766068
A8: 21 | B8: 185 | C8: 21 | D8: 213 | E8: 11 | F8: 223 | G8: 21 | H8: 308 | K8: 0 | L8: 2212 | N8: 1112 | O8: =COUNTIF($L$7:$L$500,N8) -> 3 | P8: =O8/$Q$4 -> 0.02013422819 | Q8: =IF(P8=0,0,(P8*((LOG(P8))/LOG(2)))) -> -0.1134403897 | T8: =N8 -> 1112 | U8: =COUNTIF(L7:L31,T8) -> 0 | V8: =U8/(W4-U20) -> 0 | W8: =IF(V8=0,0,(V8*((LOG(V8))/LOG(2)))) -> 0 | Y8: =N8 -> 1112 | Z8: =COUNTIF(L32:L56,Y8) -> 1 | AA8: =Z8/(AB4-Z20) -> 0.04761904762 | AB8: =IF(AA8=0,0,(AA8*((LOG(AA8))/LOG(2)))) -> -0.2091579725 | AD8: =N8 -> 1112 | AE8: =COUNTIF(L57:L81,AD8) -> 0 | AF8: =AE8/(AG4-AE20) -> 0 | AG8: =IF(AF8=0,0,(AF8*((LOG(AF8))/LOG(2)))) -> 0 | AI8: =N8 -> 1112 | AJ8: =COUNTIF(L82:L106,AI8) -> 0 | AK8: =AJ8/(AL4-AJ20) -> 0 | AL8: =IF(AK8=0,0,(AK8*((LOG(AK8))/LOG(2)))) -> 0 | AN8: =N8 -> 1112 | AO8: =COUNTIF(L107:L131,AN8) -> 0 | AP8: =AO8/(AQ4-AO20) -> 0 | AQ8: =IF(AP8=0,0,(AP8*((LOG(AP8))/LOG(2)))) -> 0 | AS8: =N8 -> 1112 | AT8: =COUNTIF(L132:L156,AS8) -> 2 | AU8: =AT8/(AV4-AT20) -> 0.08695652174 | AV8: =IF(AU8=0,0,(AU8*((LOG(AU8))/LOG(2)))) -> -0.3063966918
